Workbook

Sheet Control Sheet (hidden)
A1: #hidesheet | F1: 22 pixels column width
J2: Year Formulas & Naming Conventions
G4: Year | J4: -1 | K4: 0 | L4: 1 | M4: 2 | N4: 3 | O4: 4 | P4: 5 | Q4: 6 | R4: 7 | S4: 8 | T4: 9 | U4: 10 | V4: Year | W4: 1 | X4: 1 | Y4: 1 | Z4: 1 | AA4: 1 | AB4: 1 | AC4: 1 | AD4: 1 | AE4: 1 | AF4: 1 | AG4: 1 | AH4: 1
G5: Fiscal Month | V5: Fiscal Month | W5: 1 | X5: 2 | Y5: 3 | Z5: 4 | AA5: 5 | AB5: 6 | AC5: 7 | AD5: 8 | AE5: 9 | AF5: 10 | AG5: 11 | AH5: 12
A6: 22 pixels row height | V6: Vena Period Names | W6: Jan | X6: Feb | Y6: Mar | Z6: Apr | AA6: May | AB6: Jun | AC6: Jul | AD6: Aug | AE6: Sep | AF6: Oct | AG6: Nov | AH6: Dec
E7: Mapping/Task Binding | G7: =IFERROR(MID(D9,FIND("(",D9)+1,FIND(")",D9)-FIND("(",D9)-1),D9) -> ARISE High School
B8: Section | C8: Dimension | D8: Page Mapping | E8: All clients | G8: =D11-1&"-"&RIGHT(D11,2) -> 2020-21
B9: CurrentForecast | C9: Subsidiary | D9: 0110-ARISE High School (ARISE High School) | E9: Client budget models: client parent member task bound to each task; Petition: Dynamic mapping of Children of Active folder task bind same mapping to all Petition tasks; Training: Training client parent member task bound to all training tasks | G9: =LEFT(D10,LEN(D10)-4) -> Apr Forecast
B10: CurrentForecast | C10: Scenario | D10: Apr Forecast 2021 | E10: Dynamic expression for "Input" attribute, bottom level dynamic members of "Petition" and "Training", no task binding | V10: Calendar Month | W10: =IF(W$5=1,$H$16,IF(V10=12,1,V10+1)) -> 7 | X10: 8 | Y10: 9 | Z10: 10 | AA10: 11 | AB10: 12 | AC10: 1 | AD10: 2 | AE10: 3 | AF10: 4 | AG10: 5 | AH10: 6
B11: CurrentForecast | C11: Year | D11: 2021 | E11: Bottom level dynamic members of "Active Years", no task binding | V11: Period Name | W11: =INDEX($W$6:$AH$6,1,MATCH(W10,FiscalMonth,0)) -> Jul | X11: =INDEX($W$6:$AH$6,1,MATCH(X10,FiscalMonth,0)) -> Aug | Y11: =INDEX($W$6:$AH$6,1,MATCH(Y10,FiscalMonth,0)) -> Sep | Z11: =INDEX($W$6:$AH$6,1,MATCH(Z10,FiscalMonth,0)) -> Oct | AA11: =INDEX($W$6:$AH$6,1,MATCH(AA10,FiscalMonth,0)) -> Nov | AB11: =INDEX($W$6:$AH$6,1,MATCH(AB10,FiscalMonth,0)) -> Dec | AC11: =INDEX($W$6:$AH$6,1,MATCH(AC10,FiscalMonth,0)) -> Jan | AD11: =INDEX($W$6:$AH$6,1,MATCH(AD10,FiscalMonth,0)) -> Feb | AE11: =INDEX($W$6:$AH$6,1,MATCH(AE10,FiscalMonth,0)) -> Mar | AF11: =INDEX($W$6:$AH$6,1,MATCH(AF10,FiscalMonth,0)) -> Apr | AG11: =INDEX($W$6:$AH$6,1,MATCH(AG10,FiscalMonth,0)) -> May | AH11: =INDEX($W$6:$AH$6,1,MATCH(AH10,FiscalMonth,0)) -> Jun
G12: Mapped Year | L12: ='Control Sheet'!$D$11+L$4-1 -> 2021 | M12: ='Control Sheet'!$D$11+M$4-1 -> 2022 | N12: ='Control Sheet'!$D$11+N$4-1 -> 2023 | O12: ='Control Sheet'!$D$11+O$4-1 -> 2024 | P12: ='Control Sheet'!$D$11+P$4-1 -> 2025 | Q12: ='Control Sheet'!$D$11+Q$4-1 -> 2026 | R12: ='Control Sheet'!$D$11+R$4-1 -> 2027 | S12: ='Control Sheet'!$D$11+S$4-1 -> 2028 | T12: ='Control Sheet'!$D$11+T$4-1 -> 2029 | U12: ='Control Sheet'!$D$11+U$4-1 -> 2030 | V12: Fiscal Year | W12: ='Control Sheet'!$D$11+W$4-1 -> 2021 | X12: ='Control Sheet'!$D$11+X$4-1 -> 2021 | Y12: ='Control Sheet'!$D$11+Y$4-1 -> 2021 | Z12: ='Control Sheet'!$D$11+Z$4-1 -> 2021 | AA12: ='Control Sheet'!$D$11+AA$4-1 -> 2021 | AB12: ='Control Sheet'!$D$11+AB$4-1 -> 2021 | AC12: ='Control Sheet'!$D$11+AC$4-1 -> 2021 | AD12: ='Control Sheet'!$D$11+AD$4-1 -> 2021 | AE12: ='Control Sheet'!$D$11+AE$4-1 -> 2021 | AF12: ='Control Sheet'!$D$11+AF$4-1 -> 2021 | AG12: ='Control Sheet'!$D$11+AG$4-1 -> 2021 | AH12: ='Control Sheet'!$D$11+AH$4-1 -> 2021
G13: Relative Year Naming Convention | L13: =$G$4&" "&L$4 -> Year 1 | M13: Year 2 | N13: Year 3 | O13: Year 4 | P13: Year 5 | Q13: Year 6 | R13: Year 7 | S13: Year 8 | T13: Year 9 | U13: Year 10
G14: Absolute Year Naming Convention | J14: =$D$11+J$4-2&"-"&RIGHT($D$11+J$4-1,2) -> 2018-19 | K14: 2019-20 | L14: 2020-21 | M14: 2021-22 | N14: 2022-23 | O14: 2023-24 | P14: 2024-25 | Q14: 2025-26 | R14: 2026-27 | S14: 2027-28 | T14: 2028-29 | U14: 2029-30
H15: Month | I15: Day
G16: Year Start Date | H16: 7 | I16: 1 | L16: =DATE(L$12-1,$H16,$I16) -> 2020-07-01 | M16: 2021-07-01 | N16: 2022-07-01 | O16: 2023-07-01 | P16: 2024-07-01 | Q16: 2025-07-01 | R16: 2026-07-01 | S16: 2027-07-01 | T16: 2028-07-01 | U16: 2029-07-01 | V16: Month Start Date | W16: =DATE(IF(W$10>=$H$16,W$12-1,W$12),W$10,1) -> 2020-07-01 | X16: 2020-08-01 | Y16: 2020-09-01 | Z16: 2020-10-01 | AA16: 2020-11-01 | AB16: 2020-12-01 | AC16: 2021-01-01 | AD16: 2021-02-01 | AE16: 2021-03-01 | AF16: 2021-04-01 | AG16: 2021-05-01 | AH16: 2021-06-01
G17: Year End Date | H17: 6 | I17: 30 | L17: =DATE(L$12,$H17,$I17) -> 2021-06-30 | M17: 2022-06-30 | N17: 2023-06-30 | O17: 2024-06-30 | P17: 2025-06-30 | Q17: 2026-06-30 | R17: 2027-06-30 | S17: 2028-06-30 | T17: 2029-06-30 | U17: 2030-06-30 | V17: Month End Date | W17: =EOMONTH(W16,0) -> 2020-07-31 | X17: 2020-08-31 | Y17: 2020-09-30 | Z17: 2020-10-31 | AA17: 2020-11-30 | AB17: 2020-12-31 | AC17: 2021-01-31 | AD17: 2021-02-28 | AE17: 2021-03-31 | AF17: 2021-04-30 | AG17: 2021-05-31 | AH17: 2021-06-30
G19: Subsidiary-location calculated fields
G20: Common ESP location | H20: -0000-000
G21: Subsidiary number | H21: =TRIM(LEFT(D9,4)) -> 0110
G22: Common bottom level member | H22: =SubsidiaryNumber&H20 -> 0110-0000-000
G24: Account Group Names
G25: Revenue - Group 1 | H25: LCFF Entitlement
G26: Revenue - Group 2 | H26: Federal Revenue
G27: Revenue - Group 3 | H27: Other State Revenues
G28: Revenue - Group 4 | H28: Local Revenues
G29: Revenue - Group 5 | H29: Fundraising and Grants
G33: Expense - Group 1 | H33: Certificated Salaries
G34: Expense - Group 2 | H34: Classified Salaries
G35: Expense - Group 3 | H35: Employee Benefits
G36: Expense - Group 4 | H36: Books and Supplies
G37: Expense - Group 5 | H37: Services and Other Operating Expenditures
G38: Expense - Group 6 | H38: Depreciation
G39: Expense - Group 7 | H39: Other Outflows
G40: Expense - Group 8

Sheet Macro Drivers (hidden)
A1: Variable Name | B1: #hidesheet | E1: Description | F1: Comments
A2: TgtSecName | B2: CurrentForecast | E2: Name of the Section that contains the choosebox in the template you are trying to run Template Automation on
A3: FileID | B3: File=812503432174501888 | E3: Id of the file you are trying to run Template Automation on | F3: Only way to get this parameter currently is to use F12 in the Web browser, rename the file in the files library and capture the File ID under "Network" (see snapshot on the next page) ; renaming the file doesn't generate a new file ID every time, it just exposes it, so feel free to rename the file back to what it was after
A4: StringX | B4: ="{"""&"memberIds"""&":{"""&DimNo1&""""&":"&""""&MemberID1&""","""&DimNo2&""""&":"&""""&MemberID2&""","""&DimNo3&""""&":"&""""&MemberID3&"""}, ""section"":"""&TgtSecName&"""}" -> {"memberIds":{"1":"431662142212538369","2":"857776579488907267","4":"431662182104563713"}, "section":"CurrentForecast"} | E4: Just the variable string built using all the previous fields, and used in the SSR macro to send a call to the server to trigger TA | F4: Make sure it's name only or the call will error out
A5: ResponseString | B5: {"id":"933870875953201152","version":0,"metadata":{"modelId":"431611186443714560","processId":null,"name":"Ad hoc template automation job for file: Payroll allocation-CA - template automation only.xlsx","description":null,"queuingEnabled":null,"attributes":[],"steps":[{"stepType":"ETLSSPTemplateStep","stepNumber":0,"status":"NOT_STARTED","startedTS":null,"completedTS":null,"percentDone":0,"skipOnError":false,"launchParameters":null,"retries":0,"numCalcTargetWrties":0,"pageOption":{"embeddedId":null,"clonedId":null,"section":"CurrentForecast","memberIds":{"1":"431662142212538369","2":"857776579488907267","4":"431662182104563713"},"key":"CurrentForecast-1-431662142212538369-2-857776579488907267-4-431662182104563713-"},"fileId":"812503432174501888","taskName":null,"processName":null,"taskId":null,"templateFile":null,"ssptemplateId":null,"name":"CurrentForecast-1-431662142212538369-2-857776579488907267-4-431662182104563713-","rollbackRequired":false}],"files":null,"stagingRequired":false,"loadType":null,"tables":null,"schemaVersion":2},"requestId":"933870875147894785","cancelRequested":false,"pauseRequested":false,"error":false,"shortMessage":null,"validationResults":null,"phase":"NOT_STARTED","templateId":null,"createdDate":1603905121397,"updatedDate":null,"userId":"420828980708114432","status":"WAITING","currentStepNumber":null,"lockProperty":"JOB","log":[{"date":1603905121397,"message":"Job created.","row":null,"step":null,"logEventType":"GENERAL"},{"date":1603905121410,"message":"Lock acquired.","row":null,"step":null,"logEventType":"GENERAL"}],"numCalcOverwrite":0,"numFailedSteps":0,"numCompletedSteps":0,"attributes":null,"venaSupportUser":null,"user":null,"lockId":"933870875953201152","rollbackRequired":false,"saveJob":false,"errorMessage":null}
A8: Dimension: | B8: Subsidiary-Location | C8: Scenario | D8: Year
A9: DimNo | B9: 1 | C9: 2 | D9: 4 | E9: Index of the dimension the member belongs to | F9: Index just follow the natural order of the dimension ; if the choosebox is set on "Entity" and that Entity is the second dimension of your cube, the index is 2
A10: MemberName | B10: 0070-OCHS (OCHS) | C10: =ChooseCFScenario -> Apr Forecast 2021 | D10: =ChooseYear -> 2021 | E10: Member name of the choose option currently selected | F10: Make sure it's name only or the call will error out
A11: MemberID | B11: 431662142212538369 | C11: 857776579488907267 | D11: 431662182104563713 | E11: Member Id of the member of the choose option currently selected | F11: Retrieved with Com Function method in the SSR macro, based on the Member Name
A14: Legend:
B15: input/editable
B16: named range used in SSR macro

Sheet Drop Down (hidden)
A1: #hidesheet
B6: Budget Cateogory | C6: Retirement - Employee LID | D6: Retirement - Extra Pay | E6: Payroll Timing | F6: Stipend Timing | G6: Yes/No | H6: Override Type (not in use now) | I6: Prior Year (not in use now)
B7: 1100 | C7: =STRS -> STRS | D7: =STRS -> STRS | E7: =Custom_Timing1 -> #REF! | F7: =July_to_June -> #REF! | G7: Yes | H7: Value | I7: Prior Year
B8: 1101 | C8: =PERS -> PERS | D8: =STRS_DBS -> STRS DBS (Bonus) | E8: =Custom_Timing2 -> #REF! | F8: =August_to_June -> #REF! | G8: No | H8: Percent
B9: 1102 | C9: =PARS -> PARS | D9: =PERS -> PERS | E9: =July_to_June -> #REF! | F9: =September_to_June -> #REF!
B10: 1103 | C10: =OtherRetirement1 -> Other Retirement 1 | D10: =PARS -> PARS | E10: =August_to_June -> #REF! | F10: =Aug_Dec -> #REF!
B11: 1111 | C11: =OtherRetirement2 -> Other Retirement 2 | D11: =OtherRetirement1 -> Other Retirement 1 | E11: =September_to_June -> #REF! | F11: =Dec_Jun -> #REF!
B12: 1145 | C12: None | D12: =OtherRetirement2 -> Other Retirement 2 | E12: =July_to_May -> #REF! | F12: =Jul -> #REF!
B13: 1148 | D13: None | E13: =Aug_to_May -> #REF! | F13: =Aug -> #REF!
B14: 1150 | E14: =August_to_July -> #REF! | F14: =Sep -> #REF!
B15: 1155 | E15: =Work10_Paid11 -> #REF! | F15: =Oct -> #REF!
B16: 1160 | E16: =Work10_Paid11_Aug -> #REF! | F16: =Nov -> #REF!
B17: 1165 | E17: =Work10_Paid12 -> #REF! | F17: =Dec -> #REF!
B18: 1170 | E18: =Work10_Pay12_Aug -> #REF! | F18: =Jan -> #REF!
B19: 1175 | E19: =Work10.5_Paid12 -> #REF! | F19: =Feb -> #REF!
B20: 1180 | E20: =Work11_Paid12 -> #REF! | F20: =Mar -> #REF!
B21: 1185 | E21: =MidJul_to_MidSep -> #REF! | F21: =Apr -> #REF!
B22: 1190 | E22: =FirstHalf -> #REF! | F22: =May -> #REF!
B23: 1200 | E23: =SecondHalf -> #REF! | F23: =Jun -> #REF!
B24: 1201 | F24: =Custom_Timing1 -> #REF!
B25: 1202 | F25: =Custom_Timing2 -> #REF!
B26: 1203
B27: 1204
B28: 1205
B29: 1300
B30: 1311
B31: 1322
B32: 1333
B33: 1340
B34: 1350
B35: 1400
B36: 1401
B37: 1402
B38: 1403
B39: 1404
B40: 1405
B41: 1900
B42: 1904
B43: 1910
B44: 1920
B45: 1921
B46: 1930
B47: 1940
B48: 1950
B49: 1960
B50: 1970
B51: 1980
B52: 2100
B53: 2101
B54: 2102
B55: 2103
B56: 2104
B57: 2105
B58: 2106
B59: 2107
B60: 2108
B61: 2109
B62: 2200
B63: 2201
B64: 2202
B65: 2203
B66: 2204
B67: 2205
B68: 2206
B69: 2207
B70: 2300
B71: 2311
B72: 2322
B73: 2330
B74: 2340
B75: 2350
B76: 2400
B77: 2401
B78: 2402
B79: 2403
B80: 2404
B81: 2405
B82: 2600
B83: 2601
B84: 2602
B85: 2603
B86: 2604
B87: 2605
B88: 2900
B89: 2904
B90: 2905
B91: 2908
B92: 2909
B93: 2911
B94: 2912
B95: 2913
B96: 2914
B97: 2915
B98: 2916
B99: 2917
B100: 2925
B101: 2928
B102: 2930
B103: 2933
B104: 2935
B105: 2940
B106: 2941

Sheet Payroll
A1: #hidecolumn | B1: #hidecolumn | C1: #hidecolumn | D1: #hidecolumn | E1: #hidecolumn | F1: #hidecolumn | G1: #hidecolumn | H1: #hidecolumn | I1: #hidecolumn | J1: #hidecolumn | K1: #hidecolumn | L1: #hidecolumn | M1: #hidecolumn | N1: #hidecolumn | O1: #hidecolumn | P1: #hidecolumn | Q1: #hidecolumn | R1: #hidecolumn | S1: #hidecolumn | T1: #hidecolumn | U1: #hidecolumn | V1: #hidecolumn | W1: #hidecolumn | X1: #hidecolumn | Y1: #hidecolumn | Z1: #hidecolumn | AA1: #hiderow | AB1: #lockcheckcolumn | AC1: #lockcheckcolumn | AD1: #lockcheckcolumn | AE1: #lockcheckcolumn | AF1: #lockcheckcolumn | AG1: #lockcheckcolumn | AH1: #lockcheckcolumn | AI1: #lockcheckcolumn | AJ1: #lockcheckcolumn | AK1: #lockcheckcolumn | AL1: #lockcheckcolumn | AM1: #hidecolumn | AN1: #hidecolumn | AQ1: #freezecolumn | AR1: #lockcheckcolumn | AS1: #lockcheckcolumn | AU1: #lockcheckcolumn | AV1: #lockcheckcolumn | AX1: #hidecolumn | AY1: #lockcheckcolumn | BA1: #lockcheckcolumn | BC1: #lockcheckcolumn | BE1: #lockcheckcolumn | BG1: #lockcheckcolumn | BI1: #lockcheckcolumn | BK1: #lockcheckcolumn | BM1: #lockcheckcolumn | BO1: #lockcheckcolumn | BQ1: #lockcheckcolumn | BT1: #lockcheckcolumn | BU1: #lockcheckcolumn | BV1: #lockcheckcolumn | BX1: #lockcheckcolumn | BY1: #lockcheckcolumn | BZ1: #lockcheckcolumn | CE1: #lockcheckcolumn | CF1: #lockcheckcolumn | CG1: #lockcheckcolumn | CL1: #lockcheckcolumn | CM1: #lockcheckcolumn | CN1: #lockcheckcolumn | CS1: #lockcheckcolumn | CT1: #lockcheckcolumn | CU1: #lockcheckcolumn | CZ1: #lockcheckcolumn | DA1: #lockcheckcolumn | DB1: #lockcheckcolumn | DH1: #hidecolumn | DI1: #hidecolumn | DJ1: #hidecolumn | DK1: #hidecolumn | DL1: #hidecolumn | DM1: #hidecolumn | DN1: #hidecolumn | DO1: #hidecolumn | DP1: =IF(COLUMNS(DN:DO)=2,"#hidecolumn","#showcolumn") -> #hidecolumn | DQ1: #hidecolumn | DR1: #hidecolumn | DS1: #hidecolumn | DT1: #hidecolumn | DU1: =IF(COLUMNS(DS:DT)=2,"#hidecolumn","#showcolumn") -> #hidecolumn | DV1: #hidecolumn | DW1: #hidecolumn | DX1: #hidecolumn | DY1: #hidecolumn | DZ1: =IF(COLUMNS(DX:DY)=2,"#hidecolumn","#showcolumn") -> #hidecolumn | EA1: #hidecolumn | EB1: #hidecolumn | EC1: #hidecolumn | ED1: #hidecolumn | EE1: =IF(COLUMNS(EC:ED)=2,"#hidecolumn","#showcolumn") -> #hidecolumn | EF1: #hidecolumn | EG1: #hidecolumn | EH1: #hidecolumn | EI1: #hidecolumn | EJ1: =IF(COLUMNS(EH:EI)=2,"#hidecolumn","#showcolumn") -> #hidecolumn | EK1: #hidecolumn | EL1: #hidecolumn | EM1: #hidecolumn | EN1: #hidecolumn | EO1: =IF(COLUMNS(EM:EN)=2,"#hidecolumn","#showcolumn") -> #hidecolumn | EP1: =DU1 -> #hidecolumn | EQ1: #hidecolumn | ER1: #hidecolumn | FX1: #hidecolumn | FY1: #hidecolumn | HE1: #hidecolumn | HF1: #hidecolumn | IL1: #hidecolumn | IM1: #hidecolumn | JS1: #hidecolumn | JT1: #hidecolumn | KZ1: #hidecolumn | LA1: #hidecolumn
A2: #hiderow | AC2: #hidecolumn
A3: #hiderow
A4: #hiderow
A5: #hiderow
A6: #hiderow
A7: #hiderow
A8: #hiderow
A9: #hiderow
A10: #hiderow
A11: #hiderow
A12: #hiderow
A13: #hiderow
A14: #hiderow
A15: #hiderow
A16: #hiderow
A17: #hiderow
A18: #hiderow
A19: #hiderow
A20: #hiderow
A21: #hiderow
A22: #hiderow
A23: #hiderow
A24: #hiderow
A25: #hiderow
A26: #hiderow
A27: #hiderow
A28: #hiderow
A29: #hiderow
A30: #hiderow
A31: #hiderow
A32: #hiderow
A33: #hiderow
A34: #hiderow
A35: #hiderow
A36: #hiderow
A37: #hiderow
A38: #hiderow
A39: #hiderow
A40: #hiderow
A41: #hiderow
A42: #hiderow
A43: #hiderow
A44: #hiderow
A45: #hiderow
A46: #hiderow
A47: #hiderow
A48: #hiderow
A49: #hiderow
A50: #hiderow
A51: #hiderow
A52: #hiderow
A53: #hiderow
A54: #hiderow
A55: #hiderow
A56: #hiderow | R56: Row Mapping 1 | S56: Row Mapping 2 | T56: Row Mapping 3 | U56: Row Mapping 4 | V56: Row Mapping 5 | W56: Row Mapping 6 | X56: Row Mapping 7
A57: #hiderow | G57: #protectsheet | R57: S1/B1 | S57: S1/B2 | T57: S2/B3 | U57: S2/B4 | V57: S3/B5 | W57: S1/B6 | X57: S4/B7
A58: #hiderow | R58: Account | S58: Account | T58: Account | U58: Account | V58: Account | W58: Account | X58: Account
A59: #hiderow | G59: Section: | I59: PayrollS1 | K59: PayrollS2 | M59: PayrollS3 | O59: PayrollS4 | T59: =_xll.VenaSetMemberDisplayStyle("PayrollS2","PayrollB3","name") -> #NAME?
A60: #hiderow | G60: Dimension | H60: P/R/C | I60: Mapping | J60: P/R/C | K60: Mapping | L60: P/R/C | M60: Mapping | N60: P/R/C
A61: #hiderow | G61: Subsidiary | H61: Column | J61: Page | K61: =IF(COLUMNS(DN:DO)=2,CommonSubLoc,"") -> 0110-0000-000 | L61: Page | M61: =CommonSubLoc -> 0110-0000-000 | N61: Page | O61: =SubsidiaryNumber -> 0110
A62: #hiderow | G62: Scenario | H62: Page | I62: =ChooseCFScenario -> Apr Forecast 2021 | J62: Page | K62: =ChooseCFScenario -> Apr Forecast 2021 | L62: Page | M62: =ChooseCFScenario -> Apr Forecast 2021 | N62: Page | O62: =ChooseCFScenario -> Apr Forecast 2021
A63: #hiderow | G63: Period | H63: Column | J63: Column | L63: Page | M63: No_Period | N63: Page | O63: No_Period
A64: #hiderow | G64: Year | H64: Column | J64: Column | L64: Page | M64: No_year | N64: Column
A65: #hiderow | G65: Account | H65: Row | J65: Row | L65: Row | N65: Row | DP65: =COUNTIF(DP110:DP180,"error")<=2 -> TRUE | DQ65: Error in year 1 employee site allocations. | DU65: =COUNTIF(DU110:DU180,"error")<=2 -> TRUE | DV65: Error in year 2 employee site allocations. | DZ65: =COUNTIF(DZ110:DZ180,"error")<=2 -> TRUE | EA65: Error in year 3 employee site allocations. | EE65: =COUNTIF(EE110:EE180,"error")<=2 -> TRUE | EF65: Error in year 4 employee site allocations. | EJ65: =COUNTIF(EJ110:EJ180,"error")<=2 -> TRUE | EK65: Error in year 5 employee site allocations. | EO65: =COUNTIF(EO110:EO180,"error")<=2 -> TRUE | EP65: Error in year 6 employee site allocations.
A66: #hiderow | G66: Resource | H66: Page | I66: No_Resource | J66: Page | K66: No_Resource | L66: Page | M66: No_Resource | N66: Page | O66: No_Resource | DP66: =COUNTIF(DP185:DP248,"error")<=2 -> TRUE | DQ66: Error in year 1 extra pay site allocations. | DU66: =COUNTIF(DU185:DU248,"error")<=2 -> TRUE | DV66: Error in year 2 extra pay site allocations. | DZ66: =COUNTIF(DZ185:DZ248,"error")<=2 -> TRUE | EA66: Error in year 3 extra pay site allocations. | EE66: =COUNTIF(EE185:EE248,"error")<=2 -> TRUE | EF66: Error in year 4 extra pay site allocations. | EJ66: =COUNTIF(EJ185:EJ248,"error")<=2 -> TRUE | EK66: Error in year 5 extra pay site allocations. | EO66: =COUNTIF(EO185:EO248,"error")<=2 -> TRUE | EP66: Error in year 6 extra pay site allocations.
A67: #hiderow | G67: Function | H67: Page | I67: No_Function | J67: Page | K67: No_Function | L67: Page | M67: No_Function | N67: Page | O67: No_Function
A68: #hiderow | G68: Measure | H68: Column | J68: Column | L68: Column | N68: Column
A69: #hiderow
A70: #hiderow | H70: Block | I70: Dimension | J70: Block Description
A71: #hiderow | G71: Column Mapping 1 | H71: PayrollS1/B1 | I71: Sub-Loc | J71: Employee line-item data | AB71: =CommonSubLoc -> 0110-0000-000 | AC71: =CommonSubLoc -> 0110-0000-000 | AD71: =CommonSubLoc -> 0110-0000-000 | AE71: =CommonSubLoc -> 0110-0000-000 | AF71: =CommonSubLoc -> 0110-0000-000 | AG71: =CommonSubLoc -> 0110-0000-000 | AH71: =CommonSubLoc -> 0110-0000-000 | AI71: =CommonSubLoc -> 0110-0000-000 | AJ71: =CommonSubLoc -> 0110-0000-000 | AK71: =CommonSubLoc -> 0110-0000-000 | AL71: =CommonSubLoc -> 0110-0000-000 | AR71: =CommonSubLoc -> 0110-0000-000 | AS71: =CommonSubLoc -> 0110-0000-000 | AT71: =CommonSubLoc -> 0110-0000-000 | AU71: =CommonSubLoc -> 0110-0000-000 | AV71: =CommonSubLoc -> 0110-0000-000 | AX71: =CommonSubLoc -> 0110-0000-000 | AY71: =CommonSubLoc -> 0110-0000-000 | AZ71: =CommonSubLoc -> 0110-0000-000 | BA71: =CommonSubLoc -> 0110-0000-000 | BC71: =CommonSubLoc -> 0110-0000-000 | BE71: =CommonSubLoc -> 0110-0000-000 | BG71: =CommonSubLoc -> 0110-0000-000 | BI71: =CommonSubLoc -> 0110-0000-000 | BK71: =CommonSubLoc -> 0110-0000-000 | BM71: =CommonSubLoc -> 0110-0000-000 | BO71: =CommonSubLoc -> 0110-0000-000 | BQ71: =CommonSubLoc -> 0110-0000-000 | BT71: =CommonSubLoc -> 0110-0000-000 | BU71: =CommonSubLoc -> 0110-0000-000 | BV71: =CommonSubLoc -> 0110-0000-000 | BX71: =CommonSubLoc -> 0110-0000-000 | BY71: =CommonSubLoc -> 0110-0000-000 | BZ71: =CommonSubLoc -> 0110-0000-000 | CA71: =CommonSubLoc -> 0110-0000-000 | CB71: =CommonSubLoc -> 0110-0000-000 | CC71: =CommonSubLoc -> 0110-0000-000 | CE71: =CommonSubLoc -> 0110-0000-000 | CF71: =CommonSubLoc -> 0110-0000-000 | CG71: =CommonSubLoc -> 0110-0000-000 | CH71: =CommonSubLoc -> 0110-0000-000 | CI71: =CommonSubLoc -> 0110-0000-000 | CJ71: =CommonSubLoc -> 0110-0000-000 | CL71: =CommonSubLoc -> 0110-0000-000 | CM71: =CommonSubLoc -> 0110-0000-000 | CN71: =CommonSubLoc -> 0110-0000-000 | CO71: =CommonSubLoc -> 0110-0000-000 | CP71: =CommonSubLoc -> 0110-0000-000 | CQ71: =CommonSubLoc -> 0110-0000-000 | CS71: =CommonSubLoc -> 0110-0000-000 | CT71: =CommonSubLoc -> 0110-0000-000 | CU71: =CommonSubLoc -> 0110-0000-000 | CV71: =CommonSubLoc -> 0110-0000-000 | CW71: =CommonSubLoc -> 0110-0000-000 | CX71: =CommonSubLoc -> 0110-0000-000 | CZ71: =CommonSubLoc -> 0110-0000-000 | DA71: =CommonSubLoc -> 0110-0000-000 | DB71: =CommonSubLoc -> 0110-0000-000 | DC71: =CommonSubLoc -> 0110-0000-000 | DD71: =CommonSubLoc -> 0110-0000-000 | DE71: =CommonSubLoc -> 0110-0000-000 | DH71: =$K$61 -> 0110-0000-000 | DI71: 0110-0000-000 | DJ71: 0110-0000-000 | DK71: 0110-0000-000 | DL71: 0110-0000-000 | DM71: 0110-0000-000 | DN71: Dynamic Expression: INTERSECTION(BOTTOMLEVEL(MEMBER_CELL(SubsidiaryNumber:NameOnly)),MultiSite) | DQ71: Dynamic Expression: INTERSECTION(BOTTOMLEVEL(MEMBER_CELL(SubsidiaryNumber:NameOnly)),MultiSite) | DS71: Dynamic Expression: INTERSECTION(BOTTOMLEVEL(MEMBER_CELL(SubsidiaryNumber:NameOnly)),MultiSite) | DV71: Dynamic Expression: INTERSECTION(BOTTOMLEVEL(MEMBER_CELL(SubsidiaryNumber:NameOnly)),MultiSite) | DX71: Dynamic Expression: INTERSECTION(BOTTOMLEVEL(MEMBER_CELL(SubsidiaryNumber:NameOnly)),MultiSite) | EA71: Dynamic Expression: INTERSECTION(BOTTOMLEVEL(MEMBER_CELL(SubsidiaryNumber:NameOnly)),MultiSite) | EC71: Dynamic Expression: INTERSECTION(BOTTOMLEVEL(MEMBER_CELL(SubsidiaryNumber:NameOnly)),MultiSite) | EF71: Dynamic Expression: INTERSECTION(BOTTOMLEVEL(MEMBER_CELL(SubsidiaryNumber:NameOnly)),MultiSite) | EH71: Dynamic Expression: INTERSECTION(BOTTOMLEVEL(MEMBER_CELL(SubsidiaryNumber:NameOnly)),MultiSite) | EK71: Dynamic Expression: INTERSECTION(BOTTOMLEVEL(MEMBER_CELL(SubsidiaryNumber:NameOnly)),MultiSite) | EM71: Dynamic Expression: INTERSECTION(BOTTOMLEVEL(MEMBER_CELL(SubsidiaryNumber:NameOnly)),MultiSite) | ES71: =CommonSubLoc -> 0110-0000-000 | ET71: =CommonSubLoc -> 0110-0000-000 | EU71: =CommonSubLoc -> 0110-0000-000 | EV71: =CommonSubLoc -> 0110-0000-000 | EW71: =CommonSubLoc -> 0110-0000-000 | EX71: =CommonSubLoc -> 0110-0000-000 | EY71: =CommonSubLoc -> 0110-0000-000 | EZ71: =CommonSubLoc -> 0110-0000-000 | FA71: =CommonSubLoc -> 0110-0000-000 | FB71: =CommonSubLoc -> 0110-0000-000 | FC71: =CommonSubLoc -> 0110-0000-000 | FD71: =CommonSubLoc -> 0110-0000-000 | FE71: =CommonSubLoc -> 0110-0000-000 | FF71: =$K$61 -> 0110-0000-000 | FG71: =CommonSubLoc -> 0110-0000-000 | FI71: =CommonSubLoc -> 0110-0000-000 | FK71: =CommonSubLoc -> 0110-0000-000 | FL71: =CommonSubLoc -> 0110-0000-000 | FM71: =CommonSubLoc -> 0110-0000-000 | FN71: =CommonSubLoc -> 0110-0000-000 | FO71: =CommonSubLoc -> 0110-0000-000 | FP71: =CommonSubLoc -> 0110-0000-000 | FQ71: =CommonSubLoc -> 0110-0000-000 | FR71: =CommonSubLoc -> 0110-0000-000 | FS71: =CommonSubLoc -> 0110-0000-000 | FT71: =CommonSubLoc -> 0110-0000-000 | FU71: =CommonSubLoc -> 0110-0000-000 | FV71: =$K$61 -> 0110-0000-000 | FZ71: =CommonSubLoc -> 0110-0000-000 | GA71: =CommonSubLoc -> 0110-0000-000 | GB71: =CommonSubLoc -> 0110-0000-000 | GC71: =CommonSubLoc -> 0110-0000-000 | GD71: =CommonSubLoc -> 0110-0000-000 | GE71: =CommonSubLoc -> 0110-0000-000 | GF71: =CommonSubLoc -> 0110-0000-000 | GG71: =CommonSubLoc -> 0110-0000-000 | GH71: =CommonSubLoc -> 0110-0000-000 | GI71: =CommonSubLoc -> 0110-0000-000 | GJ71: =CommonSubLoc -> 0110-0000-000 | GK71: =CommonSubLoc -> 0110-0000-000 | GL71: =CommonSubLoc -> 0110-0000-000 | GM71: =$K$61 -> 0110-0000-000 | GN71: =CommonSubLoc -> 0110-0000-000 | GP71: =CommonSubLoc -> 0110-0000-000 | GR71: =CommonSubLoc -> 0110-0000-000 | GS71: =CommonSubLoc -> 0110-0000-000 | GT71: =CommonSubLoc -> 0110-0000-000 | GU71: =CommonSubLoc -> 0110-0000-000 | GV71: =CommonSubLoc -> 0110-0000-000 | GW71: =CommonSubLoc -> 0110-0000-000 | GX71: =CommonSubLoc -> 0110-0000-000 | GY71: =CommonSubLoc -> 0110-0000-000 | GZ71: =CommonSubLoc -> 0110-0000-000 | HA71: =CommonSubLoc -> 0110-0000-000 | HB71: =CommonSubLoc -> 0110-0000-000 | HC71: =$K$61 -> 0110-0000-000 | HG71: =CommonSubLoc -> 0110-0000-000 | HH71: =CommonSubLoc -> 0110-0000-000 | HI71: =CommonSubLoc -> 0110-0000-000 | HJ71: =CommonSubLoc -> 0110-0000-000 | HK71: =CommonSubLoc -> 0110-0000-000 | HL71: =CommonSubLoc -> 0110-0000-000 | HM71: =CommonSubLoc -> 0110-0000-000 | HN71: =CommonSubLoc -> 0110-0000-000 | HO71: =CommonSubLoc -> 0110-0000-000 | HP71: =CommonSubLoc -> 0110-0000-000 | HQ71: =CommonSubLoc -> 0110-0000-000 | HR71: =CommonSubLoc -> 0110-0000-000 | HS71: =CommonSubLoc -> 0110-0000-000 | HT71: =$K$61 -> 0110-0000-000 | HU71: =CommonSubLoc -> 0110-0000-000 | HW71: =CommonSubLoc -> 0110-0000-000 | HY71: =CommonSubLoc -> 0110-0000-000 | HZ71: =CommonSubLoc -> 0110-0000-000 | IA71: =CommonSubLoc -> 0110-0000-000 | IB71: =CommonSubLoc -> 0110-0000-000 | IC71: =CommonSubLoc -> 0110-0000-000 | ID71: =CommonSubLoc -> 0110-0000-000 | IE71: =CommonSubLoc -> 0110-0000-000 | IF71: =CommonSubLoc -> 0110-0000-000 | IG71: =CommonSubLoc -> 0110-0000-000 | IH71: =CommonSubLoc -> 0110-0000-000 | II71: =CommonSubLoc -> 0110-0000-000 | IJ71: =$K$61 -> 0110-0000-000 | IN71: =CommonSubLoc -> 0110-0000-000 | IO71: =CommonSubLoc -> 0110-0000-000 | IP71: =CommonSubLoc -> 0110-0000-000 | IQ71: =CommonSubLoc -> 0110-0000-000 | IR71: =CommonSubLoc -> 0110-0000-000 | IS71: =CommonSubLoc -> 0110-0000-000 | IT71: =CommonSubLoc -> 0110-0000-000 | IU71: =CommonSubLoc -> 0110-0000-000 | IV71: =CommonSubLoc -> 0110-0000-000 | IW71: =CommonSubLoc -> 0110-0000-000 | IX71: =CommonSubLoc -> 0110-0000-000 | IY71: =CommonSubLoc -> 0110-0000-000 | IZ71: =CommonSubLoc -> 0110-0000-000 | JA71: =$K$61 -> 0110-0000-000 | JB71: =CommonSubLoc -> 0110-0000-000 | JD71: =CommonSubLoc -> 0110-0000-000 | JF71: =CommonSubLoc -> 0110-0000-000 | JG71: =CommonSubLoc -> 0110-0000-000 | JH71: =CommonSubLoc -> 0110-0000-000 | JI71: =CommonSubLoc -> 0110-0000-000 | JJ71: =CommonSubLoc -> 0110-0000-000 | JK71: =CommonSubLoc -> 0110-0000-000 | JL71: =CommonSubLoc -> 0110-0000-000 | JM71: =CommonSubLoc -> 0110-0000-000 | JN71: =CommonSubLoc -> 0110-0000-000 | JO71: =CommonSubLoc -> 0110-0000-000 | JP71: =CommonSubLoc -> 0110-0000-000 | JQ71: =$K$61 -> 0110-0000-000 | JU71: =CommonSubLoc -> 0110-0000-000 | JV71: =CommonSubLoc -> 0110-0000-000 | JW71: =CommonSubLoc -> 0110-0000-000 | JX71: =CommonSubLoc -> 0110-0000-000 | JY71: =CommonSubLoc -> 0110-0000-000 | JZ71: =CommonSubLoc -> 0110-0000-000 | KA71: =CommonSubLoc -> 0110-0000-000 | KB71: =CommonSubLoc -> 0110-0000-000 | KC71: =CommonSubLoc -> 0110-0000-000 | KD71: =CommonSubLoc -> 0110-0000-000 | KE71: =CommonSubLoc -> 0110-0000-000 | KF71: =CommonSubLoc -> 0110-0000-000 | KG71: =CommonSubLoc -> 0110-0000-000 | KH71: =$K$61 -> 0110-0000-000 | KI71: =CommonSubLoc -> 0110-0000-000 | KK71: =CommonSubLoc -> 0110-0000-000 | KM71: =CommonSubLoc -> 0110-0000-000 | KN71: =CommonSubLoc -> 0110-0000-000 | KO71: =CommonSubLoc -> 0110-0000-000 | KP71: =CommonSubLoc -> 0110-0000-000 | KQ71: =CommonSubLoc -> 0110-0000-000 | KR71: =CommonSubLoc -> 0110-0000-000 | KS71: =CommonSubLoc -> 0110-0000-000 | KT71: =CommonSubLoc -> 0110-0000-000 | KU71: =CommonSubLoc -> 0110-0000-000 | KV71: =CommonSubLoc -> 0110-0000-000 | KW71: =CommonSubLoc -> 0110-0000-000 | KX71: =$K$61 -> 0110-0000-000 | LB71: =CommonSubLoc -> 0110-0000-000 | LC71: =CommonSubLoc -> 0110-0000-000 | LD71: =CommonSubLoc -> 0110-0000-000 | LE71: =CommonSubLoc -> 0110-0000-000 | LF71: =CommonSubLoc -> 0110-0000-000 | LG71: =CommonSubLoc -> 0110-0000-000 | LH71: =CommonSubLoc -> 0110-0000-000 | LI71: =CommonSubLoc -> 0110-0000-000 | LJ71: =CommonSubLoc -> 0110-0000-000 | LK71: =CommonSubLoc -> 0110-0000-000 | LL71: =CommonSubLoc -> 0110-0000-000 | LM71: =CommonSubLoc -> 0110-0000-000 | LN71: =CommonSubLoc -> 0110-0000-000 | LO71: =$K$61 -> 0110-0000-000 | LP71: =CommonSubLoc -> 0110-0000-000 | LR71: =CommonSubLoc -> 0110-0000-000 | LT71: =CommonSubLoc -> 0110-0000-000 | LU71: =CommonSubLoc -> 0110-0000-000 | LV71: =CommonSubLoc -> 0110-0000-000 | LW71: =CommonSubLoc -> 0110-0000-000 | LX71: =CommonSubLoc -> 0110-0000-000 | LY71: =CommonSubLoc -> 0110-0000-000 | LZ71: =CommonSubLoc -> 0110-0000-000 | MA71: =CommonSubLoc -> 0110-0000-000 | MB71: =CommonSubLoc -> 0110-0000-000 | MC71: =CommonSubLoc -> 0110-0000-000 | MD71: =CommonSubLoc -> 0110-0000-000 | ME71: =$K$61 -> 0110-0000-000
A72: #hiderow | G72: Column Mapping 2 | H72: PayrollS1/B1 | I72: Period | AB72: No_Period | AC72: No_Period | AD72: No_Period | AE72: No_Period | AF72: No_Period | AG72: No_Period | AH72: No_Period | AI72: No_Period | AJ72: No_Period | AK72: No_Period | AL72: No_Period | AR72: No_Period | AS72: No_Period | AT72: No_Period | AU72: No_Period | AV72: No_Period | AX72: No_Period | AY72: No_Period | AZ72: No_Period | BA72: No_Period | BC72: No_Period | BE72: No_Period | BG72: No_Period | BI72: No_Period | BK72: No_Period | BM72: No_Period | BO72: No_Period | BQ72: No_Period | BT72: No_Period | BU72: No_Period | BV72: No_Period | BX72: No_Period | BY72: No_Period | BZ72: No_Period | CA72: No_Period | CB72: No_Period | CC72: No_Period | CE72: No_Period | CF72: No_Period | CG72: No_Period | CH72: No_Period | CI72: No_Period | CJ72: No_Period | CL72: No_Period | CM72: No_Period | CN72: No_Period | CO72: No_Period | CP72: No_Period | CQ72: No_Period | CS72: No_Period | CT72: No_Period | CU72: No_Period | CV72: No_Period | CW72: No_Period | CX72: No_Period | CZ72: No_Period | DA72: No_Period | DB72: No_Period | DC72: No_Period | DD72: No_Period | DE72: No_Period | DH72: No_Period | DI72: No_Period | DJ72: No_Period | DK72: No_Period | DL72: No_Period | DM72: No_Period | DN72: No_Period | DQ72: No_Period | DS72: No_Period | DV72: No_Period | DX72: No_Period | EA72: No_Period | EC72: No_Period | EF72: No_Period | EH72: No_Period | EK72: No_Period | EM72: No_Period | ES72: =ES$107 -> Jul | ET72: Aug | EU72: Sep | EV72: Oct | EW72: Nov | EX72: Dec | EY72: Jan | EZ72: Feb | FA72: Mar | FB72: Apr | FC72: May | FD72: Jun | FE72: AP | FF72: No_Period | FG72: No_Period | FI72: No_Period | FK72: No_Period | FL72: No_Period | FM72: No_Period | FN72: No_Period | FO72: No_Period | FP72: No_Period | FQ72: No_Period | FR72: No_Period | FS72: No_Period | FT72: No_Period | FU72: No_Period | FV72: No_Period | FZ72: =FZ$107 -> Jul | GA72: Aug | GB72: Sep | GC72: Oct | GD72: Nov | GE72: Dec | GF72: Jan | GG72: Feb | GH72: Mar | GI72: Apr | GJ72: May | GK72: Jun | GL72: AP | GM72: No_Period | GN72: No_Period | GP72: No_Period | GR72: No_Period | GS72: No_Period | GT72: No_Period | GU72: No_Period | GV72: No_Period | GW72: No_Period | GX72: No_Period | GY72: No_Period | GZ72: No_Period | HA72: No_Period | HB72: No_Period | HC72: No_Period | HG72: =HG$107 -> Jul | HH72: Aug | HI72: Sep | HJ72: Oct | HK72: Nov | HL72: Dec | HM72: Jan | HN72: Feb | HO72: Mar | HP72: Apr | HQ72: May | HR72: Jun | HS72: AP | HT72: No_Period | HU72: No_Period | HW72: No_Period | HY72: No_Period | HZ72: No_Period | IA72: No_Period | IB72: No_Period | IC72: No_Period | ID72: No_Period | IE72: No_Period | IF72: No_Period | IG72: No_Period | IH72: No_Period | II72: No_Period | IJ72: No_Period | IN72: =IN$107 -> Jul | IO72: Aug | IP72: Sep | IQ72: Oct | IR72: Nov | IS72: Dec | IT72: Jan | IU72: Feb | IV72: Mar | IW72: Apr | IX72: May | IY72: Jun | IZ72: AP | JA72: No_Period | JB72: No_Period | JD72: No_Period | JF72: No_Period | JG72: No_Period | JH72: No_Period | JI72: No_Period | JJ72: No_Period | JK72: No_Period | JL72: No_Period | JM72: No_Period | JN72: No_Period | JO72: No_Period | JP72: No_Period | JQ72: No_Period | JU72: =JU$107 -> Jul | JV72: Aug | JW72: Sep | JX72: Oct | JY72: Nov | JZ72: Dec | KA72: Jan | KB72: Feb | KC72: Mar | KD72: Apr | KE72: May | KF72: Jun | KG72: AP | KH72: No_Period | KI72: No_Period | KK72: No_Period | KM72: No_Period | KN72: No_Period | KO72: No_Period | KP72: No_Period | KQ72: No_Period | KR72: No_Period | KS72: No_Period | KT72: No_Period | KU72: No_Period | KV72: No_Period | KW72: No_Period | KX72: No_Period | LB72: =LB$107 -> Jul | LC72: Aug | LD72: Sep | LE72: Oct | LF72: Nov | LG72: Dec | LH72: Jan | LI72: Feb | LJ72: Mar | LK72: Apr | LL72: May | LM72: Jun | LN72: AP | LO72: No_Period | LP72: No_Period | LR72: No_Period | LT72: No_Period | LU72: No_Period | LV72: No_Period | LW72: No_Period | LX72: No_Period | LY72: No_Period | LZ72: No_Period | MA72: No_Period | MB72: No_Period | MC72: No_Period | MD72: No_Period | ME72: No_Period
A73: #hiderow | G73: Column Mapping 3 | H73: PayrollS1/B1 | I73: Year | AB73: No_year | AC73: No_year | AD73: No_year | AE73: No_year | AF73: No_year | AG73: No_year | AH73: No_year | AI73: No_year | AJ73: No_year | AK73: No_year | AL73: No_year | AR73: No_year | AS73: No_year | AT73: No_year | AU73: =ChooseYear+AU$93-1 -> 2021 | AV73: =ChooseYear+AV$93-1 -> 2021 | AX73: =ChooseYear+AX$93-1 -> 2022 | AY73: =ChooseYear+AY$93-1 -> 2022 | AZ73: =ChooseYear+AZ$93-1 -> 2022 | BA73: =ChooseYear+BA$93-1 -> 2022 | BC73: =ChooseYear+BC$93-1 -> 2023 | BE73: =ChooseYear+BE$93-1 -> 2023 | BG73: =ChooseYear+BG$93-1 -> 2024 | BI73: =ChooseYear+BI$93-1 -> 2024 | BK73: =ChooseYear+BK$93-1 -> 2025 | BM73: =ChooseYear+BM$93-1 -> 2025 | BO73: =ChooseYear+BO$93-1 -> 2026 | BQ73: =ChooseYear+BQ$93-1 -> 2026 | BT73: =ChooseYear+BT$93-1 -> 2021 | BU73: =ChooseYear+BU$93-1 -> 2021 | BV73: =ChooseYear+BV$93-1 -> 2021 | BX73: =ChooseYear+BX$93-1 -> 2022 | BY73: =ChooseYear+BY$93-1 -> 2022 | BZ73: =ChooseYear+BZ$93-1 -> 2022 | CA73: =ChooseYear+CA$93-1 -> 2022 | CB73: =ChooseYear+CB$93-1 -> 2022 | CC73: =ChooseYear+CC$93-1 -> 2022 | CE73: =ChooseYear+CE$93-1 -> 2023 | CF73: =ChooseYear+CF$93-1 -> 2023 | CG73: =ChooseYear+CG$93-1 -> 2023 | CH73: =ChooseYear+CH$93-1 -> 2023 | CI73: =ChooseYear+CI$93-1 -> 2023 | CJ73: =ChooseYear+CJ$93-1 -> 2023 | CL73: =ChooseYear+CL$93-1 -> 2024 | CM73: =ChooseYear+CM$93-1 -> 2024 | CN73: =ChooseYear+CN$93-1 -> 2024 | CO73: =ChooseYear+CO$93-1 -> 2024 | CP73: =ChooseYear+CP$93-1 -> 2024 | CQ73: =ChooseYear+CQ$93-1 -> 2024 | CS73: =ChooseYear+CS$93-1 -> 2025 | CT73: =ChooseYear+CT$93-1 -> 2025 | CU73: =ChooseYear+CU$93-1 -> 2025 | CV73: =ChooseYear+CV$93-1 -> 2025 | CW73: =ChooseYear+CW$93-1 -> 2025 | CX73: =ChooseYear+CX$93-1 -> 2025 | CZ73: =ChooseYear+CZ$93-1 -> 2026 | DA73: =ChooseYear+DA$93-1 -> 2026 | DB73: =ChooseYear+DB$93-1 -> 2026 | DC73: =ChooseYear+DC$93-1 -> 2026 | DD73: =ChooseYear+DD$93-1 -> 2026 | DE73: =ChooseYear+DE$93-1 -> 2026 | DH73: =ChooseYear+DH$93-1 -> 2021 | DI73: =ChooseYear+DI$93-1 -> 2022 | DJ73: =ChooseYear+DJ$93-1 -> 2023 | DK73: =ChooseYear+DK$93-1 -> 2024 | DL73: =ChooseYear+DL$93-1 -> 2025 | DM73: =ChooseYear+DM$93-1 -> 2026 | DN73: =ChooseYear+DN$93-1 -> 2021 | DQ73: =ChooseYear+DQ$93-1 -> 2022 | DS73: =ChooseYear+DS$93-1 -> 2022 | DV73: =ChooseYear+DV$93-1 -> 2023 | DX73: =ChooseYear+DX$93-1 -> 2023 | EA73: =ChooseYear+EA$93-1 -> 2024 | EC73: =ChooseYear+EC$93-1 -> 2024 | EF73: =ChooseYear+EF$93-1 -> 2025 | EH73: =ChooseYear+EH$93-1 -> 2025 | EK73: =ChooseYear+EK$93-1 -> 2026 | EM73: =ChooseYear+EM$93-1 -> 2026 | ES73: =ChooseYear+ES$93-1 -> 2021 | ET73: =ChooseYear+ET$93-1 -> 2021 | EU73: =ChooseYear+EU$93-1 -> 2021 | EV73: =ChooseYear+EV$93-1 -> 2021 | EW73: =ChooseYear+EW$93-1 -> 2021 | EX73: =ChooseYear+EX$93-1 -> 2021 | EY73: =ChooseYear+EY$93-1 -> 2021 | EZ73: =ChooseYear+EZ$93-1 -> 2021 | FA73: =ChooseYear+FA$93-1 -> 2021 | FB73: =ChooseYear+FB$93-1 -> 2021 | FC73: =ChooseYear+FC$93-1 -> 2021 | FD73: =ChooseYear+FD$93-1 -> 2021 | FE73: =ChooseYear+FE$93-1 -> 2021 | FF73: =ChooseYear+FF$93-1 -> 2021 | FG73: =ChooseYear+FG$93-1 -> 2021 | FI73: =ChooseYear+FI$93-1 -> 2021 | FK73: =ChooseYear+FK$93-1 -> 2021 | FL73: =ChooseYear+FL$93-1 -> 2021 | FM73: =ChooseYear+FM$93-1 -> 2021 | FN73: =ChooseYear+FN$93-1 -> 2021 | FO73: =ChooseYear+FO$93-1 -> 2021 | FP73: =ChooseYear+FP$93-1 -> 2021 | FQ73: =ChooseYear+FQ$93-1 -> 2021 | FR73: =ChooseYear+FR$93-1 -> 2021 | FS73: =ChooseYear+FS$93-1 -> 2021 | FT73: =ChooseYear+FT$93-1 -> 2021 | FU73: =ChooseYear+FU$93-1 -> 2021 | FV73: =ChooseYear+FV$93-1 -> 2021 | FZ73: =ChooseYear+FZ$93-1 -> 2022 | GA73: =ChooseYear+GA$93-1 -> 2022 | GB73: =ChooseYear+GB$93-1 -> 2022 | GC73: =ChooseYear+GC$93-1 -> 2022 | GD73: =ChooseYear+GD$93-1 -> 2022 | GE73: =ChooseYear+GE$93-1 -> 2022 | GF73: =ChooseYear+GF$93-1 -> 2022 | GG73: =ChooseYear+GG$93-1 -> 2022 | GH73: =ChooseYear+GH$93-1 -> 2022 | GI73: =ChooseYear+GI$93-1 -> 2022 | GJ73: =ChooseYear+GJ$93-1 -> 2022 | GK73: =ChooseYear+GK$93-1 -> 2022 | GL73: =ChooseYear+GL$93-1 -> 2022 | GM73: =ChooseYear+GM$93-1 -> 2022 | GN73: =ChooseYear+GN$93-1 -> 2022 | GP73: =ChooseYear+GP$93-1 -> 2022 | GR73: =ChooseYear+GR$93-1 -> 2022 | GS73: =ChooseYear+GS$93-1 -> 2022 | GT73: =ChooseYear+GT$93-1 -> 2022 | GU73: =ChooseYear+GU$93-1 -> 2022 | GV73: =ChooseYear+GV$93-1 -> 2022 | GW73: =ChooseYear+GW$93-1 -> 2022 | GX73: =ChooseYear+GX$93-1 -> 2022 | GY73: =ChooseYear+GY$93-1 -> 2022 | GZ73: =ChooseYear+GZ$93-1 -> 2022 | HA73: =ChooseYear+HA$93-1 -> 2022 | HB73: =ChooseYear+HB$93-1 -> 2022 | HC73: =ChooseYear+HC$93-1 -> 2022 | HG73: =ChooseYear+HG$93-1 -> 2023 | HH73: =ChooseYear+HH$93-1 -> 2023 | HI73: =ChooseYear+HI$93-1 -> 2023 | HJ73: =ChooseYear+HJ$93-1 -> 2023 | HK73: =ChooseYear+HK$93-1 -> 2023 | HL73: =ChooseYear+HL$93-1 -> 2023 | HM73: =ChooseYear+HM$93-1 -> 2023 | HN73: =ChooseYear+HN$93-1 -> 2023 | HO73: =ChooseYear+HO$93-1 -> 2023 | HP73: =ChooseYear+HP$93-1 -> 2023 | HQ73: =ChooseYear+HQ$93-1 -> 2023 | HR73: =ChooseYear+HR$93-1 -> 2023 | HS73: =ChooseYear+HS$93-1 -> 2023 | HT73: =ChooseYear+HT$93-1 -> 2023 | HU73: =ChooseYear+HU$93-1 -> 2023 | HW73: =ChooseYear+HW$93-1 -> 2023 | HY73: =ChooseYear+HY$93-1 -> 2023 | HZ73: =ChooseYear+HZ$93-1 -> 2023 | IA73: =ChooseYear+IA$93-1 -> 2023 | IB73: =ChooseYear+IB$93-1 -> 2023 | IC73: =ChooseYear+IC$93-1 -> 2023 | ID73: =ChooseYear+ID$93-1 -> 2023 | IE73: =ChooseYear+IE$93-1 -> 2023 | IF73: =ChooseYear+IF$93-1 -> 2023 | IG73: =ChooseYear+IG$93-1 -> 2023 | IH73: =ChooseYear+IH$93-1 -> 2023 | II73: =ChooseYear+II$93-1 -> 2023 | IJ73: =ChooseYear+IJ$93-1 -> 2023 | IN73: =ChooseYear+IN$93-1 -> 2024 | IO73: =ChooseYear+IO$93-1 -> 2024 | IP73: =ChooseYear+IP$93-1 -> 2024 | IQ73: =ChooseYear+IQ$93-1 -> 2024 | IR73: =ChooseYear+IR$93-1 -> 2024 | IS73: =ChooseYear+IS$93-1 -> 2024 | IT73: =ChooseYear+IT$93-1 -> 2024 | IU73: =ChooseYear+IU$93-1 -> 2024 | IV73: =ChooseYear+IV$93-1 -> 2024 | IW73: =ChooseYear+IW$93-1 -> 2024 | IX73: =ChooseYear+IX$93-1 -> 2024 | IY73: =ChooseYear+IY$93-1 -> 2024 | IZ73: =ChooseYear+IZ$93-1 -> 2024 | JA73: =ChooseYear+JA$93-1 -> 2024 | JB73: =ChooseYear+JB$93-1 -> 2024 | JD73: =ChooseYear+JD$93-1 -> 2024 | JF73: =ChooseYear+JF$93-1 -> 2024 | JG73: =ChooseYear+JG$93-1 -> 2024 | JH73: =ChooseYear+JH$93-1 -> 2024 | JI73: =ChooseYear+JI$93-1 -> 2024 | JJ73: =ChooseYear+JJ$93-1 -> 2024 | JK73: =ChooseYear+JK$93-1 -> 2024 | JL73: =ChooseYear+JL$93-1 -> 2024 | JM73: =ChooseYear+JM$93-1 -> 2024 | JN73: =ChooseYear+JN$93-1 -> 2024 | JO73: =ChooseYear+JO$93-1 -> 2024 | JP73: =ChooseYear+JP$93-1 -> 2024 | JQ73: =ChooseYear+JQ$93-1 -> 2024 | JU73: =ChooseYear+JU$93-1 -> 2025 | JV73: =ChooseYear+JV$93-1 -> 2025 | JW73: =ChooseYear+JW$93-1 -> 2025 | JX73: =ChooseYear+JX$93-1 -> 2025 | JY73: =ChooseYear+JY$93-1 -> 2025 | JZ73: =ChooseYear+JZ$93-1 -> 2025 | KA73: =ChooseYear+KA$93-1 -> 2025 | KB73: =ChooseYear+KB$93-1 -> 2025 | KC73: =ChooseYear+KC$93-1 -> 2025 | KD73: =ChooseYear+KD$93-1 -> 2025 | KE73: =ChooseYear+KE$93-1 -> 2025 | KF73: =ChooseYear+KF$93-1 -> 2025 | KG73: =ChooseYear+KG$93-1 -> 2025 | KH73: =ChooseYear+KH$93-1 -> 2025 | KI73: =ChooseYear+KI$93-1 -> 2025 | KK73: =ChooseYear+KK$93-1 -> 2025 | KM73: =ChooseYear+KM$93-1 -> 2025 | KN73: =ChooseYear+KN$93-1 -> 2025 | KO73: =ChooseYear+KO$93-1 -> 2025 | KP73: =ChooseYear+KP$93-1 -> 2025 | KQ73: =ChooseYear+KQ$93-1 -> 2025 | KR73: =ChooseYear+KR$93-1 -> 2025 | KS73: =ChooseYear+KS$93-1 -> 2025 | KT73: =ChooseYear+KT$93-1 -> 2025 | KU73: =ChooseYear+KU$93-1 -> 2025 | KV73: =ChooseYear+KV$93-1 -> 2025 | KW73: =ChooseYear+KW$93-1 -> 2025 | KX73: =ChooseYear+KX$93-1 -> 2025 | LB73: =ChooseYear+LB$93-1 -> 2026 | LC73: =ChooseYear+LC$93-1 -> 2026 | LD73: =ChooseYear+LD$93-1 -> 2026 | LE73: =ChooseYear+LE$93-1 -> 2026 | LF73: =ChooseYear+LF$93-1 -> 2026 | LG73: =ChooseYear+LG$93-1 -> 2026 | LH73: =ChooseYear+LH$93-1 -> 2026 | LI73: =ChooseYear+LI$93-1 -> 2026 | LJ73: =ChooseYear+LJ$93-1 -> 2026 | LK73: =ChooseYear+LK$93-1 -> 2026 | LL73: =ChooseYear+LL$93-1 -> 2026 | LM73: =ChooseYear+LM$93-1 -> 2026 | LN73: =ChooseYear+LN$93-1 -> 2026 | LO73: =ChooseYear+LO$93-1 -> 2026 | LP73: =ChooseYear+LP$93-1 -> 2026 | LR73: =ChooseYear+LR$93-1 -> 2026 | LT73: =ChooseYear+LT$93-1 -> 2026 | LU73: =ChooseYear+LU$93-1 -> 2026 | LV73: =ChooseYear+LV$93-1 -> 2026 | LW73: =ChooseYear+LW$93-1 -> 2026 | LX73: =ChooseYear+LX$93-1 -> 2026 | LY73: =ChooseYear+LY$93-1 -> 2026 | LZ73: =ChooseYear+LZ$93-1 -> 2026 | MA73: =ChooseYear+MA$93-1 -> 2026 | MB73: =ChooseYear+MB$93-1 -> 2026 | MC73: =ChooseYear+MC$93-1 -> 2026 | MD73: =ChooseYear+MD$93-1 -> 2026 | ME73: =ChooseYear+ME$93-1 -> 2026
A74: #hiderow | G74: Column Mapping 4 | H74: PayrollS1/B1 | I74: Measure | AB74: Head Count | AC74: EEID | AD74: First Name | AE74: Position Name | AF74: InternalNotes | AG74: Budget Category | AH74: Start Date | AI74: End Date | AJ74: Leave Start | AK74: Leave End | AL74: Pay Schedule | AR74: Retirement Plan | AS74: Medical Insurance | AT74: Med In Lieu | AU74: FTE % | AV74: Base Salary | AX74: Base Salary | AY74: FTE % OR | AZ74: FTE % | BA74: Salary OR | BC74: FTE % OR | BE74: Salary OR | BG74: FTE % OR | BI74: Salary OR | BK74: FTE % OR | BM74: Salary OR | BO74: FTE % OR | BQ74: Salary OR | BT74: Hourly Rate | BU74: Hrs Per Wk | BV74: Wks Per Yr | BX74: Hourly Rate OR | BY74: HPW OR | BZ74: WPY OR | CA74: Hourly Rate | CB74: Hrs Per Wk | CC74: Wks Per Yr | CE74: Hourly Rate OR | CF74: HPW OR | CG74: WPY OR | CH74: Hourly Rate | CI74: Hrs Per Wk | CJ74: Wks Per Yr | CL74: Hourly Rate OR | CM74: HPW OR | CN74: WPY OR | CO74: Hourly Rate | CP74: Hrs Per Wk | CQ74: Wks Per Yr | CS74: Hourly Rate OR | CT74: HPW OR | CU74: WPY OR | CV74: Hourly Rate | CW74: Hrs Per Wk | CX74: Wks Per Yr | CZ74: Hourly Rate OR | DA74: HPW OR | DB74: WPY OR | DC74: Hourly Rate | DD74: Hrs Per Wk | DE74: Wks Per Yr | DH74: Site % | DI74: Site % | DJ74: Site % | DK74: Site % | DL74: Site % | DM74: Site % | DN74: Site % | DQ74: Site % OR | DS74: Site % | DV74: Site % OR | DX74: Site % | EA74: Site % OR | EC74: Site % | EF74: Site % OR | EH74: Site % | EK74: Site % OR | EM74: Site % | ES74: Total Monthly Pay LID | ET74: Total Monthly Pay LID | EU74: Total Monthly Pay LID | EV74: Total Monthly Pay LID | EW74: Total Monthly Pay LID | EX74: Total Monthly Pay LID | EY74: Total Monthly Pay LID | EZ74: Total Monthly Pay LID | FA74: Total Monthly Pay LID | FB74: Total Monthly Pay LID | FC74: Total Monthly Pay LID | FD74: Total Monthly Pay LID | FE74: Total Monthly Pay LID | FF74: Total Paid - Site | FG74: Total Summer Holdback LID | FI74: =IF($K$61=CommonSubLoc,"FTE Calculated","Total FTE LID") -> FTE Calculated | FK74: Total STRS LID | FL74: Total PERS LID | FM74: Total PARS LID | FN74: Total Other Retirement LID | FO74: Total Social Security LID | FP74: Total Medicare LID | FQ74: Total H&W LID | FR74: Total FUTA LID | FS74: Total SUTA LID | FT74: Total ETT LID | FU74: Total Workers Comp LID | FV74: Total Benefits - Site | FZ74: Total Monthly Pay LID | GA74: Total Monthly Pay LID | GB74: Total Monthly Pay LID | GC74: Total Monthly Pay LID | GD74: Total Monthly Pay LID | GE74: Total Monthly Pay LID | GF74: Total Monthly Pay LID | GG74: Total Monthly Pay LID | GH74: Total Monthly Pay LID | GI74: Total Monthly Pay LID | GJ74: Total Monthly Pay LID | GK74: Total Monthly Pay LID | GL74: Total Monthly Pay LID | GM74: Total Paid - Site | GN74: Total Summer Holdback LID | GP74: =IF($K$61=CommonSubLoc,"FTE Calculated","Total FTE LID") -> FTE Calculated | GR74: Total STRS LID | GS74: Total PERS LID | GT74: Total PARS LID | GU74: Total Other Retirement LID | GV74: Total Social Security LID | GW74: Total Medicare LID | GX74: Total H&W LID | GY74: Total FUTA LID | GZ74: Total SUTA LID | HA74: Total ETT LID | HB74: Total Workers Comp LID | HC74: Total Benefits - Site | HG74: Total Monthly Pay LID | HH74: Total Monthly Pay LID | HI74: Total Monthly Pay LID | HJ74: Total Monthly Pay LID | HK74: Total Monthly Pay LID | HL74: Total Monthly Pay LID | HM74: Total Monthly Pay LID | HN74: Total Monthly Pay LID | HO74: Total Monthly Pay LID | HP74: Total Monthly Pay LID | HQ74: Total Monthly Pay LID | HR74: Total Monthly Pay LID | HS74: Total Monthly Pay LID | HT74: Total Paid - Site | HU74: Total Summer Holdback LID | HW74: =IF($K$61=CommonSubLoc,"FTE Calculated","Total FTE LID") -> FTE Calculated | HY74: Total STRS LID | HZ74: Total PERS LID | IA74: Total PARS LID | IB74: Total Other Retirement LID | IC74: Total Social Security LID | ID74: Total Medicare LID | IE74: Total H&W LID | IF74: Total FUTA LID | IG74: Total SUTA LID | IH74: Total ETT LID | II74: Total Workers Comp LID | IJ74: Total Benefits - Site | IN74: Total Monthly Pay LID | IO74: Total Monthly Pay LID | IP74: Total Monthly Pay LID | IQ74: Total Monthly Pay LID | IR74: Total Monthly Pay LID | IS74: Total Monthly Pay LID | IT74: Total Monthly Pay LID | IU74: Total Monthly Pay LID | IV74: Total Monthly Pay LID | IW74: Total Monthly Pay LID | IX74: Total Monthly Pay LID | IY74: Total Monthly Pay LID | IZ74: Total Monthly Pay LID | JA74: Total Paid - Site | JB74: Total Summer Holdback LID | JD74: =IF($K$61=CommonSubLoc,"FTE Calculated","Total FTE LID") -> FTE Calculated | JF74: Total STRS LID | JG74: Total PERS LID | JH74: Total PARS LID | JI74: Total Other Retirement LID | JJ74: Total Social Security LID | JK74: Total Medicare LID | JL74: Total H&W LID | JM74: Total FUTA LID | JN74: Total SUTA LID | JO74: Total ETT LID | JP74: Total Workers Comp LID | JQ74: Total Benefits - Site | JU74: Total Monthly Pay LID | JV74: Total Monthly Pay LID | JW74: Total Monthly Pay LID | JX74: Total Monthly Pay LID | JY74: Total Monthly Pay LID | JZ74: Total Monthly Pay LID | KA74: Total Monthly Pay LID | KB74: Total Monthly Pay LID | KC74: Total Monthly Pay LID | KD74: Total Monthly Pay LID | KE74: Total Monthly Pay LID | KF74: Total Monthly Pay LID | KG74: Total Monthly Pay LID | KH74: Total Paid - Site | KI74: Total Summer Holdback LID | KK74: =IF($K$61=CommonSubLoc,"FTE Calculated","Total FTE LID") -> FTE Calculated | KM74: Total STRS LID | KN74: Total PERS LID | KO74: Total PARS LID | KP74: Total Other Retirement LID | KQ74: Total Social Security LID | KR74: Total Medicare LID | KS74: Total H&W LID | KT74: Total FUTA LID | KU74: Total SUTA LID | KV74: Total ETT LID | KW74: Total Workers Comp LID | KX74: Total Benefits - Site | LB74: Total Monthly Pay LID | LC74: Total Monthly Pay LID | LD74: Total Monthly Pay LID | LE74: Total Monthly Pay LID | LF74: Total Monthly Pay LID | LG74: Total Monthly Pay LID | LH74: Total Monthly Pay LID | LI74: Total Monthly Pay LID | LJ74: Total Monthly Pay LID | LK74: Total Monthly Pay LID | LL74: Total Monthly Pay LID | LM74: Total Monthly Pay LID | LN74: Total Monthly Pay LID | LO74: Total Paid - Site | LP74: Total Summer Holdback LID | LR74: =IF($K$61=CommonSubLoc,"FTE Calculated","Total FTE LID") -> FTE Calculated | LT74: Total STRS LID | LU74: Total PERS LID | LV74: Total PARS LID | LW74: Total Other Retirement LID | LX74: Total Social Security LID | LY74: Total Medicare LID | LZ74: Total H&W LID | MA74: Total FUTA LID | MB74: Total SUTA LID | MC74: Total ETT LID | MD74: Total Workers Comp LID | ME74: Total Benefits - Site
A75: #hiderow | G75: Column Mapping 5 | H75: PayrollS1/B2 | I75: Sub-Loc | J75: Extra pay line-item data | AB75: =CommonSubLoc -> 0110-0000-000 | AF75: =CommonSubLoc -> 0110-0000-000 | AG75: =CommonSubLoc -> 0110-0000-000 | AL75: =CommonSubLoc -> 0110-0000-000 | AR75: =CommonSubLoc -> 0110-0000-000 | AV75: =CommonSubLoc -> 0110-0000-000 | BA75: =CommonSubLoc -> 0110-0000-000 | BB75: =CommonSubLoc -> 0110-0000-000 | BE75: =CommonSubLoc -> 0110-0000-000 | BI75: =CommonSubLoc -> 0110-0000-000 | BM75: =CommonSubLoc -> 0110-0000-000 | BQ75: =CommonSubLoc -> 0110-0000-000 | DH75: =DH$71 -> 0110-0000-000 | DI75: 0110-0000-000 | DJ75: 0110-0000-000 | DK75: 0110-0000-000 | DL75: 0110-0000-000 | DM75: 0110-0000-000 | DN75: Dynamic Expression: INTERSECTION(BOTTOMLEVEL(MEMBER_CELL(SubsidiaryNumber:NameOnly)),MultiSite) | DQ75: =DQ71 -> Dynamic Expression: INTERSECTION(BOTTOMLEVEL(MEMBER_CELL(SubsidiaryNumber:NameOnly)),MultiSite) | DS75: =DS71 -> Dynamic Expression: INTERSECTION(BOTTOMLEVEL(MEMBER_CELL(SubsidiaryNumber:NameOnly)),MultiSite) | DV75: =DV71 -> Dynamic Expression: INTERSECTION(BOTTOMLEVEL(MEMBER_CELL(SubsidiaryNumber:NameOnly)),MultiSite) | DX75: =DX71 -> Dynamic Expression: INTERSECTION(BOTTOMLEVEL(MEMBER_CELL(SubsidiaryNumber:NameOnly)),MultiSite) | EA75: =EA71 -> Dynamic Expression: INTERSECTION(BOTTOMLEVEL(MEMBER_CELL(SubsidiaryNumber:NameOnly)),MultiSite) | EC75: =EC71 -> Dynamic Expression: INTERSECTION(BOTTOMLEVEL(MEMBER_CELL(SubsidiaryNumber:NameOnly)),MultiSite) | EF75: =EF71 -> Dynamic Expression: INTERSECTION(BOTTOMLEVEL(MEMBER_CELL(SubsidiaryNumber:NameOnly)),MultiSite) | EH75: =EH71 -> Dynamic Expression: INTERSECTION(BOTTOMLEVEL(MEMBER_CELL(SubsidiaryNumber:NameOnly)),MultiSite) | EK75: =EK71 -> Dynamic Expression: INTERSECTION(BOTTOMLEVEL(MEMBER_CELL(SubsidiaryNumber:NameOnly)),MultiSite) | EM75: =EM71 -> Dynamic Expression: INTERSECTION(BOTTOMLEVEL(MEMBER_CELL(SubsidiaryNumber:NameOnly)),MultiSite) | ES75: =CommonSubLoc -> 0110-0000-000 | ET75: =CommonSubLoc -> 0110-0000-000 | EU75: =CommonSubLoc -> 0110-0000-000 | EV75: =CommonSubLoc -> 0110-0000-000 | EW75: =CommonSubLoc -> 0110-0000-000 | EX75: =CommonSubLoc -> 0110-0000-000 | EY75: =CommonSubLoc -> 0110-0000-000 | EZ75: =CommonSubLoc -> 0110-0000-000 | FA75: =CommonSubLoc -> 0110-0000-000 | FB75: =CommonSubLoc -> 0110-0000-000 | FC75: =CommonSubLoc -> 0110-0000-000 | FD75: =CommonSubLoc -> 0110-0000-000 | FE75: =CommonSubLoc -> 0110-0000-000 | FF75: =$K$61 -> 0110-0000-000 | FK75: =CommonSubLoc -> 0110-0000-000 | FL75: =CommonSubLoc -> 0110-0000-000 | FM75: =CommonSubLoc -> 0110-0000-000 | FN75: =CommonSubLoc -> 0110-0000-000 | FO75: =CommonSubLoc -> 0110-0000-000 | FP75: =CommonSubLoc -> 0110-0000-000 | FU75: =CommonSubLoc -> 0110-0000-000 | FV75: =$K$61 -> 0110-0000-000 | FZ75: =CommonSubLoc -> 0110-0000-000 | GA75: =CommonSubLoc -> 0110-0000-000 | GB75: =CommonSubLoc -> 0110-0000-000 | GC75: =CommonSubLoc -> 0110-0000-000 | GD75: =CommonSubLoc -> 0110-0000-000 | GE75: =CommonSubLoc -> 0110-0000-000 | GF75: =CommonSubLoc -> 0110-0000-000 | GG75: =CommonSubLoc -> 0110-0000-000 | GH75: =CommonSubLoc -> 0110-0000-000 | GI75: =CommonSubLoc -> 0110-0000-000 | GJ75: =CommonSubLoc -> 0110-0000-000 | GK75: =CommonSubLoc -> 0110-0000-000 | GL75: =CommonSubLoc -> 0110-0000-000 | GM75: =$K$61 -> 0110-0000-000 | GR75: =CommonSubLoc -> 0110-0000-000 | GS75: =CommonSubLoc -> 0110-0000-000 | GT75: =CommonSubLoc -> 0110-0000-000 | GU75: =CommonSubLoc -> 0110-0000-000 | GV75: =CommonSubLoc -> 0110-0000-000 | GW75: =CommonSubLoc -> 0110-0000-000 | HB75: =CommonSubLoc -> 0110-0000-000 | HC75: =$K$61 -> 0110-0000-000 | HG75: =CommonSubLoc -> 0110-0000-000 | HH75: =CommonSubLoc -> 0110-0000-000 | HI75: =CommonSubLoc -> 0110-0000-000 | HJ75: =CommonSubLoc -> 0110-0000-000 | HK75: =CommonSubLoc -> 0110-0000-000 | HL75: =CommonSubLoc -> 0110-0000-000 | HM75: =CommonSubLoc -> 0110-0000-000 | HN75: =CommonSubLoc -> 0110-0000-000 | HO75: =CommonSubLoc -> 0110-0000-000 | HP75: =CommonSubLoc -> 0110-0000-000 | HQ75: =CommonSubLoc -> 0110-0000-000 | HR75: =CommonSubLoc -> 0110-0000-000 | HS75: =CommonSubLoc -> 0110-0000-000 | HT75: =$K$61 -> 0110-0000-000 | HY75: =CommonSubLoc -> 0110-0000-000 | HZ75: =CommonSubLoc -> 0110-0000-000 | IA75: =CommonSubLoc -> 0110-0000-000 | IB75: =CommonSubLoc -> 0110-0000-000 | IC75: =CommonSubLoc -> 0110-0000-000 | ID75: =CommonSubLoc -> 0110-0000-000 | II75: =CommonSubLoc -> 0110-0000-000 | IJ75: =$K$61 -> 0110-0000-000 | IN75: =CommonSubLoc -> 0110-0000-000 | IO75: =CommonSubLoc -> 0110-0000-000 | IP75: =CommonSubLoc -> 0110-0000-000 | IQ75: =CommonSubLoc -> 0110-0000-000 | IR75: =CommonSubLoc -> 0110-0000-000 | IS75: =CommonSubLoc -> 0110-0000-000 | IT75: =CommonSubLoc -> 0110-0000-000 | IU75: =CommonSubLoc -> 0110-0000-000 | IV75: =CommonSubLoc -> 0110-0000-000 | IW75: =CommonSubLoc -> 0110-0000-000 | IX75: =CommonSubLoc -> 0110-0000-000 | IY75: =CommonSubLoc -> 0110-0000-000 | IZ75: =CommonSubLoc -> 0110-0000-000 | JA75: =$K$61 -> 0110-0000-000 | JF75: =CommonSubLoc -> 0110-0000-000 | JG75: =CommonSubLoc -> 0110-0000-000 | JH75: =CommonSubLoc -> 0110-0000-000 | JI75: =CommonSubLoc -> 0110-0000-000 | JJ75: =CommonSubLoc -> 0110-0000-000 | JK75: =CommonSubLoc -> 0110-0000-000 | JP75: =CommonSubLoc -> 0110-0000-000 | JQ75: =$K$61 -> 0110-0000-000 | JU75: =CommonSubLoc -> 0110-0000-000 | JV75: =CommonSubLoc -> 0110-0000-000 | JW75: =CommonSubLoc -> 0110-0000-000 | JX75: =CommonSubLoc -> 0110-0000-000 | JY75: =CommonSubLoc -> 0110-0000-000 | JZ75: =CommonSubLoc -> 0110-0000-000 | KA75: =CommonSubLoc -> 0110-0000-000 | KB75: =CommonSubLoc -> 0110-0000-000 | KC75: =CommonSubLoc -> 0110-0000-000 | KD75: =CommonSubLoc -> 0110-0000-000 | KE75: =CommonSubLoc -> 0110-0000-000 | KF75: =CommonSubLoc -> 0110-0000-000 | KG75: =CommonSubLoc -> 0110-0000-000 | KH75: =$K$61 -> 0110-0000-000 | KM75: =CommonSubLoc -> 0110-0000-000 | KN75: =CommonSubLoc -> 0110-0000-000 | KO75: =CommonSubLoc -> 0110-0000-000 | KP75: =CommonSubLoc -> 0110-0000-000 | KQ75: =CommonSubLoc -> 0110-0000-000 | KR75: =CommonSubLoc -> 0110-0000-000 | KW75: =CommonSubLoc -> 0110-0000-000 | KX75: =$K$61 -> 0110-0000-000 | LB75: =CommonSubLoc -> 0110-0000-000 | LC75: =CommonSubLoc -> 0110-0000-000 | LD75: =CommonSubLoc -> 0110-0000-000 | LE75: =CommonSubLoc -> 0110-0000-000 | LF75: =CommonSubLoc -> 0110-0000-000 | LG75: =CommonSubLoc -> 0110-0000-000 | LH75: =CommonSubLoc -> 0110-0000-000 | LI75: =CommonSubLoc -> 0110-0000-000 | LJ75: =CommonSubLoc -> 0110-0000-000 | LK75: =CommonSubLoc -> 0110-0000-000 | LL75: =CommonSubLoc -> 0110-0000-000 | LM75: =CommonSubLoc -> 0110-0000-000 | LN75: =CommonSubLoc -> 0110-0000-000 | LO75: =$K$61 -> 0110-0000-000 | LT75: =CommonSubLoc -> 0110-0000-000 | LU75: =CommonSubLoc -> 0110-0000-000 | LV75: =CommonSubLoc -> 0110-0000-000 | LW75: =CommonSubLoc -> 0110-0000-000 | LX75: =CommonSubLoc -> 0110-0000-000 | LY75: =CommonSubLoc -> 0110-0000-000 | MD75: =CommonSubLoc -> 0110-0000-000 | ME75: =$K$61 -> 0110-0000-000
A76: #hiderow | G76: Column Mapping 6 | H76: PayrollS1/B2 | I76: Period | AB76: No_Period | AF76: No_Period | AG76: No_Period | AL76: No_Period | AR76: No_Period | AV76: No_Period | BA76: No_Period | BB76: No_Period | BE76: No_Period | BI76: No_Period | BM76: No_Period | BQ76: No_Period | DH76: No_Period | DI76: No_Period | DJ76: No_Period | DK76: No_Period | DL76: No_Period | DM76: No_Period | DN76: No_Period | DQ76: No_Period | DS76: No_Period | DV76: No_Period | DX76: No_Period | EA76: No_Period | EC76: No_Period | EF76: No_Period | EH76: No_Period | EK76: No_Period | EM76: No_Period | ES76: =ES$107 -> Jul | ET76: Aug | EU76: Sep | EV76: Oct | EW76: Nov | EX76: Dec | EY76: Jan | EZ76: Feb | FA76: Mar | FB76: Apr | FC76: May | FD76: Jun | FE76: AP | FF76: No_Period | FK76: No_Period | FL76: No_Period | FM76: No_Period | FN76: No_Period | FO76: No_Period | FP76: No_Period | FU76: No_Period | FV76: No_Period | FZ76: =FZ$107 -> Jul | GA76: Aug | GB76: Sep | GC76: Oct | GD76: Nov | GE76: Dec | GF76: Jan | GG76: Feb | GH76: Mar | GI76: Apr | GJ76: May | GK76: Jun | GL76: AP | GM76: No_Period | GR76: No_Period | GS76: No_Period | GT76: No_Period | GU76: No_Period | GV76: No_Period | GW76: No_Period | HB76: No_Period | HC76: No_Period | HG76: =HG$107 -> Jul | HH76: Aug | HI76: Sep | HJ76: Oct | HK76: Nov | HL76: Dec | HM76: Jan | HN76: Feb | HO76: Mar | HP76: Apr | HQ76: May | HR76: Jun | HS76: AP | HT76: No_Period | HY76: No_Period | HZ76: No_Period | IA76: No_Period | IB76: No_Period | IC76: No_Period | ID76: No_Period | II76: No_Period | IJ76: No_Period | IN76: =IN$107 -> Jul | IO76: Aug | IP76: Sep | IQ76: Oct | IR76: Nov | IS76: Dec | IT76: Jan | IU76: Feb | IV76: Mar | IW76: Apr | IX76: May | IY76: Jun | IZ76: AP | JA76: No_Period | JF76: No_Period | JG76: No_Period | JH76: No_Period | JI76: No_Period | JJ76: No_Period | JK76: No_Period | JP76: No_Period | JQ76: No_Period | JU76: =JU$107 -> Jul | JV76: Aug | JW76: Sep | JX76: Oct | JY76: Nov | JZ76: Dec | KA76: Jan | KB76: Feb | KC76: Mar | KD76: Apr | KE76: May | KF76: Jun | KG76: AP | KH76: No_Period | KM76: No_Period | KN76: No_Period | KO76: No_Period | KP76: No_Period | KQ76: No_Period | KR76: No_Period | KW76: No_Period | KX76: No_Period | LB76: =LB$107 -> Jul | LC76: Aug | LD76: Sep | LE76: Oct | LF76: Nov | LG76: Dec | LH76: Jan | LI76: Feb | LJ76: Mar | LK76: Apr | LL76: May | LM76: Jun | LN76: AP | LO76: No_Period | LT76: No_Period | LU76: No_Period | LV76: No_Period | LW76: No_Period | LX76: No_Period | LY76: No_Period | MD76: No_Period | ME76: No_Period
A77: #hiderow | G77: Column Mapping 7 | H77: PayrollS1/B2 | I77: Year | AB77: No_year | AF77: No_year | AG77: No_year | AL77: No_year | AR77: No_year | AV77: =ChooseYear+AV$93-1 -> 2021 | BA77: =ChooseYear+BA$93-1 -> 2022 | BB77: =ChooseYear+BB$93-1 -> 2022 | BE77: =ChooseYear+BE$93-1 -> 2023 | BI77: =ChooseYear+BI$93-1 -> 2024 | BM77: =ChooseYear+BM$93-1 -> 2025 | BQ77: =ChooseYear+BQ$93-1 -> 2026 | DH77: =ChooseYear+DH$93-1 -> 2021 | DI77: =ChooseYear+DI$93-1 -> 2022 | DJ77: =ChooseYear+DJ$93-1 -> 2023 | DK77: =ChooseYear+DK$93-1 -> 2024 | DL77: =ChooseYear+DL$93-1 -> 2025 | DM77: =ChooseYear+DM$93-1 -> 2026 | DN77: =ChooseYear+DN$93-1 -> 2021 | DQ77: =ChooseYear+DQ$93-1 -> 2022 | DS77: =ChooseYear+DS$93-1 -> 2022 | DV77: =ChooseYear+DV$93-1 -> 2023 | DX77: =ChooseYear+DX$93-1 -> 2023 | EA77: =ChooseYear+EA$93-1 -> 2024 | EC77: =ChooseYear+EC$93-1 -> 2024 | EF77: =ChooseYear+EF$93-1 -> 2025 | EH77: =ChooseYear+EH$93-1 -> 2025 | EK77: =ChooseYear+EK$93-1 -> 2026 | EM77: =ChooseYear+EM$93-1 -> 2026 | ES77: =ChooseYear+ES$93-1 -> 2021 | ET77: =ChooseYear+ET$93-1 -> 2021 | EU77: =ChooseYear+EU$93-1 -> 2021 | EV77: =ChooseYear+EV$93-1 -> 2021 | EW77: =ChooseYear+EW$93-1 -> 2021 | EX77: =ChooseYear+EX$93-1 -> 2021 | EY77: =ChooseYear+EY$93-1 -> 2021 | EZ77: =ChooseYear+EZ$93-1 -> 2021 | FA77: =ChooseYear+FA$93-1 -> 2021 | FB77: =ChooseYear+FB$93-1 -> 2021 | FC77: =ChooseYear+FC$93-1 -> 2021 | FD77: =ChooseYear+FD$93-1 -> 2021 | FE77: =ChooseYear+FE$93-1 -> 2021 | FF77: =ChooseYear+FF$93-1 -> 2021 | FK77: =ChooseYear+FK$93-1 -> 2021 | FL77: =ChooseYear+FL$93-1 -> 2021 | FM77: =ChooseYear+FM$93-1 -> 2021 | FN77: =ChooseYear+FN$93-1 -> 2021 | FO77: =ChooseYear+FO$93-1 -> 2021 | FP77: =ChooseYear+FP$93-1 -> 2021 | FU77: =ChooseYear+FU$93-1 -> 2021 | FV77: =ChooseYear+FV$93-1 -> 2021 | FZ77: =ChooseYear+FZ$93-1 -> 2022 | GA77: =ChooseYear+GA$93-1 -> 2022 | GB77: =ChooseYear+GB$93-1 -> 2022 | GC77: =ChooseYear+GC$93-1 -> 2022 | GD77: =ChooseYear+GD$93-1 -> 2022 | GE77: =ChooseYear+GE$93-1 -> 2022 | GF77: =ChooseYear+GF$93-1 -> 2022 | GG77: =ChooseYear+GG$93-1 -> 2022 | GH77: =ChooseYear+GH$93-1 -> 2022 | GI77: =ChooseYear+GI$93-1 -> 2022 | GJ77: =ChooseYear+GJ$93-1 -> 2022 | GK77: =ChooseYear+GK$93-1 -> 2022 | GL77: =ChooseYear+GL$93-1 -> 2022 | GM77: =ChooseYear+GM$93-1 -> 2022 | GR77: =ChooseYear+GR$93-1 -> 2022 | GS77: =ChooseYear+GS$93-1 -> 2022 | GT77: =ChooseYear+GT$93-1 -> 2022 | GU77: =ChooseYear+GU$93-1 -> 2022 | GV77: =ChooseYear+GV$93-1 -> 2022 | GW77: =ChooseYear+GW$93-1 -> 2022 | HB77: =ChooseYear+HB$93-1 -> 2022 | HC77: =ChooseYear+HC$93-1 -> 2022 | HG77: =ChooseYear+HG$93-1 -> 2023 | HH77: =ChooseYear+HH$93-1 -> 2023 | HI77: =ChooseYear+HI$93-1 -> 2023 | HJ77: =ChooseYear+HJ$93-1 -> 2023 | HK77: =ChooseYear+HK$93-1 -> 2023 | HL77: =ChooseYear+HL$93-1 -> 2023 | HM77: =ChooseYear+HM$93-1 -> 2023 | HN77: =ChooseYear+HN$93-1 -> 2023 | HO77: =ChooseYear+HO$93-1 -> 2023 | HP77: =ChooseYear+HP$93-1 -> 2023 | HQ77: =ChooseYear+HQ$93-1 -> 2023 | HR77: =ChooseYear+HR$93-1 -> 2023 | HS77: =ChooseYear+HS$93-1 -> 2023 | HT77: =ChooseYear+HT$93-1 -> 2023 | HY77: =ChooseYear+HY$93-1 -> 2023 | HZ77: =ChooseYear+HZ$93-1 -> 2023 | IA77: =ChooseYear+IA$93-1 -> 2023 | IB77: =ChooseYear+IB$93-1 -> 2023 | IC77: =ChooseYear+IC$93-1 -> 2023 | ID77: =ChooseYear+ID$93-1 -> 2023 | II77: =ChooseYear+II$93-1 -> 2023 | IJ77: =ChooseYear+IJ$93-1 -> 2023 | IN77: =ChooseYear+IN$93-1 -> 2024 | IO77: =ChooseYear+IO$93-1 -> 2024 | IP77: =ChooseYear+IP$93-1 -> 2024 | IQ77: =ChooseYear+IQ$93-1 -> 2024 | IR77: =ChooseYear+IR$93-1 -> 2024 | IS77: =ChooseYear+IS$93-1 -> 2024 | IT77: =ChooseYear+IT$93-1 -> 2024 | IU77: =ChooseYear+IU$93-1 -> 2024 | IV77: =ChooseYear+IV$93-1 -> 2024 | IW77: =ChooseYear+IW$93-1 -> 2024 | IX77: =ChooseYear+IX$93-1 -> 2024 | IY77: =ChooseYear+IY$93-1 -> 2024 | IZ77: =ChooseYear+IZ$93-1 -> 2024 | JA77: =ChooseYear+JA$93-1 -> 2024 | JF77: =ChooseYear+JF$93-1 -> 2024 | JG77: =ChooseYear+JG$93-1 -> 2024 | JH77: =ChooseYear+JH$93-1 -> 2024 | JI77: =ChooseYear+JI$93-1 -> 2024 | JJ77: =ChooseYear+JJ$93-1 -> 2024 | JK77: =ChooseYear+JK$93-1 -> 2024 | JP77: =ChooseYear+JP$93-1 -> 2024 | JQ77: =ChooseYear+JQ$93-1 -> 2024 | JU77: =ChooseYear+JU$93-1 -> 2025 | JV77: =ChooseYear+JV$93-1 -> 2025 | JW77: =ChooseYear+JW$93-1 -> 2025 | JX77: =ChooseYear+JX$93-1 -> 2025 | JY77: =ChooseYear+JY$93-1 -> 2025 | JZ77: =ChooseYear+JZ$93-1 -> 2025 | KA77: =ChooseYear+KA$93-1 -> 2025 | KB77: =ChooseYear+KB$93-1 -> 2025 | KC77: =ChooseYear+KC$93-1 -> 2025 | KD77: =ChooseYear+KD$93-1 -> 2025 | KE77: =ChooseYear+KE$93-1 -> 2025 | KF77: =ChooseYear+KF$93-1 -> 2025 | KG77: =ChooseYear+KG$93-1 -> 2025 | KH77: =ChooseYear+KH$93-1 -> 2025 | KM77: =ChooseYear+KM$93-1 -> 2025 | KN77: =ChooseYear+KN$93-1 -> 2025 | KO77: =ChooseYear+KO$93-1 -> 2025 | KP77: =ChooseYear+KP$93-1 -> 2025 | KQ77: =ChooseYear+KQ$93-1 -> 2025 | KR77: =ChooseYear+KR$93-1 -> 2025 | KW77: =ChooseYear+KW$93-1 -> 2025 | KX77: =ChooseYear+KX$93-1 -> 2025 | LB77: =ChooseYear+LB$93-1 -> 2026 | LC77: =ChooseYear+LC$93-1 -> 2026 | LD77: =ChooseYear+LD$93-1 -> 2026 | LE77: =ChooseYear+LE$93-1 -> 2026 | LF77: =ChooseYear+LF$93-1 -> 2026 | LG77: =ChooseYear+LG$93-1 -> 2026 | LH77: =ChooseYear+LH$93-1 -> 2026 | LI77: =ChooseYear+LI$93-1 -> 2026 | LJ77: =ChooseYear+LJ$93-1 -> 2026 | LK77: =ChooseYear+LK$93-1 -> 2026 | LL77: =ChooseYear+LL$93-1 -> 2026 | LM77: =ChooseYear+LM$93-1 -> 2026 | LN77: =ChooseYear+LN$93-1 -> 2026 | LO77: =ChooseYear+LO$93-1 -> 2026 | LT77: =ChooseYear+LT$93-1 -> 2026 | LU77: =ChooseYear+LU$93-1 -> 2026 | LV77: =ChooseYear+LV$93-1 -> 2026 | LW77: =ChooseYear+LW$93-1 -> 2026 | LX77: =ChooseYear+LX$93-1 -> 2026 | LY77: =ChooseYear+LY$93-1 -> 2026 | MD77: =ChooseYear+MD$93-1 -> 2026 | ME77: =ChooseYear+ME$93-1 -> 2026
A78: #hiderow | G78: Column Mapping 8 | H78: PayrollS1/B2 | I78: Measure | AB78: Description (Description) | AF78: InternalNotes | AG78: Budget Category | AL78: Pay Schedule | AR78: Retirement Plan | AV78: Value (Value) | BA78: Override | BB78: Value (Value) | BE78: Override | BI78: Override | BM78: Override | BQ78: Override | DH78: Site % | DI78: Site % | DJ78: Site % | DK78: Site % | DL78: Site % | DM78: Site % | DN78: Site % | DQ78: Site % OR | DS78: Site % | DV78: Site % OR | DX78: Site % | EA78: Site % OR | EC78: Site % | EF78: Site % OR | EH78: Site % | EK78: Site % OR | EM78: Site % | ES78: Total Monthly Pay LID | ET78: Total Monthly Pay LID | EU78: Total Monthly Pay LID | EV78: Total Monthly Pay LID | EW78: Total Monthly Pay LID | EX78: Total Monthly Pay LID | EY78: Total Monthly Pay LID | EZ78: Total Monthly Pay LID | FA78: Total Monthly Pay LID | FB78: Total Monthly Pay LID | FC78: Total Monthly Pay LID | FD78: Total Monthly Pay LID | FE78: Total Monthly Pay LID | FF78: Total Paid - Site | FK78: Total STRS LID | FL78: Total PERS LID | FM78: Total PARS LID | FN78: Total Other Retirement LID | FO78: Total Social Security LID | FP78: Total Medicare LID | FU78: Total Workers Comp LID | FV78: Total Benefits - Site | FZ78: Total Monthly Pay LID | GA78: Total Monthly Pay LID | GB78: Total Monthly Pay LID | GC78: Total Monthly Pay LID | GD78: Total Monthly Pay LID | GE78: Total Monthly Pay LID | GF78: Total Monthly Pay LID | GG78: Total Monthly Pay LID | GH78: Total Monthly Pay LID | GI78: Total Monthly Pay LID | GJ78: Total Monthly Pay LID | GK78: Total Monthly Pay LID | GL78: Total Monthly Pay LID | GM78: Total Paid - Site | GR78: Total STRS LID | GS78: Total PERS LID | GT78: Total PARS LID | GU78: Total Other Retirement LID | GV78: Total Social Security LID | GW78: Total Medicare LID | HB78: Total Workers Comp LID | HC78: Total Benefits - Site | HG78: Total Monthly Pay LID | HH78: Total Monthly Pay LID | HI78: Total Monthly Pay LID | HJ78: Total Monthly Pay LID | HK78: Total Monthly Pay LID | HL78: Total Monthly Pay LID | HM78: Total Monthly Pay LID | HN78: Total Monthly Pay LID | HO78: Total Monthly Pay LID | HP78: Total Monthly Pay LID | HQ78: Total Monthly Pay LID | HR78: Total Monthly Pay LID | HS78: Total Monthly Pay LID | HT78: Total Paid - Site | HY78: Total STRS LID | HZ78: Total PERS LID | IA78: Total PARS LID | IB78: Total Other Retirement LID | IC78: Total Social Security LID | ID78: Total Medicare LID | II78: Total Workers Comp LID | IJ78: Total Benefits - Site | IN78: Total Monthly Pay LID | IO78: Total Monthly Pay LID | IP78: Total Monthly Pay LID | IQ78: Total Monthly Pay LID | IR78: Total Monthly Pay LID | IS78: Total Monthly Pay LID | IT78: Total Monthly Pay LID | IU78: Total Monthly Pay LID | IV78: Total Monthly Pay LID | IW78: Total Monthly Pay LID | IX78: Total Monthly Pay LID | IY78: Total Monthly Pay LID | IZ78: Total Monthly Pay LID | JA78: Total Paid - Site | JF78: Total STRS LID | JG78: Total PERS LID | JH78: Total PARS LID | JI78: Total Other Retirement LID | JJ78: Total Social Security LID | JK78: Total Medicare LID | JP78: Total Workers Comp LID | JQ78: Total Benefits - Site | JU78: Total Monthly Pay LID | JV78: Total Monthly Pay LID | JW78: Total Monthly Pay LID | JX78: Total Monthly Pay LID | JY78: Total Monthly Pay LID | JZ78: Total Monthly Pay LID | KA78: Total Monthly Pay LID | KB78: Total Monthly Pay LID | KC78: Total Monthly Pay LID | KD78: Total Monthly Pay LID | KE78: Total Monthly Pay LID | KF78: Total Monthly Pay LID | KG78: Total Monthly Pay LID | KH78: Total Paid - Site | KM78: Total STRS LID | KN78: Total PERS LID | KO78: Total PARS LID | KP78: Total Other Retirement LID | KQ78: Total Social Security LID | KR78: Total Medicare LID | KW78: Total Workers Comp LID | KX78: Total Benefits - Site | LB78: Total Monthly Pay LID | LC78: Total Monthly Pay LID | LD78: Total Monthly Pay LID | LE78: Total Monthly Pay LID | LF78: Total Monthly Pay LID | LG78: Total Monthly Pay LID | LH78: Total Monthly Pay LID | LI78: Total Monthly Pay LID | LJ78: Total Monthly Pay LID | LK78: Total Monthly Pay LID | LL78: Total Monthly Pay LID | LM78: Total Monthly Pay LID | LN78: Total Monthly Pay LID | LO78: Total Paid - Site | LT78: Total STRS LID | LU78: Total PERS LID | LV78: Total PARS LID | LW78: Total Other Retirement LID | LX78: Total Social Security LID | LY78: Total Medicare LID | MD78: Total Workers Comp LID | ME78: Total Benefits - Site
A79: #hiderow | G79: Column Mapping 9 | H79: PayrollS2/B3 | I79: Period | J79: Forecast & cash flow data summarized by GL code, subsidiary-location contains site list drop-down for AfterSave macro use | ES79: =ES107 -> Jul | ET79: Aug | EU79: Sep | EV79: Oct | EW79: Nov | EX79: Dec | EY79: Jan | EZ79: Feb | FA79: Mar | FB79: Apr | FC79: May | FD79: Jun | FF79: No_Period | FI79: No_Period | FZ79: =FZ107 -> Jul | GA79: Aug | GB79: Sep | GC79: Oct | GD79: Nov | GE79: Dec | GF79: Jan | GG79: Feb | GH79: Mar | GI79: Apr | GJ79: May | GK79: Jun | GM79: No_Period | GP79: No_Period | HG79: =HG107 -> Jul | HH79: Aug | HI79: Sep | HJ79: Oct | HK79: Nov | HL79: Dec | HM79: Jan | HN79: Feb | HO79: Mar | HP79: Apr | HQ79: May | HR79: Jun | HT79: No_Period | HW79: No_Period | IN79: =IN107 -> Jul | IO79: Aug | IP79: Sep | IQ79: Oct | IR79: Nov | IS79: Dec | IT79: Jan | IU79: Feb | IV79: Mar | IW79: Apr | IX79: May | IY79: Jun | JA79: No_Period | JD79: No_Period | JU79: =JU107 -> Jul | JV79: Aug | JW79: Sep | JX79: Oct | JY79: Nov | JZ79: Dec | KA79: Jan | KB79: Feb | KC79: Mar | KD79: Apr | KE79: May | KF79: Jun | KH79: No_Period | KK79: No_Period | LB79: =LB107 -> Jul | LC79: Aug | LD79: Sep | LE79: Oct | LF79: Nov | LG79: Dec | LH79: Jan | LI79: Feb | LJ79: Mar | LK79: Apr | LL79: May | LM79: Jun | LO79: No_Period | LR79: No_Period
A80: #hiderow | G80: Column Mapping 10 | H80: PayrollS2/B3 | I80: Year | ES80: =ChooseYear+ES$93-1 -> 2021 | ET80: =ChooseYear+ET$93-1 -> 2021 | EU80: =ChooseYear+EU$93-1 -> 2021 | EV80: =ChooseYear+EV$93-1 -> 2021 | EW80: =ChooseYear+EW$93-1 -> 2021 | EX80: =ChooseYear+EX$93-1 -> 2021 | EY80: =ChooseYear+EY$93-1 -> 2021 | EZ80: =ChooseYear+EZ$93-1 -> 2021 | FA80: =ChooseYear+FA$93-1 -> 2021 | FB80: =ChooseYear+FB$93-1 -> 2021 | FC80: =ChooseYear+FC$93-1 -> 2021 | FD80: =ChooseYear+FD$93-1 -> 2021 | FF80: =ChooseYear+FF$93-1 -> 2021 | FI80: =ChooseYear+FI$93-1 -> 2021 | FZ80: =ChooseYear+FZ$93-1 -> 2022 | GA80: =ChooseYear+GA$93-1 -> 2022 | GB80: =ChooseYear+GB$93-1 -> 2022 | GC80: =ChooseYear+GC$93-1 -> 2022 | GD80: =ChooseYear+GD$93-1 -> 2022 | GE80: =ChooseYear+GE$93-1 -> 2022 | GF80: =ChooseYear+GF$93-1 -> 2022 | GG80: =ChooseYear+GG$93-1 -> 2022 | GH80: =ChooseYear+GH$93-1 -> 2022 | GI80: =ChooseYear+GI$93-1 -> 2022 | GJ80: =ChooseYear+GJ$93-1 -> 2022 | GK80: =ChooseYear+GK$93-1 -> 2022 | GM80: =ChooseYear+GM$93-1 -> 2022 | GP80: =ChooseYear+GP$93-1 -> 2022 | HG80: =ChooseYear+HG$93-1 -> 2023 | HH80: =ChooseYear+HH$93-1 -> 2023 | HI80: =ChooseYear+HI$93-1 -> 2023 | HJ80: =ChooseYear+HJ$93-1 -> 2023 | HK80: =ChooseYear+HK$93-1 -> 2023 | HL80: =ChooseYear+HL$93-1 -> 2023 | HM80: =ChooseYear+HM$93-1 -> 2023 | HN80: =ChooseYear+HN$93-1 -> 2023 | HO80: =ChooseYear+HO$93-1 -> 2023 | HP80: =ChooseYear+HP$93-1 -> 2023 | HQ80: =ChooseYear+HQ$93-1 -> 2023 | HR80: =ChooseYear+HR$93-1 -> 2023 | HT80: =ChooseYear+HT$93-1 -> 2023 | HW80: =ChooseYear+HW$93-1 -> 2023 | IN80: =ChooseYear+IN$93-1 -> 2024 | IO80: =ChooseYear+IO$93-1 -> 2024 | IP80: =ChooseYear+IP$93-1 -> 2024 | IQ80: =ChooseYear+IQ$93-1 -> 2024 | IR80: =ChooseYear+IR$93-1 -> 2024 | IS80: =ChooseYear+IS$93-1 -> 2024 | IT80: =ChooseYear+IT$93-1 -> 2024 | IU80: =ChooseYear+IU$93-1 -> 2024 | IV80: =ChooseYear+IV$93-1 -> 2024 | IW80: =ChooseYear+IW$93-1 -> 2024 | IX80: =ChooseYear+IX$93-1 -> 2024 | IY80: =ChooseYear+IY$93-1 -> 2024 | JA80: =ChooseYear+JA$93-1 -> 2024 | JD80: =ChooseYear+JD$93-1 -> 2024 | JU80: =ChooseYear+JU$93-1 -> 2025 | JV80: =ChooseYear+JV$93-1 -> 2025 | JW80: =ChooseYear+JW$93-1 -> 2025 | JX80: =ChooseYear+JX$93-1 -> 2025 | JY80: =ChooseYear+JY$93-1 -> 2025 | JZ80: =ChooseYear+JZ$93-1 -> 2025 | KA80: =ChooseYear+KA$93-1 -> 2025 | KB80: =ChooseYear+KB$93-1 -> 2025 | KC80: =ChooseYear+KC$93-1 -> 2025 | KD80: =ChooseYear+KD$93-1 -> 2025 | KE80: =ChooseYear+KE$93-1 -> 2025 | KF80: =ChooseYear+KF$93-1 -> 2025 | KH80: =ChooseYear+KH$93-1 -> 2025 | KK80: =ChooseYear+KK$93-1 -> 2025 | LB80: =ChooseYear+LB$93-1 -> 2026 | LC80: =ChooseYear+LC$93-1 -> 2026 | LD80: =ChooseYear+LD$93-1 -> 2026 | LE80: =ChooseYear+LE$93-1 -> 2026 | LF80: =ChooseYear+LF$93-1 -> 2026 | LG80: =ChooseYear+LG$93-1 -> 2026 | LH80: =ChooseYear+LH$93-1 -> 2026 | LI80: =ChooseYear+LI$93-1 -> 2026 | LJ80: =ChooseYear+LJ$93-1 -> 2026 | LK80: =ChooseYear+LK$93-1 -> 2026 | LL80: =ChooseYear+LL$93-1 -> 2026 | LM80: =ChooseYear+LM$93-1 -> 2026 | LO80: =ChooseYear+LO$93-1 -> 2026 | LR80: =ChooseYear+LR$93-1 -> 2026
A81: #hiderow | G81: Column Mapping 11 | H81: PayrollS2/B3 | I81: Measure | ES81: Timing1 | ET81: Timing1 | EU81: Timing1 | EV81: Timing1 | EW81: Timing1 | EX81: Timing1 | EY81: Timing1 | EZ81: Timing1 | FA81: Timing1 | FB81: Timing1 | FC81: Timing1 | FD81: Timing1 | FF81: Value | FI81: FTE Calculated | FZ81: Timing1 | GA81: Timing1 | GB81: Timing1 | GC81: Timing1 | GD81: Timing1 | GE81: Timing1 | GF81: Timing1 | GG81: Timing1 | GH81: Timing1 | GI81: Timing1 | GJ81: Timing1 | GK81: Timing1 | GM81: Value | GP81: FTE Calculated | HG81: Timing1 | HH81: Timing1 | HI81: Timing1 | HJ81: Timing1 | HK81: Timing1 | HL81: Timing1 | HM81: Timing1 | HN81: Timing1 | HO81: Timing1 | HP81: Timing1 | HQ81: Timing1 | HR81: Timing1 | HT81: Value | HW81: FTE Calculated | IN81: Timing1 | IO81: Timing1 | IP81: Timing1 | IQ81: Timing1 | IR81: Timing1 | IS81: Timing1 | IT81: Timing1 | IU81: Timing1 | IV81: Timing1 | IW81: Timing1 | IX81: Timing1 | IY81: Timing1 | JA81: Value | JD81: FTE Calculated | JU81: Timing1 | JV81: Timing1 | JW81: Timing1 | JX81: Timing1 | JY81: Timing1 | JZ81: Timing1 | KA81: Timing1 | KB81: Timing1 | KC81: Timing1 | KD81: Timing1 | KE81: Timing1 | KF81: Timing1 | KH81: Value | KK81: FTE Calculated | LB81: Timing1 | LC81: Timing1 | LD81: Timing1 | LE81: Timing1 | LF81: Timing1 | LG81: Timing1 | LH81: Timing1 | LI81: Timing1 | LJ81: Timing1 | LK81: Timing1 | LL81: Timing1 | LM81: Timing1 | LO81: Value | LR81: FTE Calculated
A82: #hiderow | G82: Column Mapping 12 | H82: PayrollS2/B4 | I82: Period | J82: Saves FTE counts | FI82: No_Period | GP82: No_Period | HW82: No_Period | JD82: No_Period | KK82: No_Period | LR82: No_Period
A83: #hiderow | G83: Column Mapping 13 | H83: PayrollS2/B4 | I83: Year | FI83: =ChooseYear+FI$93-1 -> 2021 | GP83: =ChooseYear+GP$93-1 -> 2022 | HW83: =ChooseYear+HW$93-1 -> 2023 | JD83: =ChooseYear+JD$93-1 -> 2024 | KK83: =ChooseYear+KK$93-1 -> 2025 | LR83: =ChooseYear+LR$93-1 -> 2026
A84: #hiderow | G84: Column Mapping 14 | H84: PayrollS2/B4 | I84: Measure | FI84: Value (Value) | GP84: Value (Value) | HW84: Value (Value) | JD84: Value (Value) | KK84: Value (Value) | LR84: Value (Value)
A85: #hiderow | G85: Column Mapping 15 | H85: PayrollS3/B5 | I85: Measure | J85: Active & Account Names | Z85: Active | AH85: School Account Name
A86: #hiderow | G86: Column Mapping 16 | H86: PayrollS1/B6 | I86: Sub-Loc | J86: SUI override | DN86: =DN$71 -> Dynamic Expression: INTERSECTION(BOTTOMLEVEL(MEMBER_CELL(SubsidiaryNumber:NameOnly)),MultiSite) | DQ86: =DQ$71 -> Dynamic Expression: INTERSECTION(BOTTOMLEVEL(MEMBER_CELL(SubsidiaryNumber:NameOnly)),MultiSite)
A87: #hiderow | G87: Column Mapping 17 | H87: PayrollS1/B6 | I87: Period | DN87: No_Period | DQ87: No_Period
A88: #hiderow | G88: Column Mapping 18 | H88: PayrollS1/B6 | I88: Year | DN88: =ChooseYear+DN$93-1 -> 2021 | DQ88: =ChooseYear+DQ$93-1 -> 2022
A89: #hiderow | G89: Column Mapping 19 | H89: PayrollS1/B6 | I89: Measure | DN89: Override | DQ89: Override
A90: #hiderow | G90: Column Mapping 20 | H90: PayrollS4/B7 | I90: Measure | J90: Loads last saved summary data for comparison purposes | FG90: Value (Value) | GN90: Value (Value)
A91: #hiderow | G91: Column Mapping 21 | H91: PayrollS4/B7 | I91: Year | FG91: =ChooseYear+FG$93-1 -> 2021 | GN91: =ChooseYear+GN$93-1 -> 2022
A92: #hiderow
A93: #hiderow | G93: Year Code | AR93: 1 | AS93: 1 | AU93: 1 | AV93: 1 | AW93: 1 | AX93: 2 | AY93: 2 | AZ93: 2 | BA93: 2 | BB93: 2 | BC93: 3 | BD93: 3 | BE93: 3 | BF93: 3 | BG93: 4 | BH93: 4 | BI93: 4 | BJ93: 4 | BK93: 5 | BL93: 5 | BM93: 5 | BN93: 5 | BO93: 6 | BP93: 6 | BQ93: 6 | BR93: 6 | BT93: 1 | BU93: 1 | BV93: 1 | BW93: 1 | BX93: 2 | BY93: 2 | BZ93: 2 | CA93: 2 | CB93: 2 | CC93: 2 | CD93: 2 | CE93: 3 | CF93: 3 | CG93: 3 | CH93: 3 | CI93: 3 | CJ93: 3 | CK93: 3 | CL93: 4 | CM93: 4 | CN93: 4 | CO93: 4 | CP93: 4 | CQ93: 4 | CR93: 4 | CS93: 5 | CT93: 5 | CU93: 5 | CV93: 5 | CW93: 5 | CX93: 5 | CY93: 5 | CZ93: 6 | DA93: 6 | DB93: 6 | DC93: 6 | DD93: 6 | DE93: 6 | DF93: 6 | DH93: 1 | DI93: 2 | DJ93: 3 | DK93: 4 | DL93: 5 | DM93: 6 | DN93: 1 | DQ93: 2 | DS93: 2 | DV93: 3 | DX93: 3 | EA93: 4 | EC93: 4 | EF93: 5 | EH93: 5 | EK93: 6 | EM93: 6 | ER93: 1 | ES93: 1 | ET93: 1 | EU93: 1 | EV93: 1 | EW93: 1 | EX93: 1 | EY93: 1 | EZ93: 1 | FA93: 1 | FB93: 1 | FC93: 1 | FD93: 1 | FE93: 1 | FF93: 1 | FG93: 1 | FH93: 1 | FI93: 1 | FJ93: 1 | FK93: 1 | FL93: 1 | FM93: 1 | FN93: 1 | FO93: 1 | FP93: 1 | FQ93: 1 | FR93: 1 | FS93: 1 | FT93: 1 | FU93: 1 | FV93: 1 | FY93: 2 | FZ93: 2 | GA93: 2 | GB93: 2 | GC93: 2 | GD93: 2 | GE93: 2 | GF93: 2 | GG93: 2 | GH93: 2 | GI93: 2 | GJ93: 2 | GK93: 2 | GL93: 2 | GM93: 2 | GN93: 2 | GO93: 2 | GP93: 2 | GQ93: 2 | GR93: 2 | GS93: 2 | GT93: 2 | GU93: 2 | GV93: 2 | GW93: 2 | GX93: 2 | GY93: 2 | GZ93: 2 | HA93: 2 | HB93: 2 | HC93: 2 | HF93: 3 | HG93: 3 | HH93: 3 | HI93: 3 | HJ93: 3 | HK93: 3 | HL93: 3 | HM93: 3 | HN93: 3 | HO93: 3 | HP93: 3 | HQ93: 3 | HR93: 3 | HS93: 3 | HT93: 3 | HU93: 3 | HV93: 3 | HW93: 3 | HX93: 3 | HY93: 3 | HZ93: 3 | IA93: 3 | IB93: 3 | IC93: 3 | ID93: 3 | IE93: 3 | IF93: 3 | IG93: 3 | IH93: 3 | II93: 3 | IJ93: 3 | IM93: 4 | IN93: 4 | IO93: 4 | IP93: 4 | IQ93: 4 | IR93: 4 | IS93: 4 | IT93: 4 | IU93: 4 | IV93: 4 | IW93: 4 | IX93: 4 | IY93: 4 | IZ93: 4 | JA93: 4 | JB93: 4 | JC93: 4 | JD93: 4 | JE93: 4 | JF93: 4 | JG93: 4 | JH93: 4 | JI93: 4 | JJ93: 4 | JK93: 4 | JL93: 4 | JM93: 4 | JN93: 4 | JO93: 4 | JP93: 4 | JQ93: 4 | JT93: 5 | JU93: 5 | JV93: 5 | JW93: 5 | JX93: 5 | JY93: 5 | JZ93: 5 | KA93: 5 | KB93: 5 | KC93: 5 | KD93: 5 | KE93: 5 | KF93: 5 | KG93: 5 | KH93: 5 | KI93: 5 | KJ93: 5 | KK93: 5 | KL93: 5 | KM93: 5 | KN93: 5 | KO93: 5 | KP93: 5 | KQ93: 5 | KR93: 5 | KS93: 5 | KT93: 5 | KU93: 5 | KV93: 5 | KW93: 5 | KX93: 5 | LA93: 6 | LB93: 6 | LC93: 6 | LD93: 6 | LE93: 6 | LF93: 6 | LG93: 6 | LH93: 6 | LI93: 6 | LJ93: 6 | LK93: 6 | LL93: 6 | LM93: 6 | LN93: 6 | LO93: 6 | LP93: 6 | LQ93: 6 | LR93: 6 | LS93: 6 | LT93: 6 | LU93: 6 | LV93: 6 | LW93: 6 | LX93: 6 | LY93: 6 | LZ93: 6 | MA93: 6 | MB93: 6 | MC93: 6 | MD93: 6 | ME93: 6
A94: #hiderow | G94: Fiscal Month | ES94: 1 | ET94: 2 | EU94: 3 | EV94: 4 | EW94: 5 | EX94: 6 | EY94: 7 | EZ94: 8 | FA94: 9 | FB94: 10 | FC94: 11 | FD94: 12 | FZ94: 1 | GA94: 2 | GB94: 3 | GC94: 4 | GD94: 5 | GE94: 6 | GF94: 7 | GG94: 8 | GH94: 9 | GI94: 10 | GJ94: 11 | GK94: 12 | HG94: 1 | HH94: 2 | HI94: 3 | HJ94: 4 | HK94: 5 | HL94: 6 | HM94: 7 | HN94: 8 | HO94: 9 | HP94: 10 | HQ94: 11 | HR94: 12 | IN94: 1 | IO94: 2 | IP94: 3 | IQ94: 4 | IR94: 5 | IS94: 6 | IT94: 7 | IU94: 8 | IV94: 9 | IW94: 10 | IX94: 11 | IY94: 12 | JU94: 1 | JV94: 2 | JW94: 3 | JX94: 4 | JY94: 5 | JZ94: 6 | KA94: 7 | KB94: 8 | KC94: 9 | KD94: 10 | KE94: 11 | KF94: 12 | LB94: 1 | LC94: 2 | LD94: 3 | LE94: 4 | LF94: 5 | LG94: 6 | LH94: 7 | LI94: 8 | LJ94: 9 | LK94: 10 | LL94: 11 | LM94: 12
A95: #hiderow | G95: Calendar Month | ES95: =INDEX('Control Sheet'!$W$10:$AH$10,1,MATCH(ES94,'Control Sheet'!$W$5:$AH$5,0)) -> 7 | ET95: =INDEX('Control Sheet'!$W$10:$AH$10,1,MATCH(ET94,'Control Sheet'!$W$5:$AH$5,0)) -> 8 | EU95: =INDEX('Control Sheet'!$W$10:$AH$10,1,MATCH(EU94,'Control Sheet'!$W$5:$AH$5,0)) -> 9 | EV95: =INDEX('Control Sheet'!$W$10:$AH$10,1,MATCH(EV94,'Control Sheet'!$W$5:$AH$5,0)) -> 10 | EW95: =INDEX('Control Sheet'!$W$10:$AH$10,1,MATCH(EW94,'Control Sheet'!$W$5:$AH$5,0)) -> 11 | EX95: =INDEX('Control Sheet'!$W$10:$AH$10,1,MATCH(EX94,'Control Sheet'!$W$5:$AH$5,0)) -> 12 | EY95: =INDEX('Control Sheet'!$W$10:$AH$10,1,MATCH(EY94,'Control Sheet'!$W$5:$AH$5,0)) -> 1 | EZ95: =INDEX('Control Sheet'!$W$10:$AH$10,1,MATCH(EZ94,'Control Sheet'!$W$5:$AH$5,0)) -> 2 | FA95: =INDEX('Control Sheet'!$W$10:$AH$10,1,MATCH(FA94,'Control Sheet'!$W$5:$AH$5,0)) -> 3 | FB95: =INDEX('Control Sheet'!$W$10:$AH$10,1,MATCH(FB94,'Control Sheet'!$W$5:$AH$5,0)) -> 4 | FC95: =INDEX('Control Sheet'!$W$10:$AH$10,1,MATCH(FC94,'Control Sheet'!$W$5:$AH$5,0)) -> 5 | FD95: =INDEX('Control Sheet'!$W$10:$AH$10,1,MATCH(FD94,'Control Sheet'!$W$5:$AH$5,0)) -> 6 | FZ95: =INDEX('Control Sheet'!$W$10:$AH$10,1,MATCH(FZ94,'Control Sheet'!$W$5:$AH$5,0)) -> 7 | GA95: =INDEX('Control Sheet'!$W$10:$AH$10,1,MATCH(GA94,'Control Sheet'!$W$5:$AH$5,0)) -> 8 | GB95: =INDEX('Control Sheet'!$W$10:$AH$10,1,MATCH(GB94,'Control Sheet'!$W$5:$AH$5,0)) -> 9 | GC95: =INDEX('Control Sheet'!$W$10:$AH$10,1,MATCH(GC94,'Control Sheet'!$W$5:$AH$5,0)) -> 10 | GD95: =INDEX('Control Sheet'!$W$10:$AH$10,1,MATCH(GD94,'Control Sheet'!$W$5:$AH$5,0)) -> 11 | GE95: =INDEX('Control Sheet'!$W$10:$AH$10,1,MATCH(GE94,'Control Sheet'!$W$5:$AH$5,0)) -> 12 | GF95: =INDEX('Control Sheet'!$W$10:$AH$10,1,MATCH(GF94,'Control Sheet'!$W$5:$AH$5,0)) -> 1 | GG95: =INDEX('Control Sheet'!$W$10:$AH$10,1,MATCH(GG94,'Control Sheet'!$W$5:$AH$5,0)) -> 2 | GH95: =INDEX('Control Sheet'!$W$10:$AH$10,1,MATCH(GH94,'Control Sheet'!$W$5:$AH$5,0)) -> 3 | GI95: =INDEX('Control Sheet'!$W$10:$AH$10,1,MATCH(GI94,'Control Sheet'!$W$5:$AH$5,0)) -> 4 | GJ95: =INDEX('Control Sheet'!$W$10:$AH$10,1,MATCH(GJ94,'Control Sheet'!$W$5:$AH$5,0)) -> 5 | GK95: =INDEX('Control Sheet'!$W$10:$AH$10,1,MATCH(GK94,'Control Sheet'!$W$5:$AH$5,0)) -> 6 | HG95: =INDEX('Control Sheet'!$W$10:$AH$10,1,MATCH(HG94,'Control Sheet'!$W$5:$AH$5,0)) -> 7 | HH95: =INDEX('Control Sheet'!$W$10:$AH$10,1,MATCH(HH94,'Control Sheet'!$W$5:$AH$5,0)) -> 8 | HI95: =INDEX('Control Sheet'!$W$10:$AH$10,1,MATCH(HI94,'Control Sheet'!$W$5:$AH$5,0)) -> 9 | HJ95: =INDEX('Control Sheet'!$W$10:$AH$10,1,MATCH(HJ94,'Control Sheet'!$W$5:$AH$5,0)) -> 10 | HK95: =INDEX('Control Sheet'!$W$10:$AH$10,1,MATCH(HK94,'Control Sheet'!$W$5:$AH$5,0)) -> 11 | HL95: =INDEX('Control Sheet'!$W$10:$AH$10,1,MATCH(HL94,'Control Sheet'!$W$5:$AH$5,0)) -> 12 | HM95: =INDEX('Control Sheet'!$W$10:$AH$10,1,MATCH(HM94,'Control Sheet'!$W$5:$AH$5,0)) -> 1 | HN95: =INDEX('Control Sheet'!$W$10:$AH$10,1,MATCH(HN94,'Control Sheet'!$W$5:$AH$5,0)) -> 2 | HO95: =INDEX('Control Sheet'!$W$10:$AH$10,1,MATCH(HO94,'Control Sheet'!$W$5:$AH$5,0)) -> 3 | HP95: =INDEX('Control Sheet'!$W$10:$AH$10,1,MATCH(HP94,'Control Sheet'!$W$5:$AH$5,0)) -> 4 | HQ95: =INDEX('Control Sheet'!$W$10:$AH$10,1,MATCH(HQ94,'Control Sheet'!$W$5:$AH$5,0)) -> 5 | HR95: =INDEX('Control Sheet'!$W$10:$AH$10,1,MATCH(HR94,'Control Sheet'!$W$5:$AH$5,0)) -> 6 | IN95: =INDEX('Control Sheet'!$W$10:$AH$10,1,MATCH(IN94,'Control Sheet'!$W$5:$AH$5,0)) -> 7 | IO95: =INDEX('Control Sheet'!$W$10:$AH$10,1,MATCH(IO94,'Control Sheet'!$W$5:$AH$5,0)) -> 8 | IP95: =INDEX('Control Sheet'!$W$10:$AH$10,1,MATCH(IP94,'Control Sheet'!$W$5:$AH$5,0)) -> 9 | IQ95: =INDEX('Control Sheet'!$W$10:$AH$10,1,MATCH(IQ94,'Control Sheet'!$W$5:$AH$5,0)) -> 10 | IR95: =INDEX('Control Sheet'!$W$10:$AH$10,1,MATCH(IR94,'Control Sheet'!$W$5:$AH$5,0)) -> 11 | IS95: =INDEX('Control Sheet'!$W$10:$AH$10,1,MATCH(IS94,'Control Sheet'!$W$5:$AH$5,0)) -> 12 | IT95: =INDEX('Control Sheet'!$W$10:$AH$10,1,MATCH(IT94,'Control Sheet'!$W$5:$AH$5,0)) -> 1 | IU95: =INDEX('Control Sheet'!$W$10:$AH$10,1,MATCH(IU94,'Control Sheet'!$W$5:$AH$5,0)) -> 2 | IV95: =INDEX('Control Sheet'!$W$10:$AH$10,1,MATCH(IV94,'Control Sheet'!$W$5:$AH$5,0)) -> 3 | IW95: =INDEX('Control Sheet'!$W$10:$AH$10,1,MATCH(IW94,'Control Sheet'!$W$5:$AH$5,0)) -> 4 | IX95: =INDEX('Control Sheet'!$W$10:$AH$10,1,MATCH(IX94,'Control Sheet'!$W$5:$AH$5,0)) -> 5 | IY95: =INDEX('Control Sheet'!$W$10:$AH$10,1,MATCH(IY94,'Control Sheet'!$W$5:$AH$5,0)) -> 6 | JU95: =INDEX('Control Sheet'!$W$10:$AH$10,1,MATCH(JU94,'Control Sheet'!$W$5:$AH$5,0)) -> 7 | JV95: =INDEX('Control Sheet'!$W$10:$AH$10,1,MATCH(JV94,'Control Sheet'!$W$5:$AH$5,0)) -> 8 | JW95: =INDEX('Control Sheet'!$W$10:$AH$10,1,MATCH(JW94,'Control Sheet'!$W$5:$AH$5,0)) -> 9 | JX95: =INDEX('Control Sheet'!$W$10:$AH$10,1,MATCH(JX94,'Control Sheet'!$W$5:$AH$5,0)) -> 10 | JY95: =INDEX('Control Sheet'!$W$10:$AH$10,1,MATCH(JY94,'Control Sheet'!$W$5:$AH$5,0)) -> 11 | JZ95: =INDEX('Control Sheet'!$W$10:$AH$10,1,MATCH(JZ94,'Control Sheet'!$W$5:$AH$5,0)) -> 12 | KA95: =INDEX('Control Sheet'!$W$10:$AH$10,1,MATCH(KA94,'Control Sheet'!$W$5:$AH$5,0)) -> 1 | KB95: =INDEX('Control Sheet'!$W$10:$AH$10,1,MATCH(KB94,'Control Sheet'!$W$5:$AH$5,0)) -> 2 | KC95: =INDEX('Control Sheet'!$W$10:$AH$10,1,MATCH(KC94,'Control Sheet'!$W$5:$AH$5,0)) -> 3 | KD95: =INDEX('Control Sheet'!$W$10:$AH$10,1,MATCH(KD94,'Control Sheet'!$W$5:$AH$5,0)) -> 4 | KE95: =INDEX('Control Sheet'!$W$10:$AH$10,1,MATCH(KE94,'Control Sheet'!$W$5:$AH$5,0)) -> 5 | KF95: =INDEX('Control Sheet'!$W$10:$AH$10,1,MATCH(KF94,'Control Sheet'!$W$5:$AH$5,0)) -> 6 | LB95: =INDEX('Control Sheet'!$W$10:$AH$10,1,MATCH(LB94,'Control Sheet'!$W$5:$AH$5,0)) -> 7 | LC95: =INDEX('Control Sheet'!$W$10:$AH$10,1,MATCH(LC94,'Control Sheet'!$W$5:$AH$5,0)) -> 8 | LD95: =INDEX('Control Sheet'!$W$10:$AH$10,1,MATCH(LD94,'Control Sheet'!$W$5:$AH$5,0)) -> 9 | LE95: =INDEX('Control Sheet'!$W$10:$AH$10,1,MATCH(LE94,'Control Sheet'!$W$5:$AH$5,0)) -> 10 | LF95: =INDEX('Control Sheet'!$W$10:$AH$10,1,MATCH(LF94,'Control Sheet'!$W$5:$AH$5,0)) -> 11 | LG95: =INDEX('Control Sheet'!$W$10:$AH$10,1,MATCH(LG94,'Control Sheet'!$W$5:$AH$5,0)) -> 12 | LH95: =INDEX('Control Sheet'!$W$10:$AH$10,1,MATCH(LH94,'Control Sheet'!$W$5:$AH$5,0)) -> 1 | LI95: =INDEX('Control Sheet'!$W$10:$AH$10,1,MATCH(LI94,'Control Sheet'!$W$5:$AH$5,0)) -> 2 | LJ95: =INDEX('Control Sheet'!$W$10:$AH$10,1,MATCH(LJ94,'Control Sheet'!$W$5:$AH$5,0)) -> 3 | LK95: =INDEX('Control Sheet'!$W$10:$AH$10,1,MATCH(LK94,'Control Sheet'!$W$5:$AH$5,0)) -> 4 | LL95: =INDEX('Control Sheet'!$W$10:$AH$10,1,MATCH(LL94,'Control Sheet'!$W$5:$AH$5,0)) -> 5 | LM95: =INDEX('Control Sheet'!$W$10:$AH$10,1,MATCH(LM94,'Control Sheet'!$W$5:$AH$5,0)) -> 6
A96: #hiderow | G96: Start Date | ES96: =DATE(IF(ES$95>='Control Sheet'!$H$16,ES$80-1,ES$80),ES$95,1) -> 2020-07-01 | ET96: =DATE(IF(ET$95>='Control Sheet'!$H$16,ET$80-1,ET$80),ET$95,1) -> 2020-08-01 | EU96: =DATE(IF(EU$95>='Control Sheet'!$H$16,EU$80-1,EU$80),EU$95,1) -> 2020-09-01 | EV96: =DATE(IF(EV$95>='Control Sheet'!$H$16,EV$80-1,EV$80),EV$95,1) -> 2020-10-01 | EW96: =DATE(IF(EW$95>='Control Sheet'!$H$16,EW$80-1,EW$80),EW$95,1) -> 2020-11-01 | EX96: =DATE(IF(EX$95>='Control Sheet'!$H$16,EX$80-1,EX$80),EX$95,1) -> 2020-12-01 | EY96: =DATE(IF(EY$95>='Control Sheet'!$H$16,EY$80-1,EY$80),EY$95,1) -> 2021-01-01 | EZ96: =DATE(IF(EZ$95>='Control Sheet'!$H$16,EZ$80-1,EZ$80),EZ$95,1) -> 2021-02-01 | FA96: =DATE(IF(FA$95>='Control Sheet'!$H$16,FA$80-1,FA$80),FA$95,1) -> 2021-03-01 | FB96: =DATE(IF(FB$95>='Control Sheet'!$H$16,FB$80-1,FB$80),FB$95,1) -> 2021-04-01 | FC96: =DATE(IF(FC$95>='Control Sheet'!$H$16,FC$80-1,FC$80),FC$95,1) -> 2021-05-01 | FD96: =DATE(IF(FD$95>='Control Sheet'!$H$16,FD$80-1,FD$80),FD$95,1) -> 2021-06-01 | FZ96: =DATE(IF(FZ$95>='Control Sheet'!$H$16,FZ$80-1,FZ$80),FZ$95,1) -> 2021-07-01 | GA96: =DATE(IF(GA$95>='Control Sheet'!$H$16,GA$80-1,GA$80),GA$95,1) -> 2021-08-01 | GB96: =DATE(IF(GB$95>='Control Sheet'!$H$16,GB$80-1,GB$80),GB$95,1) -> 2021-09-01 | GC96: =DATE(IF(GC$95>='Control Sheet'!$H$16,GC$80-1,GC$80),GC$95,1) -> 2021-10-01 | GD96: =DATE(IF(GD$95>='Control Sheet'!$H$16,GD$80-1,GD$80),GD$95,1) -> 2021-11-01 | GE96: =DATE(IF(GE$95>='Control Sheet'!$H$16,GE$80-1,GE$80),GE$95,1) -> 2021-12-01 | GF96: =DATE(IF(GF$95>='Control Sheet'!$H$16,GF$80-1,GF$80),GF$95,1) -> 2022-01-01 | GG96: =DATE(IF(GG$95>='Control Sheet'!$H$16,GG$80-1,GG$80),GG$95,1) -> 2022-02-01 | GH96: =DATE(IF(GH$95>='Control Sheet'!$H$16,GH$80-1,GH$80),GH$95,1) -> 2022-03-01 | GI96: =DATE(IF(GI$95>='Control Sheet'!$H$16,GI$80-1,GI$80),GI$95,1) -> 2022-04-01 | GJ96: =DATE(IF(GJ$95>='Control Sheet'!$H$16,GJ$80-1,GJ$80),GJ$95,1) -> 2022-05-01 | GK96: =DATE(IF(GK$95>='Control Sheet'!$H$16,GK$80-1,GK$80),GK$95,1) -> 2022-06-01 | HG96: =DATE(IF(HG$95>='Control Sheet'!$H$16,HG$80-1,HG$80),HG$95,1) -> 2022-07-01 | HH96: =DATE(IF(HH$95>='Control Sheet'!$H$16,HH$80-1,HH$80),HH$95,1) -> 2022-08-01 | HI96: =DATE(IF(HI$95>='Control Sheet'!$H$16,HI$80-1,HI$80),HI$95,1) -> 2022-09-01 | HJ96: =DATE(IF(HJ$95>='Control Sheet'!$H$16,HJ$80-1,HJ$80),HJ$95,1) -> 2022-10-01 | HK96: =DATE(IF(HK$95>='Control Sheet'!$H$16,HK$80-1,HK$80),HK$95,1) -> 2022-11-01 | HL96: =DATE(IF(HL$95>='Control Sheet'!$H$16,HL$80-1,HL$80),HL$95,1) -> 2022-12-01 | HM96: =DATE(IF(HM$95>='Control Sheet'!$H$16,HM$80-1,HM$80),HM$95,1) -> 2023-01-01 | HN96: =DATE(IF(HN$95>='Control Sheet'!$H$16,HN$80-1,HN$80),HN$95,1) -> 2023-02-01 | HO96: =DATE(IF(HO$95>='Control Sheet'!$H$16,HO$80-1,HO$80),HO$95,1) -> 2023-03-01 | HP96: =DATE(IF(HP$95>='Control Sheet'!$H$16,HP$80-1,HP$80),HP$95,1) -> 2023-04-01 | HQ96: =DATE(IF(HQ$95>='Control Sheet'!$H$16,HQ$80-1,HQ$80),HQ$95,1) -> 2023-05-01 | HR96: =DATE(IF(HR$95>='Control Sheet'!$H$16,HR$80-1,HR$80),HR$95,1) -> 2023-06-01 | IN96: =DATE(IF(IN$95>='Control Sheet'!$H$16,IN$80-1,IN$80),IN$95,1) -> 2023-07-01 | IO96: =DATE(IF(IO$95>='Control Sheet'!$H$16,IO$80-1,IO$80),IO$95,1) -> 2023-08-01 | IP96: =DATE(IF(IP$95>='Control Sheet'!$H$16,IP$80-1,IP$80),IP$95,1) -> 2023-09-01 | IQ96: =DATE(IF(IQ$95>='Control Sheet'!$H$16,IQ$80-1,IQ$80),IQ$95,1) -> 2023-10-01 | IR96: =DATE(IF(IR$95>='Control Sheet'!$H$16,IR$80-1,IR$80),IR$95,1) -> 2023-11-01 | IS96: =DATE(IF(IS$95>='Control Sheet'!$H$16,IS$80-1,IS$80),IS$95,1) -> 2023-12-01 | IT96: =DATE(IF(IT$95>='Control Sheet'!$H$16,IT$80-1,IT$80),IT$95,1) -> 2024-01-01 | IU96: =DATE(IF(IU$95>='Control Sheet'!$H$16,IU$80-1,IU$80),IU$95,1) -> 2024-02-01 | IV96: =DATE(IF(IV$95>='Control Sheet'!$H$16,IV$80-1,IV$80),IV$95,1) -> 2024-03-01 | IW96: =DATE(IF(IW$95>='Control Sheet'!$H$16,IW$80-1,IW$80),IW$95,1) -> 2024-04-01 | IX96: =DATE(IF(IX$95>='Control Sheet'!$H$16,IX$80-1,IX$80),IX$95,1) -> 2024-05-01 | IY96: =DATE(IF(IY$95>='Control Sheet'!$H$16,IY$80-1,IY$80),IY$95,1) -> 2024-06-01 | JU96: =DATE(IF(JU$95>='Control Sheet'!$H$16,JU$80-1,JU$80),JU$95,1) -> 2024-07-01 | JV96: =DATE(IF(JV$95>='Control Sheet'!$H$16,JV$80-1,JV$80),JV$95,1) -> 2024-08-01 | JW96: =DATE(IF(JW$95>='Control Sheet'!$H$16,JW$80-1,JW$80),JW$95,1) -> 2024-09-01 | JX96: =DATE(IF(JX$95>='Control Sheet'!$H$16,JX$80-1,JX$80),JX$95,1) -> 2024-10-01 | JY96: =DATE(IF(JY$95>='Control Sheet'!$H$16,JY$80-1,JY$80),JY$95,1) -> 2024-11-01 | JZ96: =DATE(IF(JZ$95>='Control Sheet'!$H$16,JZ$80-1,JZ$80),JZ$95,1) -> 2024-12-01 | KA96: =DATE(IF(KA$95>='Control Sheet'!$H$16,KA$80-1,KA$80),KA$95,1) -> 2025-01-01 | KB96: =DATE(IF(KB$95>='Control Sheet'!$H$16,KB$80-1,KB$80),KB$95,1) -> 2025-02-01 | KC96: =DATE(IF(KC$95>='Control Sheet'!$H$16,KC$80-1,KC$80),KC$95,1) -> 2025-03-01 | KD96: =DATE(IF(KD$95>='Control Sheet'!$H$16,KD$80-1,KD$80),KD$95,1) -> 2025-04-01 | KE96: =DATE(IF(KE$95>='Control Sheet'!$H$16,KE$80-1,KE$80),KE$95,1) -> 2025-05-01 | KF96: =DATE(IF(KF$95>='Control Sheet'!$H$16,KF$80-1,KF$80),KF$95,1) -> 2025-06-01 | LB96: =DATE(IF(LB$95>='Control Sheet'!$H$16,LB$80-1,LB$80),LB$95,1) -> 2025-07-01 | LC96: =DATE(IF(LC$95>='Control Sheet'!$H$16,LC$80-1,LC$80),LC$95,1) -> 2025-08-01 | LD96: =DATE(IF(LD$95>='Control Sheet'!$H$16,LD$80-1,LD$80),LD$95,1) -> 2025-09-01 | LE96: =DATE(IF(LE$95>='Control Sheet'!$H$16,LE$80-1,LE$80),LE$95,1) -> 2025-10-01 | LF96: =DATE(IF(LF$95>='Control Sheet'!$H$16,LF$80-1,LF$80),LF$95,1) -> 2025-11-01 | LG96: =DATE(IF(LG$95>='Control Sheet'!$H$16,LG$80-1,LG$80),LG$95,1) -> 2025-12-01 | LH96: =DATE(IF(LH$95>='Control Sheet'!$H$16,LH$80-1,LH$80),LH$95,1) -> 2026-01-01 | LI96: =DATE(IF(LI$95>='Control Sheet'!$H$16,LI$80-1,LI$80),LI$95,1) -> 2026-02-01 | LJ96: =DATE(IF(LJ$95>='Control Sheet'!$H$16,LJ$80-1,LJ$80),LJ$95,1) -> 2026-03-01 | LK96: =DATE(IF(LK$95>='Control Sheet'!$H$16,LK$80-1,LK$80),LK$95,1) -> 2026-04-01 | LL96: =DATE(IF(LL$95>='Control Sheet'!$H$16,LL$80-1,LL$80),LL$95,1) -> 2026-05-01 | LM96: =DATE(IF(LM$95>='Control Sheet'!$H$16,LM$80-1,LM$80),LM$95,1) -> 2026-06-01
A97: #hiderow | G97: End Date | ES97: =EOMONTH(ES96,0) -> 2020-07-31 | ET97: 2020-08-31 | EU97: 2020-09-30 | EV97: 2020-10-31 | EW97: 2020-11-30 | EX97: 2020-12-31 | EY97: 2021-01-31 | EZ97: 2021-02-28 | FA97: 2021-03-31 | FB97: 2021-04-30 | FC97: 2021-05-31 | FD97: 2021-06-30 | FZ97: =EOMONTH(FZ96,0) -> 2021-07-31 | GA97: 2021-08-31 | GB97: 2021-09-30 | GC97: 2021-10-31 | GD97: 2021-11-30 | GE97: 2021-12-31 | GF97: 2022-01-31 | GG97: 2022-02-28 | GH97: 2022-03-31 | GI97: 2022-04-30 | GJ97: 2022-05-31 | GK97: 2022-06-30 | HG97: =EOMONTH(HG96,0) -> 2022-07-31 | HH97: 2022-08-31 | HI97: 2022-09-30 | HJ97: 2022-10-31 | HK97: 2022-11-30 | HL97: 2022-12-31 | HM97: 2023-01-31 | HN97: 2023-02-28 | HO97: 2023-03-31 | HP97: 2023-04-30 | HQ97: 2023-05-31 | HR97: 2023-06-30 | IN97: =EOMONTH(IN96,0) -> 2023-07-31 | IO97: 2023-08-31 | IP97: 2023-09-30 | IQ97: 2023-10-31 | IR97: 2023-11-30 | IS97: 2023-12-31 | IT97: 2024-01-31 | IU97: 2024-02-29 | IV97: 2024-03-31 | IW97: 2024-04-30 | IX97: 2024-05-31 | IY97: 2024-06-30 | JU97: =EOMONTH(JU96,0) -> 2024-07-31 | JV97: 2024-08-31 | JW97: 2024-09-30 | JX97: 2024-10-31 | JY97: 2024-11-30 | JZ97: 2024-12-31 | KA97: 2025-01-31 | KB97: 2025-02-28 | KC97: 2025-03-31 | KD97: 2025-04-30 | KE97: 2025-05-31 | KF97: 2025-06-30 | LB97: =EOMONTH(LB96,0) -> 2025-07-31 | LC97: 2025-08-31 | LD97: 2025-09-30 | LE97: 2025-10-31 | LF97: 2025-11-30 | LG97: 2025-12-31 | LH97: 2026-01-31 | LI97: 2026-02-28 | LJ97: 2026-03-31 | LK97: 2026-04-30 | LL97: 2026-05-31 | LM97: 2026-06-30
A98: #hiderow
A99: #hiderow
AB101: =Subsidiary_Location -> ARISE High School
AB102: =Year1 -> 2020-21
AB103: =Scenario -> Apr Forecast
AU104: Salary Assumptions | BT104: Hourly Pay Assumptions | DN104: Site Allocation
AU105: =INDEX(YearRelative,1,MATCH(AU$93,YearCode,0)) -> Year 1 | AX105: =INDEX(YearRelative,1,MATCH(AX$93,YearCode,0)) -> Year 2 | AY105: =INDEX(YearRelative,1,MATCH(AY$93,YearCode,0)) -> Year 2 | BC105: =INDEX(YearRelative,1,MATCH(BC$93,YearCode,0)) -> Year 3 | BG105: =INDEX(YearRelative,1,MATCH(BG$93,YearCode,0)) -> Year 4 | BK105: =INDEX(YearRelative,1,MATCH(BK$93,YearCode,0)) -> Year 5 | BO105: =INDEX(YearRelative,1,MATCH(BQ$93,YearCode,0)) -> Year 6 | BT105: =INDEX(YearRelative,1,MATCH(BT$93,YearCode,0)) -> Year 1 | BX105: =INDEX(YearRelative,1,MATCH(BX$93,YearCode,0)) -> Year 2 | CE105: =INDEX(YearRelative,1,MATCH(CE$93,YearCode,0)) -> Year 3 | CL105: =INDEX(YearRelative,1,MATCH(CL$93,YearCode,0)) -> Year 4 | CS105: =INDEX(YearRelative,1,MATCH(CS$93,YearCode,0)) -> Year 5 | CZ105: =INDEX(YearRelative,1,MATCH(CZ$93,YearCode,0)) -> Year 6 | DH105: ='Control Sheet'!L13 -> Year 1 | DI105: ='Control Sheet'!M13 -> Year 2 | DJ105: ='Control Sheet'!N13 -> Year 3 | DK105: ='Control Sheet'!O13 -> Year 4 | DL105: ='Control Sheet'!P13 -> Year 5 | DM105: ='Control Sheet'!Q13 -> Year 6 | DN105: =INDEX(YearRelative,1,MATCH(DN$93,YearCode,0)) -> Year 1 | DQ105: =INDEX(YearRelative,1,MATCH(DQ$93,YearCode,0)) -> Year 2 | DV105: =INDEX(YearRelative,1,MATCH(DV$93,YearCode,0)) -> Year 3 | EA105: =INDEX(YearRelative,1,MATCH(EA$93,YearCode,0)) -> Year 4 | EF105: =INDEX(YearRelative,1,MATCH(EF$93,YearCode,0)) -> Year 5 | EK105: =INDEX(YearRelative,1,MATCH(EK$93,YearCode,0)) -> Year 6 | ER105: =INDEX(YearRelative,1,MATCH(ER$93,YearCode,0)) -> Year 1 | FY105: =INDEX(YearRelative,1,MATCH(FY$93,YearCode,0)) -> Year 2 | HF105: =INDEX(YearRelative,1,MATCH(HF$93,YearCode,0)) -> Year 3 | IM105: =INDEX(YearRelative,1,MATCH(IM$93,YearCode,0)) -> Year 4 | JT105: =INDEX(YearRelative,1,MATCH(JT$93,YearCode,0)) -> Year 5 | LA105: =INDEX(YearRelative,1,MATCH(LA$93,YearCode,0)) -> Year 6
AB106: Payroll | AU106: =INDEX(YearAbsolute,1,MATCH(AU$93,YearCode,0)) -> 2020-21 | AX106: =INDEX(YearAbsolute,1,MATCH(AX$93,YearCode,0)) -> 2021-22 | AY106: =INDEX(YearAbsolute,1,MATCH(AY$93,YearCode,0)) -> 2021-22 | BC106: =INDEX(YearAbsolute,1,MATCH(BC$93,YearCode,0)) -> 2022-23 | BG106: =INDEX(YearAbsolute,1,MATCH(BG$93,YearCode,0)) -> 2023-24 | BK106: =INDEX(YearAbsolute,1,MATCH(BK$93,YearCode,0)) -> 2024-25 | BO106: =INDEX(YearAbsolute,1,MATCH(BQ$93,YearCode,0)) -> 2025-26 | BT106: =INDEX(YearAbsolute,1,MATCH(BT$93,YearCode,0)) -> 2020-21 | BX106: =INDEX(YearAbsolute,1,MATCH(BX$93,YearCode,0)) -> 2021-22 | CE106: =INDEX(YearAbsolute,1,MATCH(CE$93,YearCode,0)) -> 2022-23 | CL106: =INDEX(YearAbsolute,1,MATCH(CL$93,YearCode,0)) -> 2023-24 | CS106: =INDEX(YearAbsolute,1,MATCH(CS$93,YearCode,0)) -> 2024-25 | CZ106: =INDEX(YearAbsolute,1,MATCH(CZ$93,YearCode,0)) -> 2025-26 | DH106: ='Control Sheet'!L14 -> 2020-21 | DI106: ='Control Sheet'!M14 -> 2021-22 | DJ106: ='Control Sheet'!N14 -> 2022-23 | DK106: ='Control Sheet'!O14 -> 2023-24 | DL106: ='Control Sheet'!P14 -> 2024-25 | DM106: ='Control Sheet'!Q14 -> 2025-26 | DN106: =INDEX(YearAbsolute,1,MATCH(DN$93,YearCode,0)) -> 2020-21 | DQ106: =INDEX(YearAbsolute,1,MATCH(DQ$93,YearCode,0)) -> 2021-22 | DV106: =INDEX(YearAbsolute,1,MATCH(DV$93,YearCode,0)) -> 2022-23 | EA106: =INDEX(YearAbsolute,1,MATCH(EA$93,YearCode,0)) -> 2023-24 | EF106: =INDEX(YearAbsolute,1,MATCH(EF$93,YearCode,0)) -> 2024-25 | EK106: =INDEX(YearAbsolute,1,MATCH(EK$93,YearCode,0)) -> 2025-26 | ER106: =INDEX(YearAbsolute,1,MATCH(ER$93,YearCode,0)) -> 2020-21 | FY106: =INDEX(YearAbsolute,1,MATCH(FY$93,YearCode,0)) -> 2021-22 | HF106: =INDEX(YearAbsolute,1,MATCH(HF$93,YearCode,0)) -> 2022-23 | IM106: =INDEX(YearAbsolute,1,MATCH(IM$93,YearCode,0)) -> 2023-24 | JT106: =INDEX(YearAbsolute,1,MATCH(JT$93,YearCode,0)) -> 2024-25 | LA106: =INDEX(YearAbsolute,1,MATCH(LA$93,YearCode,0)) -> 2025-26
AB107: Head Count | AC107: EE ID # | AD107: First Name | AE107: Position Name | AF107: Internal Notes | AG107: Budget Category | AH107: Start Date | AI107: End Date | AJ107: Leave Start | AK107: Leave End | AL107: Pay Schedule | AM107: Default Start Date | AN107: Default End Date (hidden) | AO107: Employee Type | AR107: Retirement Plan | AS107: H&W | AT107: =MedInLieu -> In Lieu Medical Stipend | AU107: FTE % (pp) | AV107: Base Salary (pp) | AW107: Effective Salary | AX107: Base Salary Calc (PP) | AY107: FTE % OR | AZ107: FTE% | BA107: Salary OR | BB107: Effective Salary | BC107: FTE % OR | BD107: FTE% | BE107: Salary OR | BF107: Effective Salary | BG107: FTE % OR | BH107: FTE% | BI107: Salary OR | BJ107: Effective Salary | BK107: FTE % OR | BL107: FTE% | BM107: Salary OR | BN107: Effective Salary | BO107: FTE % OR | BP107: FTE% | BQ107: Salary OR | BR107: Effective Salary | BT107: Hourly Rate | BU107: Hours per Week | BV107: Weeks per Year | BW107: Total (pp) | BX107: Hourly Rate OR | BY107: Hrs/ Wk OR | BZ107: Wks/ Yr OR | CA107: Hourly Rate | CB107: Hrs/ Wk | CC107: Wks/ Yr | CD107: Total (pp) | CE107: Hourly Rate OR | CF107: Hrs/ Wk OR | CG107: Wks/ Yr OR | CH107: Hourly Rate | CI107: Hrs/ Wk | CJ107: Wks/ Yr | CK107: Total (pp) | CL107: Hourly Rate OR | CM107: Hrs/ Wk OR | CN107: Wks/ Yr OR | CO107: Hourly Rate | CP107: Hrs/ Wk | CQ107: Wks/ Yr | CR107: Total (pp) | CS107: Hourly Rate OR | CT107: Hrs/ Wk OR | CU107: Wks/ Yr OR | CV107: Hourly Rate | CW107: Hrs/ Wk | CX107: Wks/ Yr | CY107: Total (pp) | CZ107: Hourly Rate OR | DA107: Hrs/ Wk OR | DB107: Wks/ Yr OR | DC107: Hourly Rate | DD107: Hrs/ Wk | DE107: Wks/ Yr | DF107: Total (pp) | DH107: Single Site % | DN107: =IF(TRIM(LEFT(DN71,7))="Dynamic","",IFERROR(MID(DN71,FIND("(",DN71)+1,FIND(")",DN71)-FIND("(",DN71)-1),DN71)) ->  | DP107: Error Check | DQ107: =IF(TRIM(LEFT(DQ71,7))="Dynamic","",IFERROR(MID(DQ71,FIND("(",DQ71)+1,FIND(")",DQ71)-FIND("(",DQ71)-1),DQ71)) ->  | DS107: =IF(TRIM(LEFT(DS71,7))="Dynamic","",IFERROR(MID(DS71,FIND("(",DS71)+1,FIND(")",DS71)-FIND("(",DS71)-1),DS71)) ->  | DU107: Error Check | DV107: =IF(TRIM(LEFT(DV71,7))="Dynamic","",IFERROR(MID(DV71,FIND("(",DV71)+1,FIND(")",DV71)-FIND("(",DV71)-1),DV71)) ->  | DX107: =IF(TRIM(LEFT(DX71,7))="Dynamic","",IFERROR(MID(DX71,FIND("(",DX71)+1,FIND(")",DX71)-FIND("(",DX71)-1),DX71)) ->  | DZ107: Error Check | EA107: =IF(TRIM(LEFT(EA71,7))="Dynamic","",IFERROR(MID(EA71,FIND("(",EA71)+1,FIND(")",EA71)-FIND("(",EA71)-1),EA71)) ->  | EC107: =IF(TRIM(LEFT(EC71,7))="Dynamic","",IFERROR(MID(EC71,FIND("(",EC71)+1,FIND(")",EC71)-FIND("(",EC71)-1),EC71)) ->  | EE107: Error Check | EF107: =IF(TRIM(LEFT(EF71,7))="Dynamic","",IFERROR(MID(EF71,FIND("(",EF71)+1,FIND(")",EF71)-FIND("(",EF71)-1),EF71)) ->  | EH107: =IF(TRIM(LEFT(EH71,7))="Dynamic","",IFERROR(MID(EH71,FIND("(",EH71)+1,FIND(")",EH71)-FIND("(",EH71)-1),EH71)) ->  | EJ107: Error Check | EK107: =IF(TRIM(LEFT(EK71,7))="Dynamic","",IFERROR(MID(EK71,FIND("(",EK71)+1,FIND(")",EK71)-FIND("(",EK71)-1),EK71)) ->  | EM107: =IF(TRIM(LEFT(EM71,7))="Dynamic","",IFERROR(MID(EM71,FIND("(",EM71)+1,FIND(")",EM71)-FIND("(",EM71)-1),EM71)) ->  | EO107: Error Check | EQ107: =MedInLieu -> In Lieu Medical Stipend | ER107: Annual Pay | ES107: =INDEX(Month,1,MATCH(ES$94,FiscalMonth,0)) -> Jul | ET107: =INDEX(Month,1,MATCH(ET$94,FiscalMonth,0)) -> Aug | EU107: =INDEX(Month,1,MATCH(EU$94,FiscalMonth,0)) -> Sep | EV107: =INDEX(Month,1,MATCH(EV$94,FiscalMonth,0)) -> Oct | EW107: =INDEX(Month,1,MATCH(EW$94,FiscalMonth,0)) -> Nov | EX107: =INDEX(Month,1,MATCH(EX$94,FiscalMonth,0)) -> Dec | EY107: =INDEX(Month,1,MATCH(EY$94,FiscalMonth,0)) -> Jan | EZ107: =INDEX(Month,1,MATCH(EZ$94,FiscalMonth,0)) -> Feb | FA107: =INDEX(Month,1,MATCH(FA$94,FiscalMonth,0)) -> Mar | FB107: =INDEX(Month,1,MATCH(FB$94,FiscalMonth,0)) -> Apr | FC107: =INDEX(Month,1,MATCH(FC$94,FiscalMonth,0)) -> May | FD107: =INDEX(Month,1,MATCH(FD$94,FiscalMonth,0)) -> Jun | FE107: AP | FF107: Total Paid | FG107: Summer Holdback | FH107: SHB Paid Months | FI107: FTE Calc | FJ107: Monthly Distribution Variance | FK107: =STRS -> STRS | FL107: =PERS -> PERS | FM107: =PARS -> PARS | FN107: =TRIM(LEFT(OtherRetirement1,LEN(OtherRetirement1)-1)) -> Other Retirement | FO107: =SocialSecurity -> Social Security | FP107: =Medicare -> Medicare | FQ107: H&W | FR107: FUTA | FS107: SUTA | FT107: =ETT -> ETT | FU107: =WorkersComp -> Workers Comp | FV107: Total Benefits | FX107: =MedInLieu -> In Lieu Medical Stipend | FY107: Annual Pay | FZ107: =INDEX(Month,1,MATCH(FZ$94,FiscalMonth,0)) -> Jul | GA107: =INDEX(Month,1,MATCH(GA$94,FiscalMonth,0)) -> Aug | GB107: =INDEX(Month,1,MATCH(GB$94,FiscalMonth,0)) -> Sep | GC107: =INDEX(Month,1,MATCH(GC$94,FiscalMonth,0)) -> Oct | GD107: =INDEX(Month,1,MATCH(GD$94,FiscalMonth,0)) -> Nov | GE107: =INDEX(Month,1,MATCH(GE$94,FiscalMonth,0)) -> Dec | GF107: =INDEX(Month,1,MATCH(GF$94,FiscalMonth,0)) -> Jan | GG107: =INDEX(Month,1,MATCH(GG$94,FiscalMonth,0)) -> Feb | GH107: =INDEX(Month,1,MATCH(GH$94,FiscalMonth,0)) -> Mar | GI107: =INDEX(Month,1,MATCH(GI$94,FiscalMonth,0)) -> Apr | GJ107: =INDEX(Month,1,MATCH(GJ$94,FiscalMonth,0)) -> May | GK107: =INDEX(Month,1,MATCH(GK$94,FiscalMonth,0)) -> Jun | GL107: AP | GM107: Total Paid | GN107: Summer Holdback | GO107: SHB Paid Months | GP107: FTE Calc | GQ107: Monthly Distribution Variance | GR107: =STRS -> STRS | GS107: =PERS -> PERS | GT107: =PARS -> PARS | GU107: =TRIM(LEFT(OtherRetirement1,LEN(OtherRetirement1)-1)) -> Other Retirement | GV107: =SocialSecurity -> Social Security | GW107: =Medicare -> Medicare | GX107: H&W | GY107: FUTA | GZ107: SUTA | HA107: =ETT -> ETT | HB107: =WorkersComp -> Workers Comp | HC107: Total Benefits | HE107: =MedInLieu -> In Lieu Medical Stipend | HF107: Annual Pay | HG107: =INDEX(Month,1,MATCH(HG$94,FiscalMonth,0)) -> Jul | HH107: =INDEX(Month,1,MATCH(HH$94,FiscalMonth,0)) -> Aug | HI107: =INDEX(Month,1,MATCH(HI$94,FiscalMonth,0)) -> Sep | HJ107: =INDEX(Month,1,MATCH(HJ$94,FiscalMonth,0)) -> Oct | HK107: =INDEX(Month,1,MATCH(HK$94,FiscalMonth,0)) -> Nov | HL107: =INDEX(Month,1,MATCH(HL$94,FiscalMonth,0)) -> Dec | HM107: =INDEX(Month,1,MATCH(HM$94,FiscalMonth,0)) -> Jan | HN107: =INDEX(Month,1,MATCH(HN$94,FiscalMonth,0)) -> Feb | HO107: =INDEX(Month,1,MATCH(HO$94,FiscalMonth,0)) -> Mar | HP107: =INDEX(Month,1,MATCH(HP$94,FiscalMonth,0)) -> Apr | HQ107: =INDEX(Month,1,MATCH(HQ$94,FiscalMonth,0)) -> May | HR107: =INDEX(Month,1,MATCH(HR$94,FiscalMonth,0)) -> Jun | HS107: AP | HT107: Total Paid | HU107: Summer Holdback | HV107: SHB Paid Months | HW107: FTE Calc | HX107: Monthly Distribution Variance | HY107: =STRS -> STRS | HZ107: =PERS -> PERS | IA107: =PARS -> PARS | IB107: =TRIM(LEFT(OtherRetirement1,LEN(OtherRetirement1)-1)) -> Other Retirement | IC107: =SocialSecurity -> Social Security | ID107: =Medicare -> Medicare | IE107: H&W | IF107: FUTA | IG107: SUTA | IH107: =ETT -> ETT | II107: =WorkersComp -> Workers Comp | IJ107: Total Benefits | IL107: =MedInLieu -> In Lieu Medical Stipend | IM107: Annual Pay | IN107: =INDEX(Month,1,MATCH(IN$94,FiscalMonth,0)) -> Jul | IO107: =INDEX(Month,1,MATCH(IO$94,FiscalMonth,0)) -> Aug | IP107: =INDEX(Month,1,MATCH(IP$94,FiscalMonth,0)) -> Sep | IQ107: =INDEX(Month,1,MATCH(IQ$94,FiscalMonth,0)) -> Oct | IR107: =INDEX(Month,1,MATCH(IR$94,FiscalMonth,0)) -> Nov | IS107: =INDEX(Month,1,MATCH(IS$94,FiscalMonth,0)) -> Dec | IT107: =INDEX(Month,1,MATCH(IT$94,FiscalMonth,0)) -> Jan | IU107: =INDEX(Month,1,MATCH(IU$94,FiscalMonth,0)) -> Feb | IV107: =INDEX(Month,1,MATCH(IV$94,FiscalMonth,0)) -> Mar | IW107: =INDEX(Month,1,MATCH(IW$94,FiscalMonth,0)) -> Apr | IX107: =INDEX(Month,1,MATCH(IX$94,FiscalMonth,0)) -> May | IY107: =INDEX(Month,1,MATCH(IY$94,FiscalMonth,0)) -> Jun | IZ107: AP | JA107: Total Paid | JB107: Summer Holdback | JC107: SHB Paid Months | JD107: FTE Calc | JE107: Monthly Distribution Variance | JF107: =STRS -> STRS | JG107: =PERS -> PERS | JH107: =PARS -> PARS | JI107: =TRIM(LEFT(OtherRetirement1,LEN(OtherRetirement1)-1)) -> Other Retirement | JJ107: =SocialSecurity -> Social Security | JK107: =Medicare -> Medicare | JL107: H&W | JM107: FUTA | JN107: SUTA | JO107: =ETT -> ETT | JP107: =WorkersComp -> Workers Comp | JQ107: Total Benefits | JS107: =MedInLieu -> In Lieu Medical Stipend | JT107: Annual Pay | JU107: =INDEX(Month,1,MATCH(JU$94,FiscalMonth,0)) -> Jul | JV107: =INDEX(Month,1,MATCH(JV$94,FiscalMonth,0)) -> Aug | JW107: =INDEX(Month,1,MATCH(JW$94,FiscalMonth,0)) -> Sep | JX107: =INDEX(Month,1,MATCH(JX$94,FiscalMonth,0)) -> Oct | JY107: =INDEX(Month,1,MATCH(JY$94,FiscalMonth,0)) -> Nov | JZ107: =INDEX(Month,1,MATCH(JZ$94,FiscalMonth,0)) -> Dec | KA107: =INDEX(Month,1,MATCH(KA$94,FiscalMonth,0)) -> Jan | KB107: =INDEX(Month,1,MATCH(KB$94,FiscalMonth,0)) -> Feb | KC107: =INDEX(Month,1,MATCH(KC$94,FiscalMonth,0)) -> Mar | KD107: =INDEX(Month,1,MATCH(KD$94,FiscalMonth,0)) -> Apr | KE107: =INDEX(Month,1,MATCH(KE$94,FiscalMonth,0)) -> May | KF107: =INDEX(Month,1,MATCH(KF$94,FiscalMonth,0)) -> Jun | KG107: AP | KH107: Total Paid | KI107: Summer Holdback | KJ107: SHB Paid Months | KK107: FTE Calc | KL107: Monthly Distribution Variance | KM107: =STRS -> STRS | KN107: =PERS -> PERS | KO107: =PARS -> PARS | KP107: =TRIM(LEFT(OtherRetirement1,LEN(OtherRetirement1)-1)) -> Other Retirement | KQ107: =SocialSecurity -> Social Security | KR107: =Medicare -> Medicare | KS107: H&W | KT107: FUTA | KU107: SUTA | KV107: =ETT -> ETT | KW107: =WorkersComp -> Workers Comp | KX107: Total Benefits | KZ107: =MedInLieu -> In Lieu Medical Stipend | LA107: Annual Pay | LB107: =INDEX(Month,1,MATCH(LB$94,FiscalMonth,0)) -> Jul | LC107: =INDEX(Month,1,MATCH(LC$94,FiscalMonth,0)) -> Aug | LD107: =INDEX(Month,1,MATCH(LD$94,FiscalMonth,0)) -> Sep | LE107: =INDEX(Month,1,MATCH(LE$94,FiscalMonth,0)) -> Oct | LF107: =INDEX(Month,1,MATCH(LF$94,FiscalMonth,0)) -> Nov | LG107: =INDEX(Month,1,MATCH(LG$94,FiscalMonth,0)) -> Dec | LH107: =INDEX(Month,1,MATCH(LH$94,FiscalMonth,0)) -> Jan | LI107: =INDEX(Month,1,MATCH(LI$94,FiscalMonth,0)) -> Feb | LJ107: =INDEX(Month,1,MATCH(LJ$94,FiscalMonth,0)) -> Mar | LK107: =INDEX(Month,1,MATCH(LK$94,FiscalMonth,0)) -> Apr | LL107: =INDEX(Month,1,MATCH(LL$94,FiscalMonth,0)) -> May | LM107: =INDEX(Month,1,MATCH(LM$94,FiscalMonth,0)) -> Jun | LN107: AP | LO107: Total Paid | LP107: Summer Holdback | LQ107: SHB Paid Months | LR107: FTE Calc | LS107: Monthly Distribution Variance | LT107: =STRS -> STRS | LU107: =PERS -> PERS | LV107: =PARS -> PARS | LW107: =TRIM(LEFT(OtherRetirement1,LEN(OtherRetirement1)-1)) -> Other Retirement | LX107: =SocialSecurity -> Social Security | LY107: =Medicare -> Medicare | LZ107: H&W | MA107: FUTA | MB107: SUTA | MC107: =ETT -> ETT | MD107: =WorkersComp -> Workers Comp | ME107: Total Benefits
A109: #freezerow
R110: Employee LID | AB110: ="Click here and insert LID" -> Click here and insert LID
AB111: 1 | AE111: English | AG111: 1100 | AH111: 2020-07-01 | AL111: Aug to Jun | AM111: =IF(AH111="",StartDateYr1,AH111) -> 2020-07-01 | AN111: =IF(AI111="",Year10EndDate,AI111) -> 2030-06-30 | AO111: =IF(AND(AG111<2000,AG111>=1000),Certificated,IF(AND(AG111>=2000,AG111<3000),Classified,"")) -> Certificated | AR111: STRS | AS111: Health for 70% | AU111: 1 | AV111: 65757 | AW111: =AU111*AV111 -> 65757 | AX111: =IFERROR(BB111/AZ111,0) -> 70148 | AZ111: =IF($AN111<INDEX(YearStartDate,1,MATCH(AY$105,YearRelative,0)),0,IF(AY111="",AU111,AY111)) -> 1 | BA111: 70148 | BB111: =IF($AN111<INDEX(YearStartDate,1,MATCH(AY$105,YearRelative,0)),0,IFERROR(IF(BA111="",AZ111*AW111/AU111*(1+INDEX(IndexCOLA,MATCH($AO111,MatchCOLA,0),MATCH(AY$105,MatchRatesYear,0))),AZ111*BA111),0)) -> 70148 | BD111: =IF($AN111<INDEX(YearStartDate,1,MATCH(BC$105,YearRelative,0)),0,IF(BC111="",AZ111,BC111)) -> 1 | BF111: =IF($AN111<INDEX(YearStartDate,1,MATCH(BC$105,YearRelative,0)),0,IFERROR(IF(BE111="",BD111*BB111/AZ111*(1+INDEX(IndexCOLA,MATCH($AO111,MatchCOLA,0),MATCH(BC$105,MatchRatesYear,0))),BD111*BE111),0)) -> 72252.44 | BH111: =IF($AN111<INDEX(YearStartDate,1,MATCH(BG$105,YearRelative,0)),0,IF(BG111="",BD111,BG111)) -> 1 | BJ111: =IF($AN111<INDEX(YearStartDate,1,MATCH(BG$105,YearRelative,0)),0,IFERROR(IF(BI111="",BH111*BF111/BD111*(1+INDEX(IndexCOLA,MATCH($AO111,MatchCOLA,0),MATCH(BG$105,MatchRatesYear,0))),BH111*BI111),0)) -> 74420.0132 | BL111: =IF($AN111<INDEX(YearStartDate,1,MATCH(BK$105,YearRelative,0)),0,IF(BK111="",BH111,BK111)) -> 1 | BN111: =IF($AN111<INDEX(YearStartDate,1,MATCH(BK$105,YearRelative,0)),0,IFERROR(IF(BM111="",BL111*BJ111/BH111*(1+INDEX(IndexCOLA,MATCH($AO111,MatchCOLA,0),MATCH(BK$105,MatchRatesYear,0))),BL111*BM111),0)) -> 76652.6136 | BP111: =IF($AN111<INDEX(YearStartDate,1,MATCH(BO$105,YearRelative,0)),0,IF(BO111="",BL111,BO111)) -> 1 | BR111: =IF($AN111<INDEX(YearStartDate,1,MATCH(BO$105,YearRelative,0)),0,IFERROR(IF(BQ111="",BP111*BN111/BL111*(1+INDEX(IndexCOLA,MATCH($AO111,MatchCOLA,0),MATCH(BO$105,MatchRatesYear,0))),BP111*BQ111),0)) -> 78952.192 | BT111: 0 | BU111: 0 | BV111: 0 | BW111: =BT111*BU111*BV111 -> 0 | CA111: =IF($AN111<INDEX(YearStartDate,1,MATCH(AY$105,YearRelative,0)),0,IFERROR(IF(BX111="",BT111*(1+INDEX(IndexCOLA,MATCH($AO111,MatchCOLA,0),MATCH(BX$105,MatchRatesYear,0))),BX111),0)) -> 0 | CB111: =IF(BY111="",BU111,BY111) -> 0 | CC111: 0 | CD111: =CA111*CB111*CC111 -> 0 | CH111: =IF($AN111<INDEX(YearStartDate,1,MATCH(AY$105,YearRelative,0)),0,IFERROR(IF(CE111="",CA111*(1+INDEX(IndexCOLA,MATCH($AO111,MatchCOLA,0),MATCH(CE$105,MatchRatesYear,0))),CE111),0)) -> 0 | CI111: =IF(CF111="",CB111,CF111) -> 0 | CJ111: 0 | CK111: =CH111*CI111*CJ111 -> 0 | CO111: =IF($AN111<INDEX(YearStartDate,1,MATCH(AY$105,YearRelative,0)),0,IFERROR(IF(CL111="",CH111*(1+INDEX(IndexCOLA,MATCH($AO111,MatchCOLA,0),MATCH(CL$105,MatchRatesYear,0))),CL111),0)) -> 0 | CP111: =IF(CM111="",CI111,CM111) -> 0 | CQ111: 0 | CR111: =CO111*CP111*CQ111 -> 0 | CV111: =IF($AN111<INDEX(YearStartDate,1,MATCH(AY$105,YearRelative,0)),0,IFERROR(IF(CS111="",CO111*(1+INDEX(IndexCOLA,MATCH($AO111,MatchCOLA,0),MATCH(CS$105,MatchRatesYear,0))),CS111),0)) -> 0 | CW111: =IF(CT111="",CP111,CT111) -> 0 | CX111: 0 | CY111: =CV111*CW111*CX111 -> 0 | DC111: =IF($AN111<INDEX(YearStartDate,1,MATCH(AY$105,YearRelative,0)),0,IFERROR(IF(CZ111="",CV111*(1+INDEX(IndexCOLA,MATCH($AO111,MatchCOLA,0),MATCH(CZ$105,MatchRatesYear,0))),CZ111),0)) -> 0 | DD111: =IF(DA111="",CW111,DA111) -> 0 | DE111: 0 | DF111: =DC111*DD111*DE111 -> 0 | DH111: =1 -> 1 | DI111: 1 | DJ111: 1 | DK111: =1 -> 1 | DL111: 1 | DM111: 1 | DP111: =IF(OR(1-ROUND(SUM(DN111:DO111),10)=0,COLUMNS(DN:DO)=2),0,"error") -> 0 | DS111: =IF(INDEX($DQ111:$DR111,1,MATCH(DS$107,$DQ$107:$DR$107,0))="",INDEX($DN111:$DO111,MATCH(DS$107,$DN$107:$DO$107,0)),INDEX($DQ111:$DR111,1,MATCH(DS$107,$DQ$107:$DR$107,0))) ->  | DU111: =IF(OR(1-ROUND(SUM(DS111:DT111),10)=0,COLUMNS(DS:DT)=2),0,"error") -> 0 | DX111: =IF(INDEX($DV111:$DW111,1,MATCH(DX$107,$DV$107:$DW$107,0))="",INDEX($DS111:$DT111,MATCH(DX$107,$DS$107:$DT$107,0)),INDEX($DV111:$DW111,1,MATCH(DX$107,$DV$107:$DW$107,0))) ->  | DZ111: =IF(OR(1-ROUND(SUM(DX111:DY111),10)=0,COLUMNS(DX:DY)=2),0,"error") -> 0 | EC111: =IF(INDEX($EA111:$EB111,1,MATCH(EC$107,$EA$107:$EB$107,0))="",INDEX($DX111:$DY111,MATCH(EC$107,$DX$107:$DY$107,0)),INDEX($EA111:$EB111,1,MATCH(EC$107,$EA$107:$EB$107,0))) ->  | EE111: =IF(OR(1-ROUND(SUM(EC111:ED111),10)=0,COLUMNS(EC:ED)=2),0,"error") -> 0 | EH111: =IF(INDEX($EF111:$EG111,1,MATCH(EH$107,$EF$107:$EG$107,0))="",INDEX($EC111:$ED111,MATCH(EH$107,$EC$107:$ED$107,0)),INDEX($EF111:$EG111,1,MATCH(EH$107,$EF$107:$EG$107,0))) ->  | EJ111: =IF(OR(1-ROUND(SUM(EH111:EI111),10)=0,COLUMNS(EH:EI)=2),0,"error") -> 0 | EM111: =IF(INDEX($EK111:$EL111,1,MATCH(EM$107,$EK$107:$EL$107,0))="",INDEX($EH111:$EI111,MATCH(EM$107,$EH$107:$EI$107,0)),INDEX($EK111:$EL111,1,MATCH(EM$107,$EK$107:$EL$107,0))) ->  | EO111: =IF(OR(1-ROUND(SUM(EM111:EN111),10)=0,COLUMNS(EM:EN)=2),0,"error") -> 0 | EQ111: =IF($AT111=Yes,INDEX(IndexInLieuMedical,1,MATCH(Payroll!ER$105,MatchRatesYear,0)),0) -> 0 | ER111: =$AB111*(AW111+BW111+EQ111) -> 65757 | ES111: =IFERROR((ES$96=MEDIAN(EOMONTH($AM111,-1)+1,EOMONTH($AN111,0),ES$96))*((MIN($AN111,ES$97)-MAX($AM111-1,ES$96-1))/(ES$97-ES$96+1))*ER111*INDEX(IndexTiming,MATCH($AL111,MatchTiming,0),MATCH(ES$107,MatchPeriod,0)),0)+IFERROR((ES$96=MEDIAN(EOMONTH($AJ111,-1)+1,EOMONTH($AK111,0),ES$96))*((MIN($AK111,ES$97)-MAX($AJ111-1,ES$96-1))/(ES$97-ES$96+1))*-ER111*INDEX(IndexTiming,MATCH($AL111,MatchTiming,0),MATCH(ES$107,MatchPeriod,0)),0) -> 0 | ET111: =IFERROR((ET$96=MEDIAN(EOMONTH($AM111,-1)+1,EOMONTH($AN111,0),ET$96))*((MIN($AN111,ET$97)-MAX($AM111-1,ET$96-1))/(ET$97-ET$96+1))*ER111*INDEX(IndexTiming,MATCH($AL111,MatchTiming,0),MATCH(ET$107,MatchPeriod,0)),0)+IFERROR((ET$96=MEDIAN(EOMONTH($AJ111,-1)+1,EOMONTH($AK111,0),ET$96))*((MIN($AK111,ET$97)-MAX($AJ111-1,ET$96-1))/(ET$97-ET$96+1))*-ER111*INDEX(IndexTiming,MATCH($AL111,MatchTiming,0),MATCH(ET$107,MatchPeriod,0)),0) -> 0 | EU111: =IFERROR((EU$96=MEDIAN(EOMONTH($AM111,-1)+1,EOMONTH($AN111,0),EU$96))*((MIN($AN111,EU$97)-MAX($AM111-1,EU$96-1))/(EU$97-EU$96+1))*ER111*INDEX(IndexTiming,MATCH($AL111,MatchTiming,0),MATCH(EU$107,MatchPeriod,0)),0)+IFERROR((EU$96=MEDIAN(EOMONTH($AJ111,-1)+1,EOMONTH($AK111,0),EU$96))*((MIN($AK111,EU$97)-MAX($AJ111-1,EU$96-1))/(EU$97-EU$96+1))*-ER111*INDEX(IndexTiming,MATCH($AL111,MatchTiming,0),MATCH(EU$107,MatchPeriod,0)),0) -> 0 | EV111: =IFERROR((EV$96=MEDIAN(EOMONTH($AM111,-1)+1,EOMONTH($AN111,0),EV$96))*((MIN($AN111,EV$97)-MAX($AM111-1,EV$96-1))/(EV$97-EV$96+1))*ER111*INDEX(IndexTiming,MATCH($AL111,MatchTiming,0),MATCH(EV$107,MatchPeriod,0)),0)+IFERROR((EV$96=MEDIAN(EOMONTH($AJ111,-1)+1,EOMONTH($AK111,0),EV$96))*((MIN($AK111,EV$97)-MAX($AJ111-1,EV$96-1))/(EV$97-EV$96+1))*-ER111*INDEX(IndexTiming,MATCH($AL111,MatchTiming,0),MATCH(EV$107,MatchPeriod,0)),0) -> 0 | EW111: =IFERROR((EW$96=MEDIAN(EOMONTH($AM111,-1)+1,EOMONTH($AN111,0),EW$96))*((MIN($AN111,EW$97)-MAX($AM111-1,EW$96-1))/(EW$97-EW$96+1))*ER111*INDEX(IndexTiming,MATCH($AL111,MatchTiming,0),MATCH(EW$107,MatchPeriod,0)),0)+IFERROR((EW$96=MEDIAN(EOMONTH($AJ111,-1)+1,EOMONTH($AK111,0),EW$96))*((MIN($AK111,EW$97)-MAX($AJ111-1,EW$96-1))/(EW$97-EW$96+1))*-ER111*INDEX(IndexTiming,MATCH($AL111,MatchTiming,0),MATCH(EW$107,MatchPeriod,0)),0) -> 0 | EX111: =IFERROR((EX$96=MEDIAN(EOMONTH($AM111,-1)+1,EOMONTH($AN111,0),EX$96))*((MIN($AN111,EX$97)-MAX($AM111-1,EX$96-1))/(EX$97-EX$96+1))*ER111*INDEX(IndexTiming,MATCH($AL111,MatchTiming,0),MATCH(EX$107,MatchPeriod,0)),0)+IFERROR((EX$96=MEDIAN(EOMONTH($AJ111,-1)+1,EOMONTH($AK111,0),EX$96))*((MIN($AK111,EX$97)-MAX($AJ111-1,EX$96-1))/(EX$97-EX$96+1))*-ER111*INDEX(IndexTiming,MATCH($AL111,MatchTiming,0),MATCH(EX$107,MatchPeriod,0)),0) -> 0 | EY111: =IFERROR((EY$96=MEDIAN(EOMONTH($AM111,-1)+1,EOMONTH($AN111,0),EY$96))*((MIN($AN111,EY$97)-MAX($AM111-1,EY$96-1))/(EY$97-EY$96+1))*ER111*INDEX(IndexTiming,MATCH($AL111,MatchTiming,0),MATCH(EY$107,MatchPeriod,0)),0)+IFERROR((EY$96=MEDIAN(EOMONTH($AJ111,-1)+1,EOMONTH($AK111,0),EY$96))*((MIN($AK111,EY$97)-MAX($AJ111-1,EY$96-1))/(EY$97-EY$96+1))*-ER111*INDEX(IndexTiming,MATCH($AL111,MatchTiming,0),MATCH(EY$107,MatchPeriod,0)),0) -> 0 | EZ111: =IFERROR((EZ$96=MEDIAN(EOMONTH($AM111,-1)+1,EOMONTH($AN111,0),EZ$96))*((MIN($AN111,EZ$97)-MAX($AM111-1,EZ$96-1))/(EZ$97-EZ$96+1))*ER111*INDEX(IndexTiming,MATCH($AL111,MatchTiming,0),MATCH(EZ$107,MatchPeriod,0)),0)+IFERROR((EZ$96=MEDIAN(EOMONTH($AJ111,-1)+1,EOMONTH($AK111,0),EZ$96))*((MIN($AK111,EZ$97)-MAX($AJ111-1,EZ$96-1))/(EZ$97-EZ$96+1))*-ER111*INDEX(IndexTiming,MATCH($AL111,MatchTiming,0),MATCH(EZ$107,MatchPeriod,0)),0) -> 0 | FA111: =IFERROR((FA$96=MEDIAN(EOMONTH($AM111,-1)+1,EOMONTH($AN111,0),FA$96))*((MIN($AN111,FA$97)-MAX($AM111-1,FA$96-1))/(FA$97-FA$96+1))*ER111*INDEX(IndexTiming,MATCH($AL111,MatchTiming,0),MATCH(FA$107,MatchPeriod,0)),0)+IFERROR((FA$96=MEDIAN(EOMONTH($AJ111,-1)+1,EOMONTH($AK111,0),FA$96))*((MIN($AK111,FA$97)-MAX($AJ111-1,FA$96-1))/(FA$97-FA$96+1))*-ER111*INDEX(IndexTiming,MATCH($AL111,MatchTiming,0),MATCH(FA$107,MatchPeriod,0)),0) -> 0 | FB111: =IFERROR((FB$96=MEDIAN(EOMONTH($AM111,-1)+1,EOMONTH($AN111,0),FB$96))*((MIN($AN111,FB$97)-MAX($AM111-1,FB$96-1))/(FB$97-FB$96+1))*ER111*INDEX(IndexTiming,MATCH($AL111,MatchTiming,0),MATCH(FB$107,MatchPeriod,0)),0)+IFERROR((FB$96=MEDIAN(EOMONTH($AJ111,-1)+1,EOMONTH($AK111,0),FB$96))*((MIN($AK111,FB$97)-MAX($AJ111-1,FB$96-1))/(FB$97-FB$96+1))*-ER111*INDEX(IndexTiming,MATCH($AL111,MatchTiming,0),MATCH(FB$107,MatchPeriod,0)),0) -> 0 | FC111: =IFERROR((FC$96=MEDIAN(EOMONTH($AM111,-1)+1,EOMONTH($AN111,0),FC$96))*((MIN($AN111,FC$97)-MAX($AM111-1,FC$96-1))/(FC$97-FC$96+1))*ER111*INDEX(IndexTiming,MATCH($AL111,MatchTiming,0),MATCH(FC$107,MatchPeriod,0)),0)+IFERROR((FC$96=MEDIAN(EOMONTH($AJ111,-1)+1,EOMONTH($AK111,0),FC$96))*((MIN($AK111,FC$97)-MAX($AJ111-1,FC$96-1))/(FC$97-FC$96+1))*-ER111*INDEX(IndexTiming,MATCH($AL111,MatchTiming,0),MATCH(FC$107,MatchPeriod,0)),0) -> 0 | FD111: =IFERROR((FD$96=MEDIAN(EOMONTH($AM111,-1)+1,EOMONTH($AN111,0),FD$96))*((MIN($AN111,FD$97)-MAX($AM111-1,FD$96-1))/(FD$97-FD$96+1))*ER111*INDEX(IndexTiming,MATCH($AL111,MatchTiming,0),MATCH(FD$107,MatchPeriod,0)),0)+IFERROR((FD$96=MEDIAN(EOMONTH($AJ111,-1)+1,EOMONTH($AK111,0),FD$96))*((MIN($AK111,FD$97)-MAX($AJ111-1,FD$96-1))/(FD$97-FD$96+1))*-ER111*INDEX(IndexTiming,MATCH($AL111,MatchTiming,0),MATCH(FD$107,MatchPeriod,0)),0) -> 0 | FE111: =IF(SUM(ES111:FD111)>0,ER111*INDEX(IndexTiming,MATCH($AL111,MatchTiming,0),MATCH(FE$107,MatchPeriod,0)),0) -> 0 | FF111: =SUM(ES111:FE111) -> 0 | FG111: =IFERROR((-NetPayPercentage*FF111/FH111)*(FH111-MID(LEFT($AL111,FIND(",",$AL111)-1),FIND(" ",$AL111)+1,LEN($AL111))),0) -> 0 | FH111: =IF(LEFT($AL111,4)="Work",IF(RIGHT(LEFT($AL111,LEN($AL111)-13),1)=",",RIGHT(LEFT($AL111,LEN($AL111)-14),2),RIGHT($AL111,2)),0) -> 0 | FI111: =IFERROR(IF(AW111=0,FF111/((BT111*FTEHours*BV111+EQ111)*$AB111)*$AB111,FF111/((AV111+EQ111)*$AB111)*$AB111),0) -> 0 | FJ111: =FF111-ER111 -> -65757 | FK111: =IF($AR111=FK$107,INDEX(IndexBenefits,MATCH($AR111,MatchBenefits,0),MATCH(ER$105,MatchRatesYear,0)),0)*FF111 -> 0 | FL111: =IF($AR111=FL$107,INDEX(IndexBenefits,MATCH($AR111,MatchBenefits,0),MATCH(ER$105,MatchRatesYear,0)),0)*FF111 -> 0 | FM111: =IF($AR111=FM$107,INDEX(IndexBenefits,MATCH($AR111,MatchBenefits,0),MATCH(ER$105,MatchRatesYear,0)),0)*FF111 -> 0 | FN111: =IF(LEFT($AR111,16)=FN$107,INDEX(IndexBenefits,MATCH($AR111,MatchBenefits,0),MATCH(ER$105,MatchRatesYear,0)),0)*FF111 -> 0 | FO111: =IF(IFERROR(INDEX(Index_SocialSecurity,MATCH($AR111,MatchBenefits,0)),Yes)=No,0,(MIN(INDEX(IndexBenefits,MATCH(SSIMax,MatchBenefits,0),MATCH(ER$105,MatchRatesYear,0))*$AB111,FF111*INDEX(IndexBenefits,MATCH(FO$107,MatchBenefits,0),MATCH(ER$105,MatchRatesYear,0))))) -> 0 | FP111: =FF111*INDEX(IndexBenefits,MATCH(FP$107,MatchBenefits,0),MATCH(ER$105,MatchRatesYear,0)) -> 0 | FQ111: =IF(FF111=0,0,IF($AS111="",0,INDEX(IndexBenefits,MATCH($AS111,MatchBenefits,0),MATCH(ER$105,MatchRatesYear,0))*$AB111*(MIN(DATEDIF(MAX(DATE(YEAR($AM111),MONTH(EOMONTH($AM111,(DAY($AM111)>5)+0)),1),EDATE(StartDateYr1,12*(FQ$93-1))),MIN(DATE(YEAR($AN111),MONTH($AN111)+1,1),EDATE(Year1EndDate+1,12*(FQ$93-1))),"M")/12,1)))) -> 0 | FR111: =IF(_501c3Status=Yes,0,(MIN(INDEX(Index_FUTAMax,1,MATCH(ER$105,MatchRatesYear,0))*$AB111,FF111*INDEX(Index_FUTA_Rate,1,MATCH(ER$105,MatchRatesYear,0))))) -> 0 | FS111: =IF(SchoolFundStatus=Yes,FF111*INDEX(Index_SchoolFundRate,1,MATCH(ER$105,MatchRatesYear,0)),(1+INDEX(Index_NewEmployees,1,MATCH(ER$105,MatchRatesYear,0)))*MIN(INDEX(Index_SUTAMax,1,MATCH(ER$105,MatchRatesYear,0))*$AB111,FF111*INDEX(Index_SUTA_Rate,1,MATCH(ER$105,MatchRatesYear,0)))) -> 0 | FT111: =MIN(INDEX(IndexBenefits,MATCH(ETTMax,MatchBenefits,0),MATCH(ER$105,MatchRatesYear,0))*$AB111,FF111*INDEX(IndexBenefits,MATCH(FT$107,MatchBenefits,0),MATCH(ER$105,MatchRatesYear,0))) -> 0 | FU111: =FF111*INDEX(IndexBenefits,MATCH(FU$107,MatchBenefits,0),MATCH(ER$105,MatchRatesYear,0)) -> 0 | FV111: =SUM(FK111:FU111) -> 0 | FX111: =IF($AT111=Yes,INDEX(IndexInLieuMedical,1,MATCH(Payroll!FY$105,MatchRatesYear,0)),0) -> 0 | FY111: =$AB111*(BB111+CD111+FX111) -> 70148 | FZ111: =IFERROR((FZ$96=MEDIAN(EOMONTH($AM111,-1)+1,EOMONTH($AN111,0),FZ$96))*((MIN($AN111,FZ$97)-MAX($AM111-1,FZ$96-1))/(FZ$97-FZ$96+1))*FY111*INDEX(IndexTiming,MATCH($AL111,MatchTiming,0),MATCH(FZ$107,MatchPeriod,0)),0)+IFERROR((FZ$96=MEDIAN(EOMONTH($AJ111,-1)+1,EOMONTH($AK111,0),FZ$96))*((MIN($AK111,FZ$97)-MAX($AJ111-1,FZ$96-1))/(FZ$97-FZ$96+1))*-FY111*INDEX(IndexTiming,MATCH($AL111,MatchTiming,0),MATCH(FZ$107,MatchPeriod,0)),0) -> 0 | GA111: =IFERROR((GA$96=MEDIAN(EOMONTH($AM111,-1)+1,EOMONTH($AN111,0),GA$96))*((MIN($AN111,GA$97)-MAX($AM111-1,GA$96-1))/(GA$97-GA$96+1))*FY111*INDEX(IndexTiming,MATCH($AL111,MatchTiming,0),MATCH(GA$107,MatchPeriod,0)),0)+IFERROR((GA$96=MEDIAN(EOMONTH($AJ111,-1)+1,EOMONTH($AK111,0),GA$96))*((MIN($AK111,GA$97)-MAX($AJ111-1,GA$96-1))/(GA$97-GA$96+1))*-FY111*INDEX(IndexTiming,MATCH($AL111,MatchTiming,0),MATCH(GA$107,MatchPeriod,0)),0) -> 0 | GB111: =IFERROR((GB$96=MEDIAN(EOMONTH($AM111,-1)+1,EOMONTH($AN111,0),GB$96))*((MIN($AN111,GB$97)-MAX($AM111-1,GB$96-1))/(GB$97-GB$96+1))*FY111*INDEX(IndexTiming,MATCH($AL111,MatchTiming,0),MATCH(GB$107,MatchPeriod,0)),0)+IFERROR((GB$96=MEDIAN(EOMONTH($AJ111,-1)+1,EOMONTH($AK111,0),GB$96))*((MIN($AK111,GB$97)-MAX($AJ111-1,GB$96-1))/(GB$97-GB$96+1))*-FY111*INDEX(IndexTiming,MATCH($AL111,MatchTiming,0),MATCH(GB$107,MatchPeriod,0)),0) -> 0 | GC111: =IFERROR((GC$96=MEDIAN(EOMONTH($AM111,-1)+1,EOMONTH($AN111,0),GC$96))*((MIN($AN111,GC$97)-MAX($AM111-1,GC$96-1))/(GC$97-GC$96+1))*FY111*INDEX(IndexTiming,MATCH($AL111,MatchTiming,0),MATCH(GC$107,MatchPeriod,0)),0)+IFERROR((GC$96=MEDIAN(EOMONTH($AJ111,-1)+1,EOMONTH($AK111,0),GC$96))*((MIN($AK111,GC$97)-MAX($AJ111-1,GC$96-1))/(GC$97-GC$96+1))*-FY111*INDEX(IndexTiming,MATCH($AL111,MatchTiming,0),MATCH(GC$107,MatchPeriod,0)),0) -> 0 | GD111: =IFERROR((GD$96=MEDIAN(EOMONTH($AM111,-1)+1,EOMONTH($AN111,0),GD$96))*((MIN($AN111,GD$97)-MAX($AM111-1,GD$96-1))/(GD$97-GD$96+1))*FY111*INDEX(IndexTiming,MATCH($AL111,MatchTiming,0),MATCH(GD$107,MatchPeriod,0)),0)+IFERROR((GD$96=MEDIAN(EOMONTH($AJ111,-1)+1,EOMONTH($AK111,0),GD$96))*((MIN($AK111,GD$97)-MAX($AJ111-1,GD$96-1))/(GD$97-GD$96+1))*-FY111*INDEX(IndexTiming,MATCH($AL111,MatchTiming,0),MATCH(GD$107,MatchPeriod,0)),0) -> 0 | GE111: =IFERROR((GE$96=MEDIAN(EOMONTH($AM111,-1)+1,EOMONTH($AN111,0),GE$96))*((MIN($AN111,GE$97)-MAX($AM111-1,GE$96-1))/(GE$97-GE$96+1))*FY111*INDEX(IndexTiming,MATCH($AL111,MatchTiming,0),MATCH(GE$107,MatchPeriod,0)),0)+IFERROR((GE$96=MEDIAN(EOMONTH($AJ111,-1)+1,EOMONTH($AK111,0),GE$96))*((MIN($AK111,GE$97)-MAX($AJ111-1,GE$96-1))/(GE$97-GE$96+1))*-FY111*INDEX(IndexTiming,MATCH($AL111,MatchTiming,0),MATCH(GE$107,MatchPeriod,0)),0) -> 0 | GF111: =IFERROR((GF$96=MEDIAN(EOMONTH($AM111,-1)+1,EOMONTH($AN111,0),GF$96))*((MIN($AN111,GF$97)-MAX($AM111-1,GF$96-1))/(GF$97-GF$96+1))*FY111*INDEX(IndexTiming,MATCH($AL111,MatchTiming,0),MATCH(GF$107,MatchPeriod,0)),0)+IFERROR((GF$96=MEDIAN(EOMONTH($AJ111,-1)+1,EOMONTH($AK111,0),GF$96))*((MIN($AK111,GF$97)-MAX($AJ111-1,GF$96-1))/(GF$97-GF$96+1))*-FY111*INDEX(IndexTiming,MATCH($AL111,MatchTiming,0),MATCH(GF$107,MatchPeriod,0)),0) -> 0 | GG111: =IFERROR((GG$96=MEDIAN(EOMONTH($AM111,-1)+1,EOMONTH($AN111,0),GG$96))*((MIN($AN111,GG$97)-MAX($AM111-1,GG$96-1))/(GG$97-GG$96+1))*FY111*INDEX(IndexTiming,MATCH($AL111,MatchTiming,0),MATCH(GG$107,MatchPeriod,0)),0)+IFERROR((GG$96=MEDIAN(EOMONTH($AJ111,-1)+1,EOMONTH($AK111,0),GG$96))*((MIN($AK111,GG$97)-MAX($AJ111-1,GG$96-1))/(GG$97-GG$96+1))*-FY111*INDEX(IndexTiming,MATCH($AL111,MatchTiming,0),MATCH(GG$107,MatchPeriod,0)),0) -> 0 | GH111: =IFERROR((GH$96=MEDIAN(EOMONTH($AM111,-1)+1,EOMONTH($AN111,0),GH$96))*((MIN($AN111,GH$97)-MAX($AM111-1,GH$96-1))/(GH$97-GH$96+1))*FY111*INDEX(IndexTiming,MATCH($AL111,MatchTiming,0),MATCH(GH$107,MatchPeriod,0)),0)+IFERROR((GH$96=MEDIAN(EOMONTH($AJ111,-1)+1,EOMONTH($AK111,0),GH$96))*((MIN($AK111,GH$97)-MAX($AJ111-1,GH$96-1))/(GH$97-GH$96+1))*-FY111*INDEX(IndexTiming,MATCH($AL111,MatchTiming,0),MATCH(GH$107,MatchPeriod,0)),0) -> 0 | GI111: =IFERROR((GI$96=MEDIAN(EOMONTH($AM111,-1)+1,EOMONTH($AN111,0),GI$96))*((MIN($AN111,GI$97)-MAX($AM111-1,GI$96-1))/(GI$97-GI$96+1))*FY111*INDEX(IndexTiming,MATCH($AL111,MatchTiming,0),MATCH(GI$107,MatchPeriod,0)),0)+IFERROR((GI$96=MEDIAN(EOMONTH($AJ111,-1)+1,EOMONTH($AK111,0),GI$96))*((MIN($AK111,GI$97)-MAX($AJ111-1,GI$96-1))/(GI$97-GI$96+1))*-FY111*INDEX(IndexTiming,MATCH($AL111,MatchTiming,0),MATCH(GI$107,MatchPeriod,0)),0) -> 0 | GJ111: =IFERROR((GJ$96=MEDIAN(EOMONTH($AM111,-1)+1,EOMONTH($AN111,0),GJ$96))*((MIN($AN111,GJ$97)-MAX($AM111-1,GJ$96-1))/(GJ$97-GJ$96+1))*FY111*INDEX(IndexTiming,MATCH($AL111,MatchTiming,0),MATCH(GJ$107,MatchPeriod,0)),0)+IFERROR((GJ$96=MEDIAN(EOMONTH($AJ111,-1)+1,EOMONTH($AK111,0),GJ$96))*((MIN($AK111,GJ$97)-MAX($AJ111-1,GJ$96-1))/(GJ$97-GJ$96+1))*-FY111*INDEX(IndexTiming,MATCH($AL111,MatchTiming,0),MATCH(GJ$107,MatchPeriod,0)),0) -> 0 | GK111: =IFERROR((GK$96=MEDIAN(EOMONTH($AM111,-1)+1,EOMONTH($AN111,0),GK$96))*((MIN($AN111,GK$97)-MAX($AM111-1,GK$96-1))/(GK$97-GK$96+1))*FY111*INDEX(IndexTiming,MATCH($AL111,MatchTiming,0),MATCH(GK$107,MatchPeriod,0)),0)+IFERROR((GK$96=MEDIAN(EOMONTH($AJ111,-1)+1,EOMONTH($AK111,0),GK$96))*((MIN($AK111,GK$97)-MAX($AJ111-1,GK$96-1))/(GK$97-GK$96+1))*-FY111*INDEX(IndexTiming,MATCH($AL111,MatchTiming,0),MATCH(GK$107,MatchPeriod,0)),0) -> 0 | GL111: =IF(SUM(FZ111:GK111)>0,FY111*INDEX(IndexTiming,MATCH($AL111,MatchTiming,0),MATCH(GL$107,MatchPeriod,0)),0) -> 0 | GM111: =SUM(FZ111:GL111) -> 0 | GN111: =IFERROR((-NetPayPercentage*GM111/GO111)*(GO111-MID(LEFT($AL111,FIND(",",$AL111)-1),FIND(" ",$AL111)+1,LEN($AL111))),0) -> 0 | GO111: =IF(LEFT($AL111,4)="Work",IF(RIGHT(LEFT($AL111,LEN($AL111)-13),1)=",",RIGHT(LEFT($AL111,LEN($AL111)-14),2),RIGHT($AL111,2)),0) -> 0 | GP111: =IFERROR(IF(BB111=0,GM111/((CA111*FTEHours*CC111+FX111)*$AB111)*$AB111,GM111/((BB111/AZ111+FX111)*$AB111)*$AB111),0) -> 0 | GQ111: =GM111-FY111 -> -70148 | GR111: =IF($AR111=GR$107,INDEX(IndexBenefits,MATCH($AR111,MatchBenefits,0),MATCH(FY$105,MatchRatesYear,0)),0)*GM111 -> 0 | GS111: =IF($AR111=GS$107,INDEX(IndexBenefits,MATCH($AR111,MatchBenefits,0),MATCH(FY$105,MatchRatesYear,0)),0)*GM111 -> 0 | GT111: =IF($AR111=GT$107,INDEX(IndexBenefits,MATCH($AR111,MatchBenefits,0),MATCH(FY$105,MatchRatesYear,0)),0)*GM111 -> 0 | GU111: =IF(LEFT($AR111,16)=GU$107,INDEX(IndexBenefits,MATCH($AR111,MatchBenefits,0),MATCH(FY$105,MatchRatesYear,0)),0)*GM111 -> 0 | GV111: =IF(IFERROR(INDEX(Index_SocialSecurity,MATCH($AR111,MatchBenefits,0)),Yes)=No,0,(MIN(INDEX(IndexBenefits,MATCH(SSIMax,MatchBenefits,0),MATCH(FY$105,MatchRatesYear,0))*$AB111,GM111*INDEX(IndexBenefits,MATCH(GV$107,MatchBenefits,0),MATCH(FY$105,MatchRatesYear,0))))) -> 0 | GW111: =GM111*INDEX(IndexBenefits,MATCH(GW$107,MatchBenefits,0),MATCH(FY$105,MatchRatesYear,0)) -> 0 | GX111: =IF(GM111=0,0,IF($AS111="",0,INDEX(IndexBenefits,MATCH($AS111,MatchBenefits,0),MATCH(FY$105,MatchRatesYear,0))*$AB111*(MIN(DATEDIF(MAX(DATE(YEAR($AM111),MONTH(EOMONTH($AM111,(DAY($AM111)>5)+0)),1),EDATE(StartDateYr1,12*(GX$93-1))),MIN(DATE(YEAR($AN111),MONTH($AN111)+1,1),EDATE(Year1EndDate+1,12*(GX$93-1))),"M")/12,1)))) -> 0 | GY111: =IF(_501c3Status=Yes,0,(MIN(INDEX(Index_FUTAMax,1,MATCH(FY$105,MatchRatesYear,0))*$AB111,GM111*INDEX(Index_FUTA_Rate,1,MATCH(FY$105,MatchRatesYear,0))))) -> 0 | GZ111: =IF(SchoolFundStatus=Yes,GM111*INDEX(Index_SchoolFundRate,1,MATCH(FY$105,MatchRatesYear,0)),(1+INDEX(Index_NewEmployees,1,MATCH(FY$105,MatchRatesYear,0)))*MIN(INDEX(Index_SUTAMax,1,MATCH(FY$105,MatchRatesYear,0))*$AB111,GM111*INDEX(Index_SUTA_Rate,1,MATCH(FY$105,MatchRatesYear,0)))) -> 0 | HA111: =MIN(INDEX(IndexBenefits,MATCH(ETTMax,MatchBenefits,0),MATCH(FY$105,MatchRatesYear,0))*$AB111,GM111*INDEX(IndexBenefits,MATCH(HA$107,MatchBenefits,0),MATCH(FY$105,MatchRatesYear,0))) -> 0 | HB111: =GM111*INDEX(IndexBenefits,MATCH(HB$107,MatchBenefits,0),MATCH(FY$105,MatchRatesYear,0)) -> 0 | HC111: =SUM(GR111:HB111) -> 0 | HE111: =IF($AT111=Yes,INDEX(IndexInLieuMedical,1,MATCH(Payroll!HF$105,MatchRatesYear,0)),0) -> 0 | HF111: =$AB111*(BF111+CK111+HE111) -> 72252.44 | HG111: =IFERROR((HG$96=MEDIAN(EOMONTH($AM111,-1)+1,EOMONTH($AN111,0),HG$96))*((MIN($AN111,HG$97)-MAX($AM111-1,HG$96-1))/(HG$97-HG$96+1))*HF111*INDEX(IndexTiming,MATCH($AL111,MatchTiming,0),MATCH(HG$107,MatchPeriod,0)),0) -> 0 | HH111: =IFERROR((HH$96=MEDIAN(EOMONTH($AM111,-1)+1,EOMONTH($AN111,0),HH$96))*((MIN($AN111,HH$97)-MAX($AM111-1,HH$96-1))/(HH$97-HH$96+1))*HF111*INDEX(IndexTiming,MATCH($AL111,MatchTiming,0),MATCH(HH$107,MatchPeriod,0)),0) -> 0 | HI111: =IFERROR((HI$96=MEDIAN(EOMONTH($AM111,-1)+1,EOMONTH($AN111,0),HI$96))*((MIN($AN111,HI$97)-MAX($AM111-1,HI$96-1))/(HI$97-HI$96+1))*HF111*INDEX(IndexTiming,MATCH($AL111,MatchTiming,0),MATCH(HI$107,MatchPeriod,0)),0) -> 0 | HJ111: =IFERROR((HJ$96=MEDIAN(EOMONTH($AM111,-1)+1,EOMONTH($AN111,0),HJ$96))*((MIN($AN111,HJ$97)-MAX($AM111-1,HJ$96-1))/(HJ$97-HJ$96+1))*HF111*INDEX(IndexTiming,MATCH($AL111,MatchTiming,0),MATCH(HJ$107,MatchPeriod,0)),0) -> 0 | HK111: =IFERROR((HK$96=MEDIAN(EOMONTH($AM111,-1)+1,EOMONTH($AN111,0),HK$96))*((MIN($AN111,HK$97)-MAX($AM111-1,HK$96-1))/(HK$97-HK$96+1))*HF111*INDEX(IndexTiming,MATCH($AL111,MatchTiming,0),MATCH(HK$107,MatchPeriod,0)),0) -> 0 | HL111: =IFERROR((HL$96=MEDIAN(EOMONTH($AM111,-1)+1,EOMONTH($AN111,0),HL$96))*((MIN($AN111,HL$97)-MAX($AM111-1,HL$96-1))/(HL$97-HL$96+1))*HF111*INDEX(IndexTiming,MATCH($AL111,MatchTiming,0),MATCH(HL$107,MatchPeriod,0)),0) -> 0 | HM111: =IFERROR((HM$96=MEDIAN(EOMONTH($AM111,-1)+1,EOMONTH($AN111,0),HM$96))*((MIN($AN111,HM$97)-MAX($AM111-1,HM$96-1))/(HM$97-HM$96+1))*HF111*INDEX(IndexTiming,MATCH($AL111,MatchTiming,0),MATCH(HM$107,MatchPeriod,0)),0) -> 0 | HN111: =IFERROR((HN$96=MEDIAN(EOMONTH($AM111,-1)+1,EOMONTH($AN111,0),HN$96))*((MIN($AN111,HN$97)-MAX($AM111-1,HN$96-1))/(HN$97-HN$96+1))*HF111*INDEX(IndexTiming,MATCH($AL111,MatchTiming,0),MATCH(HN$107,MatchPeriod,0)),0) -> 0 | HO111: =IFERROR((HO$96=MEDIAN(EOMONTH($AM111,-1)+1,EOMONTH($AN111,0),HO$96))*((MIN($AN111,HO$97)-MAX($AM111-1,HO$96-1))/(HO$97-HO$96+1))*HF111*INDEX(IndexTiming,MATCH($AL111,MatchTiming,0),MATCH(HO$107,MatchPeriod,0)),0) -> 0 | HP111: =IFERROR((HP$96=MEDIAN(EOMONTH($AM111,-1)+1,EOMONTH($AN111,0),HP$96))*((MIN($AN111,HP$97)-MAX($AM111-1,HP$96-1))/(HP$97-HP$96+1))*HF111*INDEX(IndexTiming,MATCH($AL111,MatchTiming,0),MATCH(HP$107,MatchPeriod,0)),0) -> 0 | HQ111: =IFERROR((HQ$96=MEDIAN(EOMONTH($AM111,-1)+1,EOMONTH($AN111,0),HQ$96))*((MIN($AN111,HQ$97)-MAX($AM111-1,HQ$96-1))/(HQ$97-HQ$96+1))*HF111*INDEX(IndexTiming,MATCH($AL111,MatchTiming,0),MATCH(HQ$107,MatchPeriod,0)),0) -> 0 | HR111: =IFERROR((HR$96=MEDIAN(EOMONTH($AM111,-1)+1,EOMONTH($AN111,0),HR$96))*((MIN($AN111,HR$97)-MAX($AM111-1,HR$96-1))/(HR$97-HR$96+1))*HF111*INDEX(IndexTiming,MATCH($AL111,MatchTiming,0),MATCH(HR$107,MatchPeriod,0)),0) -> 0 | HS111: =IF(SUM(HG111:HR111)>0,HF111*INDEX(IndexTiming,MATCH($AL111,MatchTiming,0),MATCH(HS$107,MatchPeriod,0)),0) -> 0 | HT111: =SUM(HG111:HS111) -> 0 | HU111: =IFERROR((-NetPayPercentage*HT111/HV111)*(HV111-MID(LEFT($AL111,FIND(",",$AL111)-1),FIND(" ",$AL111)+1,LEN($AL111))),0) -> 0 | HV111: =IF(LEFT($AL111,4)="Work",IF(RIGHT(LEFT($AL111,LEN($AL111)-13),1)=",",RIGHT(LEFT($AL111,LEN($AL111)-14),2),RIGHT($AL111,2)),0) -> 0 | HW111: =IFERROR(IF(BF111=0,HT111/((CH111*FTEHours*CJ111+HE111)*$AB111)*$AB111,HT111/((BF111/BD111+HE111)*$AB111)*$AB111),0) -> 0 | HX111: =HT111-HF111 -> -72252.44 | HY111: =IF($AR111=HY$107,INDEX(IndexBenefits,MATCH($AR111,MatchBenefits,0),MATCH(HF$105,MatchRatesYear,0)),0)*HT111 -> 0 | HZ111: =IF($AR111=HZ$107,INDEX(IndexBenefits,MATCH($AR111,MatchBenefits,0),MATCH(HF$105,MatchRatesYear,0)),0)*HT111 -> 0 | IA111: =IF($AR111=IA$107,INDEX(IndexBenefits,MATCH($AR111,MatchBenefits,0),MATCH(HF$105,MatchRatesYear,0)),0)*HT111 -> 0 | IB111: =IF(LEFT($AR111,16)=IB$107,INDEX(IndexBenefits,MATCH($AR111,MatchBenefits,0),MATCH(HF$105,MatchRatesYear,0)),0)*HT111 -> 0 | IC111: =IF(IFERROR(INDEX(Index_SocialSecurity,MATCH($AR111,MatchBenefits,0)),Yes)=No,0,(MIN(INDEX(IndexBenefits,MATCH(SSIMax,MatchBenefits,0),MATCH(HF$105,MatchRatesYear,0))*$AB111,HT111*INDEX(IndexBenefits,MATCH(IC$107,MatchBenefits,0),MATCH(HF$105,MatchRatesYear,0))))) -> 0 | ID111: =HT111*INDEX(IndexBenefits,MATCH(ID$107,MatchBenefits,0),MATCH(HF$105,MatchRatesYear,0)) -> 0 | IE111: =IF(HT111=0,0,IF($AS111="",0,INDEX(IndexBenefits,MATCH($AS111,MatchBenefits,0),MATCH(HF$105,MatchRatesYear,0))*$AB111*(MIN(DATEDIF(MAX(DATE(YEAR($AM111),MONTH(EOMONTH($AM111,(DAY($AM111)>5)+0)),1),EDATE(StartDateYr1,12*(IE$93-1))),MIN(DATE(YEAR($AN111),MONTH($AN111)+1,1),EDATE(Year1EndDate+1,12*(IE$93-1))),"M")/12,1)))) -> 0 | IF111: =IF(_501c3Status=Yes,0,(MIN(INDEX(Index_FUTAMax,1,MATCH(HF$105,MatchRatesYear,0))*$AB111,HT111*INDEX(Index_FUTA_Rate,1,MATCH(HF$105,MatchRatesYear,0))))) -> 0 | IG111: =IF(SchoolFundStatus=Yes,HT111*INDEX(Index_SchoolFundRate,1,MATCH(HF$105,MatchRatesYear,0)),(1+INDEX(Index_NewEmployees,1,MATCH(HF$105,MatchRatesYear,0)))*MIN(INDEX(Index_SUTAMax,1,MATCH(HF$105,MatchRatesYear,0))*$AB111,HT111*INDEX(Index_SUTA_Rate,1,MATCH(HF$105,MatchRatesYear,0)))) -> 0 | IH111: =MIN(INDEX(IndexBenefits,MATCH(ETTMax,MatchBenefits,0),MATCH(HF$105,MatchRatesYear,0))*$AB111,HT111*INDEX(IndexBenefits,MATCH(IH$107,MatchBenefits,0),MATCH(HF$105,MatchRatesYear,0))) -> 0 | II111: =HT111*INDEX(IndexBenefits,MATCH(II$107,MatchBenefits,0),MATCH(HF$105,MatchRatesYear,0)) -> 0 | IJ111: =SUM(HY111:II111) -> 0 | IL111: =IF($AT111=Yes,INDEX(IndexInLieuMedical,1,MATCH(Payroll!IM$105,MatchRatesYear,0)),0) -> 0 | IM111: =$AB111*(BJ111+CR111+IL111) -> 74420.0132 | IN111: =IFERROR((IN$96=MEDIAN(EOMONTH($AM111,-1)+1,EOMONTH($AN111,0),IN$96))*((MIN($AN111,IN$97)-MAX($AM111-1,IN$96-1))/(IN$97-IN$96+1))*IM111*INDEX(IndexTiming,MATCH($AL111,MatchTiming,0),MATCH(IN$107,MatchPeriod,0)),0) -> 0 | IO111: =IFERROR((IO$96=MEDIAN(EOMONTH($AM111,-1)+1,EOMONTH($AN111,0),IO$96))*((MIN($AN111,IO$97)-MAX($AM111-1,IO$96-1))/(IO$97-IO$96+1))*IM111*INDEX(IndexTiming,MATCH($AL111,MatchTiming,0),MATCH(IO$107,MatchPeriod,0)),0) -> 0 | IP111: =IFERROR((IP$96=MEDIAN(EOMONTH($AM111,-1)+1,EOMONTH($AN111,0),IP$96))*((MIN($AN111,IP$97)-MAX($AM111-1,IP$96-1))/(IP$97-IP$96+1))*IM111*INDEX(IndexTiming,MATCH($AL111,MatchTiming,0),MATCH(IP$107,MatchPeriod,0)),0) -> 0 | IQ111: =IFERROR((IQ$96=MEDIAN(EOMONTH($AM111,-1)+1,EOMONTH($AN111,0),IQ$96))*((MIN($AN111,IQ$97)-MAX($AM111-1,IQ$96-1))/(IQ$97-IQ$96+1))*IM111*INDEX(IndexTiming,MATCH($AL111,MatchTiming,0),MATCH(IQ$107,MatchPeriod,0)),0) -> 0 | IR111: =IFERROR((IR$96=MEDIAN(EOMONTH($AM111,-1)+1,EOMONTH($AN111,0),IR$96))*((MIN($AN111,IR$97)-MAX($AM111-1,IR$96-1))/(IR$97-IR$96+1))*IM111*INDEX(IndexTiming,MATCH($AL111,MatchTiming,0),MATCH(IR$107,MatchPeriod,0)),0) -> 0 | IS111: =IFERROR((IS$96=MEDIAN(EOMONTH($AM111,-1)+1,EOMONTH($AN111,0),IS$96))*((MIN($AN111,IS$97)-MAX($AM111-1,IS$96-1))/(IS$97-IS$96+1))*IM111*INDEX(IndexTiming,MATCH($AL111,MatchTiming,0),MATCH(IS$107,MatchPeriod,0)),0) -> 0 | IT111: =IFERROR((IT$96=MEDIAN(EOMONTH($AM111,-1)+1,EOMONTH($AN111,0),IT$96))*((MIN($AN111,IT$97)-MAX($AM111-1,IT$96-1))/(IT$97-IT$96+1))*IM111*INDEX(IndexTiming,MATCH($AL111,MatchTiming,0),MATCH(IT$107,MatchPeriod,0)),0) -> 0 | IU111: =IFERROR((IU$96=MEDIAN(EOMONTH($AM111,-1)+1,EOMONTH($AN111,0),IU$96))*((MIN($AN111,IU$97)-MAX($AM111-1,IU$96-1))/(IU$97-IU$96+1))*IM111*INDEX(IndexTiming,MATCH($AL111,MatchTiming,0),MATCH(IU$107,MatchPeriod,0)),0) -> 0 | IV111: =IFERROR((IV$96=MEDIAN(EOMONTH($AM111,-1)+1,EOMONTH($AN111,0),IV$96))*((MIN($AN111,IV$97)-MAX($AM111-1,IV$96-1))/(IV$97-IV$96+1))*IM111*INDEX(IndexTiming,MATCH($AL111,MatchTiming,0),MATCH(IV$107,MatchPeriod,0)),0) -> 0 | IW111: =IFERROR((IW$96=MEDIAN(EOMONTH($AM111,-1)+1,EOMONTH($AN111,0),IW$96))*((MIN($AN111,IW$97)-MAX($AM111-1,IW$96-1))/(IW$97-IW$96+1))*IM111*INDEX(IndexTiming,MATCH($AL111,MatchTiming,0),MATCH(IW$107,MatchPeriod,0)),0) -> 0 | IX111: =IFERROR((IX$96=MEDIAN(EOMONTH($AM111,-1)+1,EOMONTH($AN111,0),IX$96))*((MIN($AN111,IX$97)-MAX($AM111-1,IX$96-1))/(IX$97-IX$96+1))*IM111*INDEX(IndexTiming,MATCH($AL111,MatchTiming,0),MATCH(IX$107,MatchPeriod,0)),0) -> 0 | IY111: =IFERROR((IY$96=MEDIAN(EOMONTH($AM111,-1)+1,EOMONTH($AN111,0),IY$96))*((MIN($AN111,IY$97)-MAX($AM111-1,IY$96-1))/(IY$97-IY$96+1))*IM111*INDEX(IndexTiming,MATCH($AL111,MatchTiming,0),MATCH(IY$107,MatchPeriod,0)),0) -> 0 | IZ111: =IF(SUM(IN111:IY111)>0,IM111*INDEX(IndexTiming,MATCH($AL111,MatchTiming,0),MATCH(IZ$107,MatchPeriod,0)),0) -> 0 | JA111: =SUM(IN111:IZ111) -> 0 | JB111: =IFERROR((-NetPayPercentage*JA111/JC111)*(JC111-MID(LEFT($AL111,FIND(",",$AL111)-1),FIND(" ",$AL111)+1,LEN($AL111))),0) -> 0 | JC111: =IF(LEFT($AL111,4)="Work",IF(RIGHT(LEFT($AL111,LEN($AL111)-13),1)=",",RIGHT(LEFT($AL111,LEN($AL111)-14),2),RIGHT($AL111,2)),0) -> 0 | JD111: =IFERROR(IF(BJ111=0,JA111/((CO111*FTEHours*CQ111+IL111)*$AB111)*$AB111,JA111/((BJ111/BH111+IL111)*$AB111)*$AB111),0) -> 0 | JE111: =JA111-IM111 -> -74420.0132 | JF111: =IF($AR111=JF$107,INDEX(IndexBenefits,MATCH($AR111,MatchBenefits,0),MATCH(IM$105,MatchRatesYear,0)),0)*JA111 -> 0 | JG111: =IF($AR111=JG$107,INDEX(IndexBenefits,MATCH($AR111,MatchBenefits,0),MATCH(IM$105,MatchRatesYear,0)),0)*JA111 -> 0 | JH111: =IF($AR111=JH$107,INDEX(IndexBenefits,MATCH($AR111,MatchBenefits,0),MATCH(IM$105,MatchRatesYear,0)),0)*JA111 -> 0 | JI111: =IF(LEFT($AR111,16)=JI$107,INDEX(IndexBenefits,MATCH($AR111,MatchBenefits,0),MATCH(IM$105,MatchRatesYear,0)),0)*JA111 -> 0 | JJ111: =IF(IFERROR(INDEX(Index_SocialSecurity,MATCH($AR111,MatchBenefits,0)),Yes)=No,0,(MIN(INDEX(IndexBenefits,MATCH(SSIMax,MatchBenefits,0),MATCH(IM$105,MatchRatesYear,0))*$AB111,JA111*INDEX(IndexBenefits,MATCH(JJ$107,MatchBenefits,0),MATCH(IM$105,MatchRatesYear,0))))) -> 0 | JK111: =JA111*INDEX(IndexBenefits,MATCH(JK$107,MatchBenefits,0),MATCH(IM$105,MatchRatesYear,0)) -> 0 | JL111: =IF(JA111=0,0,IF($AS111="",0,INDEX(IndexBenefits,MATCH($AS111,MatchBenefits,0),MATCH(IM$105,MatchRatesYear,0))*$AB111*(MIN(DATEDIF(MAX(DATE(YEAR($AM111),MONTH(EOMONTH($AM111,(DAY($AM111)>5)+0)),1),EDATE(StartDateYr1,12*(JL$93-1))),MIN(DATE(YEAR($AN111),MONTH($AN111)+1,1),EDATE(Year1EndDate+1,12*(JL$93-1))),"M")/12,1)))) -> 0 | JM111: =IF(_501c3Status=Yes,0,(MIN(INDEX(Index_FUTAMax,1,MATCH(IM$105,MatchRatesYear,0))*$AB111,JA111*INDEX(Index_FUTA_Rate,1,MATCH(IM$105,MatchRatesYear,0))))) -> 0 | JN111: =IF(SchoolFundStatus=Yes,JA111*INDEX(Index_SchoolFundRate,1,MATCH(IM$105,MatchRatesYear,0)),(1+INDEX(Index_NewEmployees,1,MATCH(IM$105,MatchRatesYear,0)))*MIN(INDEX(Index_SUTAMax,1,MATCH(IM$105,MatchRatesYear,0))*$AB111,JA111*INDEX(Index_SUTA_Rate,1,MATCH(IM$105,MatchRatesYear,0)))) -> 0 | JO111: =MIN(INDEX(IndexBenefits,MATCH(ETTMax,MatchBenefits,0),MATCH(IM$105,MatchRatesYear,0))*$AB111,JA111*INDEX(IndexBenefits,MATCH(JO$107,MatchBenefits,0),MATCH(IM$105,MatchRatesYear,0))) -> 0 | JP111: =JA111*INDEX(IndexBenefits,MATCH(JP$107,MatchBenefits,0),MATCH(IM$105,MatchRatesYear,0)) -> 0 | JQ111: =SUM(JF111:JP111) -> 0 | JS111: =IF($AT111=Yes,INDEX(IndexInLieuMedical,1,MATCH(Payroll!JT$105,MatchRatesYear,0)),0) -> 0 | JT111: =$AB111*(BN111+CY111+JS111) -> 76652.6136 | JU111: =IFERROR((JU$96=MEDIAN(EOMONTH($AM111,-1)+1,EOMONTH($AN111,0),JU$96))*((MIN($AN111,JU$97)-MAX($AM111-1,JU$96-1))/(JU$97-JU$96+1))*JT111*INDEX(IndexTiming,MATCH($AL111,MatchTiming,0),MATCH(JU$107,MatchPeriod,0)),0) -> 0 | JV111: =IFERROR((JV$96=MEDIAN(EOMONTH($AM111,-1)+1,EOMONTH($AN111,0),JV$96))*((MIN($AN111,JV$97)-MAX($AM111-1,JV$96-1))/(JV$97-JV$96+1))*JT111*INDEX(IndexTiming,MATCH($AL111,MatchTiming,0),MATCH(JV$107,MatchPeriod,0)),0) -> 0 | JW111: =IFERROR((JW$96=MEDIAN(EOMONTH($AM111,-1)+1,EOMONTH($AN111,0),JW$96))*((MIN($AN111,JW$97)-MAX($AM111-1,JW$96-1))/(JW$97-JW$96+1))*JT111*INDEX(IndexTiming,MATCH($AL111,MatchTiming,0),MATCH(JW$107,MatchPeriod,0)),0) -> 0 | JX111: =IFERROR((JX$96=MEDIAN(EOMONTH($AM111,-1)+1,EOMONTH($AN111,0),JX$96))*((MIN($AN111,JX$97)-MAX($AM111-1,JX$96-1))/(JX$97-JX$96+1))*JT111*INDEX(IndexTiming,MATCH($AL111,MatchTiming,0),MATCH(JX$107,MatchPeriod,0)),0) -> 0 | JY111: =IFERROR((JY$96=MEDIAN(EOMONTH($AM111,-1)+1,EOMONTH($AN111,0),JY$96))*((MIN($AN111,JY$97)-MAX($AM111-1,JY$96-1))/(JY$97-JY$96+1))*JT111*INDEX(IndexTiming,MATCH($AL111,MatchTiming,0),MATCH(JY$107,MatchPeriod,0)),0) -> 0 | JZ111: =IFERROR((JZ$96=MEDIAN(EOMONTH($AM111,-1)+1,EOMONTH($AN111,0),JZ$96))*((MIN($AN111,JZ$97)-MAX($AM111-1,JZ$96-1))/(JZ$97-JZ$96+1))*JT111*INDEX(IndexTiming,MATCH($AL111,MatchTiming,0),MATCH(JZ$107,MatchPeriod,0)),0) -> 0 | KA111: =IFERROR((KA$96=MEDIAN(EOMONTH($AM111,-1)+1,EOMONTH($AN111,0),KA$96))*((MIN($AN111,KA$97)-MAX($AM111-1,KA$96-1))/(KA$97-KA$96+1))*JT111*INDEX(IndexTiming,MATCH($AL111,MatchTiming,0),MATCH(KA$107,MatchPeriod,0)),0) -> 0 | KB111: =IFERROR((KB$96=MEDIAN(EOMONTH($AM111,-1)+1,EOMONTH($AN111,0),KB$96))*((MIN($AN111,KB$97)-MAX($AM111-1,KB$96-1))/(KB$97-KB$96+1))*JT111*INDEX(IndexTiming,MATCH($AL111,MatchTiming,0),MATCH(KB$107,MatchPeriod,0)),0) -> 0 | KC111: =IFERROR((KC$96=MEDIAN(EOMONTH($AM111,-1)+1,EOMONTH($AN111,0),KC$96))*((MIN($AN111,KC$97)-MAX($AM111-1,KC$96-1))/(KC$97-KC$96+1))*JT111*INDEX(IndexTiming,MATCH($AL111,MatchTiming,0),MATCH(KC$107,MatchPeriod,0)),0) -> 0 | KD111: =IFERROR((KD$96=MEDIAN(EOMONTH($AM111,-1)+1,EOMONTH($AN111,0),KD$96))*((MIN($AN111,KD$97)-MAX($AM111-1,KD$96-1))/(KD$97-KD$96+1))*JT111*INDEX(IndexTiming,MATCH($AL111,MatchTiming,0),MATCH(KD$107,MatchPeriod,0)),0) -> 0 | KE111: =IFERROR((KE$96=MEDIAN(EOMONTH($AM111,-1)+1,EOMONTH($AN111,0),KE$96))*((MIN($AN111,KE$97)-MAX($AM111-1,KE$96-1))/(KE$97-KE$96+1))*JT111*INDEX(IndexTiming,MATCH($AL111,MatchTiming,0),MATCH(KE$107,MatchPeriod,0)),0) -> 0 | KF111: =IFERROR((KF$96=MEDIAN(EOMONTH($AM111,-1)+1,EOMONTH($AN111,0),KF$96))*((MIN($AN111,KF$97)-MAX($AM111-1,KF$96-1))/(KF$97-KF$96+1))*JT111*INDEX(IndexTiming,MATCH($AL111,MatchTiming,0),MATCH(KF$107,MatchPeriod,0)),0) -> 0 | KG111: =IF(SUM(JU111:KF111)>0,JT111*INDEX(IndexTiming,MATCH($AL111,MatchTiming,0),MATCH(KG$107,MatchPeriod,0)),0) -> 0 | KH111: =SUM(JU111:KG111) -> 0 | KI111: =IFERROR((-NetPayPercentage*KH111/KJ111)*(KJ111-MID(LEFT($AL111,FIND(",",$AL111)-1),FIND(" ",$AL111)+1,LEN($AL111))),0) -> 0 | KJ111: =IF(LEFT($AL111,4)="Work",IF(RIGHT(LEFT($AL111,LEN($AL111)-13),1)=",",RIGHT(LEFT($AL111,LEN($AL111)-14),2),RIGHT($AL111,2)),0) -> 0 | KK111: =IFERROR(IF(BN111=0,KH111/((CV111*FTEHours*CX111+JS111)*$AB111)*$AB111,KH111/((BN111/BL111+JS111)*$AB111)*$AB111),0) -> 0 | KL111: =KH111-JT111 -> -76652.6136 | KM111: =IF($AR111=KM$107,INDEX(IndexBenefits,MATCH($AR111,MatchBenefits,0),MATCH(JT$105,MatchRatesYear,0)),0)*KH111 -> 0 | KN111: =IF($AR111=KN$107,INDEX(IndexBenefits,MATCH($AR111,MatchBenefits,0),MATCH(JT$105,MatchRatesYear,0)),0)*KH111 -> 0 | KO111: =IF($AR111=KO$107,INDEX(IndexBenefits,MATCH($AR111,MatchBenefits,0),MATCH(JT$105,MatchRatesYear,0)),0)*KH111 -> 0 | KP111: =IF(LEFT($AR111,16)=KP$107,INDEX(IndexBenefits,MATCH($AR111,MatchBenefits,0),MATCH(JT$105,MatchRatesYear,0)),0)*KH111 -> 0 | KQ111: =IF(IFERROR(INDEX(Index_SocialSecurity,MATCH($AR111,MatchBenefits,0)),Yes)=No,0,(MIN(INDEX(IndexBenefits,MATCH(SSIMax,MatchBenefits,0),MATCH(JT$105,MatchRatesYear,0))*$AB111,KH111*INDEX(IndexBenefits,MATCH(KQ$107,MatchBenefits,0),MATCH(JT$105,MatchRatesYear,0))))) -> 0 | KR111: =KH111*INDEX(IndexBenefits,MATCH(KR$107,MatchBenefits,0),MATCH(JT$105,MatchRatesYear,0)) -> 0 | KS111: =IF(KH111=0,0,IF($AS111="",0,INDEX(IndexBenefits,MATCH($AS111,MatchBenefits,0),MATCH(JT$105,MatchRatesYear,0))*$AB111*(MIN(DATEDIF(MAX(DATE(YEAR($AM111),MONTH(EOMONTH($AM111,(DAY($AM111)>5)+0)),1),EDATE(StartDateYr1,12*(KS$93-1))),MIN(DATE(YEAR($AN111),MONTH($AN111)+1,1),EDATE(Year1EndDate+1,12*(KS$93-1))),"M")/12,1)))) -> 0 | KT111: =IF(_501c3Status=Yes,0,(MIN(INDEX(Index_FUTAMax,1,MATCH(JT$105,MatchRatesYear,0))*$AB111,KH111*INDEX(Index_FUTA_Rate,1,MATCH(JT$105,MatchRatesYear,0))))) -> 0 | KU111: =IF(SchoolFundStatus=Yes,KH111*INDEX(Index_SchoolFundRate,1,MATCH(JT$105,MatchRatesYear,0)),(1+INDEX(Index_NewEmployees,1,MATCH(JT$105,MatchRatesYear,0)))*MIN(INDEX(Index_SUTAMax,1,MATCH(JT$105,MatchRatesYear,0))*$AB111,KH111*INDEX(Index_SUTA_Rate,1,MATCH(JT$105,MatchRatesYear,0)))) -> 0 | KV111: =MIN(INDEX(IndexBenefits,MATCH(ETTMax,MatchBenefits,0),MATCH(JT$105,MatchRatesYear,0))*$AB111,KH111*INDEX(IndexBenefits,MATCH(KV$107,MatchBenefits,0),MATCH(JT$105,MatchRatesYear,0))) -> 0 | KW111: =KH111*INDEX(IndexBenefits,MATCH(KW$107,MatchBenefits,0),MATCH(JT$105,MatchRatesYear,0)) -> 0 | KX111: =SUM(KM111:KW111) -> 0 | KZ111: =IF($AT111=Yes,INDEX(IndexInLieuMedical,1,MATCH(Payroll!LA$105,MatchRatesYear,0)),0) -> 0 | LA111: =$AB111*(BR111+DF111+KZ111) -> 78952.192 | LB111: =IFERROR((LB$96=MEDIAN(EOMONTH($AM111,-1)+1,EOMONTH($AN111,0),LB$96))*((MIN($AN111,LB$97)-MAX($AM111-1,LB$96-1))/(LB$97-LB$96+1))*LA111*INDEX(IndexTiming,MATCH($AL111,MatchTiming,0),MATCH(LB$107,MatchPeriod,0)),0) -> 0 | LC111: =IFERROR((LC$96=MEDIAN(EOMONTH($AM111,-1)+1,EOMONTH($AN111,0),LC$96))*((MIN($AN111,LC$97)-MAX($AM111-1,LC$96-1))/(LC$97-LC$96+1))*LA111*INDEX(IndexTiming,MATCH($AL111,MatchTiming,0),MATCH(LC$107,MatchPeriod,0)),0) -> 0 | LD111: =IFERROR((LD$96=MEDIAN(EOMONTH($AM111,-1)+1,EOMONTH($AN111,0),LD$96))*((MIN($AN111,LD$97)-MAX($AM111-1,LD$96-1))/(LD$97-LD$96+1))*LA111*INDEX(IndexTiming,MATCH($AL111,MatchTiming,0),MATCH(LD$107,MatchPeriod,0)),0) -> 0 | LE111: =IFERROR((LE$96=MEDIAN(EOMONTH($AM111,-1)+1,EOMONTH($AN111,0),LE$96))*((MIN($AN111,LE$97)-MAX($AM111-1,LE$96-1))/(LE$97-LE$96+1))*LA111*INDEX(IndexTiming,MATCH($AL111,MatchTiming,0),MATCH(LE$107,MatchPeriod,0)),0) -> 0 | LF111: =IFERROR((LF$96=MEDIAN(EOMONTH($AM111,-1)+1,EOMONTH($AN111,0),LF$96))*((MIN($AN111,LF$97)-MAX($AM111-1,LF$96-1))/(LF$97-LF$96+1))*LA111*INDEX(IndexTiming,MATCH($AL111,MatchTiming,0),MATCH(LF$107,MatchPeriod,0)),0) -> 0 | LG111: =IFERROR((LG$96=MEDIAN(EOMONTH($AM111,-1)+1,EOMONTH($AN111,0),LG$96))*((MIN($AN111,LG$97)-MAX($AM111-1,LG$96-1))/(LG$97-LG$96+1))*LA111*INDEX(IndexTiming,MATCH($AL111,MatchTiming,0),MATCH(LG$107,MatchPeriod,0)),0) -> 0 | LH111: =IFERROR((LH$96=MEDIAN(EOMONTH($AM111,-1)+1,EOMONTH($AN111,0),LH$96))*((MIN($AN111,LH$97)-MAX($AM111-1,LH$96-1))/(LH$97-LH$96+1))*LA111*INDEX(IndexTiming,MATCH($AL111,MatchTiming,0),MATCH(LH$107,MatchPeriod,0)),0) -> 0 | LI111: =IFERROR((LI$96=MEDIAN(EOMONTH($AM111,-1)+1,EOMONTH($AN111,0),LI$96))*((MIN($AN111,LI$97)-MAX($AM111-1,LI$96-1))/(LI$97-LI$96+1))*LA111*INDEX(IndexTiming,MATCH($AL111,MatchTiming,0),MATCH(LI$107,MatchPeriod,0)),0) -> 0 | LJ111: =IFERROR((LJ$96=MEDIAN(EOMONTH($AM111,-1)+1,EOMONTH($AN111,0),LJ$96))*((MIN($AN111,LJ$97)-MAX($AM111-1,LJ$96-1))/(LJ$97-LJ$96+1))*LA111*INDEX(IndexTiming,MATCH($AL111,MatchTiming,0),MATCH(LJ$107,MatchPeriod,0)),0) -> 0 | LK111: =IFERROR((LK$96=MEDIAN(EOMONTH($AM111,-1)+1,EOMONTH($AN111,0),LK$96))*((MIN($AN111,LK$97)-MAX($AM111-1,LK$96-1))/(LK$97-LK$96+1))*LA111*INDEX(IndexTiming,MATCH($AL111,MatchTiming,0),MATCH(LK$107,MatchPeriod,0)),0) -> 0 | LL111: =IFERROR((LL$96=MEDIAN(EOMONTH($AM111,-1)+1,EOMONTH($AN111,0),LL$96))*((MIN($AN111,LL$97)-MAX($AM111-1,LL$96-1))/(LL$97-LL$96+1))*LA111*INDEX(IndexTiming,MATCH($AL111,MatchTiming,0),MATCH(LL$107,MatchPeriod,0)),0) -> 0 | LM111: =IFERROR((LM$96=MEDIAN(EOMONTH($AM111,-1)+1,EOMONTH($AN111,0),LM$96))*((MIN($AN111,LM$97)-MAX($AM111-1,LM$96-1))/(LM$97-LM$96+1))*LA111*INDEX(IndexTiming,MATCH($AL111,MatchTiming,0),MATCH(LM$107,MatchPeriod,0)),0) -> 0 | LN111: =IF(SUM(LB111:LM111)>0,LA111*INDEX(IndexTiming,MATCH($AL111,MatchTiming,0),MATCH(LN$107,MatchPeriod,0)),0) -> 0 | LO111: =SUM(LB111:LN111) -> 0 | LP111: =IFERROR((-NetPayPercentage*LO111/LQ111)*(LQ111-MID(LEFT($AL111,FIND(",",$AL111)-1),FIND(" ",$AL111)+1,LEN($AL111))),0) -> 0 | LQ111: =IF(LEFT($AL111,4)="Work",IF(RIGHT(LEFT($AL111,LEN($AL111)-13),1)=",",RIGHT(LEFT($AL111,LEN($AL111)-14),2),RIGHT($AL111,2)),0) -> 0 | LR111: =IFERROR(IF(BR111=0,LO111/((DC111*FTEHours*DE111+KZ111)*$AB111)*$AB111,LO111/((BR111/$BP111+KZ111)*$AB111)*$AB111),0) -> 0 | LS111: =LO111-LA111 -> -78952.192 | LT111: =IF($AR111=LT$107,INDEX(IndexBenefits,MATCH($AR111,MatchBenefits,0),MATCH(LA$105,MatchRatesYear,0)),0)*LO111 -> 0 | LU111: =IF($AR111=LU$107,INDEX(IndexBenefits,MATCH($AR111,MatchBenefits,0),MATCH(LA$105,MatchRatesYear,0)),0)*LO111 -> 0 | LV111: =IF($AR111=LV$107,INDEX(IndexBenefits,MATCH($AR111,MatchBenefits,0),MATCH(LA$105,MatchRatesYear,0)),0)*LO111 -> 0 | LW111: =IF(LEFT($AR111,16)=LW$107,INDEX(IndexBenefits,MATCH($AR111,MatchBenefits,0),MATCH(LA$105,MatchRatesYear,0)),0)*LO111 -> 0 | LX111: =IF(IFERROR(INDEX(Index_SocialSecurity,MATCH($AR111,MatchBenefits,0)),Yes)=No,0,(MIN(INDEX(IndexBenefits,MATCH(SSIMax,MatchBenefits,0),MATCH(LA$105,MatchRatesYear,0))*$AB111,LO111*INDEX(IndexBenefits,MATCH(LX$107,MatchBenefits,0),MATCH(LA$105,MatchRatesYear,0))))) -> 0 | LY111: =LO111*INDEX(IndexBenefits,MATCH(LY$107,MatchBenefits,0),MATCH(LA$105,MatchRatesYear,0)) -> 0 | LZ111: =IF(LO111=0,0,IF($AS111="",0,INDEX(IndexBenefits,MATCH($AS111,MatchBenefits,0),MATCH(LA$105,MatchRatesYear,0))*$AB111*(MIN(DATEDIF(MAX(DATE(YEAR($AM111),MONTH(EOMONTH($AM111,(DAY($AM111)>5)+0)),1),EDATE(StartDateYr1,12*(LZ$93-1))),MIN(DATE(YEAR($AN111),MONTH($AN111)+1,1),EDATE(Year1EndDate+1,12*(LZ$93-1))),"M")/12,1)))) -> 0 | MA111: =IF(_501c3Status=Yes,0,(MIN(INDEX(Index_FUTAMax,1,MATCH(LA$105,MatchRatesYear,0))*$AB111,LO111*INDEX(Index_FUTA_Rate,1,MATCH(LA$105,MatchRatesYear,0))))) -> 0 | MB111: =IF(SchoolFundStatus=Yes,LO111*INDEX(Index_SchoolFundRate,1,MATCH(LA$105,MatchRatesYear,0)),(1+INDEX(Index_NewEmployees,1,MATCH(LA$105,MatchRatesYear,0)))*MIN(INDEX(Index_SUTAMax,1,MATCH(LA$105,MatchRatesYear,0))*$AB111,LO111*INDEX(Index_SUTA_Rate,1,MATCH(LA$105,MatchRatesYear,0)))) -> 0 | MC111: =MIN(INDEX(IndexBenefits,MATCH(ETTMax,MatchBenefits,0),MATCH(LA$105,MatchRatesYear,0))*$AB111,LO111*INDEX(IndexBenefits,MATCH(MC$107,MatchBenefits,0),MATCH(LA$105,MatchRatesYear,0))) -> 0 | MD111: =LO111*INDEX(IndexBenefits,MATCH(MD$107,MatchBenefits,0),MATCH(LA$105,MatchRatesYear,0)) -> 0 | ME111: =SUM(LT111:MD111) -> 0
AB112: 1 | AE112: Anatomy & Physiology Teacher | AG112: 1100 | AH112: 2020-07-01 | AL112: Aug to Jun | AM112: =IF(AH112="",StartDateYr1,AH112) -> 2020-07-01 | AN112: =IF(AI112="",Year10EndDate,AI112) -> 2030-06-30 | AO112: =IF(AND(AG112<2000,AG112>=1000),Certificated,IF(AND(AG112>=2000,AG112<3000),Classified,"")) -> Certificated | AR112: STRS | AS112: Health for 70% | AU112: 1 | AV112: 51816 | AW112: 51816 | AX112: 54075 | AZ112: =IF($AN112<INDEX(YearStartDate,1,MATCH(AY$105,YearRelative,0)),0,IF(AY112="",AU112,AY112)) -> 1 | BA112: 54075 | BB112: =IF($AN112<INDEX(YearStartDate,1,MATCH(AY$105,YearRelative,0)),0,IFERROR(IF(BA112="",AZ112*AW112/AU112*(1+INDEX(IndexCOLA,MATCH($AO112,MatchCOLA,0),MATCH(AY$105,MatchRatesYear,0))),AZ112*BA112),0)) -> 54075 | BD112: =IF($AN112<INDEX(YearStartDate,1,MATCH(BC$105,YearRelative,0)),0,IF(BC112="",AZ112,BC112)) -> 1 | BF112: =IF($AN112<INDEX(YearStartDate,1,MATCH(BC$105,YearRelative,0)),0,IFERROR(IF(BE112="",BD112*BB112/AZ112*(1+INDEX(IndexCOLA,MATCH($AO112,MatchCOLA,0),MATCH(BC$105,MatchRatesYear,0))),BD112*BE112),0)) -> 55697.25 | BH112: =IF($AN112<INDEX(YearStartDate,1,MATCH(BG$105,YearRelative,0)),0,IF(BG112="",BD112,BG112)) -> 1 | BJ112: =IF($AN112<INDEX(YearStartDate,1,MATCH(BG$105,YearRelative,0)),0,IFERROR(IF(BI112="",BH112*BF112/BD112*(1+INDEX(IndexCOLA,MATCH($AO112,MatchCOLA,0),MATCH(BG$105,MatchRatesYear,0))),BH112*BI112),0)) -> 57368.1675 | BL112: =IF($AN112<INDEX(YearStartDate,1,MATCH(BK$105,YearRelative,0)),0,IF(BK112="",BH112,BK112)) -> 1 | BN112: =IF($AN112<INDEX(YearStartDate,1,MATCH(BK$105,YearRelative,0)),0,IFERROR(IF(BM112="",BL112*BJ112/BH112*(1+INDEX(IndexCOLA,MATCH($AO112,MatchCOLA,0),MATCH(BK$105,MatchRatesYear,0))),BL112*BM112),0)) -> 59089.21253 | BP112: =IF($AN112<INDEX(YearStartDate,1,MATCH(BO$105,YearRelative,0)),0,IF(BO112="",BL112,BO112)) -> 1 | BR112: =IF($AN112<INDEX(YearStartDate,1,MATCH(BO$105,YearRelative,0)),0,IFERROR(IF(BQ112="",BP112*BN112/BL112*(1+INDEX(IndexCOLA,MATCH($AO112,MatchCOLA,0),MATCH(BO$105,MatchRatesYear,0))),BP112*BQ112),0)) -> 60861.8889 | BT112: 0 | BU112: 0 | BV112: 0 | BW112: 0 | CA112: =IF($AN112<INDEX(YearStartDate,1,MATCH(AY$105,YearRelative,0)),0,IFERROR(IF(BX112="",BT112*(1+INDEX(IndexCOLA,MATCH($AO112,MatchCOLA,0),MATCH(BX$105,MatchRatesYear,0))),BX112),0)) -> 0 | CB112: =IF(BY112="",BU112,BY112) -> 0 | CC112: 0 | CD112: 0 | CH112: =IF($AN112<INDEX(YearStartDate,1,MATCH(AY$105,YearRelative,0)),0,IFERROR(IF(CE112="",CA112*(1+INDEX(IndexCOLA,MATCH($AO112,MatchCOLA,0),MATCH(CE$105,MatchRatesYear,0))),CE112),0)) -> 0 | CI112: =IF(CF112="",CB112,CF112) -> 0 | CJ112: 0 | CK112: 0 | CO112: =IF($AN112<INDEX(YearStartDate,1,MATCH(AY$105,YearRelative,0)),0,IFERROR(IF(CL112="",CH112*(1+INDEX(IndexCOLA,MATCH($AO112,MatchCOLA,0),MATCH(CL$105,MatchRatesYear,0))),CL112),0)) -> 0 | CP112: =IF(CM112="",CI112,CM112) -> 0 | CQ112: 0 | CR112: 0 | CV112: =IF($AN112<INDEX(YearStartDate,1,MATCH(AY$105,YearRelative,0)),0,IFERROR(IF(CS112="",CO112*(1+INDEX(IndexCOLA,MATCH($AO112,MatchCOLA,0),MATCH(CS$105,MatchRatesYear,0))),CS112),0)) -> 0 | CW112: =IF(CT112="",CP112,CT112) -> 0 | CX112: 0 | CY112: 0 | DC112: =IF($AN112<INDEX(YearStartDate,1,MATCH(AY$105,YearRelative,0)),0,IFERROR(IF(CZ112="",CV112*(1+INDEX(IndexCOLA,MATCH($AO112,MatchCOLA,0),MATCH(CZ$105,MatchRatesYear,0))),CZ112),0)) -> 0 | DD112: =IF(DA112="",CW112,DA112) -> 0 | DE112: 0 | DF112: 0 | DH112: 1 | DI112: 1 | DJ112: 1 | DK112: =1 -> 1 | DL112: 1 | DM112: 1 | DP112: 0 | DU112: 0 | DZ112: 0 | EE112: 0 | EJ112: 0 | EO112: 0 | EQ112: =IF($AT112=Yes,INDEX(IndexInLieuMedical,1,MATCH(Payroll!ER$105,MatchRatesYear,0)),0) -> 0 | ER112: 51816 | ES112: 0 | ET112: 0 | EU112: 0 | EV112: 0 | EW112: 0 | EX112: 0 | EY112: 0 | EZ112: 0 | FA112: 0 | FB112: 0 | FC112: 0 | FD112: 0 | FE112: 0 | FF112: 0 | FG112: =IFERROR((-NetPayPercentage*FF112/FH112)*(FH112-MID(LEFT($AL112,FIND(",",$AL112)-1),FIND(" ",$AL112)+1,LEN($AL112))),0) -> 0 | FH112: 0 | FI112: =IFERROR(IF(AW112=0,FF112/((BT112*FTEHours*BV112+EQ112)*$AB112)*$AB112,FF112/((AV112+EQ112)*$AB112)*$AB112),0) -> 0 | FJ112: -51816 | FK112: =IF($AR112=FK$107,INDEX(IndexBenefits,MATCH($AR112,MatchBenefits,0),MATCH(ER$105,MatchRatesYear,0)),0)*FF112 -> 0 | FL112: =IF($AR112=FL$107,INDEX(IndexBenefits,MATCH($AR112,MatchBenefits,0),MATCH(ER$105,MatchRatesYear,0)),0)*FF112 -> 0 | FM112: =IF($AR112=FM$107,INDEX(IndexBenefits,MATCH($AR112,MatchBenefits,0),MATCH(ER$105,MatchRatesYear,0)),0)*FF112 -> 0 | FN112: =IF(LEFT($AR112,16)=FN$107,INDEX(IndexBenefits,MATCH($AR112,MatchBenefits,0),MATCH(ER$105,MatchRatesYear,0)),0)*FF112 -> 0 | FO112: =IF(IFERROR(INDEX(Index_SocialSecurity,MATCH($AR112,MatchBenefits,0)),Yes)=No,0,(MIN(INDEX(IndexBenefits,MATCH(SSIMax,MatchBenefits,0),MATCH(ER$105,MatchRatesYear,0))*$AB112,FF112*INDEX(IndexBenefits,MATCH(FO$107,MatchBenefits,0),MATCH(ER$105,MatchRatesYear,0))))) -> 0 | FP112: =FF112*INDEX(IndexBenefits,MATCH(FP$107,MatchBenefits,0),MATCH(ER$105,MatchRatesYear,0)) -> 0 | FQ112: =IF(FF112=0,0,IF($AS112="",0,INDEX(IndexBenefits,MATCH($AS112,MatchBenefits,0),MATCH(ER$105,MatchRatesYear,0))*$AB112*(MIN(DATEDIF(MAX(DATE(YEAR($AM112),MONTH(EOMONTH($AM112,(DAY($AM112)>5)+0)),1),EDATE(StartDateYr1,12*(FQ$93-1))),MIN(DATE(YEAR($AN112),MONTH($AN112)+1,1),EDATE(Year1EndDate+1,12*(FQ$93-1))),"M")/12,1)))) -> 0 | FR112: =IF(_501c3Status=Yes,0,(MIN(INDEX(Index_FUTAMax,1,MATCH(ER$105,MatchRatesYear,0))*$AB112,FF112*INDEX(Index_FUTA_Rate,1,MATCH(ER$105,MatchRatesYear,0))))) -> 0 | FS112: =IF(SchoolFundStatus=Yes,FF112*INDEX(Index_SchoolFundRate,1,MATCH(ER$105,MatchRatesYear,0)),(1+INDEX(Index_NewEmployees,1,MATCH(ER$105,MatchRatesYear,0)))*MIN(INDEX(Index_SUTAMax,1,MATCH(ER$105,MatchRatesYear,0))*$AB112,FF112*INDEX(Index_SUTA_Rate,1,MATCH(ER$105,MatchRatesYear,0)))) -> 0 | FT112: =MIN(INDEX(IndexBenefits,MATCH(ETTMax,MatchBenefits,0),MATCH(ER$105,MatchRatesYear,0))*$AB112,FF112*INDEX(IndexBenefits,MATCH(FT$107,MatchBenefits,0),MATCH(ER$105,MatchRatesYear,0))) -> 0 | FU112: =FF112*INDEX(IndexBenefits,MATCH(FU$107,MatchBenefits,0),MATCH(ER$105,MatchRatesYear,0)) -> 0 | FV112: 0 | FX112: =IF($AT112=Yes,INDEX(IndexInLieuMedical,1,MATCH(Payroll!FY$105,MatchRatesYear,0)),0) -> 0 | FY112: 54075 | FZ112: 0 | GA112: 0 | GB112: 0 | GC112: 0 | GD112: 0 | GE112: 0 | GF112: 0 | GG112: 0 | GH112: 0 | GI112: 0 | GJ112: 0 | GK112: 0 | GL112: 0 | GM112: 0 | GN112: =IFERROR((-NetPayPercentage*GM112/GO112)*(GO112-MID(LEFT($AL112,FIND(",",$AL112)-1),FIND(" ",$AL112)+1,LEN($AL112))),0) -> 0 | GO112: 0 | GP112: =IFERROR(IF(BB112=0,GM112/((CA112*FTEHours*CC112+FX112)*$AB112)*$AB112,GM112/((BB112/AZ112+FX112)*$AB112)*$AB112),0) -> 0 | GQ112: -54075 | GR112: =IF($AR112=GR$107,INDEX(IndexBenefits,MATCH($AR112,MatchBenefits,0),MATCH(FY$105,MatchRatesYear,0)),0)*GM112 -> 0 | GS112: =IF($AR112=GS$107,INDEX(IndexBenefits,MATCH($AR112,MatchBenefits,0),MATCH(FY$105,MatchRatesYear,0)),0)*GM112 -> 0 | GT112: =IF($AR112=GT$107,INDEX(IndexBenefits,MATCH($AR112,MatchBenefits,0),MATCH(FY$105,MatchRatesYear,0)),0)*GM112 -> 0 | GU112: =IF(LEFT($AR112,16)=GU$107,INDEX(IndexBenefits,MATCH($AR112,MatchBenefits,0),MATCH(FY$105,MatchRatesYear,0)),0)*GM112 -> 0 | GV112: =IF(IFERROR(INDEX(Index_SocialSecurity,MATCH($AR112,MatchBenefits,0)),Yes)=No,0,(MIN(INDEX(IndexBenefits,MATCH(SSIMax,MatchBenefits,0),MATCH(FY$105,MatchRatesYear,0))*$AB112,GM112*INDEX(IndexBenefits,MATCH(GV$107,MatchBenefits,0),MATCH(FY$105,MatchRatesYear,0))))) -> 0 | GW112: =GM112*INDEX(IndexBenefits,MATCH(GW$107,MatchBenefits,0),MATCH(FY$105,MatchRatesYear,0)) -> 0 | GX112: =IF(GM112=0,0,IF($AS112="",0,INDEX(IndexBenefits,MATCH($AS112,MatchBenefits,0),MATCH(FY$105,MatchRatesYear,0))*$AB112*(MIN(DATEDIF(MAX(DATE(YEAR($AM112),MONTH(EOMONTH($AM112,(DAY($AM112)>5)+0)),1),EDATE(StartDateYr1,12*(GX$93-1))),MIN(DATE(YEAR($AN112),MONTH($AN112)+1,1),EDATE(Year1EndDate+1,12*(GX$93-1))),"M")/12,1)))) -> 0 | GY112: =IF(_501c3Status=Yes,0,(MIN(INDEX(Index_FUTAMax,1,MATCH(FY$105,MatchRatesYear,0))*$AB112,GM112*INDEX(Index_FUTA_Rate,1,MATCH(FY$105,MatchRatesYear,0))))) -> 0 | GZ112: =IF(SchoolFundStatus=Yes,GM112*INDEX(Index_SchoolFundRate,1,MATCH(FY$105,MatchRatesYear,0)),(1+INDEX(Index_NewEmployees,1,MATCH(FY$105,MatchRatesYear,0)))*MIN(INDEX(Index_SUTAMax,1,MATCH(FY$105,MatchRatesYear,0))*$AB112,GM112*INDEX(Index_SUTA_Rate,1,MATCH(FY$105,MatchRatesYear,0)))) -> 0 | HA112: =MIN(INDEX(IndexBenefits,MATCH(ETTMax,MatchBenefits,0),MATCH(FY$105,MatchRatesYear,0))*$AB112,GM112*INDEX(IndexBenefits,MATCH(HA$107,MatchBenefits,0),MATCH(FY$105,MatchRatesYear,0))) -> 0 | HB112: =GM112*INDEX(IndexBenefits,MATCH(HB$107,MatchBenefits,0),MATCH(FY$105,MatchRatesYear,0)) -> 0 | HC112: 0 | HE112: =IF($AT112=Yes,INDEX(IndexInLieuMedical,1,MATCH(Payroll!HF$105,MatchRatesYear,0)),0) -> 0 | HF112: 55697.25 | HG112: 0 | HH112: 0 | HI112: 0 | HJ112: 0 | HK112: 0 | HL112: 0 | HM112: 0 | HN112: 0 | HO112: 0 | HP112: 0 | HQ112: 0 | HR112: 0 | HS112: 0 | HT112: 0 | HU112: =IFERROR((-NetPayPercentage*HT112/HV112)*(HV112-MID(LEFT($AL112,FIND(",",$AL112)-1),FIND(" ",$AL112)+1,LEN($AL112))),0) -> 0 | HV112: 0 | HW112: =IFERROR(IF(BF112=0,HT112/((CH112*FTEHours*CJ112+HE112)*$AB112)*$AB112,HT112/((BF112/BD112+HE112)*$AB112)*$AB112),0) -> 0 | HX112: -55697.25 | HY112: =IF($AR112=HY$107,INDEX(IndexBenefits,MATCH($AR112,MatchBenefits,0),MATCH(HF$105,MatchRatesYear,0)),0)*HT112 -> 0 | HZ112: =IF($AR112=HZ$107,INDEX(IndexBenefits,MATCH($AR112,MatchBenefits,0),MATCH(HF$105,MatchRatesYear,0)),0)*HT112 -> 0 | IA112: =IF($AR112=IA$107,INDEX(IndexBenefits,MATCH($AR112,MatchBenefits,0),MATCH(HF$105,MatchRatesYear,0)),0)*HT112 -> 0 | IB112: =IF(LEFT($AR112,16)=IB$107,INDEX(IndexBenefits,MATCH($AR112,MatchBenefits,0),MATCH(HF$105,MatchRatesYear,0)),0)*HT112 -> 0 | IC112: =IF(IFERROR(INDEX(Index_SocialSecurity,MATCH($AR112,MatchBenefits,0)),Yes)=No,0,(MIN(INDEX(IndexBenefits,MATCH(SSIMax,MatchBenefits,0),MATCH(HF$105,MatchRatesYear,0))*$AB112,HT112*INDEX(IndexBenefits,MATCH(IC$107,MatchBenefits,0),MATCH(HF$105,MatchRatesYear,0))))) -> 0 | ID112: =HT112*INDEX(IndexBenefits,MATCH(ID$107,MatchBenefits,0),MATCH(HF$105,MatchRatesYear,0)) -> 0 | IE112: =IF(HT112=0,0,IF($AS112="",0,INDEX(IndexBenefits,MATCH($AS112,MatchBenefits,0),MATCH(HF$105,MatchRatesYear,0))*$AB112*(MIN(DATEDIF(MAX(DATE(YEAR($AM112),MONTH(EOMONTH($AM112,(DAY($AM112)>5)+0)),1),EDATE(StartDateYr1,12*(IE$93-1))),MIN(DATE(YEAR($AN112),MONTH($AN112)+1,1),EDATE(Year1EndDate+1,12*(IE$93-1))),"M")/12,1)))) -> 0 | IF112: =IF(_501c3Status=Yes,0,(MIN(INDEX(Index_FUTAMax,1,MATCH(HF$105,MatchRatesYear,0))*$AB112,HT112*INDEX(Index_FUTA_Rate,1,MATCH(HF$105,MatchRatesYear,0))))) -> 0 | IG112: =IF(SchoolFundStatus=Yes,HT112*INDEX(Index_SchoolFundRate,1,MATCH(HF$105,MatchRatesYear,0)),(1+INDEX(Index_NewEmployees,1,MATCH(HF$105,MatchRatesYear,0)))*MIN(INDEX(Index_SUTAMax,1,MATCH(HF$105,MatchRatesYear,0))*$AB112,HT112*INDEX(Index_SUTA_Rate,1,MATCH(HF$105,MatchRatesYear,0)))) -> 0 | IH112: =MIN(INDEX(IndexBenefits,MATCH(ETTMax,MatchBenefits,0),MATCH(HF$105,MatchRatesYear,0))*$AB112,HT112*INDEX(IndexBenefits,MATCH(IH$107,MatchBenefits,0),MATCH(HF$105,MatchRatesYear,0))) -> 0 | II112: =HT112*INDEX(IndexBenefits,MATCH(II$107,MatchBenefits,0),MATCH(HF$105,MatchRatesYear,0)) -> 0 | IJ112: 0 | IL112: =IF($AT112=Yes,INDEX(IndexInLieuMedical,1,MATCH(Payroll!IM$105,MatchRatesYear,0)),0) -> 0 | IM112: 57368.1675 | IN112: 0 | IO112: 0 | IP112: 0 | IQ112: 0 | IR112: 0 | IS112: 0 | IT112: 0 | IU112: 0 | IV112: 0 | IW112: 0 | IX112: 0 | IY112: 0 | IZ112: 0 | JA112: 0 | JB112: =IFERROR((-NetPayPercentage*JA112/JC112)*(JC112-MID(LEFT($AL112,FIND(",",$AL112)-1),FIND(" ",$AL112)+1,LEN($AL112))),0) -> 0 | JC112: 0 | JD112: =IFERROR(IF(BJ112=0,JA112/((CO112*FTEHours*CQ112+IL112)*$AB112)*$AB112,JA112/((BJ112/BH112+IL112)*$AB112)*$AB112),0) -> 0 | JE112: -57368.1675 | JF112: =IF($AR112=JF$107,INDEX(IndexBenefits,MATCH($AR112,MatchBenefits,0),MATCH(IM$105,MatchRatesYear,0)),0)*JA112 -> 0 | JG112: =IF($AR112=JG$107,INDEX(IndexBenefits,MATCH($AR112,MatchBenefits,0),MATCH(IM$105,MatchRatesYear,0)),0)*JA112 -> 0 | JH112: =IF($AR112=JH$107,INDEX(IndexBenefits,MATCH($AR112,MatchBenefits,0),MATCH(IM$105,MatchRatesYear,0)),0)*JA112 -> 0 | JI112: =IF(LEFT($AR112,16)=JI$107,INDEX(IndexBenefits,MATCH($AR112,MatchBenefits,0),MATCH(IM$105,MatchRatesYear,0)),0)*JA112 -> 0 | JJ112: =IF(IFERROR(INDEX(Index_SocialSecurity,MATCH($AR112,MatchBenefits,0)),Yes)=No,0,(MIN(INDEX(IndexBenefits,MATCH(SSIMax,MatchBenefits,0),MATCH(IM$105,MatchRatesYear,0))*$AB112,JA112*INDEX(IndexBenefits,MATCH(JJ$107,MatchBenefits,0),MATCH(IM$105,MatchRatesYear,0))))) -> 0 | JK112: =JA112*INDEX(IndexBenefits,MATCH(JK$107,MatchBenefits,0),MATCH(IM$105,MatchRatesYear,0)) -> 0 | JL112: =IF(JA112=0,0,IF($AS112="",0,INDEX(IndexBenefits,MATCH($AS112,MatchBenefits,0),MATCH(IM$105,MatchRatesYear,0))*$AB112*(MIN(DATEDIF(MAX(DATE(YEAR($AM112),MONTH(EOMONTH($AM112,(DAY($AM112)>5)+0)),1),EDATE(StartDateYr1,12*(JL$93-1))),MIN(DATE(YEAR($AN112),MONTH($AN112)+1,1),EDATE(Year1EndDate+1,12*(JL$93-1))),"M")/12,1)))) -> 0 | JM112: =IF(_501c3Status=Yes,0,(MIN(INDEX(Index_FUTAMax,1,MATCH(IM$105,MatchRatesYear,0))*$AB112,JA112*INDEX(Index_FUTA_Rate,1,MATCH(IM$105,MatchRatesYear,0))))) -> 0 | JN112: =IF(SchoolFundStatus=Yes,JA112*INDEX(Index_SchoolFundRate,1,MATCH(IM$105,MatchRatesYear,0)),(1+INDEX(Index_NewEmployees,1,MATCH(IM$105,MatchRatesYear,0)))*MIN(INDEX(Index_SUTAMax,1,MATCH(IM$105,MatchRatesYear,0))*$AB112,JA112*INDEX(Index_SUTA_Rate,1,MATCH(IM$105,MatchRatesYear,0)))) -> 0 | JO112: =MIN(INDEX(IndexBenefits,MATCH(ETTMax,MatchBenefits,0),MATCH(IM$105,MatchRatesYear,0))*$AB112,JA112*INDEX(IndexBenefits,MATCH(JO$107,MatchBenefits,0),MATCH(IM$105,MatchRatesYear,0))) -> 0 | JP112: =JA112*INDEX(IndexBenefits,MATCH(JP$107,MatchBenefits,0),MATCH(IM$105,MatchRatesYear,0)) -> 0 | JQ112: 0 | JS112: =IF($AT112=Yes,INDEX(IndexInLieuMedical,1,MATCH(Payroll!JT$105,MatchRatesYear,0)),0) -> 0 | JT112: 59089.21253 | JU112: 0 | JV112: 0 | JW112: 0 | JX112: 0 | JY112: 0 | JZ112: 0 | KA112: 0 | KB112: 0 | KC112: 0 | KD112: 0 | KE112: 0 | KF112: 0 | KG112: 0 | KH112: 0 | KI112: =IFERROR((-NetPayPercentage*KH112/KJ112)*(KJ112-MID(LEFT($AL112,FIND(",",$AL112)-1),FIND(" ",$AL112)+1,LEN($AL112))),0) -> 0 | KJ112: 0 | KK112: =IFERROR(IF(BN112=0,KH112/((CV112*FTEHours*CX112+JS112)*$AB112)*$AB112,KH112/((BN112/BL112+JS112)*$AB112)*$AB112),0) -> 0 | KL112: -59089.21253 | KM112: =IF($AR112=KM$107,INDEX(IndexBenefits,MATCH($AR112,MatchBenefits,0),MATCH(JT$105,MatchRatesYear,0)),0)*KH112 -> 0 | KN112: =IF($AR112=KN$107,INDEX(IndexBenefits,MATCH($AR112,MatchBenefits,0),MATCH(JT$105,MatchRatesYear,0)),0)*KH112 -> 0 | KO112: =IF($AR112=KO$107,INDEX(IndexBenefits,MATCH($AR112,MatchBenefits,0),MATCH(JT$105,MatchRatesYear,0)),0)*KH112 -> 0 | KP112: =IF(LEFT($AR112,16)=KP$107,INDEX(IndexBenefits,MATCH($AR112,MatchBenefits,0),MATCH(JT$105,MatchRatesYear,0)),0)*KH112 -> 0 | KQ112: =IF(IFERROR(INDEX(Index_SocialSecurity,MATCH($AR112,MatchBenefits,0)),Yes)=No,0,(MIN(INDEX(IndexBenefits,MATCH(SSIMax,MatchBenefits,0),MATCH(JT$105,MatchRatesYear,0))*$AB112,KH112*INDEX(IndexBenefits,MATCH(KQ$107,MatchBenefits,0),MATCH(JT$105,MatchRatesYear,0))))) -> 0 | KR112: =KH112*INDEX(IndexBenefits,MATCH(KR$107,MatchBenefits,0),MATCH(JT$105,MatchRatesYear,0)) -> 0 | KS112: =IF(KH112=0,0,IF($AS112="",0,INDEX(IndexBenefits,MATCH($AS112,MatchBenefits,0),MATCH(JT$105,MatchRatesYear,0))*$AB112*(MIN(DATEDIF(MAX(DATE(YEAR($AM112),MONTH(EOMONTH($AM112,(DAY($AM112)>5)+0)),1),EDATE(StartDateYr1,12*(KS$93-1))),MIN(DATE(YEAR($AN112),MONTH($AN112)+1,1),EDATE(Year1EndDate+1,12*(KS$93-1))),"M")/12,1)))) -> 0 | KT112: =IF(_501c3Status=Yes,0,(MIN(INDEX(Index_FUTAMax,1,MATCH(JT$105,MatchRatesYear,0))*$AB112,KH112*INDEX(Index_FUTA_Rate,1,MATCH(JT$105,MatchRatesYear,0))))) -> 0 | KU112: =IF(SchoolFundStatus=Yes,KH112*INDEX(Index_SchoolFundRate,1,MATCH(JT$105,MatchRatesYear,0)),(1+INDEX(Index_NewEmployees,1,MATCH(JT$105,MatchRatesYear,0)))*MIN(INDEX(Index_SUTAMax,1,MATCH(JT$105,MatchRatesYear,0))*$AB112,KH112*INDEX(Index_SUTA_Rate,1,MATCH(JT$105,MatchRatesYear,0)))) -> 0 | KV112: =MIN(INDEX(IndexBenefits,MATCH(ETTMax,MatchBenefits,0),MATCH(JT$105,MatchRatesYear,0))*$AB112,KH112*INDEX(IndexBenefits,MATCH(KV$107,MatchBenefits,0),MATCH(JT$105,MatchRatesYear,0))) -> 0 | KW112: =KH112*INDEX(IndexBenefits,MATCH(KW$107,MatchBenefits,0),MATCH(JT$105,MatchRatesYear,0)) -> 0 | KX112: 0 | KZ112: =IF($AT112=Yes,INDEX(IndexInLieuMedical,1,MATCH(Payroll!LA$105,MatchRatesYear,0)),0) -> 0 | LA112: 60861.8889 | LB112: 0 | LC112: 0 | LD112: 0 | LE112: 0 | LF112: 0 | LG112: 0 | LH112: 0 | LI112: 0 | LJ112: 0 | LK112: 0 | LL112: 0 | LM112: 0 | LN112: 0 | LO112: 0 | LP112: =IFERROR((-NetPayPercentage*LO112/LQ112)*(LQ112-MID(LEFT($AL112,FIND(",",$AL112)-1),FIND(" ",$AL112)+1,LEN($AL112))),0) -> 0 | LQ112: 0 | LR112: =IFERROR(IF(BR112=0,LO112/((DC112*FTEHours*DE112+KZ112)*$AB112)*$AB112,LO112/((BR112/$BP112+KZ112)*$AB112)*$AB112),0) -> 0 | LS112: -60861.8889 | LT112: =IF($AR112=LT$107,INDEX(IndexBenefits,MATCH($AR112,MatchBenefits,0),MATCH(LA$105,MatchRatesYear,0)),0)*LO112 -> 0 | LU112: =IF($AR112=LU$107,INDEX(IndexBenefits,MATCH($AR112,MatchBenefits,0),MATCH(LA$105,MatchRatesYear,0)),0)*LO112 -> 0 | LV112: =IF($AR112=LV$107,INDEX(IndexBenefits,MATCH($AR112,MatchBenefits,0),MATCH(LA$105,MatchRatesYear,0)),0)*LO112 -> 0 | LW112: =IF(LEFT($AR112,16)=LW$107,INDEX(IndexBenefits,MATCH($AR112,MatchBenefits,0),MATCH(LA$105,MatchRatesYear,0)),0)*LO112 -> 0 | LX112: =IF(IFERROR(INDEX(Index_SocialSecurity,MATCH($AR112,MatchBenefits,0)),Yes)=No,0,(MIN(INDEX(IndexBenefits,MATCH(SSIMax,MatchBenefits,0),MATCH(LA$105,MatchRatesYear,0))*$AB112,LO112*INDEX(IndexBenefits,MATCH(LX$107,MatchBenefits,0),MATCH(LA$105,MatchRatesYear,0))))) -> 0 | LY112: =LO112*INDEX(IndexBenefits,MATCH(LY$107,MatchBenefits,0),MATCH(LA$105,MatchRatesYear,0)) -> 0 | LZ112: =IF(LO112=0,0,IF($AS112="",0,INDEX(IndexBenefits,MATCH($AS112,MatchBenefits,0),MATCH(LA$105,MatchRatesYear,0))*$AB112*(MIN(DATEDIF(MAX(DATE(YEAR($AM112),MONTH(EOMONTH($AM112,(DAY($AM112)>5)+0)),1),EDATE(StartDateYr1,12*(LZ$93-1))),MIN(DATE(YEAR($AN112),MONTH($AN112)+1,1),EDATE(Year1EndDate+1,12*(LZ$93-1))),"M")/12,1)))) -> 0 | MA112: =IF(_501c3Status=Yes,0,(MIN(INDEX(Index_FUTAMax,1,MATCH(LA$105,MatchRatesYear,0))*$AB112,LO112*INDEX(Index_FUTA_Rate,1,MATCH(LA$105,MatchRatesYear,0))))) -> 0 | MB112: =IF(SchoolFundStatus=Yes,LO112*INDEX(Index_SchoolFundRate,1,MATCH(LA$105,MatchRatesYear,0)),(1+INDEX(Index_NewEmployees,1,MATCH(LA$105,MatchRatesYear,0)))*MIN(INDEX(Index_SUTAMax,1,MATCH(LA$105,MatchRatesYear,0))*$AB112,LO112*INDEX(Index_SUTA_Rate,1,MATCH(LA$105,MatchRatesYear,0)))) -> 0 | MC112: =MIN(INDEX(IndexBenefits,MATCH(ETTMax,MatchBenefits,0),MATCH(LA$105,MatchRatesYear,0))*$AB112,LO112*INDEX(IndexBenefits,MATCH(MC$107,MatchBenefits,0),MATCH(LA$105,MatchRatesYear,0))) -> 0 | MD112: =LO112*INDEX(IndexBenefits,MATCH(MD$107,MatchBenefits,0),MATCH(LA$105,MatchRatesYear,0)) -> 0 | ME112: 0
AB113: 1 | AE113: Breakfast Coordinator | AG113: 2928 | AH113: 2020-07-01 | AL113: Jul to Jun | AM113: =IF(AH113="",StartDateYr1,AH113) -> 2020-07-01 | AN113: =IF(AI113="",Year10EndDate,AI113) -> 2030-06-30 | AO113: =IF(AND(AG113<2000,AG113>=1000),Certificated,IF(AND(AG113>=2000,AG113<3000),Classified,"")) -> Classified | AR113: None | AU113: 0.38 | AV113: 54000 | AW113: 20520 | AX113: 0 | AZ113: =IF($AN113<INDEX(YearStartDate,1,MATCH(AY$105,YearRelative,0)),0,IF(AY113="",AU113,AY113)) -> 0.38 | BA113: 0 | BB113: =IF($AN113<INDEX(YearStartDate,1,MATCH(AY$105,YearRelative,0)),0,IFERROR(IF(BA113="",AZ113*AW113/AU113*(1+INDEX(IndexCOLA,MATCH($AO113,MatchCOLA,0),MATCH(AY$105,MatchRatesYear,0))),AZ113*BA113),0)) -> 0 | BD113: =IF($AN113<INDEX(YearStartDate,1,MATCH(BC$105,YearRelative,0)),0,IF(BC113="",AZ113,BC113)) -> 0.38 | BF113: =IF($AN113<INDEX(YearStartDate,1,MATCH(BC$105,YearRelative,0)),0,IFERROR(IF(BE113="",BD113*BB113/AZ113*(1+INDEX(IndexCOLA,MATCH($AO113,MatchCOLA,0),MATCH(BC$105,MatchRatesYear,0))),BD113*BE113),0)) -> 0 | BH113: =IF($AN113<INDEX(YearStartDate,1,MATCH(BG$105,YearRelative,0)),0,IF(BG113="",BD113,BG113)) -> 0.38 | BJ113: =IF($AN113<INDEX(YearStartDate,1,MATCH(BG$105,YearRelative,0)),0,IFERROR(IF(BI113="",BH113*BF113/BD113*(1+INDEX(IndexCOLA,MATCH($AO113,MatchCOLA,0),MATCH(BG$105,MatchRatesYear,0))),BH113*BI113),0)) -> 0 | BL113: =IF($AN113<INDEX(YearStartDate,1,MATCH(BK$105,YearRelative,0)),0,IF(BK113="",BH113,BK113)) -> 0.38 | BN113: =IF($AN113<INDEX(YearStartDate,1,MATCH(BK$105,YearRelative,0)),0,IFERROR(IF(BM113="",BL113*BJ113/BH113*(1+INDEX(IndexCOLA,MATCH($AO113,MatchCOLA,0),MATCH(BK$105,MatchRatesYear,0))),BL113*BM113),0)) -> 0 | BP113: =IF($AN113<INDEX(YearStartDate,1,MATCH(BO$105,YearRelative,0)),0,IF(BO113="",BL113,BO113)) -> 0.38 | BR113: =IF($AN113<INDEX(YearStartDate,1,MATCH(BO$105,YearRelative,0)),0,IFERROR(IF(BQ113="",BP113*BN113/BL113*(1+INDEX(IndexCOLA,MATCH($AO113,MatchCOLA,0),MATCH(BO$105,MatchRatesYear,0))),BP113*BQ113),0)) -> 0 | BT113: 0 | BU113: 0 | BV113: 0 | BW113: 0 | BX113: 27 | BY113: 15.2 | BZ113: 40 | CA113: =IF($AN113<INDEX(YearStartDate,1,MATCH(AY$105,YearRelative,0)),0,IFERROR(IF(BX113="",BT113*(1+INDEX(IndexCOLA,MATCH($AO113,MatchCOLA,0),MATCH(BX$105,MatchRatesYear,0))),BX113),0)) -> 27 | CB113: =IF(BY113="",BU113,BY113) -> 15.2 | CC113: 40 | CD113: 16416 | CH113: =IF($AN113<INDEX(YearStartDate,1,MATCH(AY$105,YearRelative,0)),0,IFERROR(IF(CE113="",CA113*(1+INDEX(IndexCOLA,MATCH($AO113,MatchCOLA,0),MATCH(CE$105,MatchRatesYear,0))),CE113),0)) -> 27.81 | CI113: =IF(CF113="",CB113,CF113) -> 15.2 | CJ113: 40 | CK113: 16908.48 | CO113: =IF($AN113<INDEX(YearStartDate,1,MATCH(AY$105,YearRelative,0)),0,IFERROR(IF(CL113="",CH113*(1+INDEX(IndexCOLA,MATCH($AO113,MatchCOLA,0),MATCH(CL$105,MatchRatesYear,0))),CL113),0)) -> 28.6443 | CP113: =IF(CM113="",CI113,CM113) -> 15.2 | CQ113: 40 | CR113: 17415.7344 | CV113: =IF($AN113<INDEX(YearStartDate,1,MATCH(AY$105,YearRelative,0)),0,IFERROR(IF(CS113="",CO113*(1+INDEX(IndexCOLA,MATCH($AO113,MatchCOLA,0),MATCH(CS$105,MatchRatesYear,0))),CS113),0)) -> 29.503629 | CW113: =IF(CT113="",CP113,CT113) -> 15.2 | CX113: 40 | CY113: 17938.20643 | DC113: =IF($AN113<INDEX(YearStartDate,1,MATCH(AY$105,YearRelative,0)),0,IFERROR(IF(CZ113="",CV113*(1+INDEX(IndexCOLA,MATCH($AO113,MatchCOLA,0),MATCH(CZ$105,MatchRatesYear,0))),CZ113),0)) -> 30.38873787 | DD113: =IF(DA113="",CW113,DA113) -> 15.2 | DE113: 40 | DF113: 18476.35262 | DH113: 1 | DI113: 1 | DJ113: 1 | DK113: =1 -> 1 | DL113: 1 | DM113: 1 | DP113: 0 | DU113: 0 | DZ113: 0 | EE113: 0 | EJ113: 0 | EO113: 0 | EQ113: =IF($AT113=Yes,INDEX(IndexInLieuMedical,1,MATCH(Payroll!ER$105,MatchRatesYear,0)),0) -> 0 | ER113: 20520 | ES113: 0 | ET113: 0 | EU113: 0 | EV113: 0 | EW113: 0 | EX113: 0 | EY113: 0 | EZ113: 0 | FA113: 0 | FB113: 0 | FC113: 0 | FD113: 0 | FE113: 0 | FF113: 0 | FG113: =IFERROR((-NetPayPercentage*FF113/FH113)*(FH113-MID(LEFT($AL113,FIND(",",$AL113)-1),FIND(" ",$AL113)+1,LEN($AL113))),0) -> 0 | FH113: 0 | FI113: =IFERROR(IF(AW113=0,FF113/((BT113*FTEHours*BV113+EQ113)*$AB113)*$AB113,FF113/((AV113+EQ113)*$AB113)*$AB113),0) -> 0 | FJ113: -20520 | FK113: =IF($AR113=FK$107,INDEX(IndexBenefits,MATCH($AR113,MatchBenefits,0),MATCH(ER$105,MatchRatesYear,0)),0)*FF113 -> 0 | FL113: =IF($AR113=FL$107,INDEX(IndexBenefits,MATCH($AR113,MatchBenefits,0),MATCH(ER$105,MatchRatesYear,0)),0)*FF113 -> 0 | FM113: =IF($AR113=FM$107,INDEX(IndexBenefits,MATCH($AR113,MatchBenefits,0),MATCH(ER$105,MatchRatesYear,0)),0)*FF113 -> 0 | FN113: =IF(LEFT($AR113,16)=FN$107,INDEX(IndexBenefits,MATCH($AR113,MatchBenefits,0),MATCH(ER$105,MatchRatesYear,0)),0)*FF113 -> 0 | FO113: =IF(IFERROR(INDEX(Index_SocialSecurity,MATCH($AR113,MatchBenefits,0)),Yes)=No,0,(MIN(INDEX(IndexBenefits,MATCH(SSIMax,MatchBenefits,0),MATCH(ER$105,MatchRatesYear,0))*$AB113,FF113*INDEX(IndexBenefits,MATCH(FO$107,MatchBenefits,0),MATCH(ER$105,MatchRatesYear,0))))) -> 0 | FP113: =FF113*INDEX(IndexBenefits,MATCH(FP$107,MatchBenefits,0),MATCH(ER$105,MatchRatesYear,0)) -> 0 | FQ113: =IF(FF113=0,0,IF($AS113="",0,INDEX(IndexBenefits,MATCH($AS113,MatchBenefits,0),MATCH(ER$105,MatchRatesYear,0))*$AB113*(MIN(DATEDIF(MAX(DATE(YEAR($AM113),MONTH(EOMONTH($AM113,(DAY($AM113)>5)+0)),1),EDATE(StartDateYr1,12*(FQ$93-1))),MIN(DATE(YEAR($AN113),MONTH($AN113)+1,1),EDATE(Year1EndDate+1,12*(FQ$93-1))),"M")/12,1)))) -> 0 | FR113: =IF(_501c3Status=Yes,0,(MIN(INDEX(Index_FUTAMax,1,MATCH(ER$105,MatchRatesYear,0))*$AB113,FF113*INDEX(Index_FUTA_Rate,1,MATCH(ER$105,MatchRatesYear,0))))) -> 0 | FS113: =IF(SchoolFundStatus=Yes,FF113*INDEX(Index_SchoolFundRate,1,MATCH(ER$105,MatchRatesYear,0)),(1+INDEX(Index_NewEmployees,1,MATCH(ER$105,MatchRatesYear,0)))*MIN(INDEX(Index_SUTAMax,1,MATCH(ER$105,MatchRatesYear,0))*$AB113,FF113*INDEX(Index_SUTA_Rate,1,MATCH(ER$105,MatchRatesYear,0)))) -> 0 | FT113: =MIN(INDEX(IndexBenefits,MATCH(ETTMax,MatchBenefits,0),MATCH(ER$105,MatchRatesYear,0))*$AB113,FF113*INDEX(IndexBenefits,MATCH(FT$107,MatchBenefits,0),MATCH(ER$105,MatchRatesYear,0))) -> 0 | FU113: =FF113*INDEX(IndexBenefits,MATCH(FU$107,MatchBenefits,0),MATCH(ER$105,MatchRatesYear,0)) -> 0 | FV113: 0 | FX113: =IF($AT113=Yes,INDEX(IndexInLieuMedical,1,MATCH(Payroll!FY$105,MatchRatesYear,0)),0) -> 0 | FY113: 16416 | FZ113: 0 | GA113: 0 | GB113: 0 | GC113: 0 | GD113: 0 | GE113: 0 | GF113: 0 | GG113: 0 | GH113: 0 | GI113: 0 | GJ113: 0 | GK113: 0 | GL113: 0 | GM113: 0 | GN113: =IFERROR((-NetPayPercentage*GM113/GO113)*(GO113-MID(LEFT($AL113,FIND(",",$AL113)-1),FIND(" ",$AL113)+1,LEN($AL113))),0) -> 0 | GO113: 0 | GP113: =IFERROR(IF(BB113=0,GM113/((CA113*FTEHours*CC113+FX113)*$AB113)*$AB113,GM113/((BB113/AZ113+FX113)*$AB113)*$AB113),0) -> 0 | GQ113: -16416 | GR113: =IF($AR113=GR$107,INDEX(IndexBenefits,MATCH($AR113,MatchBenefits,0),MATCH(FY$105,MatchRatesYear,0)),0)*GM113 -> 0 | GS113: =IF($AR113=GS$107,INDEX(IndexBenefits,MATCH($AR113,MatchBenefits,0),MATCH(FY$105,MatchRatesYear,0)),0)*GM113 -> 0 | GT113: =IF($AR113=GT$107,INDEX(IndexBenefits,MATCH($AR113,MatchBenefits,0),MATCH(FY$105,MatchRatesYear,0)),0)*GM113 -> 0 | GU113: =IF(LEFT($AR113,16)=GU$107,INDEX(IndexBenefits,MATCH($AR113,MatchBenefits,0),MATCH(FY$105,MatchRatesYear,0)),0)*GM113 -> 0 | GV113: =IF(IFERROR(INDEX(Index_SocialSecurity,MATCH($AR113,MatchBenefits,0)),Yes)=No,0,(MIN(INDEX(IndexBenefits,MATCH(SSIMax,MatchBenefits,0),MATCH(FY$105,MatchRatesYear,0))*$AB113,GM113*INDEX(IndexBenefits,MATCH(GV$107,MatchBenefits,0),MATCH(FY$105,MatchRatesYear,0))))) -> 0 | GW113: =GM113*INDEX(IndexBenefits,MATCH(GW$107,MatchBenefits,0),MATCH(FY$105,MatchRatesYear,0)) -> 0 | GX113: =IF(GM113=0,0,IF($AS113="",0,INDEX(IndexBenefits,MATCH($AS113,MatchBenefits,0),MATCH(FY$105,MatchRatesYear,0))*$AB113*(MIN(DATEDIF(MAX(DATE(YEAR($AM113),MONTH(EOMONTH($AM113,(DAY($AM113)>5)+0)),1),EDATE(StartDateYr1,12*(GX$93-1))),MIN(DATE(YEAR($AN113),MONTH($AN113)+1,1),EDATE(Year1EndDate+1,12*(GX$93-1))),"M")/12,1)))) -> 0 | GY113: =IF(_501c3Status=Yes,0,(MIN(INDEX(Index_FUTAMax,1,MATCH(FY$105,MatchRatesYear,0))*$AB113,GM113*INDEX(Index_FUTA_Rate,1,MATCH(FY$105,MatchRatesYear,0))))) -> 0 | GZ113: =IF(SchoolFundStatus=Yes,GM113*INDEX(Index_SchoolFundRate,1,MATCH(FY$105,MatchRatesYear,0)),(1+INDEX(Index_NewEmployees,1,MATCH(FY$105,MatchRatesYear,0)))*MIN(INDEX(Index_SUTAMax,1,MATCH(FY$105,MatchRatesYear,0))*$AB113,GM113*INDEX(Index_SUTA_Rate,1,MATCH(FY$105,MatchRatesYear,0)))) -> 0 | HA113: =MIN(INDEX(IndexBenefits,MATCH(ETTMax,MatchBenefits,0),MATCH(FY$105,MatchRatesYear,0))*$AB113,GM113*INDEX(IndexBenefits,MATCH(HA$107,MatchBenefits,0),MATCH(FY$105,MatchRatesYear,0))) -> 0 | HB113: =GM113*INDEX(IndexBenefits,MATCH(HB$107,MatchBenefits,0),MATCH(FY$105,MatchRatesYear,0)) -> 0 | HC113: 0 | HE113: =IF($AT113=Yes,INDEX(IndexInLieuMedical,1,MATCH(Payroll!HF$105,MatchRatesYear,0)),0) -> 0 | HF113: 16908.48 | HG113: 0 | HH113: 0 | HI113: 0 | HJ113: 0 | HK113: 0 | HL113: 0 | HM113: 0 | HN113: 0 | HO113: 0 | HP113: 0 | HQ113: 0 | HR113: 0 | HS113: 0 | HT113: 0 | HU113: =IFERROR((-NetPayPercentage*HT113/HV113)*(HV113-MID(LEFT($AL113,FIND(",",$AL113)-1),FIND(" ",$AL113)+1,LEN($AL113))),0) -> 0 | HV113: 0 | HW113: =IFERROR(IF(BF113=0,HT113/((CH113*FTEHours*CJ113+HE113)*$AB113)*$AB113,HT113/((BF113/BD113+HE113)*$AB113)*$AB113),0) -> 0 | HX113: -16908.48 | HY113: =IF($AR113=HY$107,INDEX(IndexBenefits,MATCH($AR113,MatchBenefits,0),MATCH(HF$105,MatchRatesYear,0)),0)*HT113 -> 0 | HZ113: =IF($AR113=HZ$107,INDEX(IndexBenefits,MATCH($AR113,MatchBenefits,0),MATCH(HF$105,MatchRatesYear,0)),0)*HT113 -> 0 | IA113: =IF($AR113=IA$107,INDEX(IndexBenefits,MATCH($AR113,MatchBenefits,0),MATCH(HF$105,MatchRatesYear,0)),0)*HT113 -> 0 | IB113: =IF(LEFT($AR113,16)=IB$107,INDEX(IndexBenefits,MATCH($AR113,MatchBenefits,0),MATCH(HF$105,MatchRatesYear,0)),0)*HT113 -> 0 | IC113: =IF(IFERROR(INDEX(Index_SocialSecurity,MATCH($AR113,MatchBenefits,0)),Yes)=No,0,(MIN(INDEX(IndexBenefits,MATCH(SSIMax,MatchBenefits,0),MATCH(HF$105,MatchRatesYear,0))*$AB113,HT113*INDEX(IndexBenefits,MATCH(IC$107,MatchBenefits,0),MATCH(HF$105,MatchRatesYear,0))))) -> 0 | ID113: =HT113*INDEX(IndexBenefits,MATCH(ID$107,MatchBenefits,0),MATCH(HF$105,MatchRatesYear,0)) -> 0 | IE113: =IF(HT113=0,0,IF($AS113="",0,INDEX(IndexBenefits,MATCH($AS113,MatchBenefits,0),MATCH(HF$105,MatchRatesYear,0))*$AB113*(MIN(DATEDIF(MAX(DATE(YEAR($AM113),MONTH(EOMONTH($AM113,(DAY($AM113)>5)+0)),1),EDATE(StartDateYr1,12*(IE$93-1))),MIN(DATE(YEAR($AN113),MONTH($AN113)+1,1),EDATE(Year1EndDate+1,12*(IE$93-1))),"M")/12,1)))) -> 0 | IF113: =IF(_501c3Status=Yes,0,(MIN(INDEX(Index_FUTAMax,1,MATCH(HF$105,MatchRatesYear,0))*$AB113,HT113*INDEX(Index_FUTA_Rate,1,MATCH(HF$105,MatchRatesYear,0))))) -> 0 | IG113: =IF(SchoolFundStatus=Yes,HT113*INDEX(Index_SchoolFundRate,1,MATCH(HF$105,MatchRatesYear,0)),(1+INDEX(Index_NewEmployees,1,MATCH(HF$105,MatchRatesYear,0)))*MIN(INDEX(Index_SUTAMax,1,MATCH(HF$105,MatchRatesYear,0))*$AB113,HT113*INDEX(Index_SUTA_Rate,1,MATCH(HF$105,MatchRatesYear,0)))) -> 0 | IH113: =MIN(INDEX(IndexBenefits,MATCH(ETTMax,MatchBenefits,0),MATCH(HF$105,MatchRatesYear,0))*$AB113,HT113*INDEX(IndexBenefits,MATCH(IH$107,MatchBenefits,0),MATCH(HF$105,MatchRatesYear,0))) -> 0 | II113: =HT113*INDEX(IndexBenefits,MATCH(II$107,MatchBenefits,0),MATCH(HF$105,MatchRatesYear,0)) -> 0 | IJ113: 0 | IL113: =IF($AT113=Yes,INDEX(IndexInLieuMedical,1,MATCH(Payroll!IM$105,MatchRatesYear,0)),0) -> 0 | IM113: 17415.7344 | IN113: 0 | IO113: 0 | IP113: 0 | IQ113: 0 | IR113: 0 | IS113: 0 | IT113: 0 | IU113: 0 | IV113: 0 | IW113: 0 | IX113: 0 | IY113: 0 | IZ113: 0 | JA113: 0 | JB113: =IFERROR((-NetPayPercentage*JA113/JC113)*(JC113-MID(LEFT($AL113,FIND(",",$AL113)-1),FIND(" ",$AL113)+1,LEN($AL113))),0) -> 0 | JC113: 0 | JD113: =IFERROR(IF(BJ113=0,JA113/((CO113*FTEHours*CQ113+IL113)*$AB113)*$AB113,JA113/((BJ113/BH113+IL113)*$AB113)*$AB113),0) -> 0 | JE113: -17415.7344 | JF113: =IF($AR113=JF$107,INDEX(IndexBenefits,MATCH($AR113,MatchBenefits,0),MATCH(IM$105,MatchRatesYear,0)),0)*JA113 -> 0 | JG113: =IF($AR113=JG$107,INDEX(IndexBenefits,MATCH($AR113,MatchBenefits,0),MATCH(IM$105,MatchRatesYear,0)),0)*JA113 -> 0 | JH113: =IF($AR113=JH$107,INDEX(IndexBenefits,MATCH($AR113,MatchBenefits,0),MATCH(IM$105,MatchRatesYear,0)),0)*JA113 -> 0 | JI113: =IF(LEFT($AR113,16)=JI$107,INDEX(IndexBenefits,MATCH($AR113,MatchBenefits,0),MATCH(IM$105,MatchRatesYear,0)),0)*JA113 -> 0 | JJ113: =IF(IFERROR(INDEX(Index_SocialSecurity,MATCH($AR113,MatchBenefits,0)),Yes)=No,0,(MIN(INDEX(IndexBenefits,MATCH(SSIMax,MatchBenefits,0),MATCH(IM$105,MatchRatesYear,0))*$AB113,JA113*INDEX(IndexBenefits,MATCH(JJ$107,MatchBenefits,0),MATCH(IM$105,MatchRatesYear,0))))) -> 0 | JK113: =JA113*INDEX(IndexBenefits,MATCH(JK$107,MatchBenefits,0),MATCH(IM$105,MatchRatesYear,0)) -> 0 | JL113: =IF(JA113=0,0,IF($AS113="",0,INDEX(IndexBenefits,MATCH($AS113,MatchBenefits,0),MATCH(IM$105,MatchRatesYear,0))*$AB113*(MIN(DATEDIF(MAX(DATE(YEAR($AM113),MONTH(EOMONTH($AM113,(DAY($AM113)>5)+0)),1),EDATE(StartDateYr1,12*(JL$93-1))),MIN(DATE(YEAR($AN113),MONTH($AN113)+1,1),EDATE(Year1EndDate+1,12*(JL$93-1))),"M")/12,1)))) -> 0 | JM113: =IF(_501c3Status=Yes,0,(MIN(INDEX(Index_FUTAMax,1,MATCH(IM$105,MatchRatesYear,0))*$AB113,JA113*INDEX(Index_FUTA_Rate,1,MATCH(IM$105,MatchRatesYear,0))))) -> 0 | JN113: =IF(SchoolFundStatus=Yes,JA113*INDEX(Index_SchoolFundRate,1,MATCH(IM$105,MatchRatesYear,0)),(1+INDEX(Index_NewEmployees,1,MATCH(IM$105,MatchRatesYear,0)))*MIN(INDEX(Index_SUTAMax,1,MATCH(IM$105,MatchRatesYear,0))*$AB113,JA113*INDEX(Index_SUTA_Rate,1,MATCH(IM$105,MatchRatesYear,0)))) -> 0 | JO113: =MIN(INDEX(IndexBenefits,MATCH(ETTMax,MatchBenefits,0),MATCH(IM$105,MatchRatesYear,0))*$AB113,JA113*INDEX(IndexBenefits,MATCH(JO$107,MatchBenefits,0),MATCH(IM$105,MatchRatesYear,0))) -> 0 | JP113: =JA113*INDEX(IndexBenefits,MATCH(JP$107,MatchBenefits,0),MATCH(IM$105,MatchRatesYear,0)) -> 0 | JQ113: 0 | JS113: =IF($AT113=Yes,INDEX(IndexInLieuMedical,1,MATCH(Payroll!JT$105,MatchRatesYear,0)),0) -> 0 | JT113: 17938.20643 | JU113: 0 | JV113: 0 | JW113: 0 | JX113: 0 | JY113: 0 | JZ113: 0 | KA113: 0 | KB113: 0 | KC113: 0 | KD113: 0 | KE113: 0 | KF113: 0 | KG113: 0 | KH113: 0 | KI113: =IFERROR((-NetPayPercentage*KH113/KJ113)*(KJ113-MID(LEFT($AL113,FIND(",",$AL113)-1),FIND(" ",$AL113)+1,LEN($AL113))),0) -> 0 | KJ113: 0 | KK113: =IFERROR(IF(BN113=0,KH113/((CV113*FTEHours*CX113+JS113)*$AB113)*$AB113,KH113/((BN113/BL113+JS113)*$AB113)*$AB113),0) -> 0 | KL113: -17938.20643 | KM113: =IF($AR113=KM$107,INDEX(IndexBenefits,MATCH($AR113,MatchBenefits,0),MATCH(JT$105,MatchRatesYear,0)),0)*KH113 -> 0 | KN113: =IF($AR113=KN$107,INDEX(IndexBenefits,MATCH($AR113,MatchBenefits,0),MATCH(JT$105,MatchRatesYear,0)),0)*KH113 -> 0 | KO113: =IF($AR113=KO$107,INDEX(IndexBenefits,MATCH($AR113,MatchBenefits,0),MATCH(JT$105,MatchRatesYear,0)),0)*KH113 -> 0 | KP113: =IF(LEFT($AR113,16)=KP$107,INDEX(IndexBenefits,MATCH($AR113,MatchBenefits,0),MATCH(JT$105,MatchRatesYear,0)),0)*KH113 -> 0 | KQ113: =IF(IFERROR(INDEX(Index_SocialSecurity,MATCH($AR113,MatchBenefits,0)),Yes)=No,0,(MIN(INDEX(IndexBenefits,MATCH(SSIMax,MatchBenefits,0),MATCH(JT$105,MatchRatesYear,0))*$AB113,KH113*INDEX(IndexBenefits,MATCH(KQ$107,MatchBenefits,0),MATCH(JT$105,MatchRatesYear,0))))) -> 0 | KR113: =KH113*INDEX(IndexBenefits,MATCH(KR$107,MatchBenefits,0),MATCH(JT$105,MatchRatesYear,0)) -> 0 | KS113: =IF(KH113=0,0,IF($AS113="",0,INDEX(IndexBenefits,MATCH($AS113,MatchBenefits,0),MATCH(JT$105,MatchRatesYear,0))*$AB113*(MIN(DATEDIF(MAX(DATE(YEAR($AM113),MONTH(EOMONTH($AM113,(DAY($AM113)>5)+0)),1),EDATE(StartDateYr1,12*(KS$93-1))),MIN(DATE(YEAR($AN113),MONTH($AN113)+1,1),EDATE(Year1EndDate+1,12*(KS$93-1))),"M")/12,1)))) -> 0 | KT113: =IF(_501c3Status=Yes,0,(MIN(INDEX(Index_FUTAMax,1,MATCH(JT$105,MatchRatesYear,0))*$AB113,KH113*INDEX(Index_FUTA_Rate,1,MATCH(JT$105,MatchRatesYear,0))))) -> 0 | KU113: =IF(SchoolFundStatus=Yes,KH113*INDEX(Index_SchoolFundRate,1,MATCH(JT$105,MatchRatesYear,0)),(1+INDEX(Index_NewEmployees,1,MATCH(JT$105,MatchRatesYear,0)))*MIN(INDEX(Index_SUTAMax,1,MATCH(JT$105,MatchRatesYear,0))*$AB113,KH113*INDEX(Index_SUTA_Rate,1,MATCH(JT$105,MatchRatesYear,0)))) -> 0 | KV113: =MIN(INDEX(IndexBenefits,MATCH(ETTMax,MatchBenefits,0),MATCH(JT$105,MatchRatesYear,0))*$AB113,KH113*INDEX(IndexBenefits,MATCH(KV$107,MatchBenefits,0),MATCH(JT$105,MatchRatesYear,0))) -> 0 | KW113: =KH113*INDEX(IndexBenefits,MATCH(KW$107,MatchBenefits,0),MATCH(JT$105,MatchRatesYear,0)) -> 0 | KX113: 0 | KZ113: =IF($AT113=Yes,INDEX(IndexInLieuMedical,1,MATCH(Payroll!LA$105,MatchRatesYear,0)),0) -> 0 | LA113: 18476.35262 | LB113: 0 | LC113: 0 | LD113: 0 | LE113: 0 | LF113: 0 | LG113: 0 | LH113: 0 | LI113: 0 | LJ113: 0 | LK113: 0 | LL113: 0 | LM113: 0 | LN113: 0 | LO113: 0 | LP113: =IFERROR((-NetPayPercentage*LO113/LQ113)*(LQ113-MID(LEFT($AL113,FIND(",",$AL113)-1),FIND(" ",$AL113)+1,LEN($AL113))),0) -> 0 | LQ113: 0 | LR113: =IFERROR(IF(BR113=0,LO113/((DC113*FTEHours*DE113+KZ113)*$AB113)*$AB113,LO113/((BR113/$BP113+KZ113)*$AB113)*$AB113),0) -> 0 | LS113: -18476.35262 | LT113: =IF($AR113=LT$107,INDEX(IndexBenefits,MATCH($AR113,MatchBenefits,0),MATCH(LA$105,MatchRatesYear,0)),0)*LO113 -> 0 | LU113: =IF($AR113=LU$107,INDEX(IndexBenefits,MATCH($AR113,MatchBenefits,0),MATCH(LA$105,MatchRatesYear,0)),0)*LO113 -> 0 | LV113: =IF($AR113=LV$107,INDEX(IndexBenefits,MATCH($AR113,MatchBenefits,0),MATCH(LA$105,MatchRatesYear,0)),0)*LO113 -> 0 | LW113: =IF(LEFT($AR113,16)=LW$107,INDEX(IndexBenefits,MATCH($AR113,MatchBenefits,0),MATCH(LA$105,MatchRatesYear,0)),0)*LO113 -> 0 | LX113: =IF(IFERROR(INDEX(Index_SocialSecurity,MATCH($AR113,MatchBenefits,0)),Yes)=No,0,(MIN(INDEX(IndexBenefits,MATCH(SSIMax,MatchBenefits,0),MATCH(LA$105,MatchRatesYear,0))*$AB113,LO113*INDEX(IndexBenefits,MATCH(LX$107,MatchBenefits,0),MATCH(LA$105,MatchRatesYear,0))))) -> 0 | LY113: =LO113*INDEX(IndexBenefits,MATCH(LY$107,MatchBenefits,0),MATCH(LA$105,MatchRatesYear,0)) -> 0 | LZ113: =IF(LO113=0,0,IF($AS113="",0,INDEX(IndexBenefits,MATCH($AS113,MatchBenefits,0),MATCH(LA$105,MatchRatesYear,0))*$AB113*(MIN(DATEDIF(MAX(DATE(YEAR($AM113),MONTH(EOMONTH($AM113,(DAY($AM113)>5)+0)),1),EDATE(StartDateYr1,12*(LZ$93-1))),MIN(DATE(YEAR($AN113),MONTH($AN113)+1,1),EDATE(Year1EndDate+1,12*(LZ$93-1))),"M")/12,1)))) -> 0 | MA113: =IF(_501c3Status=Yes,0,(MIN(INDEX(Index_FUTAMax,1,MATCH(LA$105,MatchRatesYear,0))*$AB113,LO113*INDEX(Index_FUTA_Rate,1,MATCH(LA$105,MatchRatesYear,0))))) -> 0 | MB113: =IF(SchoolFundStatus=Yes,LO113*INDEX(Index_SchoolFundRate,1,MATCH(LA$105,MatchRatesYear,0)),(1+INDEX(Index_NewEmployees,1,MATCH(LA$105,MatchRatesYear,0)))*MIN(INDEX(Index_SUTAMax,1,MATCH(LA$105,MatchRatesYear,0))*$AB113,LO113*INDEX(Index_SUTA_Rate,1,MATCH(LA$105,MatchRatesYear,0)))) -> 0 | MC113: =MIN(INDEX(IndexBenefits,MATCH(ETTMax,MatchBenefits,0),MATCH(LA$105,MatchRatesYear,0))*$AB113,LO113*INDEX(IndexBenefits,MATCH(MC$107,MatchBenefits,0),MATCH(LA$105,MatchRatesYear,0))) -> 0 | MD113: =LO113*INDEX(IndexBenefits,MATCH(MD$107,MatchBenefits,0),MATCH(LA$105,MatchRatesYear,0)) -> 0 | ME113: 0
AB114: 1 | AE114: Custodian | AG114: 2930 | AH114: 2020-07-01 | AL114: Jul to Jun | AM114: =IF(AH114="",StartDateYr1,AH114) -> 2020-07-01 | AN114: =IF(AI114="",Year10EndDate,AI114) -> 2030-06-30 | AO114: =IF(AND(AG114<2000,AG114>=1000),Certificated,IF(AND(AG114>=2000,AG114<3000),Classified,"")) -> Classified | AR114: None | AU114: 0.62 | AV114: 52000 | AW114: 32240 | AX114: 0 | AZ114: =IF($AN114<INDEX(YearStartDate,1,MATCH(AY$105,YearRelative,0)),0,IF(AY114="",AU114,AY114)) -> 0.62 | BA114: 0 | BB114: =IF($AN114<INDEX(YearStartDate,1,MATCH(AY$105,YearRelative,0)),0,IFERROR(IF(BA114="",AZ114*AW114/AU114*(1+INDEX(IndexCOLA,MATCH($AO114,MatchCOLA,0),MATCH(AY$105,MatchRatesYear,0))),AZ114*BA114),0)) -> 0 | BD114: =IF($AN114<INDEX(YearStartDate,1,MATCH(BC$105,YearRelative,0)),0,IF(BC114="",AZ114,BC114)) -> 0.62 | BF114: =IF($AN114<INDEX(YearStartDate,1,MATCH(BC$105,YearRelative,0)),0,IFERROR(IF(BE114="",BD114*BB114/AZ114*(1+INDEX(IndexCOLA,MATCH($AO114,MatchCOLA,0),MATCH(BC$105,MatchRatesYear,0))),BD114*BE114),0)) -> 0 | BH114: =IF($AN114<INDEX(YearStartDate,1,MATCH(BG$105,YearRelative,0)),0,IF(BG114="",BD114,BG114)) -> 0.62 | BJ114: =IF($AN114<INDEX(YearStartDate,1,MATCH(BG$105,YearRelative,0)),0,IFERROR(IF(BI114="",BH114*BF114/BD114*(1+INDEX(IndexCOLA,MATCH($AO114,MatchCOLA,0),MATCH(BG$105,MatchRatesYear,0))),BH114*BI114),0)) -> 0 | BL114: =IF($AN114<INDEX(YearStartDate,1,MATCH(BK$105,YearRelative,0)),0,IF(BK114="",BH114,BK114)) -> 0.62 | BN114: =IF($AN114<INDEX(YearStartDate,1,MATCH(BK$105,YearRelative,0)),0,IFERROR(IF(BM114="",BL114*BJ114/BH114*(1+INDEX(IndexCOLA,MATCH($AO114,MatchCOLA,0),MATCH(BK$105,MatchRatesYear,0))),BL114*BM114),0)) -> 0 | BP114: =IF($AN114<INDEX(YearStartDate,1,MATCH(BO$105,YearRelative,0)),0,IF(BO114="",BL114,BO114)) -> 0.62 | BR114: =IF($AN114<INDEX(YearStartDate,1,MATCH(BO$105,YearRelative,0)),0,IFERROR(IF(BQ114="",BP114*BN114/BL114*(1+INDEX(IndexCOLA,MATCH($AO114,MatchCOLA,0),MATCH(BO$105,MatchRatesYear,0))),BP114*BQ114),0)) -> 0 | BT114: 0 | BU114: 0 | BV114: 0 | BW114: 0 | BX114: 27 | BY114: 30 | BZ114: 40 | CA114: =IF($AN114<INDEX(YearStartDate,1,MATCH(AY$105,YearRelative,0)),0,IFERROR(IF(BX114="",BT114*(1+INDEX(IndexCOLA,MATCH($AO114,MatchCOLA,0),MATCH(BX$105,MatchRatesYear,0))),BX114),0)) -> 27 | CB114: =IF(BY114="",BU114,BY114) -> 30 | CC114: 40 | CD114: 32400 | CH114: =IF($AN114<INDEX(YearStartDate,1,MATCH(AY$105,YearRelative,0)),0,IFERROR(IF(CE114="",CA114*(1+INDEX(IndexCOLA,MATCH($AO114,MatchCOLA,0),MATCH(CE$105,MatchRatesYear,0))),CE114),0)) -> 27.81 | CI114: =IF(CF114="",CB114,CF114) -> 30 | CJ114: 40 | CK114: 33372 | CO114: =IF($AN114<INDEX(YearStartDate,1,MATCH(AY$105,YearRelative,0)),0,IFERROR(IF(CL114="",CH114*(1+INDEX(IndexCOLA,MATCH($AO114,MatchCOLA,0),MATCH(CL$105,MatchRatesYear,0))),CL114),0)) -> 28.6443 | CP114: =IF(CM114="",CI114,CM114) -> 30 | CQ114: 40 | CR114: 34373.16 | CV114: =IF($AN114<INDEX(YearStartDate,1,MATCH(AY$105,YearRelative,0)),0,IFERROR(IF(CS114="",CO114*(1+INDEX(IndexCOLA,MATCH($AO114,MatchCOLA,0),MATCH(CS$105,MatchRatesYear,0))),CS114),0)) -> 29.503629 | CW114: =IF(CT114="",CP114,CT114) -> 30 | CX114: 40 | CY114: 35404.3548 | DC114: =IF($AN114<INDEX(YearStartDate,1,MATCH(AY$105,YearRelative,0)),0,IFERROR(IF(CZ114="",CV114*(1+INDEX(IndexCOLA,MATCH($AO114,MatchCOLA,0),MATCH(CZ$105,MatchRatesYear,0))),CZ114),0)) -> 30.38873787 | DD114: =IF(DA114="",CW114,DA114) -> 30 | DE114: 40 | DF114: 36466.48544 | DH114: 1 | DI114: 1 | DJ114: 1 | DK114: =1 -> 1 | DL114: 1 | DM114: 1 | DP114: 0 | DU114: 0 | DZ114: 0 | EE114: 0 | EJ114: 0 | EO114: 0 | EQ114: =IF($AT114=Yes,INDEX(IndexInLieuMedical,1,MATCH(Payroll!ER$105,MatchRatesYear,0)),0) -> 0 | ER114: 32240 | ES114: 0 | ET114: 0 | EU114: 0 | EV114: 0 | EW114: 0 | EX114: 0 | EY114: 0 | EZ114: 0 | FA114: 0 | FB114: 0 | FC114: 0 | FD114: 0 | FE114: 0 | FF114: 0 | FG114: =IFERROR((-NetPayPercentage*FF114/FH114)*(FH114-MID(LEFT($AL114,FIND(",",$AL114)-1),FIND(" ",$AL114)+1,LEN($AL114))),0) -> 0 | FH114: 0 | FI114: =IFERROR(IF(AW114=0,FF114/((BT114*FTEHours*BV114+EQ114)*$AB114)*$AB114,FF114/((AV114+EQ114)*$AB114)*$AB114),0) -> 0 | FJ114: -32240 | FK114: =IF($AR114=FK$107,INDEX(IndexBenefits,MATCH($AR114,MatchBenefits,0),MATCH(ER$105,MatchRatesYear,0)),0)*FF114 -> 0 | FL114: =IF($AR114=FL$107,INDEX(IndexBenefits,MATCH($AR114,MatchBenefits,0),MATCH(ER$105,MatchRatesYear,0)),0)*FF114 -> 0 | FM114: =IF($AR114=FM$107,INDEX(IndexBenefits,MATCH($AR114,MatchBenefits,0),MATCH(ER$105,MatchRatesYear,0)),0)*FF114 -> 0 | FN114: =IF(LEFT($AR114,16)=FN$107,INDEX(IndexBenefits,MATCH($AR114,MatchBenefits,0),MATCH(ER$105,MatchRatesYear,0)),0)*FF114 -> 0 | FO114: =IF(IFERROR(INDEX(Index_SocialSecurity,MATCH($AR114,MatchBenefits,0)),Yes)=No,0,(MIN(INDEX(IndexBenefits,MATCH(SSIMax,MatchBenefits,0),MATCH(ER$105,MatchRatesYear,0))*$AB114,FF114*INDEX(IndexBenefits,MATCH(FO$107,MatchBenefits,0),MATCH(ER$105,MatchRatesYear,0))))) -> 0 | FP114: =FF114*INDEX(IndexBenefits,MATCH(FP$107,MatchBenefits,0),MATCH(ER$105,MatchRatesYear,0)) -> 0 | FQ114: =IF(FF114=0,0,IF($AS114="",0,INDEX(IndexBenefits,MATCH($AS114,MatchBenefits,0),MATCH(ER$105,MatchRatesYear,0))*$AB114*(MIN(DATEDIF(MAX(DATE(YEAR($AM114),MONTH(EOMONTH($AM114,(DAY($AM114)>5)+0)),1),EDATE(StartDateYr1,12*(FQ$93-1))),MIN(DATE(YEAR($AN114),MONTH($AN114)+1,1),EDATE(Year1EndDate+1,12*(FQ$93-1))),"M")/12,1)))) -> 0 | FR114: =IF(_501c3Status=Yes,0,(MIN(INDEX(Index_FUTAMax,1,MATCH(ER$105,MatchRatesYear,0))*$AB114,FF114*INDEX(Index_FUTA_Rate,1,MATCH(ER$105,MatchRatesYear,0))))) -> 0 | FS114: =IF(SchoolFundStatus=Yes,FF114*INDEX(Index_SchoolFundRate,1,MATCH(ER$105,MatchRatesYear,0)),(1+INDEX(Index_NewEmployees,1,MATCH(ER$105,MatchRatesYear,0)))*MIN(INDEX(Index_SUTAMax,1,MATCH(ER$105,MatchRatesYear,0))*$AB114,FF114*INDEX(Index_SUTA_Rate,1,MATCH(ER$105,MatchRatesYear,0)))) -> 0 | FT114: =MIN(INDEX(IndexBenefits,MATCH(ETTMax,MatchBenefits,0),MATCH(ER$105,MatchRatesYear,0))*$AB114,FF114*INDEX(IndexBenefits,MATCH(FT$107,MatchBenefits,0),MATCH(ER$105,MatchRatesYear,0))) -> 0 | FU114: =FF114*INDEX(IndexBenefits,MATCH(FU$107,MatchBenefits,0),MATCH(ER$105,MatchRatesYear,0)) -> 0 | FV114: 0 | FX114: =IF($AT114=Yes,INDEX(IndexInLieuMedical,1,MATCH(Payroll!FY$105,MatchRatesYear,0)),0) -> 0 | FY114: 32400 | FZ114: 0 | GA114: 0 | GB114: 0 | GC114: 0 | GD114: 0 | GE114: 0 | GF114: 0 | GG114: 0 | GH114: 0 | GI114: 0 | GJ114: 0 | GK114: 0 | GL114: 0 | GM114: 0 | GN114: =IFERROR((-NetPayPercentage*GM114/GO114)*(GO114-MID(LEFT($AL114,FIND(",",$AL114)-1),FIND(" ",$AL114)+1,LEN($AL114))),0) -> 0 | GO114: 0 | GP114: =IFERROR(IF(BB114=0,GM114/((CA114*FTEHours*CC114+FX114)*$AB114)*$AB114,GM114/((BB114/AZ114+FX114)*$AB114)*$AB114),0) -> 0 | GQ114: -32400 | GR114: =IF($AR114=GR$107,INDEX(IndexBenefits,MATCH($AR114,MatchBenefits,0),MATCH(FY$105,MatchRatesYear,0)),0)*GM114 -> 0 | GS114: =IF($AR114=GS$107,INDEX(IndexBenefits,MATCH($AR114,MatchBenefits,0),MATCH(FY$105,MatchRatesYear,0)),0)*GM114 -> 0 | GT114: =IF($AR114=GT$107,INDEX(IndexBenefits,MATCH($AR114,MatchBenefits,0),MATCH(FY$105,MatchRatesYear,0)),0)*GM114 -> 0 | GU114: =IF(LEFT($AR114,16)=GU$107,INDEX(IndexBenefits,MATCH($AR114,MatchBenefits,0),MATCH(FY$105,MatchRatesYear,0)),0)*GM114 -> 0 | GV114: =IF(IFERROR(INDEX(Index_SocialSecurity,MATCH($AR114,MatchBenefits,0)),Yes)=No,0,(MIN(INDEX(IndexBenefits,MATCH(SSIMax,MatchBenefits,0),MATCH(FY$105,MatchRatesYear,0))*$AB114,GM114*INDEX(IndexBenefits,MATCH(GV$107,MatchBenefits,0),MATCH(FY$105,MatchRatesYear,0))))) -> 0 | GW114: =GM114*INDEX(IndexBenefits,MATCH(GW$107,MatchBenefits,0),MATCH(FY$105,MatchRatesYear,0)) -> 0 | GX114: =IF(GM114=0,0,IF($AS114="",0,INDEX(IndexBenefits,MATCH($AS114,MatchBenefits,0),MATCH(FY$105,MatchRatesYear,0))*$AB114*(MIN(DATEDIF(MAX(DATE(YEAR($AM114),MONTH(EOMONTH($AM114,(DAY($AM114)>5)+0)),1),EDATE(StartDateYr1,12*(GX$93-1))),MIN(DATE(YEAR($AN114),MONTH($AN114)+1,1),EDATE(Year1EndDate+1,12*(GX$93-1))),"M")/12,1)))) -> 0 | GY114: =IF(_501c3Status=Yes,0,(MIN(INDEX(Index_FUTAMax,1,MATCH(FY$105,MatchRatesYear,0))*$AB114,GM114*INDEX(Index_FUTA_Rate,1,MATCH(FY$105,MatchRatesYear,0))))) -> 0 | GZ114: =IF(SchoolFundStatus=Yes,GM114*INDEX(Index_SchoolFundRate,1,MATCH(FY$105,MatchRatesYear,0)),(1+INDEX(Index_NewEmployees,1,MATCH(FY$105,MatchRatesYear,0)))*MIN(INDEX(Index_SUTAMax,1,MATCH(FY$105,MatchRatesYear,0))*$AB114,GM114*INDEX(Index_SUTA_Rate,1,MATCH(FY$105,MatchRatesYear,0)))) -> 0 | HA114: =MIN(INDEX(IndexBenefits,MATCH(ETTMax,MatchBenefits,0),MATCH(FY$105,MatchRatesYear,0))*$AB114,GM114*INDEX(IndexBenefits,MATCH(HA$107,MatchBenefits,0),MATCH(FY$105,MatchRatesYear,0))) -> 0 | HB114: =GM114*INDEX(IndexBenefits,MATCH(HB$107,MatchBenefits,0),MATCH(FY$105,MatchRatesYear,0)) -> 0 | HC114: 0 | HE114: =IF($AT114=Yes,INDEX(IndexInLieuMedical,1,MATCH(Payroll!HF$105,MatchRatesYear,0)),0) -> 0 | HF114: 33372 | HG114: 0 | HH114: 0 | HI114: 0 | HJ114: 0 | HK114: 0 | HL114: 0 | HM114: 0 | HN114: 0 | HO114: 0 | HP114: 0 | HQ114: 0 | HR114: 0 | HS114: 0 | HT114: 0 | HU114: =IFERROR((-NetPayPercentage*HT114/HV114)*(HV114-MID(LEFT($AL114,FIND(",",$AL114)-1),FIND(" ",$AL114)+1,LEN($AL114))),0) -> 0 | HV114: 0 | HW114: =IFERROR(IF(BF114=0,HT114/((CH114*FTEHours*CJ114+HE114)*$AB114)*$AB114,HT114/((BF114/BD114+HE114)*$AB114)*$AB114),0) -> 0 | HX114: -33372 | HY114: =IF($AR114=HY$107,INDEX(IndexBenefits,MATCH($AR114,MatchBenefits,0),MATCH(HF$105,MatchRatesYear,0)),0)*HT114 -> 0 | HZ114: =IF($AR114=HZ$107,INDEX(IndexBenefits,MATCH($AR114,MatchBenefits,0),MATCH(HF$105,MatchRatesYear,0)),0)*HT114 -> 0 | IA114: =IF($AR114=IA$107,INDEX(IndexBenefits,MATCH($AR114,MatchBenefits,0),MATCH(HF$105,MatchRatesYear,0)),0)*HT114 -> 0 | IB114: =IF(LEFT($AR114,16)=IB$107,INDEX(IndexBenefits,MATCH($AR114,MatchBenefits,0),MATCH(HF$105,MatchRatesYear,0)),0)*HT114 -> 0 | IC114: =IF(IFERROR(INDEX(Index_SocialSecurity,MATCH($AR114,MatchBenefits,0)),Yes)=No,0,(MIN(INDEX(IndexBenefits,MATCH(SSIMax,MatchBenefits,0),MATCH(HF$105,MatchRatesYear,0))*$AB114,HT114*INDEX(IndexBenefits,MATCH(IC$107,MatchBenefits,0),MATCH(HF$105,MatchRatesYear,0))))) -> 0 | ID114: =HT114*INDEX(IndexBenefits,MATCH(ID$107,MatchBenefits,0),MATCH(HF$105,MatchRatesYear,0)) -> 0 | IE114: =IF(HT114=0,0,IF($AS114="",0,INDEX(IndexBenefits,MATCH($AS114,MatchBenefits,0),MATCH(HF$105,MatchRatesYear,0))*$AB114*(MIN(DATEDIF(MAX(DATE(YEAR($AM114),MONTH(EOMONTH($AM114,(DAY($AM114)>5)+0)),1),EDATE(StartDateYr1,12*(IE$93-1))),MIN(DATE(YEAR($AN114),MONTH($AN114)+1,1),EDATE(Year1EndDate+1,12*(IE$93-1))),"M")/12,1)))) -> 0 | IF114: =IF(_501c3Status=Yes,0,(MIN(INDEX(Index_FUTAMax,1,MATCH(HF$105,MatchRatesYear,0))*$AB114,HT114*INDEX(Index_FUTA_Rate,1,MATCH(HF$105,MatchRatesYear,0))))) -> 0 | IG114: =IF(SchoolFundStatus=Yes,HT114*INDEX(Index_SchoolFundRate,1,MATCH(HF$105,MatchRatesYear,0)),(1+INDEX(Index_NewEmployees,1,MATCH(HF$105,MatchRatesYear,0)))*MIN(INDEX(Index_SUTAMax,1,MATCH(HF$105,MatchRatesYear,0))*$AB114,HT114*INDEX(Index_SUTA_Rate,1,MATCH(HF$105,MatchRatesYear,0)))) -> 0 | IH114: =MIN(INDEX(IndexBenefits,MATCH(ETTMax,MatchBenefits,0),MATCH(HF$105,MatchRatesYear,0))*$AB114,HT114*INDEX(IndexBenefits,MATCH(IH$107,MatchBenefits,0),MATCH(HF$105,MatchRatesYear,0))) -> 0 | II114: =HT114*INDEX(IndexBenefits,MATCH(II$107,MatchBenefits,0),MATCH(HF$105,MatchRatesYear,0)) -> 0 | IJ114: 0 | IL114: =IF($AT114=Yes,INDEX(IndexInLieuMedical,1,MATCH(Payroll!IM$105,MatchRatesYear,0)),0) -> 0 | IM114: 34373.16 | IN114: 0 | IO114: 0 | IP114: 0 | IQ114: 0 | IR114: 0 | IS114: 0 | IT114: 0 | IU114: 0 | IV114: 0 | IW114: 0 | IX114: 0 | IY114: 0 | IZ114: 0 | JA114: 0 | JB114: =IFERROR((-NetPayPercentage*JA114/JC114)*(JC114-MID(LEFT($AL114,FIND(",",$AL114)-1),FIND(" ",$AL114)+1,LEN($AL114))),0) -> 0 | JC114: 0 | JD114: =IFERROR(IF(BJ114=0,JA114/((CO114*FTEHours*CQ114+IL114)*$AB114)*$AB114,JA114/((BJ114/BH114+IL114)*$AB114)*$AB114),0) -> 0 | JE114: -34373.16 | JF114: =IF($AR114=JF$107,INDEX(IndexBenefits,MATCH($AR114,MatchBenefits,0),MATCH(IM$105,MatchRatesYear,0)),0)*JA114 -> 0 | JG114: =IF($AR114=JG$107,INDEX(IndexBenefits,MATCH($AR114,MatchBenefits,0),MATCH(IM$105,MatchRatesYear,0)),0)*JA114 -> 0 | JH114: =IF($AR114=JH$107,INDEX(IndexBenefits,MATCH($AR114,MatchBenefits,0),MATCH(IM$105,MatchRatesYear,0)),0)*JA114 -> 0 | JI114: =IF(LEFT($AR114,16)=JI$107,INDEX(IndexBenefits,MATCH($AR114,MatchBenefits,0),MATCH(IM$105,MatchRatesYear,0)),0)*JA114 -> 0 | JJ114: =IF(IFERROR(INDEX(Index_SocialSecurity,MATCH($AR114,MatchBenefits,0)),Yes)=No,0,(MIN(INDEX(IndexBenefits,MATCH(SSIMax,MatchBenefits,0),MATCH(IM$105,MatchRatesYear,0))*$AB114,JA114*INDEX(IndexBenefits,MATCH(JJ$107,MatchBenefits,0),MATCH(IM$105,MatchRatesYear,0))))) -> 0 | JK114: =JA114*INDEX(IndexBenefits,MATCH(JK$107,MatchBenefits,0),MATCH(IM$105,MatchRatesYear,0)) -> 0 | JL114: =IF(JA114=0,0,IF($AS114="",0,INDEX(IndexBenefits,MATCH($AS114,MatchBenefits,0),MATCH(IM$105,MatchRatesYear,0))*$AB114*(MIN(DATEDIF(MAX(DATE(YEAR($AM114),MONTH(EOMONTH($AM114,(DAY($AM114)>5)+0)),1),EDATE(StartDateYr1,12*(JL$93-1))),MIN(DATE(YEAR($AN114),MONTH($AN114)+1,1),EDATE(Year1EndDate+1,12*(JL$93-1))),"M")/12,1)))) -> 0 | JM114: =IF(_501c3Status=Yes,0,(MIN(INDEX(Index_FUTAMax,1,MATCH(IM$105,MatchRatesYear,0))*$AB114,JA114*INDEX(Index_FUTA_Rate,1,MATCH(IM$105,MatchRatesYear,0))))) -> 0 | JN114: =IF(SchoolFundStatus=Yes,JA114*INDEX(Index_SchoolFundRate,1,MATCH(IM$105,MatchRatesYear,0)),(1+INDEX(Index_NewEmployees,1,MATCH(IM$105,MatchRatesYear,0)))*MIN(INDEX(Index_SUTAMax,1,MATCH(IM$105,MatchRatesYear,0))*$AB114,JA114*INDEX(Index_SUTA_Rate,1,MATCH(IM$105,MatchRatesYear,0)))) -> 0 | JO114: =MIN(INDEX(IndexBenefits,MATCH(ETTMax,MatchBenefits,0),MATCH(IM$105,MatchRatesYear,0))*$AB114,JA114*INDEX(IndexBenefits,MATCH(JO$107,MatchBenefits,0),MATCH(IM$105,MatchRatesYear,0))) -> 0 | JP114: =JA114*INDEX(IndexBenefits,MATCH(JP$107,MatchBenefits,0),MATCH(IM$105,MatchRatesYear,0)) -> 0 | JQ114: 0 | JS114: =IF($AT114=Yes,INDEX(IndexInLieuMedical,1,MATCH(Payroll!JT$105,MatchRatesYear,0)),0) -> 0 | JT114: 35404.3548 | JU114: 0 | JV114: 0 | JW114: 0 | JX114: 0 | JY114: 0 | JZ114: 0 | KA114: 0 | KB114: 0 | KC114: 0 | KD114: 0 | KE114: 0 | KF114: 0 | KG114: 0 | KH114: 0 | KI114: =IFERROR((-NetPayPercentage*KH114/KJ114)*(KJ114-MID(LEFT($AL114,FIND(",",$AL114)-1),FIND(" ",$AL114)+1,LEN($AL114))),0) -> 0 | KJ114: 0 | KK114: =IFERROR(IF(BN114=0,KH114/((CV114*FTEHours*CX114+JS114)*$AB114)*$AB114,KH114/((BN114/BL114+JS114)*$AB114)*$AB114),0) -> 0 | KL114: -35404.3548 | KM114: =IF($AR114=KM$107,INDEX(IndexBenefits,MATCH($AR114,MatchBenefits,0),MATCH(JT$105,MatchRatesYear,0)),0)*KH114 -> 0 | KN114: =IF($AR114=KN$107,INDEX(IndexBenefits,MATCH($AR114,MatchBenefits,0),MATCH(JT$105,MatchRatesYear,0)),0)*KH114 -> 0 | KO114: =IF($AR114=KO$107,INDEX(IndexBenefits,MATCH($AR114,MatchBenefits,0),MATCH(JT$105,MatchRatesYear,0)),0)*KH114 -> 0 | KP114: =IF(LEFT($AR114,16)=KP$107,INDEX(IndexBenefits,MATCH($AR114,MatchBenefits,0),MATCH(JT$105,MatchRatesYear,0)),0)*KH114 -> 0 | KQ114: =IF(IFERROR(INDEX(Index_SocialSecurity,MATCH($AR114,MatchBenefits,0)),Yes)=No,0,(MIN(INDEX(IndexBenefits,MATCH(SSIMax,MatchBenefits,0),MATCH(JT$105,MatchRatesYear,0))*$AB114,KH114*INDEX(IndexBenefits,MATCH(KQ$107,MatchBenefits,0),MATCH(JT$105,MatchRatesYear,0))))) -> 0 | KR114: =KH114*INDEX(IndexBenefits,MATCH(KR$107,MatchBenefits,0),MATCH(JT$105,MatchRatesYear,0)) -> 0 | KS114: =IF(KH114=0,0,IF($AS114="",0,INDEX(IndexBenefits,MATCH($AS114,MatchBenefits,0),MATCH(JT$105,MatchRatesYear,0))*$AB114*(MIN(DATEDIF(MAX(DATE(YEAR($AM114),MONTH(EOMONTH($AM114,(DAY($AM114)>5)+0)),1),EDATE(StartDateYr1,12*(KS$93-1))),MIN(DATE(YEAR($AN114),MONTH($AN114)+1,1),EDATE(Year1EndDate+1,12*(KS$93-1))),"M")/12,1)))) -> 0 | KT114: =IF(_501c3Status=Yes,0,(MIN(INDEX(Index_FUTAMax,1,MATCH(JT$105,MatchRatesYear,0))*$AB114,KH114*INDEX(Index_FUTA_Rate,1,MATCH(JT$105,MatchRatesYear,0))))) -> 0 | KU114: =IF(SchoolFundStatus=Yes,KH114*INDEX(Index_SchoolFundRate,1,MATCH(JT$105,MatchRatesYear,0)),(1+INDEX(Index_NewEmployees,1,MATCH(JT$105,MatchRatesYear,0)))*MIN(INDEX(Index_SUTAMax,1,MATCH(JT$105,MatchRatesYear,0))*$AB114,KH114*INDEX(Index_SUTA_Rate,1,MATCH(JT$105,MatchRatesYear,0)))) -> 0 | KV114: =MIN(INDEX(IndexBenefits,MATCH(ETTMax,MatchBenefits,0),MATCH(JT$105,MatchRatesYear,0))*$AB114,KH114*INDEX(IndexBenefits,MATCH(KV$107,MatchBenefits,0),MATCH(JT$105,MatchRatesYear,0))) -> 0 | KW114: =KH114*INDEX(IndexBenefits,MATCH(KW$107,MatchBenefits,0),MATCH(JT$105,MatchRatesYear,0)) -> 0 | KX114: 0 | KZ114: =IF($AT114=Yes,INDEX(IndexInLieuMedical,1,MATCH(Payroll!LA$105,MatchRatesYear,0)),0) -> 0 | LA114: 36466.48544 | LB114: 0 | LC114: 0 | LD114: 0 | LE114: 0 | LF114: 0 | LG114: 0 | LH114: 0 | LI114: 0 | LJ114: 0 | LK114: 0 | LL114: 0 | LM114: 0 | LN114: 0 | LO114: 0 | LP114: =IFERROR((-NetPayPercentage*LO114/LQ114)*(LQ114-MID(LEFT($AL114,FIND(",",$AL114)-1),FIND(" ",$AL114)+1,LEN($AL114))),0) -> 0 | LQ114: 0 | LR114: =IFERROR(IF(BR114=0,LO114/((DC114*FTEHours*DE114+KZ114)*$AB114)*$AB114,LO114/((BR114/$BP114+KZ114)*$AB114)*$AB114),0) -> 0 | LS114: -36466.48544 | LT114: =IF($AR114=LT$107,INDEX(IndexBenefits,MATCH($AR114,MatchBenefits,0),MATCH(LA$105,MatchRatesYear,0)),0)*LO114 -> 0 | LU114: =IF($AR114=LU$107,INDEX(IndexBenefits,MATCH($AR114,MatchBenefits,0),MATCH(LA$105,MatchRatesYear,0)),0)*LO114 -> 0 | LV114: =IF($AR114=LV$107,INDEX(IndexBenefits,MATCH($AR114,MatchBenefits,0),MATCH(LA$105,MatchRatesYear,0)),0)*LO114 -> 0 | LW114: =IF(LEFT($AR114,16)=LW$107,INDEX(IndexBenefits,MATCH($AR114,MatchBenefits,0),MATCH(LA$105,MatchRatesYear,0)),0)*LO114 -> 0 | LX114: =IF(IFERROR(INDEX(Index_SocialSecurity,MATCH($AR114,MatchBenefits,0)),Yes)=No,0,(MIN(INDEX(IndexBenefits,MATCH(SSIMax,MatchBenefits,0),MATCH(LA$105,MatchRatesYear,0))*$AB114,LO114*INDEX(IndexBenefits,MATCH(LX$107,MatchBenefits,0),MATCH(LA$105,MatchRatesYear,0))))) -> 0 | LY114: =LO114*INDEX(IndexBenefits,MATCH(LY$107,MatchBenefits,0),MATCH(LA$105,MatchRatesYear,0)) -> 0 | LZ114: =IF(LO114=0,0,IF($AS114="",0,INDEX(IndexBenefits,MATCH($AS114,MatchBenefits,0),MATCH(LA$105,MatchRatesYear,0))*$AB114*(MIN(DATEDIF(MAX(DATE(YEAR($AM114),MONTH(EOMONTH($AM114,(DAY($AM114)>5)+0)),1),EDATE(StartDateYr1,12*(LZ$93-1))),MIN(DATE(YEAR($AN114),MONTH($AN114)+1,1),EDATE(Year1EndDate+1,12*(LZ$93-1))),"M")/12,1)))) -> 0 | MA114: =IF(_501c3Status=Yes,0,(MIN(INDEX(Index_FUTAMax,1,MATCH(LA$105,MatchRatesYear,0))*$AB114,LO114*INDEX(Index_FUTA_Rate,1,MATCH(LA$105,MatchRatesYear,0))))) -> 0 | MB114: =IF(SchoolFundStatus=Yes,LO114*INDEX(Index_SchoolFundRate,1,MATCH(LA$105,MatchRatesYear,0)),(1+INDEX(Index_NewEmployees,1,MATCH(LA$105,MatchRatesYear,0)))*MIN(INDEX(Index_SUTAMax,1,MATCH(LA$105,MatchRatesYear,0))*$AB114,LO114*INDEX(Index_SUTA_Rate,1,MATCH(LA$105,MatchRatesYear,0)))) -> 0 | MC114: =MIN(INDEX(IndexBenefits,MATCH(ETTMax,MatchBenefits,0),MATCH(LA$105,MatchRatesYear,0))*$AB114,LO114*INDEX(IndexBenefits,MATCH(MC$107,MatchBenefits,0),MATCH(LA$105,MatchRatesYear,0))) -> 0 | MD114: =LO114*INDEX(IndexBenefits,MATCH(MD$107,MatchBenefits,0),MATCH(LA$105,MatchRatesYear,0)) -> 0 | ME114: 0
AB115: 1 | AE115: Dean of School Culture | AG115: 1300 | AH115: 2020-07-01 | AL115: Jul to Jun | AM115: =IF(AH115="",StartDateYr1,AH115) -> 2020-07-01 | AN115: =IF(AI115="",Year10EndDate,AI115) -> 2030-06-30 | AO115: =IF(AND(AG115<2000,AG115>=1000),Certificated,IF(AND(AG115>=2000,AG115<3000),Classified,"")) -> Certificated | AR115: STRS | AS115: Health for 70% | AU115: 1 | AV115: 83693 | AW115: 83693 | AX115: 93254 | AZ115: =IF($AN115<INDEX(YearStartDate,1,MATCH(AY$105,YearRelative,0)),0,IF(AY115="",AU115,AY115)) -> 1 | BA115: 93254 | BB115: =IF($AN115<INDEX(YearStartDate,1,MATCH(AY$105,YearRelative,0)),0,IFERROR(IF(BA115="",AZ115*AW115/AU115*(1+INDEX(IndexCOLA,MATCH($AO115,MatchCOLA,0),MATCH(AY$105,MatchRatesYear,0))),AZ115*BA115),0)) -> 93254 | BD115: =IF($AN115<INDEX(YearStartDate,1,MATCH(BC$105,YearRelative,0)),0,IF(BC115="",AZ115,BC115)) -> 1 | BF115: =IF($AN115<INDEX(YearStartDate,1,MATCH(BC$105,YearRelative,0)),0,IFERROR(IF(BE115="",BD115*BB115/AZ115*(1+INDEX(IndexCOLA,MATCH($AO115,MatchCOLA,0),MATCH(BC$105,MatchRatesYear,0))),BD115*BE115),0)) -> 96051.62 | BH115: =IF($AN115<INDEX(YearStartDate,1,MATCH(BG$105,YearRelative,0)),0,IF(BG115="",BD115,BG115)) -> 1 | BJ115: =IF($AN115<INDEX(YearStartDate,1,MATCH(BG$105,YearRelative,0)),0,IFERROR(IF(BI115="",BH115*BF115/BD115*(1+INDEX(IndexCOLA,MATCH($AO115,MatchCOLA,0),MATCH(BG$105,MatchRatesYear,0))),BH115*BI115),0)) -> 98933.1686 | BL115: =IF($AN115<INDEX(YearStartDate,1,MATCH(BK$105,YearRelative,0)),0,IF(BK115="",BH115,BK115)) -> 1 | BN115: =IF($AN115<INDEX(YearStartDate,1,MATCH(BK$105,YearRelative,0)),0,IFERROR(IF(BM115="",BL115*BJ115/BH115*(1+INDEX(IndexCOLA,MATCH($AO115,MatchCOLA,0),MATCH(BK$105,MatchRatesYear,0))),BL115*BM115),0)) -> 101901.1637 | BP115: =IF($AN115<INDEX(YearStartDate,1,MATCH(BO$105,YearRelative,0)),0,IF(BO115="",BL115,BO115)) -> 1 | BR115: =IF($AN115<INDEX(YearStartDate,1,MATCH(BO$105,YearRelative,0)),0,IFERROR(IF(BQ115="",BP115*BN115/BL115*(1+INDEX(IndexCOLA,MATCH($AO115,MatchCOLA,0),MATCH(BO$105,MatchRatesYear,0))),BP115*BQ115),0)) -> 104958.1986 | BT115: 0 | BU115: 0 | BV115: 0 | BW115: 0 | CA115: =IF($AN115<INDEX(YearStartDate,1,MATCH(AY$105,YearRelative,0)),0,IFERROR(IF(BX115="",BT115*(1+INDEX(IndexCOLA,MATCH($AO115,MatchCOLA,0),MATCH(BX$105,MatchRatesYear,0))),BX115),0)) -> 0 | CB115: =IF(BY115="",BU115,BY115) -> 0 | CC115: 0 | CD115: 0 | CH115: =IF($AN115<INDEX(YearStartDate,1,MATCH(AY$105,YearRelative,0)),0,IFERROR(IF(CE115="",CA115*(1+INDEX(IndexCOLA,MATCH($AO115,MatchCOLA,0),MATCH(CE$105,MatchRatesYear,0))),CE115),0)) -> 0 | CI115: =IF(CF115="",CB115,CF115) -> 0 | CJ115: 0 | CK115: 0 | CO115: =IF($AN115<INDEX(YearStartDate,1,MATCH(AY$105,YearRelative,0)),0,IFERROR(IF(CL115="",CH115*(1+INDEX(IndexCOLA,MATCH($AO115,MatchCOLA,0),MATCH(CL$105,MatchRatesYear,0))),CL115),0)) -> 0 | CP115: =IF(CM115="",CI115,CM115) -> 0 | CQ115: 0 | CR115: 0 | CV115: =IF($AN115<INDEX(YearStartDate,1,MATCH(AY$105,YearRelative,0)),0,IFERROR(IF(CS115="",CO115*(1+INDEX(IndexCOLA,MATCH($AO115,MatchCOLA,0),MATCH(CS$105,MatchRatesYear,0))),CS115),0)) -> 0 | CW115: =IF(CT115="",CP115,CT115) -> 0 | CX115: 0 | CY115: 0 | DC115: =IF($AN115<INDEX(YearStartDate,1,MATCH(AY$105,YearRelative,0)),0,IFERROR(IF(CZ115="",CV115*(1+INDEX(IndexCOLA,MATCH($AO115,MatchCOLA,0),MATCH(CZ$105,MatchRatesYear,0))),CZ115),0)) -> 0 | DD115: =IF(DA115="",CW115,DA115) -> 0 | DE115: 0 | DF115: 0 | DH115: 1 | DI115: 1 | DJ115: 1 | DK115: =1 -> 1 | DL115: 1 | DM115: 1 | DP115: 0 | DU115: 0 | DZ115: 0 | EE115: 0 | EJ115: 0 | EO115: 0 | EQ115: =IF($AT115=Yes,INDEX(IndexInLieuMedical,1,MATCH(Payroll!ER$105,MatchRatesYear,0)),0) -> 0 | ER115: 83693 | ES115: 0 | ET115: 0 | EU115: 0 | EV115: 0 | EW115: 0 | EX115: 0 | EY115: 0 | EZ115: 0 | FA115: 0 | FB115: 0 | FC115: 0 | FD115: 0 | FE115: 0 | FF115: 0 | FG115: =IFERROR((-NetPayPercentage*FF115/FH115)*(FH115-MID(LEFT($AL115,FIND(",",$AL115)-1),FIND(" ",$AL115)+1,LEN($AL115))),0) -> 0 | FH115: 0 | FI115: =IFERROR(IF(AW115=0,FF115/((BT115*FTEHours*BV115+EQ115)*$AB115)*$AB115,FF115/((AV115+EQ115)*$AB115)*$AB115),0) -> 0 | FJ115: -83693 | FK115: =IF($AR115=FK$107,INDEX(IndexBenefits,MATCH($AR115,MatchBenefits,0),MATCH(ER$105,MatchRatesYear,0)),0)*FF115 -> 0 | FL115: =IF($AR115=FL$107,INDEX(IndexBenefits,MATCH($AR115,MatchBenefits,0),MATCH(ER$105,MatchRatesYear,0)),0)*FF115 -> 0 | FM115: =IF($AR115=FM$107,INDEX(IndexBenefits,MATCH($AR115,MatchBenefits,0),MATCH(ER$105,MatchRatesYear,0)),0)*FF115 -> 0 | FN115: =IF(LEFT($AR115,16)=FN$107,INDEX(IndexBenefits,MATCH($AR115,MatchBenefits,0),MATCH(ER$105,MatchRatesYear,0)),0)*FF115 -> 0 | FO115: =IF(IFERROR(INDEX(Index_SocialSecurity,MATCH($AR115,MatchBenefits,0)),Yes)=No,0,(MIN(INDEX(IndexBenefits,MATCH(SSIMax,MatchBenefits,0),MATCH(ER$105,MatchRatesYear,0))*$AB115,FF115*INDEX(IndexBenefits,MATCH(FO$107,MatchBenefits,0),MATCH(ER$105,MatchRatesYear,0))))) -> 0 | FP115: =FF115*INDEX(IndexBenefits,MATCH(FP$107,MatchBenefits,0),MATCH(ER$105,MatchRatesYear,0)) -> 0 | FQ115: =IF(FF115=0,0,IF($AS115="",0,INDEX(IndexBenefits,MATCH($AS115,MatchBenefits,0),MATCH(ER$105,MatchRatesYear,0))*$AB115*(MIN(DATEDIF(MAX(DATE(YEAR($AM115),MONTH(EOMONTH($AM115,(DAY($AM115)>5)+0)),1),EDATE(StartDateYr1,12*(FQ$93-1))),MIN(DATE(YEAR($AN115),MONTH($AN115)+1,1),EDATE(Year1EndDate+1,12*(FQ$93-1))),"M")/12,1)))) -> 0 | FR115: =IF(_501c3Status=Yes,0,(MIN(INDEX(Index_FUTAMax,1,MATCH(ER$105,MatchRatesYear,0))*$AB115,FF115*INDEX(Index_FUTA_Rate,1,MATCH(ER$105,MatchRatesYear,0))))) -> 0 | FS115: =IF(SchoolFundStatus=Yes,FF115*INDEX(Index_SchoolFundRate,1,MATCH(ER$105,MatchRatesYear,0)),(1+INDEX(Index_NewEmployees,1,MATCH(ER$105,MatchRatesYear,0)))*MIN(INDEX(Index_SUTAMax,1,MATCH(ER$105,MatchRatesYear,0))*$AB115,FF115*INDEX(Index_SUTA_Rate,1,MATCH(ER$105,MatchRatesYear,0)))) -> 0 | FT115: =MIN(INDEX(IndexBenefits,MATCH(ETTMax,MatchBenefits,0),MATCH(ER$105,MatchRatesYear,0))*$AB115,FF115*INDEX(IndexBenefits,MATCH(FT$107,MatchBenefits,0),MATCH(ER$105,MatchRatesYear,0))) -> 0 | FU115: =FF115*INDEX(IndexBenefits,MATCH(FU$107,MatchBenefits,0),MATCH(ER$105,MatchRatesYear,0)) -> 0 | FV115: 0 | FX115: =IF($AT115=Yes,INDEX(IndexInLieuMedical,1,MATCH(Payroll!FY$105,MatchRatesYear,0)),0) -> 0 | FY115: 93254 | FZ115: 0 | GA115: 0 | GB115: 0 | GC115: 0 | GD115: 0 | GE115: 0 | GF115: 0 | GG115: 0 | GH115: 0 | GI115: 0 | GJ115: 0 | GK115: 0 | GL115: 0 | GM115: 0 | GN115: =IFERROR((-NetPayPercentage*GM115/GO115)*(GO115-MID(LEFT($AL115,FIND(",",$AL115)-1),FIND(" ",$AL115)+1,LEN($AL115))),0) -> 0 | GO115: 0 | GP115: =IFERROR(IF(BB115=0,GM115/((CA115*FTEHours*CC115+FX115)*$AB115)*$AB115,GM115/((BB115/AZ115+FX115)*$AB115)*$AB115),0) -> 0 | GQ115: -93254 | GR115: =IF($AR115=GR$107,INDEX(IndexBenefits,MATCH($AR115,MatchBenefits,0),MATCH(FY$105,MatchRatesYear,0)),0)*GM115 -> 0 | GS115: =IF($AR115=GS$107,INDEX(IndexBenefits,MATCH($AR115,MatchBenefits,0),MATCH(FY$105,MatchRatesYear,0)),0)*GM115 -> 0 | GT115: =IF($AR115=GT$107,INDEX(IndexBenefits,MATCH($AR115,MatchBenefits,0),MATCH(FY$105,MatchRatesYear,0)),0)*GM115 -> 0 | GU115: =IF(LEFT($AR115,16)=GU$107,INDEX(IndexBenefits,MATCH($AR115,MatchBenefits,0),MATCH(FY$105,MatchRatesYear,0)),0)*GM115 -> 0 | GV115: =IF(IFERROR(INDEX(Index_SocialSecurity,MATCH($AR115,MatchBenefits,0)),Yes)=No,0,(MIN(INDEX(IndexBenefits,MATCH(SSIMax,MatchBenefits,0),MATCH(FY$105,MatchRatesYear,0))*$AB115,GM115*INDEX(IndexBenefits,MATCH(GV$107,MatchBenefits,0),MATCH(FY$105,MatchRatesYear,0))))) -> 0 | GW115: =GM115*INDEX(IndexBenefits,MATCH(GW$107,MatchBenefits,0),MATCH(FY$105,MatchRatesYear,0)) -> 0 | GX115: =IF(GM115=0,0,IF($AS115="",0,INDEX(IndexBenefits,MATCH($AS115,MatchBenefits,0),MATCH(FY$105,MatchRatesYear,0))*$AB115*(MIN(DATEDIF(MAX(DATE(YEAR($AM115),MONTH(EOMONTH($AM115,(DAY($AM115)>5)+0)),1),EDATE(StartDateYr1,12*(GX$93-1))),MIN(DATE(YEAR($AN115),MONTH($AN115)+1,1),EDATE(Year1EndDate+1,12*(GX$93-1))),"M")/12,1)))) -> 0 | GY115: =IF(_501c3Status=Yes,0,(MIN(INDEX(Index_FUTAMax,1,MATCH(FY$105,MatchRatesYear,0))*$AB115,GM115*INDEX(Index_FUTA_Rate,1,MATCH(FY$105,MatchRatesYear,0))))) -> 0 | GZ115: =IF(SchoolFundStatus=Yes,GM115*INDEX(Index_SchoolFundRate,1,MATCH(FY$105,MatchRatesYear,0)),(1+INDEX(Index_NewEmployees,1,MATCH(FY$105,MatchRatesYear,0)))*MIN(INDEX(Index_SUTAMax,1,MATCH(FY$105,MatchRatesYear,0))*$AB115,GM115*INDEX(Index_SUTA_Rate,1,MATCH(FY$105,MatchRatesYear,0)))) -> 0 | HA115: =MIN(INDEX(IndexBenefits,MATCH(ETTMax,MatchBenefits,0),MATCH(FY$105,MatchRatesYear,0))*$AB115,GM115*INDEX(IndexBenefits,MATCH(HA$107,MatchBenefits,0),MATCH(FY$105,MatchRatesYear,0))) -> 0 | HB115: =GM115*INDEX(IndexBenefits,MATCH(HB$107,MatchBenefits,0),MATCH(FY$105,MatchRatesYear,0)) -> 0 | HC115: 0 | HE115: =IF($AT115=Yes,INDEX(IndexInLieuMedical,1,MATCH(Payroll!HF$105,MatchRatesYear,0)),0) -> 0 | HF115: 96051.62 | HG115: 0 | HH115: 0 | HI115: 0 | HJ115: 0 | HK115: 0 | HL115: 0 | HM115: 0 | HN115: 0 | HO115: 0 | HP115: 0 | HQ115: 0 | HR115: 0 | HS115: 0 | HT115: 0 | HU115: =IFERROR((-NetPayPercentage*HT115/HV115)*(HV115-MID(LEFT($AL115,FIND(",",$AL115)-1),FIND(" ",$AL115)+1,LEN($AL115))),0) -> 0 | HV115: 0 | HW115: =IFERROR(IF(BF115=0,HT115/((CH115*FTEHours*CJ115+HE115)*$AB115)*$AB115,HT115/((BF115/BD115+HE115)*$AB115)*$AB115),0) -> 0 | HX115: -96051.62 | HY115: =IF($AR115=HY$107,INDEX(IndexBenefits,MATCH($AR115,MatchBenefits,0),MATCH(HF$105,MatchRatesYear,0)),0)*HT115 -> 0 | HZ115: =IF($AR115=HZ$107,INDEX(IndexBenefits,MATCH($AR115,MatchBenefits,0),MATCH(HF$105,MatchRatesYear,0)),0)*HT115 -> 0 | IA115: =IF($AR115=IA$107,INDEX(IndexBenefits,MATCH($AR115,MatchBenefits,0),MATCH(HF$105,MatchRatesYear,0)),0)*HT115 -> 0 | IB115: =IF(LEFT($AR115,16)=IB$107,INDEX(IndexBenefits,MATCH($AR115,MatchBenefits,0),MATCH(HF$105,MatchRatesYear,0)),0)*HT115 -> 0 | IC115: =IF(IFERROR(INDEX(Index_SocialSecurity,MATCH($AR115,MatchBenefits,0)),Yes)=No,0,(MIN(INDEX(IndexBenefits,MATCH(SSIMax,MatchBenefits,0),MATCH(HF$105,MatchRatesYear,0))*$AB115,HT115*INDEX(IndexBenefits,MATCH(IC$107,MatchBenefits,0),MATCH(HF$105,MatchRatesYear,0))))) -> 0 | ID115: =HT115*INDEX(IndexBenefits,MATCH(ID$107,MatchBenefits,0),MATCH(HF$105,MatchRatesYear,0)) -> 0 | IE115: =IF(HT115=0,0,IF($AS115="",0,INDEX(IndexBenefits,MATCH($AS115,MatchBenefits,0),MATCH(HF$105,MatchRatesYear,0))*$AB115*(MIN(DATEDIF(MAX(DATE(YEAR($AM115),MONTH(EOMONTH($AM115,(DAY($AM115)>5)+0)),1),EDATE(StartDateYr1,12*(IE$93-1))),MIN(DATE(YEAR($AN115),MONTH($AN115)+1,1),EDATE(Year1EndDate+1,12*(IE$93-1))),"M")/12,1)))) -> 0 | IF115: =IF(_501c3Status=Yes,0,(MIN(INDEX(Index_FUTAMax,1,MATCH(HF$105,MatchRatesYear,0))*$AB115,HT115*INDEX(Index_FUTA_Rate,1,MATCH(HF$105,MatchRatesYear,0))))) -> 0 | IG115: =IF(SchoolFundStatus=Yes,HT115*INDEX(Index_SchoolFundRate,1,MATCH(HF$105,MatchRatesYear,0)),(1+INDEX(Index_NewEmployees,1,MATCH(HF$105,MatchRatesYear,0)))*MIN(INDEX(Index_SUTAMax,1,MATCH(HF$105,MatchRatesYear,0))*$AB115,HT115*INDEX(Index_SUTA_Rate,1,MATCH(HF$105,MatchRatesYear,0)))) -> 0 | IH115: =MIN(INDEX(IndexBenefits,MATCH(ETTMax,MatchBenefits,0),MATCH(HF$105,MatchRatesYear,0))*$AB115,HT115*INDEX(IndexBenefits,MATCH(IH$107,MatchBenefits,0),MATCH(HF$105,MatchRatesYear,0))) -> 0 | II115: =HT115*INDEX(IndexBenefits,MATCH(II$107,MatchBenefits,0),MATCH(HF$105,MatchRatesYear,0)) -> 0 | IJ115: 0 | IL115: =IF($AT115=Yes,INDEX(IndexInLieuMedical,1,MATCH(Payroll!IM$105,MatchRatesYear,0)),0) -> 0 | IM115: 98933.1686 | IN115: 0 | IO115: 0 | IP115: 0 | IQ115: 0 | IR115: 0 | IS115: 0 | IT115: 0 | IU115: 0 | IV115: 0 | IW115: 0 | IX115: 0 | IY115: 0 | IZ115: 0 | JA115: 0 | JB115: =IFERROR((-NetPayPercentage*JA115/JC115)*(JC115-MID(LEFT($AL115,FIND(",",$AL115)-1),FIND(" ",$AL115)+1,LEN($AL115))),0) -> 0 | JC115: 0 | JD115: =IFERROR(IF(BJ115=0,JA115/((CO115*FTEHours*CQ115+IL115)*$AB115)*$AB115,JA115/((BJ115/BH115+IL115)*$AB115)*$AB115),0) -> 0 | JE115: -98933.1686 | JF115: =IF($AR115=JF$107,INDEX(IndexBenefits,MATCH($AR115,MatchBenefits,0),MATCH(IM$105,MatchRatesYear,0)),0)*JA115 -> 0 | JG115: =IF($AR115=JG$107,INDEX(IndexBenefits,MATCH($AR115,MatchBenefits,0),MATCH(IM$105,MatchRatesYear,0)),0)*JA115 -> 0 | JH115: =IF($AR115=JH$107,INDEX(IndexBenefits,MATCH($AR115,MatchBenefits,0),MATCH(IM$105,MatchRatesYear,0)),0)*JA115 -> 0 | JI115: =IF(LEFT($AR115,16)=JI$107,INDEX(IndexBenefits,MATCH($AR115,MatchBenefits,0),MATCH(IM$105,MatchRatesYear,0)),0)*JA115 -> 0 | JJ115: =IF(IFERROR(INDEX(Index_SocialSecurity,MATCH($AR115,MatchBenefits,0)),Yes)=No,0,(MIN(INDEX(IndexBenefits,MATCH(SSIMax,MatchBenefits,0),MATCH(IM$105,MatchRatesYear,0))*$AB115,JA115*INDEX(IndexBenefits,MATCH(JJ$107,MatchBenefits,0),MATCH(IM$105,MatchRatesYear,0))))) -> 0 | JK115: =JA115*INDEX(IndexBenefits,MATCH(JK$107,MatchBenefits,0),MATCH(IM$105,MatchRatesYear,0)) -> 0 | JL115: =IF(JA115=0,0,IF($AS115="",0,INDEX(IndexBenefits,MATCH($AS115,MatchBenefits,0),MATCH(IM$105,MatchRatesYear,0))*$AB115*(MIN(DATEDIF(MAX(DATE(YEAR($AM115),MONTH(EOMONTH($AM115,(DAY($AM115)>5)+0)),1),EDATE(StartDateYr1,12*(JL$93-1))),MIN(DATE(YEAR($AN115),MONTH($AN115)+1,1),EDATE(Year1EndDate+1,12*(JL$93-1))),"M")/12,1)))) -> 0 | JM115: =IF(_501c3Status=Yes,0,(MIN(INDEX(Index_FUTAMax,1,MATCH(IM$105,MatchRatesYear,0))*$AB115,JA115*INDEX(Index_FUTA_Rate,1,MATCH(IM$105,MatchRatesYear,0))))) -> 0 | JN115: =IF(SchoolFundStatus=Yes,JA115*INDEX(Index_SchoolFundRate,1,MATCH(IM$105,MatchRatesYear,0)),(1+INDEX(Index_NewEmployees,1,MATCH(IM$105,MatchRatesYear,0)))*MIN(INDEX(Index_SUTAMax,1,MATCH(IM$105,MatchRatesYear,0))*$AB115,JA115*INDEX(Index_SUTA_Rate,1,MATCH(IM$105,MatchRatesYear,0)))) -> 0 | JO115: =MIN(INDEX(IndexBenefits,MATCH(ETTMax,MatchBenefits,0),MATCH(IM$105,MatchRatesYear,0))*$AB115,JA115*INDEX(IndexBenefits,MATCH(JO$107,MatchBenefits,0),MATCH(IM$105,MatchRatesYear,0))) -> 0 | JP115: =JA115*INDEX(IndexBenefits,MATCH(JP$107,MatchBenefits,0),MATCH(IM$105,MatchRatesYear,0)) -> 0 | JQ115: 0 | JS115: =IF($AT115=Yes,INDEX(IndexInLieuMedical,1,MATCH(Payroll!JT$105,MatchRatesYear,0)),0) -> 0 | JT115: 101901.1637 | JU115: 0 | JV115: 0 | JW115: 0 | JX115: 0 | JY115: 0 | JZ115: 0 | KA115: 0 | KB115: 0 | KC115: 0 | KD115: 0 | KE115: 0 | KF115: 0 | KG115: 0 | KH115: 0 | KI115: =IFERROR((-NetPayPercentage*KH115/KJ115)*(KJ115-MID(LEFT($AL115,FIND(",",$AL115)-1),FIND(" ",$AL115)+1,LEN($AL115))),0) -> 0 | KJ115: 0 | KK115: =IFERROR(IF(BN115=0,KH115/((CV115*FTEHours*CX115+JS115)*$AB115)*$AB115,KH115/((BN115/BL115+JS115)*$AB115)*$AB115),0) -> 0 | KL115: -101901.1637 | KM115: =IF($AR115=KM$107,INDEX(IndexBenefits,MATCH($AR115,MatchBenefits,0),MATCH(JT$105,MatchRatesYear,0)),0)*KH115 -> 0 | KN115: =IF($AR115=KN$107,INDEX(IndexBenefits,MATCH($AR115,MatchBenefits,0),MATCH(JT$105,MatchRatesYear,0)),0)*KH115 -> 0 | KO115: =IF($AR115=KO$107,INDEX(IndexBenefits,MATCH($AR115,MatchBenefits,0),MATCH(JT$105,MatchRatesYear,0)),0)*KH115 -> 0 | KP115: =IF(LEFT($AR115,16)=KP$107,INDEX(IndexBenefits,MATCH($AR115,MatchBenefits,0),MATCH(JT$105,MatchRatesYear,0)),0)*KH115 -> 0 | KQ115: =IF(IFERROR(INDEX(Index_SocialSecurity,MATCH($AR115,MatchBenefits,0)),Yes)=No,0,(MIN(INDEX(IndexBenefits,MATCH(SSIMax,MatchBenefits,0),MATCH(JT$105,MatchRatesYear,0))*$AB115,KH115*INDEX(IndexBenefits,MATCH(KQ$107,MatchBenefits,0),MATCH(JT$105,MatchRatesYear,0))))) -> 0 | KR115: =KH115*INDEX(IndexBenefits,MATCH(KR$107,MatchBenefits,0),MATCH(JT$105,MatchRatesYear,0)) -> 0 | KS115: =IF(KH115=0,0,IF($AS115="",0,INDEX(IndexBenefits,MATCH($AS115,MatchBenefits,0),MATCH(JT$105,MatchRatesYear,0))*$AB115*(MIN(DATEDIF(MAX(DATE(YEAR($AM115),MONTH(EOMONTH($AM115,(DAY($AM115)>5)+0)),1),EDATE(StartDateYr1,12*(KS$93-1))),MIN(DATE(YEAR($AN115),MONTH($AN115)+1,1),EDATE(Year1EndDate+1,12*(KS$93-1))),"M")/12,1)))) -> 0 | KT115: =IF(_501c3Status=Yes,0,(MIN(INDEX(Index_FUTAMax,1,MATCH(JT$105,MatchRatesYear,0))*$AB115,KH115*INDEX(Index_FUTA_Rate,1,MATCH(JT$105,MatchRatesYear,0))))) -> 0 | KU115: =IF(SchoolFundStatus=Yes,KH115*INDEX(Index_SchoolFundRate,1,MATCH(JT$105,MatchRatesYear,0)),(1+INDEX(Index_NewEmployees,1,MATCH(JT$105,MatchRatesYear,0)))*MIN(INDEX(Index_SUTAMax,1,MATCH(JT$105,MatchRatesYear,0))*$AB115,KH115*INDEX(Index_SUTA_Rate,1,MATCH(JT$105,MatchRatesYear,0)))) -> 0 | KV115: =MIN(INDEX(IndexBenefits,MATCH(ETTMax,MatchBenefits,0),MATCH(JT$105,MatchRatesYear,0))*$AB115,KH115*INDEX(IndexBenefits,MATCH(KV$107,MatchBenefits,0),MATCH(JT$105,MatchRatesYear,0))) -> 0 | KW115: =KH115*INDEX(IndexBenefits,MATCH(KW$107,MatchBenefits,0),MATCH(JT$105,MatchRatesYear,0)) -> 0 | KX115: 0 | KZ115: =IF($AT115=Yes,INDEX(IndexInLieuMedical,1,MATCH(Payroll!LA$105,MatchRatesYear,0)),0) -> 0 | LA115: 104958.1986 | LB115: 0 | LC115: 0 | LD115: 0 | LE115: 0 | LF115: 0 | LG115: 0 | LH115: 0 | LI115: 0 | LJ115: 0 | LK115: 0 | LL115: 0 | LM115: 0 | LN115: 0 | LO115: 0 | LP115: =IFERROR((-NetPayPercentage*LO115/LQ115)*(LQ115-MID(LEFT($AL115,FIND(",",$AL115)-1),FIND(" ",$AL115)+1,LEN($AL115))),0) -> 0 | LQ115: 0 | LR115: =IFERROR(IF(BR115=0,LO115/((DC115*FTEHours*DE115+KZ115)*$AB115)*$AB115,LO115/((BR115/$BP115+KZ115)*$AB115)*$AB115),0) -> 0 | LS115: -104958.1986 | LT115: =IF($AR115=LT$107,INDEX(IndexBenefits,MATCH($AR115,MatchBenefits,0),MATCH(LA$105,MatchRatesYear,0)),0)*LO115 -> 0 | LU115: =IF($AR115=LU$107,INDEX(IndexBenefits,MATCH($AR115,MatchBenefits,0),MATCH(LA$105,MatchRatesYear,0)),0)*LO115 -> 0 | LV115: =IF($AR115=LV$107,INDEX(IndexBenefits,MATCH($AR115,MatchBenefits,0),MATCH(LA$105,MatchRatesYear,0)),0)*LO115 -> 0 | LW115: =IF(LEFT($AR115,16)=LW$107,INDEX(IndexBenefits,MATCH($AR115,MatchBenefits,0),MATCH(LA$105,MatchRatesYear,0)),0)*LO115 -> 0 | LX115: =IF(IFERROR(INDEX(Index_SocialSecurity,MATCH($AR115,MatchBenefits,0)),Yes)=No,0,(MIN(INDEX(IndexBenefits,MATCH(SSIMax,MatchBenefits,0),MATCH(LA$105,MatchRatesYear,0))*$AB115,LO115*INDEX(IndexBenefits,MATCH(LX$107,MatchBenefits,0),MATCH(LA$105,MatchRatesYear,0))))) -> 0 | LY115: =LO115*INDEX(IndexBenefits,MATCH(LY$107,MatchBenefits,0),MATCH(LA$105,MatchRatesYear,0)) -> 0 | LZ115: =IF(LO115=0,0,IF($AS115="",0,INDEX(IndexBenefits,MATCH($AS115,MatchBenefits,0),MATCH(LA$105,MatchRatesYear,0))*$AB115*(MIN(DATEDIF(MAX(DATE(YEAR($AM115),MONTH(EOMONTH($AM115,(DAY($AM115)>5)+0)),1),EDATE(StartDateYr1,12*(LZ$93-1))),MIN(DATE(YEAR($AN115),MONTH($AN115)+1,1),EDATE(Year1EndDate+1,12*(LZ$93-1))),"M")/12,1)))) -> 0 | MA115: =IF(_501c3Status=Yes,0,(MIN(INDEX(Index_FUTAMax,1,MATCH(LA$105,MatchRatesYear,0))*$AB115,LO115*INDEX(Index_FUTA_Rate,1,MATCH(LA$105,MatchRatesYear,0))))) -> 0 | MB115: =IF(SchoolFundStatus=Yes,LO115*INDEX(Index_SchoolFundRate,1,MATCH(LA$105,MatchRatesYear,0)),(1+INDEX(Index_NewEmployees,1,MATCH(LA$105,MatchRatesYear,0)))*MIN(INDEX(Index_SUTAMax,1,MATCH(LA$105,MatchRatesYear,0))*$AB115,LO115*INDEX(Index_SUTA_Rate,1,MATCH(LA$105,MatchRatesYear,0)))) -> 0 | MC115: =MIN(INDEX(IndexBenefits,MATCH(ETTMax,MatchBenefits,0),MATCH(LA$105,MatchRatesYear,0))*$AB115,LO115*INDEX(IndexBenefits,MATCH(MC$107,MatchBenefits,0),MATCH(LA$105,MatchRatesYear,0))) -> 0 | MD115: =LO115*INDEX(IndexBenefits,MATCH(MD$107,MatchBenefits,0),MATCH(LA$105,MatchRatesYear,0)) -> 0 | ME115: 0
AB116: 1 | AE116: Spanish | AG116: 1100 | AH116: 2020-07-01 | AL116: Aug to Jun | AM116: =IF(AH116="",StartDateYr1,AH116) -> 2020-07-01 | AN116: =IF(AI116="",Year10EndDate,AI116) -> 2030-06-30 | AO116: =IF(AND(AG116<2000,AG116>=1000),Certificated,IF(AND(AG116>=2000,AG116<3000),Classified,"")) -> Certificated | AR116: STRS | AS116: Health for 70% | AU116: 1 | AV116: 76600 | AW116: 76600 | AX116: 77800 | AZ116: =IF($AN116<INDEX(YearStartDate,1,MATCH(AY$105,YearRelative,0)),0,IF(AY116="",AU116,AY116)) -> 1 | BA116: 77800 | BB116: =IF($AN116<INDEX(YearStartDate,1,MATCH(AY$105,YearRelative,0)),0,IFERROR(IF(BA116="",AZ116*AW116/AU116*(1+INDEX(IndexCOLA,MATCH($AO116,MatchCOLA,0),MATCH(AY$105,MatchRatesYear,0))),AZ116*BA116),0)) -> 77800 | BD116: =IF($AN116<INDEX(YearStartDate,1,MATCH(BC$105,YearRelative,0)),0,IF(BC116="",AZ116,BC116)) -> 1 | BF116: =IF($AN116<INDEX(YearStartDate,1,MATCH(BC$105,YearRelative,0)),0,IFERROR(IF(BE116="",BD116*BB116/AZ116*(1+INDEX(IndexCOLA,MATCH($AO116,MatchCOLA,0),MATCH(BC$105,MatchRatesYear,0))),BD116*BE116),0)) -> 80134 | BH116: =IF($AN116<INDEX(YearStartDate,1,MATCH(BG$105,YearRelative,0)),0,IF(BG116="",BD116,BG116)) -> 1 | BJ116: =IF($AN116<INDEX(YearStartDate,1,MATCH(BG$105,YearRelative,0)),0,IFERROR(IF(BI116="",BH116*BF116/BD116*(1+INDEX(IndexCOLA,MATCH($AO116,MatchCOLA,0),MATCH(BG$105,MatchRatesYear,0))),BH116*BI116),0)) -> 82538.02 | BL116: =IF($AN116<INDEX(YearStartDate,1,MATCH(BK$105,YearRelative,0)),0,IF(BK116="",BH116,BK116)) -> 1 | BN116: =IF($AN116<INDEX(YearStartDate,1,MATCH(BK$105,YearRelative,0)),0,IFERROR(IF(BM116="",BL116*BJ116/BH116*(1+INDEX(IndexCOLA,MATCH($AO116,MatchCOLA,0),MATCH(BK$105,MatchRatesYear,0))),BL116*BM116),0)) -> 85014.1606 | BP116: =IF($AN116<INDEX(YearStartDate,1,MATCH(BO$105,YearRelative,0)),0,IF(BO116="",BL116,BO116)) -> 1 | BR116: =IF($AN116<INDEX(YearStartDate,1,MATCH(BO$105,YearRelative,0)),0,IFERROR(IF(BQ116="",BP116*BN116/BL116*(1+INDEX(IndexCOLA,MATCH($AO116,MatchCOLA,0),MATCH(BO$105,MatchRatesYear,0))),BP116*BQ116),0)) -> 87564.58542 | BT116: 0 | BU116: 0 | BV116: 0 | BW116: 0 | CA116: =IF($AN116<INDEX(YearStartDate,1,MATCH(AY$105,YearRelative,0)),0,IFERROR(IF(BX116="",BT116*(1+INDEX(IndexCOLA,MATCH($AO116,MatchCOLA,0),MATCH(BX$105,MatchRatesYear,0))),BX116),0)) -> 0 | CB116: =IF(BY116="",BU116,BY116) -> 0 | CC116: 0 | CD116: 0 | CH116: =IF($AN116<INDEX(YearStartDate,1,MATCH(AY$105,YearRelative,0)),0,IFERROR(IF(CE116="",CA116*(1+INDEX(IndexCOLA,MATCH($AO116,MatchCOLA,0),MATCH(CE$105,MatchRatesYear,0))),CE116),0)) -> 0 | CI116: =IF(CF116="",CB116,CF116) -> 0 | CJ116: 0 | CK116: 0 | CO116: =IF($AN116<INDEX(YearStartDate,1,MATCH(AY$105,YearRelative,0)),0,IFERROR(IF(CL116="",CH116*(1+INDEX(IndexCOLA,MATCH($AO116,MatchCOLA,0),MATCH(CL$105,MatchRatesYear,0))),CL116),0)) -> 0 | CP116: =IF(CM116="",CI116,CM116) -> 0 | CQ116: 0 | CR116: 0 | CV116: =IF($AN116<INDEX(YearStartDate,1,MATCH(AY$105,YearRelative,0)),0,IFERROR(IF(CS116="",CO116*(1+INDEX(IndexCOLA,MATCH($AO116,MatchCOLA,0),MATCH(CS$105,MatchRatesYear,0))),CS116),0)) -> 0 | CW116: =IF(CT116="",CP116,CT116) -> 0 | CX116: 0 | CY116: 0 | DC116: =IF($AN116<INDEX(YearStartDate,1,MATCH(AY$105,YearRelative,0)),0,IFERROR(IF(CZ116="",CV116*(1+INDEX(IndexCOLA,MATCH($AO116,MatchCOLA,0),MATCH(CZ$105,MatchRatesYear,0))),CZ116),0)) -> 0 | DD116: =IF(DA116="",CW116,DA116) -> 0 | DE116: 0 | DF116: 0 | DH116: 1 | DI116: 1 | DJ116: 1 | DK116: =1 -> 1 | DL116: 1 | DM116: 1 | DP116: 0 | DU116: 0 | DZ116: 0 | EE116: 0 | EJ116: 0 | EO116: 0 | EQ116: =IF($AT116=Yes,INDEX(IndexInLieuMedical,1,MATCH(Payroll!ER$105,MatchRatesYear,0)),0) -> 0 | ER116: 76600 | ES116: 0 | ET116: 0 | EU116: 0 | EV116: 0 | EW116: 0 | EX116: 0 | EY116: 0 | EZ116: 0 | FA116: 0 | FB116: 0 | FC116: 0 | FD116: 0 | FE116: 0 | FF116: 0 | FG116: =IFERROR((-NetPayPercentage*FF116/FH116)*(FH116-MID(LEFT($AL116,FIND(",",$AL116)-1),FIND(" ",$AL116)+1,LEN($AL116))),0) -> 0 | FH116: 0 | FI116: =IFERROR(IF(AW116=0,FF116/((BT116*FTEHours*BV116+EQ116)*$AB116)*$AB116,FF116/((AV116+EQ116)*$AB116)*$AB116),0) -> 0 | FJ116: -76600 | FK116: =IF($AR116=FK$107,INDEX(IndexBenefits,MATCH($AR116,MatchBenefits,0),MATCH(ER$105,MatchRatesYear,0)),0)*FF116 -> 0 | FL116: =IF($AR116=FL$107,INDEX(IndexBenefits,MATCH($AR116,MatchBenefits,0),MATCH(ER$105,MatchRatesYear,0)),0)*FF116 -> 0 | FM116: =IF($AR116=FM$107,INDEX(IndexBenefits,MATCH($AR116,MatchBenefits,0),MATCH(ER$105,MatchRatesYear,0)),0)*FF116 -> 0 | FN116: =IF(LEFT($AR116,16)=FN$107,INDEX(IndexBenefits,MATCH($AR116,MatchBenefits,0),MATCH(ER$105,MatchRatesYear,0)),0)*FF116 -> 0 | FO116: =IF(IFERROR(INDEX(Index_SocialSecurity,MATCH($AR116,MatchBenefits,0)),Yes)=No,0,(MIN(INDEX(IndexBenefits,MATCH(SSIMax,MatchBenefits,0),MATCH(ER$105,MatchRatesYear,0))*$AB116,FF116*INDEX(IndexBenefits,MATCH(FO$107,MatchBenefits,0),MATCH(ER$105,MatchRatesYear,0))))) -> 0 | FP116: =FF116*INDEX(IndexBenefits,MATCH(FP$107,MatchBenefits,0),MATCH(ER$105,MatchRatesYear,0)) -> 0 | FQ116: =IF(FF116=0,0,IF($AS116="",0,INDEX(IndexBenefits,MATCH($AS116,MatchBenefits,0),MATCH(ER$105,MatchRatesYear,0))*$AB116*(MIN(DATEDIF(MAX(DATE(YEAR($AM116),MONTH(EOMONTH($AM116,(DAY($AM116)>5)+0)),1),EDATE(StartDateYr1,12*(FQ$93-1))),MIN(DATE(YEAR($AN116),MONTH($AN116)+1,1),EDATE(Year1EndDate+1,12*(FQ$93-1))),"M")/12,1)))) -> 0 | FR116: =IF(_501c3Status=Yes,0,(MIN(INDEX(Index_FUTAMax,1,MATCH(ER$105,MatchRatesYear,0))*$AB116,FF116*INDEX(Index_FUTA_Rate,1,MATCH(ER$105,MatchRatesYear,0))))) -> 0 | FS116: =IF(SchoolFundStatus=Yes,FF116*INDEX(Index_SchoolFundRate,1,MATCH(ER$105,MatchRatesYear,0)),(1+INDEX(Index_NewEmployees,1,MATCH(ER$105,MatchRatesYear,0)))*MIN(INDEX(Index_SUTAMax,1,MATCH(ER$105,MatchRatesYear,0))*$AB116,FF116*INDEX(Index_SUTA_Rate,1,MATCH(ER$105,MatchRatesYear,0)))) -> 0 | FT116: =MIN(INDEX(IndexBenefits,MATCH(ETTMax,MatchBenefits,0),MATCH(ER$105,MatchRatesYear,0))*$AB116,FF116*INDEX(IndexBenefits,MATCH(FT$107,MatchBenefits,0),MATCH(ER$105,MatchRatesYear,0))) -> 0 | FU116: =FF116*INDEX(IndexBenefits,MATCH(FU$107,MatchBenefits,0),MATCH(ER$105,MatchRatesYear,0)) -> 0 | FV116: 0 | FX116: =IF($AT116=Yes,INDEX(IndexInLieuMedical,1,MATCH(Payroll!FY$105,MatchRatesYear,0)),0) -> 0 | FY116: 77800 | FZ116: 0 | GA116: 0 | GB116: 0 | GC116: 0 | GD116: 0 | GE116: 0 | GF116: 0 | GG116: 0 | GH116: 0 | GI116: 0 | GJ116: 0 | GK116: 0 | GL116: 0 | GM116: 0 | GN116: =IFERROR((-NetPayPercentage*GM116/GO116)*(GO116-MID(LEFT($AL116,FIND(",",$AL116)-1),FIND(" ",$AL116)+1,LEN($AL116))),0) -> 0 | GO116: 0 | GP116: =IFERROR(IF(BB116=0,GM116/((CA116*FTEHours*CC116+FX116)*$AB116)*$AB116,GM116/((BB116/AZ116+FX116)*$AB116)*$AB116),0) -> 0 | GQ116: -77800 | GR116: =IF($AR116=GR$107,INDEX(IndexBenefits,MATCH($AR116,MatchBenefits,0),MATCH(FY$105,MatchRatesYear,0)),0)*GM116 -> 0 | GS116: =IF($AR116=GS$107,INDEX(IndexBenefits,MATCH($AR116,MatchBenefits,0),MATCH(FY$105,MatchRatesYear,0)),0)*GM116 -> 0 | GT116: =IF($AR116=GT$107,INDEX(IndexBenefits,MATCH($AR116,MatchBenefits,0),MATCH(FY$105,MatchRatesYear,0)),0)*GM116 -> 0 | GU116: =IF(LEFT($AR116,16)=GU$107,INDEX(IndexBenefits,MATCH($AR116,MatchBenefits,0),MATCH(FY$105,MatchRatesYear,0)),0)*GM116 -> 0 | GV116: =IF(IFERROR(INDEX(Index_SocialSecurity,MATCH($AR116,MatchBenefits,0)),Yes)=No,0,(MIN(INDEX(IndexBenefits,MATCH(SSIMax,MatchBenefits,0),MATCH(FY$105,MatchRatesYear,0))*$AB116,GM116*INDEX(IndexBenefits,MATCH(GV$107,MatchBenefits,0),MATCH(FY$105,MatchRatesYear,0))))) -> 0 | GW116: =GM116*INDEX(IndexBenefits,MATCH(GW$107,MatchBenefits,0),MATCH(FY$105,MatchRatesYear,0)) -> 0 | GX116: =IF(GM116=0,0,IF($AS116="",0,INDEX(IndexBenefits,MATCH($AS116,MatchBenefits,0),MATCH(FY$105,MatchRatesYear,0))*$AB116*(MIN(DATEDIF(MAX(DATE(YEAR($AM116),MONTH(EOMONTH($AM116,(DAY($AM116)>5)+0)),1),EDATE(StartDateYr1,12*(GX$93-1))),MIN(DATE(YEAR($AN116),MONTH($AN116)+1,1),EDATE(Year1EndDate+1,12*(GX$93-1))),"M")/12,1)))) -> 0 | GY116: =IF(_501c3Status=Yes,0,(MIN(INDEX(Index_FUTAMax,1,MATCH(FY$105,MatchRatesYear,0))*$AB116,GM116*INDEX(Index_FUTA_Rate,1,MATCH(FY$105,MatchRatesYear,0))))) -> 0 | GZ116: =IF(SchoolFundStatus=Yes,GM116*INDEX(Index_SchoolFundRate,1,MATCH(FY$105,MatchRatesYear,0)),(1+INDEX(Index_NewEmployees,1,MATCH(FY$105,MatchRatesYear,0)))*MIN(INDEX(Index_SUTAMax,1,MATCH(FY$105,MatchRatesYear,0))*$AB116,GM116*INDEX(Index_SUTA_Rate,1,MATCH(FY$105,MatchRatesYear,0)))) -> 0 | HA116: =MIN(INDEX(IndexBenefits,MATCH(ETTMax,MatchBenefits,0),MATCH(FY$105,MatchRatesYear,0))*$AB116,GM116*INDEX(IndexBenefits,MATCH(HA$107,MatchBenefits,0),MATCH(FY$105,MatchRatesYear,0))) -> 0 | HB116: =GM116*INDEX(IndexBenefits,MATCH(HB$107,MatchBenefits,0),MATCH(FY$105,MatchRatesYear,0)) -> 0 | HC116: 0 | HE116: =IF($AT116=Yes,INDEX(IndexInLieuMedical,1,MATCH(Payroll!HF$105,MatchRatesYear,0)),0) -> 0 | HF116: 80134 | HG116: 0 | HH116: 0 | HI116: 0 | HJ116: 0 | HK116: 0 | HL116: 0 | HM116: 0 | HN116: 0 | HO116: 0 | HP116: 0 | HQ116: 0 | HR116: 0 | HS116: 0 | HT116: 0 | HU116: =IFERROR((-NetPayPercentage*HT116/HV116)*(HV116-MID(LEFT($AL116,FIND(",",$AL116)-1),FIND(" ",$AL116)+1,LEN($AL116))),0) -> 0 | HV116: 0 | HW116: =IFERROR(IF(BF116=0,HT116/((CH116*FTEHours*CJ116+HE116)*$AB116)*$AB116,HT116/((BF116/BD116+HE116)*$AB116)*$AB116),0) -> 0 | HX116: -80134 | HY116: =IF($AR116=HY$107,INDEX(IndexBenefits,MATCH($AR116,MatchBenefits,0),MATCH(HF$105,MatchRatesYear,0)),0)*HT116 -> 0 | HZ116: =IF($AR116=HZ$107,INDEX(IndexBenefits,MATCH($AR116,MatchBenefits,0),MATCH(HF$105,MatchRatesYear,0)),0)*HT116 -> 0 | IA116: =IF($AR116=IA$107,INDEX(IndexBenefits,MATCH($AR116,MatchBenefits,0),MATCH(HF$105,MatchRatesYear,0)),0)*HT116 -> 0 | IB116: =IF(LEFT($AR116,16)=IB$107,INDEX(IndexBenefits,MATCH($AR116,MatchBenefits,0),MATCH(HF$105,MatchRatesYear,0)),0)*HT116 -> 0 | IC116: =IF(IFERROR(INDEX(Index_SocialSecurity,MATCH($AR116,MatchBenefits,0)),Yes)=No,0,(MIN(INDEX(IndexBenefits,MATCH(SSIMax,MatchBenefits,0),MATCH(HF$105,MatchRatesYear,0))*$AB116,HT116*INDEX(IndexBenefits,MATCH(IC$107,MatchBenefits,0),MATCH(HF$105,MatchRatesYear,0))))) -> 0 | ID116: =HT116*INDEX(IndexBenefits,MATCH(ID$107,MatchBenefits,0),MATCH(HF$105,MatchRatesYear,0)) -> 0 | IE116: =IF(HT116=0,0,IF($AS116="",0,INDEX(IndexBenefits,MATCH($AS116,MatchBenefits,0),MATCH(HF$105,MatchRatesYear,0))*$AB116*(MIN(DATEDIF(MAX(DATE(YEAR($AM116),MONTH(EOMONTH($AM116,(DAY($AM116)>5)+0)),1),EDATE(StartDateYr1,12*(IE$93-1))),MIN(DATE(YEAR($AN116),MONTH($AN116)+1,1),EDATE(Year1EndDate+1,12*(IE$93-1))),"M")/12,1)))) -> 0 | IF116: =IF(_501c3Status=Yes,0,(MIN(INDEX(Index_FUTAMax,1,MATCH(HF$105,MatchRatesYear,0))*$AB116,HT116*INDEX(Index_FUTA_Rate,1,MATCH(HF$105,MatchRatesYear,0))))) -> 0 | IG116: =IF(SchoolFundStatus=Yes,HT116*INDEX(Index_SchoolFundRate,1,MATCH(HF$105,MatchRatesYear,0)),(1+INDEX(Index_NewEmployees,1,MATCH(HF$105,MatchRatesYear,0)))*MIN(INDEX(Index_SUTAMax,1,MATCH(HF$105,MatchRatesYear,0))*$AB116,HT116*INDEX(Index_SUTA_Rate,1,MATCH(HF$105,MatchRatesYear,0)))) -> 0 | IH116: =MIN(INDEX(IndexBenefits,MATCH(ETTMax,MatchBenefits,0),MATCH(HF$105,MatchRatesYear,0))*$AB116,HT116*INDEX(IndexBenefits,MATCH(IH$107,MatchBenefits,0),MATCH(HF$105,MatchRatesYear,0))) -> 0 | II116: =HT116*INDEX(IndexBenefits,MATCH(II$107,MatchBenefits,0),MATCH(HF$105,MatchRatesYear,0)) -> 0 | IJ116: 0 | IL116: =IF($AT116=Yes,INDEX(IndexInLieuMedical,1,MATCH(Payroll!IM$105,MatchRatesYear,0)),0) -> 0 | IM116: 82538.02 | IN116: 0 | IO116: 0 | IP116: 0 | IQ116: 0 | IR116: 0 | IS116: 0 | IT116: 0 | IU116: 0 | IV116: 0 | IW116: 0 | IX116: 0 | IY116: 0 | IZ116: 0 | JA116: 0 | JB116: =IFERROR((-NetPayPercentage*JA116/JC116)*(JC116-MID(LEFT($AL116,FIND(",",$AL116)-1),FIND(" ",$AL116)+1,LEN($AL116))),0) -> 0 | JC116: 0 | JD116: =IFERROR(IF(BJ116=0,JA116/((CO116*FTEHours*CQ116+IL116)*$AB116)*$AB116,JA116/((BJ116/BH116+IL116)*$AB116)*$AB116),0) -> 0 | JE116: -82538.02 | JF116: =IF($AR116=JF$107,INDEX(IndexBenefits,MATCH($AR116,MatchBenefits,0),MATCH(IM$105,MatchRatesYear,0)),0)*JA116 -> 0 | JG116: =IF($AR116=JG$107,INDEX(IndexBenefits,MATCH($AR116,MatchBenefits,0),MATCH(IM$105,MatchRatesYear,0)),0)*JA116 -> 0 | JH116: =IF($AR116=JH$107,INDEX(IndexBenefits,MATCH($AR116,MatchBenefits,0),MATCH(IM$105,MatchRatesYear,0)),0)*JA116 -> 0 | JI116: =IF(LEFT($AR116,16)=JI$107,INDEX(IndexBenefits,MATCH($AR116,MatchBenefits,0),MATCH(IM$105,MatchRatesYear,0)),0)*JA116 -> 0 | JJ116: =IF(IFERROR(INDEX(Index_SocialSecurity,MATCH($AR116,MatchBenefits,0)),Yes)=No,0,(MIN(INDEX(IndexBenefits,MATCH(SSIMax,MatchBenefits,0),MATCH(IM$105,MatchRatesYear,0))*$AB116,JA116*INDEX(IndexBenefits,MATCH(JJ$107,MatchBenefits,0),MATCH(IM$105,MatchRatesYear,0))))) -> 0 | JK116: =JA116*INDEX(IndexBenefits,MATCH(JK$107,MatchBenefits,0),MATCH(IM$105,MatchRatesYear,0)) -> 0 | JL116: =IF(JA116=0,0,IF($AS116="",0,INDEX(IndexBenefits,MATCH($AS116,MatchBenefits,0),MATCH(IM$105,MatchRatesYear,0))*$AB116*(MIN(DATEDIF(MAX(DATE(YEAR($AM116),MONTH(EOMONTH($AM116,(DAY($AM116)>5)+0)),1),EDATE(StartDateYr1,12*(JL$93-1))),MIN(DATE(YEAR($AN116),MONTH($AN116)+1,1),EDATE(Year1EndDate+1,12*(JL$93-1))),"M")/12,1)))) -> 0 | JM116: =IF(_501c3Status=Yes,0,(MIN(INDEX(Index_FUTAMax,1,MATCH(IM$105,MatchRatesYear,0))*$AB116,JA116*INDEX(Index_FUTA_Rate,1,MATCH(IM$105,MatchRatesYear,0))))) -> 0 | JN116: =IF(SchoolFundStatus=Yes,JA116*INDEX(Index_SchoolFundRate,1,MATCH(IM$105,MatchRatesYear,0)),(1+INDEX(Index_NewEmployees,1,MATCH(IM$105,MatchRatesYear,0)))*MIN(INDEX(Index_SUTAMax,1,MATCH(IM$105,MatchRatesYear,0))*$AB116,JA116*INDEX(Index_SUTA_Rate,1,MATCH(IM$105,MatchRatesYear,0)))) -> 0 | JO116: =MIN(INDEX(IndexBenefits,MATCH(ETTMax,MatchBenefits,0),MATCH(IM$105,MatchRatesYear,0))*$AB116,JA116*INDEX(IndexBenefits,MATCH(JO$107,MatchBenefits,0),MATCH(IM$105,MatchRatesYear,0))) -> 0 | JP116: =JA116*INDEX(IndexBenefits,MATCH(JP$107,MatchBenefits,0),MATCH(IM$105,MatchRatesYear,0)) -> 0 | JQ116: 0 | JS116: =IF($AT116=Yes,INDEX(IndexInLieuMedical,1,MATCH(Payroll!JT$105,MatchRatesYear,0)),0) -> 0 | JT116: 85014.1606 | JU116: 0 | JV116: 0 | JW116: 0 | JX116: 0 | JY116: 0 | JZ116: 0 | KA116: 0 | KB116: 0 | KC116: 0 | KD116: 0 | KE116: 0 | KF116: 0 | KG116: 0 | KH116: 0 | KI116: =IFERROR((-NetPayPercentage*KH116/KJ116)*(KJ116-MID(LEFT($AL116,FIND(",",$AL116)-1),FIND(" ",$AL116)+1,LEN($AL116))),0) -> 0 | KJ116: 0 | KK116: =IFERROR(IF(BN116=0,KH116/((CV116*FTEHours*CX116+JS116)*$AB116)*$AB116,KH116/((BN116/BL116+JS116)*$AB116)*$AB116),0) -> 0 | KL116: -85014.1606 | KM116: =IF($AR116=KM$107,INDEX(IndexBenefits,MATCH($AR116,MatchBenefits,0),MATCH(JT$105,MatchRatesYear,0)),0)*KH116 -> 0 | KN116: =IF($AR116=KN$107,INDEX(IndexBenefits,MATCH($AR116,MatchBenefits,0),MATCH(JT$105,MatchRatesYear,0)),0)*KH116 -> 0 | KO116: =IF($AR116=KO$107,INDEX(IndexBenefits,MATCH($AR116,MatchBenefits,0),MATCH(JT$105,MatchRatesYear,0)),0)*KH116 -> 0 | KP116: =IF(LEFT($AR116,16)=KP$107,INDEX(IndexBenefits,MATCH($AR116,MatchBenefits,0),MATCH(JT$105,MatchRatesYear,0)),0)*KH116 -> 0 | KQ116: =IF(IFERROR(INDEX(Index_SocialSecurity,MATCH($AR116,MatchBenefits,0)),Yes)=No,0,(MIN(INDEX(IndexBenefits,MATCH(SSIMax,MatchBenefits,0),MATCH(JT$105,MatchRatesYear,0))*$AB116,KH116*INDEX(IndexBenefits,MATCH(KQ$107,MatchBenefits,0),MATCH(JT$105,MatchRatesYear,0))))) -> 0 | KR116: =KH116*INDEX(IndexBenefits,MATCH(KR$107,MatchBenefits,0),MATCH(JT$105,MatchRatesYear,0)) -> 0 | KS116: =IF(KH116=0,0,IF($AS116="",0,INDEX(IndexBenefits,MATCH($AS116,MatchBenefits,0),MATCH(JT$105,MatchRatesYear,0))*$AB116*(MIN(DATEDIF(MAX(DATE(YEAR($AM116),MONTH(EOMONTH($AM116,(DAY($AM116)>5)+0)),1),EDATE(StartDateYr1,12*(KS$93-1))),MIN(DATE(YEAR($AN116),MONTH($AN116)+1,1),EDATE(Year1EndDate+1,12*(KS$93-1))),"M")/12,1)))) -> 0 | KT116: =IF(_501c3Status=Yes,0,(MIN(INDEX(Index_FUTAMax,1,MATCH(JT$105,MatchRatesYear,0))*$AB116,KH116*INDEX(Index_FUTA_Rate,1,MATCH(JT$105,MatchRatesYear,0))))) -> 0 | KU116: =IF(SchoolFundStatus=Yes,KH116*INDEX(Index_SchoolFundRate,1,MATCH(JT$105,MatchRatesYear,0)),(1+INDEX(Index_NewEmployees,1,MATCH(JT$105,MatchRatesYear,0)))*MIN(INDEX(Index_SUTAMax,1,MATCH(JT$105,MatchRatesYear,0))*$AB116,KH116*INDEX(Index_SUTA_Rate,1,MATCH(JT$105,MatchRatesYear,0)))) -> 0 | KV116: =MIN(INDEX(IndexBenefits,MATCH(ETTMax,MatchBenefits,0),MATCH(JT$105,MatchRatesYear,0))*$AB116,KH116*INDEX(IndexBenefits,MATCH(KV$107,MatchBenefits,0),MATCH(JT$105,MatchRatesYear,0))) -> 0 | KW116: =KH116*INDEX(IndexBenefits,MATCH(KW$107,MatchBenefits,0),MATCH(JT$105,MatchRatesYear,0)) -> 0 | KX116: 0 | KZ116: =IF($AT116=Yes,INDEX(IndexInLieuMedical,1,MATCH(Payroll!LA$105,MatchRatesYear,0)),0) -> 0 | LA116: 87564.58542 | LB116: 0 | LC116: 0 | LD116: 0 | LE116: 0 | LF116: 0 | LG116: 0 | LH116: 0 | LI116: 0 | LJ116: 0 | LK116: 0 | LL116: 0 | LM116: 0 | LN116: 0 | LO116: 0 | LP116: =IFERROR((-NetPayPercentage*LO116/LQ116)*(LQ116-MID(LEFT($AL116,FIND(",",$AL116)-1),FIND(" ",$AL116)+1,LEN($AL116))),0) -> 0 | LQ116: 0 | LR116: =IFERROR(IF(BR116=0,LO116/((DC116*FTEHours*DE116+KZ116)*$AB116)*$AB116,LO116/((BR116/$BP116+KZ116)*$AB116)*$AB116),0) -> 0 | LS116: -87564.58542 | LT116: =IF($AR116=LT$107,INDEX(IndexBenefits,MATCH($AR116,MatchBenefits,0),MATCH(LA$105,MatchRatesYear,0)),0)*LO116 -> 0 | LU116: =IF($AR116=LU$107,INDEX(IndexBenefits,MATCH($AR116,MatchBenefits,0),MATCH(LA$105,MatchRatesYear,0)),0)*LO116 -> 0 | LV116: =IF($AR116=LV$107,INDEX(IndexBenefits,MATCH($AR116,MatchBenefits,0),MATCH(LA$105,MatchRatesYear,0)),0)*LO116 -> 0 | LW116: =IF(LEFT($AR116,16)=LW$107,INDEX(IndexBenefits,MATCH($AR116,MatchBenefits,0),MATCH(LA$105,MatchRatesYear,0)),0)*LO116 -> 0 | LX116: =IF(IFERROR(INDEX(Index_SocialSecurity,MATCH($AR116,MatchBenefits,0)),Yes)=No,0,(MIN(INDEX(IndexBenefits,MATCH(SSIMax,MatchBenefits,0),MATCH(LA$105,MatchRatesYear,0))*$AB116,LO116*INDEX(IndexBenefits,MATCH(LX$107,MatchBenefits,0),MATCH(LA$105,MatchRatesYear,0))))) -> 0 | LY116: =LO116*INDEX(IndexBenefits,MATCH(LY$107,MatchBenefits,0),MATCH(LA$105,MatchRatesYear,0)) -> 0 | LZ116: =IF(LO116=0,0,IF($AS116="",0,INDEX(IndexBenefits,MATCH($AS116,MatchBenefits,0),MATCH(LA$105,MatchRatesYear,0))*$AB116*(MIN(DATEDIF(MAX(DATE(YEAR($AM116),MONTH(EOMONTH($AM116,(DAY($AM116)>5)+0)),1),EDATE(StartDateYr1,12*(LZ$93-1))),MIN(DATE(YEAR($AN116),MONTH($AN116)+1,1),EDATE(Year1EndDate+1,12*(LZ$93-1))),"M")/12,1)))) -> 0 | MA116: =IF(_501c3Status=Yes,0,(MIN(INDEX(Index_FUTAMax,1,MATCH(LA$105,MatchRatesYear,0))*$AB116,LO116*INDEX(Index_FUTA_Rate,1,MATCH(LA$105,MatchRatesYear,0))))) -> 0 | MB116: =IF(SchoolFundStatus=Yes,LO116*INDEX(Index_SchoolFundRate,1,MATCH(LA$105,MatchRatesYear,0)),(1+INDEX(Index_NewEmployees,1,MATCH(LA$105,MatchRatesYear,0)))*MIN(INDEX(Index_SUTAMax,1,MATCH(LA$105,MatchRatesYear,0))*$AB116,LO116*INDEX(Index_SUTA_Rate,1,MATCH(LA$105,MatchRatesYear,0)))) -> 0 | MC116: =MIN(INDEX(IndexBenefits,MATCH(ETTMax,MatchBenefits,0),MATCH(LA$105,MatchRatesYear,0))*$AB116,LO116*INDEX(IndexBenefits,MATCH(MC$107,MatchBenefits,0),MATCH(LA$105,MatchRatesYear,0))) -> 0 | MD116: =LO116*INDEX(IndexBenefits,MATCH(MD$107,MatchBenefits,0),MATCH(LA$105,MatchRatesYear,0)) -> 0 | ME116: 0
AB117: 1 | AE117: RSP Lead | AG117: 1300 | AH117: 2020-07-01 | AL117: Jul to Jun | AM117: =IF(AH117="",StartDateYr1,AH117) -> 2020-07-01 | AN117: =IF(AI117="",Year10EndDate,AI117) -> 2030-06-30 | AO117: =IF(AND(AG117<2000,AG117>=1000),Certificated,IF(AND(AG117>=2000,AG117<3000),Classified,"")) -> Certificated | AR117: STRS | AS117: Health for 70% | AU117: 1 | AV117: 79605 | AW117: 79605 | AX117: 95469 | AZ117: =IF($AN117<INDEX(YearStartDate,1,MATCH(AY$105,YearRelative,0)),0,IF(AY117="",AU117,AY117)) -> 1 | BA117: 95469 | BB117: =IF($AN117<INDEX(YearStartDate,1,MATCH(AY$105,YearRelative,0)),0,IFERROR(IF(BA117="",AZ117*AW117/AU117*(1+INDEX(IndexCOLA,MATCH($AO117,MatchCOLA,0),MATCH(AY$105,MatchRatesYear,0))),AZ117*BA117),0)) -> 95469 | BD117: =IF($AN117<INDEX(YearStartDate,1,MATCH(BC$105,YearRelative,0)),0,IF(BC117="",AZ117,BC117)) -> 1 | BF117: =IF($AN117<INDEX(YearStartDate,1,MATCH(BC$105,YearRelative,0)),0,IFERROR(IF(BE117="",BD117*BB117/AZ117*(1+INDEX(IndexCOLA,MATCH($AO117,MatchCOLA,0),MATCH(BC$105,MatchRatesYear,0))),BD117*BE117),0)) -> 98333.07 | BH117: =IF($AN117<INDEX(YearStartDate,1,MATCH(BG$105,YearRelative,0)),0,IF(BG117="",BD117,BG117)) -> 1 | BJ117: =IF($AN117<INDEX(YearStartDate,1,MATCH(BG$105,YearRelative,0)),0,IFERROR(IF(BI117="",BH117*BF117/BD117*(1+INDEX(IndexCOLA,MATCH($AO117,MatchCOLA,0),MATCH(BG$105,MatchRatesYear,0))),BH117*BI117),0)) -> 101283.0621 | BL117: =IF($AN117<INDEX(YearStartDate,1,MATCH(BK$105,YearRelative,0)),0,IF(BK117="",BH117,BK117)) -> 1 | BN117: =IF($AN117<INDEX(YearStartDate,1,MATCH(BK$105,YearRelative,0)),0,IFERROR(IF(BM117="",BL117*BJ117/BH117*(1+INDEX(IndexCOLA,MATCH($AO117,MatchCOLA,0),MATCH(BK$105,MatchRatesYear,0))),BL117*BM117),0)) -> 104321.554 | BP117: =IF($AN117<INDEX(YearStartDate,1,MATCH(BO$105,YearRelative,0)),0,IF(BO117="",BL117,BO117)) -> 1 | BR117: =IF($AN117<INDEX(YearStartDate,1,MATCH(BO$105,YearRelative,0)),0,IFERROR(IF(BQ117="",BP117*BN117/BL117*(1+INDEX(IndexCOLA,MATCH($AO117,MatchCOLA,0),MATCH(BO$105,MatchRatesYear,0))),BP117*BQ117),0)) -> 107451.2006 | BT117: 0 | BU117: 0 | BV117: 0 | BW117: 0 | CA117: =IF($AN117<INDEX(YearStartDate,1,MATCH(AY$105,YearRelative,0)),0,IFERROR(IF(BX117="",BT117*(1+INDEX(IndexCOLA,MATCH($AO117,MatchCOLA,0),MATCH(BX$105,MatchRatesYear,0))),BX117),0)) -> 0 | CB117: =IF(BY117="",BU117,BY117) -> 0 | CC117: 0 | CD117: 0 | CH117: =IF($AN117<INDEX(YearStartDate,1,MATCH(AY$105,YearRelative,0)),0,IFERROR(IF(CE117="",CA117*(1+INDEX(IndexCOLA,MATCH($AO117,MatchCOLA,0),MATCH(CE$105,MatchRatesYear,0))),CE117),0)) -> 0 | CI117: =IF(CF117="",CB117,CF117) -> 0 | CJ117: 0 | CK117: 0 | CO117: =IF($AN117<INDEX(YearStartDate,1,MATCH(AY$105,YearRelative,0)),0,IFERROR(IF(CL117="",CH117*(1+INDEX(IndexCOLA,MATCH($AO117,MatchCOLA,0),MATCH(CL$105,MatchRatesYear,0))),CL117),0)) -> 0 | CP117: =IF(CM117="",CI117,CM117) -> 0 | CQ117: 0 | CR117: 0 | CV117: =IF($AN117<INDEX(YearStartDate,1,MATCH(AY$105,YearRelative,0)),0,IFERROR(IF(CS117="",CO117*(1+INDEX(IndexCOLA,MATCH($AO117,MatchCOLA,0),MATCH(CS$105,MatchRatesYear,0))),CS117),0)) -> 0 | CW117: =IF(CT117="",CP117,CT117) -> 0 | CX117: 0 | CY117: 0 | DC117: =IF($AN117<INDEX(YearStartDate,1,MATCH(AY$105,YearRelative,0)),0,IFERROR(IF(CZ117="",CV117*(1+INDEX(IndexCOLA,MATCH($AO117,MatchCOLA,0),MATCH(CZ$105,MatchRatesYear,0))),CZ117),0)) -> 0 | DD117: =IF(DA117="",CW117,DA117) -> 0 | DE117: 0 | DF117: 0 | DH117: 1 | DI117: 1 | DJ117: 1 | DK117: =1 -> 1 | DL117: 1 | DM117: 1 | DP117: 0 | DU117: 0 | DZ117: 0 | EE117: 0 | EJ117: 0 | EO117: 0 | EQ117: =IF($AT117=Yes,INDEX(IndexInLieuMedical,1,MATCH(Payroll!ER$105,MatchRatesYear,0)),0) -> 0 | ER117: 79605 | ES117: 0 | ET117: 0 | EU117: 0 | EV117: 0 | EW117: 0 | EX117: 0 | EY117: 0 | EZ117: 0 | FA117: 0 | FB117: 0 | FC117: 0 | FD117: 0 | FE117: 0 | FF117: 0 | FG117: =IFERROR((-NetPayPercentage*FF117/FH117)*(FH117-MID(LEFT($AL117,FIND(",",$AL117)-1),FIND(" ",$AL117)+1,LEN($AL117))),0) -> 0 | FH117: 0 | FI117: =IFERROR(IF(AW117=0,FF117/((BT117*FTEHours*BV117+EQ117)*$AB117)*$AB117,FF117/((AV117+EQ117)*$AB117)*$AB117),0) -> 0 | FJ117: -79605 | FK117: =IF($AR117=FK$107,INDEX(IndexBenefits,MATCH($AR117,MatchBenefits,0),MATCH(ER$105,MatchRatesYear,0)),0)*FF117 -> 0 | FL117: =IF($AR117=FL$107,INDEX(IndexBenefits,MATCH($AR117,MatchBenefits,0),MATCH(ER$105,MatchRatesYear,0)),0)*FF117 -> 0 | FM117: =IF($AR117=FM$107,INDEX(IndexBenefits,MATCH($AR117,MatchBenefits,0),MATCH(ER$105,MatchRatesYear,0)),0)*FF117 -> 0 | FN117: =IF(LEFT($AR117,16)=FN$107,INDEX(IndexBenefits,MATCH($AR117,MatchBenefits,0),MATCH(ER$105,MatchRatesYear,0)),0)*FF117 -> 0 | FO117: =IF(IFERROR(INDEX(Index_SocialSecurity,MATCH($AR117,MatchBenefits,0)),Yes)=No,0,(MIN(INDEX(IndexBenefits,MATCH(SSIMax,MatchBenefits,0),MATCH(ER$105,MatchRatesYear,0))*$AB117,FF117*INDEX(IndexBenefits,MATCH(FO$107,MatchBenefits,0),MATCH(ER$105,MatchRatesYear,0))))) -> 0 | FP117: =FF117*INDEX(IndexBenefits,MATCH(FP$107,MatchBenefits,0),MATCH(ER$105,MatchRatesYear,0)) -> 0 | FQ117: =IF(FF117=0,0,IF($AS117="",0,INDEX(IndexBenefits,MATCH($AS117,MatchBenefits,0),MATCH(ER$105,MatchRatesYear,0))*$AB117*(MIN(DATEDIF(MAX(DATE(YEAR($AM117),MONTH(EOMONTH($AM117,(DAY($AM117)>5)+0)),1),EDATE(StartDateYr1,12*(FQ$93-1))),MIN(DATE(YEAR($AN117),MONTH($AN117)+1,1),EDATE(Year1EndDate+1,12*(FQ$93-1))),"M")/12,1)))) -> 0 | FR117: =IF(_501c3Status=Yes,0,(MIN(INDEX(Index_FUTAMax,1,MATCH(ER$105,MatchRatesYear,0))*$AB117,FF117*INDEX(Index_FUTA_Rate,1,MATCH(ER$105,MatchRatesYear,0))))) -> 0 | FS117: =IF(SchoolFundStatus=Yes,FF117*INDEX(Index_SchoolFundRate,1,MATCH(ER$105,MatchRatesYear,0)),(1+INDEX(Index_NewEmployees,1,MATCH(ER$105,MatchRatesYear,0)))*MIN(INDEX(Index_SUTAMax,1,MATCH(ER$105,MatchRatesYear,0))*$AB117,FF117*INDEX(Index_SUTA_Rate,1,MATCH(ER$105,MatchRatesYear,0)))) -> 0 | FT117: =MIN(INDEX(IndexBenefits,MATCH(ETTMax,MatchBenefits,0),MATCH(ER$105,MatchRatesYear,0))*$AB117,FF117*INDEX(IndexBenefits,MATCH(FT$107,MatchBenefits,0),MATCH(ER$105,MatchRatesYear,0))) -> 0 | FU117: =FF117*INDEX(IndexBenefits,MATCH(FU$107,MatchBenefits,0),MATCH(ER$105,MatchRatesYear,0)) -> 0 | FV117: 0 | FX117: =IF($AT117=Yes,INDEX(IndexInLieuMedical,1,MATCH(Payroll!FY$105,MatchRatesYear,0)),0) -> 0 | FY117: 95469 | FZ117: 0 | GA117: 0 | GB117: 0 | GC117: 0 | GD117: 0 | GE117: 0 | GF117: 0 | GG117: 0 | GH117: 0 | GI117: 0 | GJ117: 0 | GK117: 0 | GL117: 0 | GM117: 0 | GN117: =IFERROR((-NetPayPercentage*GM117/GO117)*(GO117-MID(LEFT($AL117,FIND(",",$AL117)-1),FIND(" ",$AL117)+1,LEN($AL117))),0) -> 0 | GO117: 0 | GP117: =IFERROR(IF(BB117=0,GM117/((CA117*FTEHours*CC117+FX117)*$AB117)*$AB117,GM117/((BB117/AZ117+FX117)*$AB117)*$AB117),0) -> 0 | GQ117: -95469 | GR117: =IF($AR117=GR$107,INDEX(IndexBenefits,MATCH($AR117,MatchBenefits,0),MATCH(FY$105,MatchRatesYear,0)),0)*GM117 -> 0 | GS117: =IF($AR117=GS$107,INDEX(IndexBenefits,MATCH($AR117,MatchBenefits,0),MATCH(FY$105,MatchRatesYear,0)),0)*GM117 -> 0 | GT117: =IF($AR117=GT$107,INDEX(IndexBenefits,MATCH($AR117,MatchBenefits,0),MATCH(FY$105,MatchRatesYear,0)),0)*GM117 -> 0 | GU117: =IF(LEFT($AR117,16)=GU$107,INDEX(IndexBenefits,MATCH($AR117,MatchBenefits,0),MATCH(FY$105,MatchRatesYear,0)),0)*GM117 -> 0 | GV117: =IF(IFERROR(INDEX(Index_SocialSecurity,MATCH($AR117,MatchBenefits,0)),Yes)=No,0,(MIN(INDEX(IndexBenefits,MATCH(SSIMax,MatchBenefits,0),MATCH(FY$105,MatchRatesYear,0))*$AB117,GM117*INDEX(IndexBenefits,MATCH(GV$107,MatchBenefits,0),MATCH(FY$105,MatchRatesYear,0))))) -> 0 | GW117: =GM117*INDEX(IndexBenefits,MATCH(GW$107,MatchBenefits,0),MATCH(FY$105,MatchRatesYear,0)) -> 0 | GX117: =IF(GM117=0,0,IF($AS117="",0,INDEX(IndexBenefits,MATCH($AS117,MatchBenefits,0),MATCH(FY$105,MatchRatesYear,0))*$AB117*(MIN(DATEDIF(MAX(DATE(YEAR($AM117),MONTH(EOMONTH($AM117,(DAY($AM117)>5)+0)),1),EDATE(StartDateYr1,12*(GX$93-1))),MIN(DATE(YEAR($AN117),MONTH($AN117)+1,1),EDATE(Year1EndDate+1,12*(GX$93-1))),"M")/12,1)))) -> 0 | GY117: =IF(_501c3Status=Yes,0,(MIN(INDEX(Index_FUTAMax,1,MATCH(FY$105,MatchRatesYear,0))*$AB117,GM117*INDEX(Index_FUTA_Rate,1,MATCH(FY$105,MatchRatesYear,0))))) -> 0 | GZ117: =IF(SchoolFundStatus=Yes,GM117*INDEX(Index_SchoolFundRate,1,MATCH(FY$105,MatchRatesYear,0)),(1+INDEX(Index_NewEmployees,1,MATCH(FY$105,MatchRatesYear,0)))*MIN(INDEX(Index_SUTAMax,1,MATCH(FY$105,MatchRatesYear,0))*$AB117,GM117*INDEX(Index_SUTA_Rate,1,MATCH(FY$105,MatchRatesYear,0)))) -> 0 | HA117: =MIN(INDEX(IndexBenefits,MATCH(ETTMax,MatchBenefits,0),MATCH(FY$105,MatchRatesYear,0))*$AB117,GM117*INDEX(IndexBenefits,MATCH(HA$107,MatchBenefits,0),MATCH(FY$105,MatchRatesYear,0))) -> 0 | HB117: =GM117*INDEX(IndexBenefits,MATCH(HB$107,MatchBenefits,0),MATCH(FY$105,MatchRatesYear,0)) -> 0 | HC117: 0 | HE117: =IF($AT117=Yes,INDEX(IndexInLieuMedical,1,MATCH(Payroll!HF$105,MatchRatesYear,0)),0) -> 0 | HF117: 98333.07 | HG117: 0 | HH117: 0 | HI117: 0 | HJ117: 0 | HK117: 0 | HL117: 0 | HM117: 0 | HN117: 0 | HO117: 0 | HP117: 0 | HQ117: 0 | HR117: 0 | HS117: 0 | HT117: 0 | HU117: =IFERROR((-NetPayPercentage*HT117/HV117)*(HV117-MID(LEFT($AL117,FIND(",",$AL117)-1),FIND(" ",$AL117)+1,LEN($AL117))),0) -> 0 | HV117: 0 | HW117: =IFERROR(IF(BF117=0,HT117/((CH117*FTEHours*CJ117+HE117)*$AB117)*$AB117,HT117/((BF117/BD117+HE117)*$AB117)*$AB117),0) -> 0 | HX117: -98333.07 | HY117: =IF($AR117=HY$107,INDEX(IndexBenefits,MATCH($AR117,MatchBenefits,0),MATCH(HF$105,MatchRatesYear,0)),0)*HT117 -> 0 | HZ117: =IF($AR117=HZ$107,INDEX(IndexBenefits,MATCH($AR117,MatchBenefits,0),MATCH(HF$105,MatchRatesYear,0)),0)*HT117 -> 0 | IA117: =IF($AR117=IA$107,INDEX(IndexBenefits,MATCH($AR117,MatchBenefits,0),MATCH(HF$105,MatchRatesYear,0)),0)*HT117 -> 0 | IB117: =IF(LEFT($AR117,16)=IB$107,INDEX(IndexBenefits,MATCH($AR117,MatchBenefits,0),MATCH(HF$105,MatchRatesYear,0)),0)*HT117 -> 0 | IC117: =IF(IFERROR(INDEX(Index_SocialSecurity,MATCH($AR117,MatchBenefits,0)),Yes)=No,0,(MIN(INDEX(IndexBenefits,MATCH(SSIMax,MatchBenefits,0),MATCH(HF$105,MatchRatesYear,0))*$AB117,HT117*INDEX(IndexBenefits,MATCH(IC$107,MatchBenefits,0),MATCH(HF$105,MatchRatesYear,0))))) -> 0 | ID117: =HT117*INDEX(IndexBenefits,MATCH(ID$107,MatchBenefits,0),MATCH(HF$105,MatchRatesYear,0)) -> 0 | IE117: =IF(HT117=0,0,IF($AS117="",0,INDEX(IndexBenefits,MATCH($AS117,MatchBenefits,0),MATCH(HF$105,MatchRatesYear,0))*$AB117*(MIN(DATEDIF(MAX(DATE(YEAR($AM117),MONTH(EOMONTH($AM117,(DAY($AM117)>5)+0)),1),EDATE(StartDateYr1,12*(IE$93-1))),MIN(DATE(YEAR($AN117),MONTH($AN117)+1,1),EDATE(Year1EndDate+1,12*(IE$93-1))),"M")/12,1)))) -> 0 | IF117: =IF(_501c3Status=Yes,0,(MIN(INDEX(Index_FUTAMax,1,MATCH(HF$105,MatchRatesYear,0))*$AB117,HT117*INDEX(Index_FUTA_Rate,1,MATCH(HF$105,MatchRatesYear,0))))) -> 0 | IG117: =IF(SchoolFundStatus=Yes,HT117*INDEX(Index_SchoolFundRate,1,MATCH(HF$105,MatchRatesYear,0)),(1+INDEX(Index_NewEmployees,1,MATCH(HF$105,MatchRatesYear,0)))*MIN(INDEX(Index_SUTAMax,1,MATCH(HF$105,MatchRatesYear,0))*$AB117,HT117*INDEX(Index_SUTA_Rate,1,MATCH(HF$105,MatchRatesYear,0)))) -> 0 | IH117: =MIN(INDEX(IndexBenefits,MATCH(ETTMax,MatchBenefits,0),MATCH(HF$105,MatchRatesYear,0))*$AB117,HT117*INDEX(IndexBenefits,MATCH(IH$107,MatchBenefits,0),MATCH(HF$105,MatchRatesYear,0))) -> 0 | II117: =HT117*INDEX(IndexBenefits,MATCH(II$107,MatchBenefits,0),MATCH(HF$105,MatchRatesYear,0)) -> 0 | IJ117: 0 | IL117: =IF($AT117=Yes,INDEX(IndexInLieuMedical,1,MATCH(Payroll!IM$105,MatchRatesYear,0)),0) -> 0 | IM117: 101283.0621 | IN117: 0 | IO117: 0 | IP117: 0 | IQ117: 0 | IR117: 0 | IS117: 0 | IT117: 0 | IU117: 0 | IV117: 0 | IW117: 0 | IX117: 0 | IY117: 0 | IZ117: 0 | JA117: 0 | JB117: =IFERROR((-NetPayPercentage*JA117/JC117)*(JC117-MID(LEFT($AL117,FIND(",",$AL117)-1),FIND(" ",$AL117)+1,LEN($AL117))),0) -> 0 | JC117: 0 | JD117: =IFERROR(IF(BJ117=0,JA117/((CO117*FTEHours*CQ117+IL117)*$AB117)*$AB117,JA117/((BJ117/BH117+IL117)*$AB117)*$AB117),0) -> 0 | JE117: -101283.0621 | JF117: =IF($AR117=JF$107,INDEX(IndexBenefits,MATCH($AR117,MatchBenefits,0),MATCH(IM$105,MatchRatesYear,0)),0)*JA117 -> 0 | JG117: =IF($AR117=JG$107,INDEX(IndexBenefits,MATCH($AR117,MatchBenefits,0),MATCH(IM$105,MatchRatesYear,0)),0)*JA117 -> 0 | JH117: =IF($AR117=JH$107,INDEX(IndexBenefits,MATCH($AR117,MatchBenefits,0),MATCH(IM$105,MatchRatesYear,0)),0)*JA117 -> 0 | JI117: =IF(LEFT($AR117,16)=JI$107,INDEX(IndexBenefits,MATCH($AR117,MatchBenefits,0),MATCH(IM$105,MatchRatesYear,0)),0)*JA117 -> 0 | JJ117: =IF(IFERROR(INDEX(Index_SocialSecurity,MATCH($AR117,MatchBenefits,0)),Yes)=No,0,(MIN(INDEX(IndexBenefits,MATCH(SSIMax,MatchBenefits,0),MATCH(IM$105,MatchRatesYear,0))*$AB117,JA117*INDEX(IndexBenefits,MATCH(JJ$107,MatchBenefits,0),MATCH(IM$105,MatchRatesYear,0))))) -> 0 | JK117: =JA117*INDEX(IndexBenefits,MATCH(JK$107,MatchBenefits,0),MATCH(IM$105,MatchRatesYear,0)) -> 0 | JL117: =IF(JA117=0,0,IF($AS117="",0,INDEX(IndexBenefits,MATCH($AS117,MatchBenefits,0),MATCH(IM$105,MatchRatesYear,0))*$AB117*(MIN(DATEDIF(MAX(DATE(YEAR($AM117),MONTH(EOMONTH($AM117,(DAY($AM117)>5)+0)),1),EDATE(StartDateYr1,12*(JL$93-1))),MIN(DATE(YEAR($AN117),MONTH($AN117)+1,1),EDATE(Year1EndDate+1,12*(JL$93-1))),"M")/12,1)))) -> 0 | JM117: =IF(_501c3Status=Yes,0,(MIN(INDEX(Index_FUTAMax,1,MATCH(IM$105,MatchRatesYear,0))*$AB117,JA117*INDEX(Index_FUTA_Rate,1,MATCH(IM$105,MatchRatesYear,0))))) -> 0 | JN117: =IF(SchoolFundStatus=Yes,JA117*INDEX(Index_SchoolFundRate,1,MATCH(IM$105,MatchRatesYear,0)),(1+INDEX(Index_NewEmployees,1,MATCH(IM$105,MatchRatesYear,0)))*MIN(INDEX(Index_SUTAMax,1,MATCH(IM$105,MatchRatesYear,0))*$AB117,JA117*INDEX(Index_SUTA_Rate,1,MATCH(IM$105,MatchRatesYear,0)))) -> 0 | JO117: =MIN(INDEX(IndexBenefits,MATCH(ETTMax,MatchBenefits,0),MATCH(IM$105,MatchRatesYear,0))*$AB117,JA117*INDEX(IndexBenefits,MATCH(JO$107,MatchBenefits,0),MATCH(IM$105,MatchRatesYear,0))) -> 0 | JP117: =JA117*INDEX(IndexBenefits,MATCH(JP$107,MatchBenefits,0),MATCH(IM$105,MatchRatesYear,0)) -> 0 | JQ117: 0 | JS117: =IF($AT117=Yes,INDEX(IndexInLieuMedical,1,MATCH(Payroll!JT$105,MatchRatesYear,0)),0) -> 0 | JT117: 104321.554 | JU117: 0 | JV117: 0 | JW117: 0 | JX117: 0 | JY117: 0 | JZ117: 0 | KA117: 0 | KB117: 0 | KC117: 0 | KD117: 0 | KE117: 0 | KF117: 0 | KG117: 0 | KH117: 0 | KI117: =IFERROR((-NetPayPercentage*KH117/KJ117)*(KJ117-MID(LEFT($AL117,FIND(",",$AL117)-1),FIND(" ",$AL117)+1,LEN($AL117))),0) -> 0 | KJ117: 0 | KK117: =IFERROR(IF(BN117=0,KH117/((CV117*FTEHours*CX117+JS117)*$AB117)*$AB117,KH117/((BN117/BL117+JS117)*$AB117)*$AB117),0) -> 0 | KL117: -104321.554 | KM117: =IF($AR117=KM$107,INDEX(IndexBenefits,MATCH($AR117,MatchBenefits,0),MATCH(JT$105,MatchRatesYear,0)),0)*KH117 -> 0 | KN117: =IF($AR117=KN$107,INDEX(IndexBenefits,MATCH($AR117,MatchBenefits,0),MATCH(JT$105,MatchRatesYear,0)),0)*KH117 -> 0 | KO117: =IF($AR117=KO$107,INDEX(IndexBenefits,MATCH($AR117,MatchBenefits,0),MATCH(JT$105,MatchRatesYear,0)),0)*KH117 -> 0 | KP117: =IF(LEFT($AR117,16)=KP$107,INDEX(IndexBenefits,MATCH($AR117,MatchBenefits,0),MATCH(JT$105,MatchRatesYear,0)),0)*KH117 -> 0 | KQ117: =IF(IFERROR(INDEX(Index_SocialSecurity,MATCH($AR117,MatchBenefits,0)),Yes)=No,0,(MIN(INDEX(IndexBenefits,MATCH(SSIMax,MatchBenefits,0),MATCH(JT$105,MatchRatesYear,0))*$AB117,KH117*INDEX(IndexBenefits,MATCH(KQ$107,MatchBenefits,0),MATCH(JT$105,MatchRatesYear,0))))) -> 0 | KR117: =KH117*INDEX(IndexBenefits,MATCH(KR$107,MatchBenefits,0),MATCH(JT$105,MatchRatesYear,0)) -> 0 | KS117: =IF(KH117=0,0,IF($AS117="",0,INDEX(IndexBenefits,MATCH($AS117,MatchBenefits,0),MATCH(JT$105,MatchRatesYear,0))*$AB117*(MIN(DATEDIF(MAX(DATE(YEAR($AM117),MONTH(EOMONTH($AM117,(DAY($AM117)>5)+0)),1),EDATE(StartDateYr1,12*(KS$93-1))),MIN(DATE(YEAR($AN117),MONTH($AN117)+1,1),EDATE(Year1EndDate+1,12*(KS$93-1))),"M")/12,1)))) -> 0 | KT117: =IF(_501c3Status=Yes,0,(MIN(INDEX(Index_FUTAMax,1,MATCH(JT$105,MatchRatesYear,0))*$AB117,KH117*INDEX(Index_FUTA_Rate,1,MATCH(JT$105,MatchRatesYear,0))))) -> 0 | KU117: =IF(SchoolFundStatus=Yes,KH117*INDEX(Index_SchoolFundRate,1,MATCH(JT$105,MatchRatesYear,0)),(1+INDEX(Index_NewEmployees,1,MATCH(JT$105,MatchRatesYear,0)))*MIN(INDEX(Index_SUTAMax,1,MATCH(JT$105,MatchRatesYear,0))*$AB117,KH117*INDEX(Index_SUTA_Rate,1,MATCH(JT$105,MatchRatesYear,0)))) -> 0 | KV117: =MIN(INDEX(IndexBenefits,MATCH(ETTMax,MatchBenefits,0),MATCH(JT$105,MatchRatesYear,0))*$AB117,KH117*INDEX(IndexBenefits,MATCH(KV$107,MatchBenefits,0),MATCH(JT$105,MatchRatesYear,0))) -> 0 | KW117: =KH117*INDEX(IndexBenefits,MATCH(KW$107,MatchBenefits,0),MATCH(JT$105,MatchRatesYear,0)) -> 0 | KX117: 0 | KZ117: =IF($AT117=Yes,INDEX(IndexInLieuMedical,1,MATCH(Payroll!LA$105,MatchRatesYear,0)),0) -> 0 | LA117: 107451.2006 | LB117: 0 | LC117: 0 | LD117: 0 | LE117: 0 | LF117: 0 | LG117: 0 | LH117: 0 | LI117: 0 | LJ117: 0 | LK117: 0 | LL117: 0 | LM117: 0 | LN117: 0 | LO117: 0 | LP117: =IFERROR((-NetPayPercentage*LO117/LQ117)*(LQ117-MID(LEFT($AL117,FIND(",",$AL117)-1),FIND(" ",$AL117)+1,LEN($AL117))),0) -> 0 | LQ117: 0 | LR117: =IFERROR(IF(BR117=0,LO117/((DC117*FTEHours*DE117+KZ117)*$AB117)*$AB117,LO117/((BR117/$BP117+KZ117)*$AB117)*$AB117),0) -> 0 | LS117: -107451.2006 | LT117: =IF($AR117=LT$107,INDEX(IndexBenefits,MATCH($AR117,MatchBenefits,0),MATCH(LA$105,MatchRatesYear,0)),0)*LO117 -> 0 | LU117: =IF($AR117=LU$107,INDEX(IndexBenefits,MATCH($AR117,MatchBenefits,0),MATCH(LA$105,MatchRatesYear,0)),0)*LO117 -> 0 | LV117: =IF($AR117=LV$107,INDEX(IndexBenefits,MATCH($AR117,MatchBenefits,0),MATCH(LA$105,MatchRatesYear,0)),0)*LO117 -> 0 | LW117: =IF(LEFT($AR117,16)=LW$107,INDEX(IndexBenefits,MATCH($AR117,MatchBenefits,0),MATCH(LA$105,MatchRatesYear,0)),0)*LO117 -> 0 | LX117: =IF(IFERROR(INDEX(Index_SocialSecurity,MATCH($AR117,MatchBenefits,0)),Yes)=No,0,(MIN(INDEX(IndexBenefits,MATCH(SSIMax,MatchBenefits,0),MATCH(LA$105,MatchRatesYear,0))*$AB117,LO117*INDEX(IndexBenefits,MATCH(LX$107,MatchBenefits,0),MATCH(LA$105,MatchRatesYear,0))))) -> 0 | LY117: =LO117*INDEX(IndexBenefits,MATCH(LY$107,MatchBenefits,0),MATCH(LA$105,MatchRatesYear,0)) -> 0 | LZ117: =IF(LO117=0,0,IF($AS117="",0,INDEX(IndexBenefits,MATCH($AS117,MatchBenefits,0),MATCH(LA$105,MatchRatesYear,0))*$AB117*(MIN(DATEDIF(MAX(DATE(YEAR($AM117),MONTH(EOMONTH($AM117,(DAY($AM117)>5)+0)),1),EDATE(StartDateYr1,12*(LZ$93-1))),MIN(DATE(YEAR($AN117),MONTH($AN117)+1,1),EDATE(Year1EndDate+1,12*(LZ$93-1))),"M")/12,1)))) -> 0 | MA117: =IF(_501c3Status=Yes,0,(MIN(INDEX(Index_FUTAMax,1,MATCH(LA$105,MatchRatesYear,0))*$AB117,LO117*INDEX(Index_FUTA_Rate,1,MATCH(LA$105,MatchRatesYear,0))))) -> 0 | MB117: =IF(SchoolFundStatus=Yes,LO117*INDEX(Index_SchoolFundRate,1,MATCH(LA$105,MatchRatesYear,0)),(1+INDEX(Index_NewEmployees,1,MATCH(LA$105,MatchRatesYear,0)))*MIN(INDEX(Index_SUTAMax,1,MATCH(LA$105,MatchRatesYear,0))*$AB117,LO117*INDEX(Index_SUTA_Rate,1,MATCH(LA$105,MatchRatesYear,0)))) -> 0 | MC117: =MIN(INDEX(IndexBenefits,MATCH(ETTMax,MatchBenefits,0),MATCH(LA$105,MatchRatesYear,0))*$AB117,LO117*INDEX(IndexBenefits,MATCH(MC$107,MatchBenefits,0),MATCH(LA$105,MatchRatesYear,0))) -> 0 | MD117: =LO117*INDEX(IndexBenefits,MATCH(MD$107,MatchBenefits,0),MATCH(LA$105,MatchRatesYear,0)) -> 0 | ME117: 0
AB118: 1 | AE118: Math | AG118: 1100 | AH118: 2020-07-01 | AL118: Aug to Jun | AM118: =IF(AH118="",StartDateYr1,AH118) -> 2020-07-01 | AN118: =IF(AI118="",Year10EndDate,AI118) -> 2030-06-30 | AO118: =IF(AND(AG118<2000,AG118>=1000),Certificated,IF(AND(AG118>=2000,AG118<3000),Classified,"")) -> Certificated | AR118: STRS | AS118: Health for 70% | AU118: 1 | AV118: 71852.8 | AW118: 71852.8 | AX118: 76179 | AZ118: =IF($AN118<INDEX(YearStartDate,1,MATCH(AY$105,YearRelative,0)),0,IF(AY118="",AU118,AY118)) -> 1 | BA118: 76179 | BB118: =IF($AN118<INDEX(YearStartDate,1,MATCH(AY$105,YearRelative,0)),0,IFERROR(IF(BA118="",AZ118*AW118/AU118*(1+INDEX(IndexCOLA,MATCH($AO118,MatchCOLA,0),MATCH(AY$105,MatchRatesYear,0))),AZ118*BA118),0)) -> 76179 | BD118: =IF($AN118<INDEX(YearStartDate,1,MATCH(BC$105,YearRelative,0)),0,IF(BC118="",AZ118,BC118)) -> 1 | BF118: =IF($AN118<INDEX(YearStartDate,1,MATCH(BC$105,YearRelative,0)),0,IFERROR(IF(BE118="",BD118*BB118/AZ118*(1+INDEX(IndexCOLA,MATCH($AO118,MatchCOLA,0),MATCH(BC$105,MatchRatesYear,0))),BD118*BE118),0)) -> 78464.37 | BH118: =IF($AN118<INDEX(YearStartDate,1,MATCH(BG$105,YearRelative,0)),0,IF(BG118="",BD118,BG118)) -> 1 | BJ118: =IF($AN118<INDEX(YearStartDate,1,MATCH(BG$105,YearRelative,0)),0,IFERROR(IF(BI118="",BH118*BF118/BD118*(1+INDEX(IndexCOLA,MATCH($AO118,MatchCOLA,0),MATCH(BG$105,MatchRatesYear,0))),BH118*BI118),0)) -> 80818.3011 | BL118: =IF($AN118<INDEX(YearStartDate,1,MATCH(BK$105,YearRelative,0)),0,IF(BK118="",BH118,BK118)) -> 1 | BN118: =IF($AN118<INDEX(YearStartDate,1,MATCH(BK$105,YearRelative,0)),0,IFERROR(IF(BM118="",BL118*BJ118/BH118*(1+INDEX(IndexCOLA,MATCH($AO118,MatchCOLA,0),MATCH(BK$105,MatchRatesYear,0))),BL118*BM118),0)) -> 83242.85013 | BP118: =IF($AN118<INDEX(YearStartDate,1,MATCH(BO$105,YearRelative,0)),0,IF(BO118="",BL118,BO118)) -> 1 | BR118: =IF($AN118<INDEX(YearStartDate,1,MATCH(BO$105,YearRelative,0)),0,IFERROR(IF(BQ118="",BP118*BN118/BL118*(1+INDEX(IndexCOLA,MATCH($AO118,MatchCOLA,0),MATCH(BO$105,MatchRatesYear,0))),BP118*BQ118),0)) -> 85740.13564 | BT118: 0 | BU118: 0 | BV118: 0 | BW118: 0 | CA118: =IF($AN118<INDEX(YearStartDate,1,MATCH(AY$105,YearRelative,0)),0,IFERROR(IF(BX118="",BT118*(1+INDEX(IndexCOLA,MATCH($AO118,MatchCOLA,0),MATCH(BX$105,MatchRatesYear,0))),BX118),0)) -> 0 | CB118: =IF(BY118="",BU118,BY118) -> 0 | CC118: 0 | CD118: 0 | CH118: =IF($AN118<INDEX(YearStartDate,1,MATCH(AY$105,YearRelative,0)),0,IFERROR(IF(CE118="",CA118*(1+INDEX(IndexCOLA,MATCH($AO118,MatchCOLA,0),MATCH(CE$105,MatchRatesYear,0))),CE118),0)) -> 0 | CI118: =IF(CF118="",CB118,CF118) -> 0 | CJ118: 0 | CK118: 0 | CO118: =IF($AN118<INDEX(YearStartDate,1,MATCH(AY$105,YearRelative,0)),0,IFERROR(IF(CL118="",CH118*(1+INDEX(IndexCOLA,MATCH($AO118,MatchCOLA,0),MATCH(CL$105,MatchRatesYear,0))),CL118),0)) -> 0 | CP118: =IF(CM118="",CI118,CM118) -> 0 | CQ118: 0 | CR118: 0 | CV118: =IF($AN118<INDEX(YearStartDate,1,MATCH(AY$105,YearRelative,0)),0,IFERROR(IF(CS118="",CO118*(1+INDEX(IndexCOLA,MATCH($AO118,MatchCOLA,0),MATCH(CS$105,MatchRatesYear,0))),CS118),0)) -> 0 | CW118: =IF(CT118="",CP118,CT118) -> 0 | CX118: 0 | CY118: 0 | DC118: =IF($AN118<INDEX(YearStartDate,1,MATCH(AY$105,YearRelative,0)),0,IFERROR(IF(CZ118="",CV118*(1+INDEX(IndexCOLA,MATCH($AO118,MatchCOLA,0),MATCH(CZ$105,MatchRatesYear,0))),CZ118),0)) -> 0 | DD118: =IF(DA118="",CW118,DA118) -> 0 | DE118: 0 | DF118: 0 | DH118: 1 | DI118: 1 | DJ118: 1 | DK118: =1 -> 1 | DL118: 1 | DM118: 1 | DP118: 0 | DU118: 0 | DZ118: 0 | EE118: 0 | EJ118: 0 | EO118: 0 | EQ118: =IF($AT118=Yes,INDEX(IndexInLieuMedical,1,MATCH(Payroll!ER$105,MatchRatesYear,0)),0) -> 0 | ER118: 71852.8 | ES118: 0 | ET118: 0 | EU118: 0 | EV118: 0 | EW118: 0 | EX118: 0 | EY118: 0 | EZ118: 0 | FA118: 0 | FB118: 0 | FC118: 0 | FD118: 0 | FE118: 0 | FF118: 0 | FG118: =IFERROR((-NetPayPercentage*FF118/FH118)*(FH118-MID(LEFT($AL118,FIND(",",$AL118)-1),FIND(" ",$AL118)+1,LEN($AL118))),0) -> 0 | FH118: 0 | FI118: =IFERROR(IF(AW118=0,FF118/((BT118*FTEHours*BV118+EQ118)*$AB118)*$AB118,FF118/((AV118+EQ118)*$AB118)*$AB118),0) -> 0 | FJ118: -71852.8 | FK118: =IF($AR118=FK$107,INDEX(IndexBenefits,MATCH($AR118,MatchBenefits,0),MATCH(ER$105,MatchRatesYear,0)),0)*FF118 -> 0 | FL118: =IF($AR118=FL$107,INDEX(IndexBenefits,MATCH($AR118,MatchBenefits,0),MATCH(ER$105,MatchRatesYear,0)),0)*FF118 -> 0 | FM118: =IF($AR118=FM$107,INDEX(IndexBenefits,MATCH($AR118,MatchBenefits,0),MATCH(ER$105,MatchRatesYear,0)),0)*FF118 -> 0 | FN118: =IF(LEFT($AR118,16)=FN$107,INDEX(IndexBenefits,MATCH($AR118,MatchBenefits,0),MATCH(ER$105,MatchRatesYear,0)),0)*FF118 -> 0 | FO118: =IF(IFERROR(INDEX(Index_SocialSecurity,MATCH($AR118,MatchBenefits,0)),Yes)=No,0,(MIN(INDEX(IndexBenefits,MATCH(SSIMax,MatchBenefits,0),MATCH(ER$105,MatchRatesYear,0))*$AB118,FF118*INDEX(IndexBenefits,MATCH(FO$107,MatchBenefits,0),MATCH(ER$105,MatchRatesYear,0))))) -> 0 | FP118: =FF118*INDEX(IndexBenefits,MATCH(FP$107,MatchBenefits,0),MATCH(ER$105,MatchRatesYear,0)) -> 0 | FQ118: =IF(FF118=0,0,IF($AS118="",0,INDEX(IndexBenefits,MATCH($AS118,MatchBenefits,0),MATCH(ER$105,MatchRatesYear,0))*$AB118*(MIN(DATEDIF(MAX(DATE(YEAR($AM118),MONTH(EOMONTH($AM118,(DAY($AM118)>5)+0)),1),EDATE(StartDateYr1,12*(FQ$93-1))),MIN(DATE(YEAR($AN118),MONTH($AN118)+1,1),EDATE(Year1EndDate+1,12*(FQ$93-1))),"M")/12,1)))) -> 0 | FR118: =IF(_501c3Status=Yes,0,(MIN(INDEX(Index_FUTAMax,1,MATCH(ER$105,MatchRatesYear,0))*$AB118,FF118*INDEX(Index_FUTA_Rate,1,MATCH(ER$105,MatchRatesYear,0))))) -> 0 | FS118: =IF(SchoolFundStatus=Yes,FF118*INDEX(Index_SchoolFundRate,1,MATCH(ER$105,MatchRatesYear,0)),(1+INDEX(Index_NewEmployees,1,MATCH(ER$105,MatchRatesYear,0)))*MIN(INDEX(Index_SUTAMax,1,MATCH(ER$105,MatchRatesYear,0))*$AB118,FF118*INDEX(Index_SUTA_Rate,1,MATCH(ER$105,MatchRatesYear,0)))) -> 0 | FT118: =MIN(INDEX(IndexBenefits,MATCH(ETTMax,MatchBenefits,0),MATCH(ER$105,MatchRatesYear,0))*$AB118,FF118*INDEX(IndexBenefits,MATCH(FT$107,MatchBenefits,0),MATCH(ER$105,MatchRatesYear,0))) -> 0 | FU118: =FF118*INDEX(IndexBenefits,MATCH(FU$107,MatchBenefits,0),MATCH(ER$105,MatchRatesYear,0)) -> 0 | FV118: 0 | FX118: =IF($AT118=Yes,INDEX(IndexInLieuMedical,1,MATCH(Payroll!FY$105,MatchRatesYear,0)),0) -> 0 | FY118: 76179 | FZ118: 0 | GA118: 0 | GB118: 0 | GC118: 0 | GD118: 0 | GE118: 0 | GF118: 0 | GG118: 0 | GH118: 0 | GI118: 0 | GJ118: 0 | GK118: 0 | GL118: 0 | GM118: 0 | GN118: =IFERROR((-NetPayPercentage*GM118/GO118)*(GO118-MID(LEFT($AL118,FIND(",",$AL118)-1),FIND(" ",$AL118)+1,LEN($AL118))),0) -> 0 | GO118: 0 | GP118: =IFERROR(IF(BB118=0,GM118/((CA118*FTEHours*CC118+FX118)*$AB118)*$AB118,GM118/((BB118/AZ118+FX118)*$AB118)*$AB118),0) -> 0 | GQ118: -76179 | GR118: =IF($AR118=GR$107,INDEX(IndexBenefits,MATCH($AR118,MatchBenefits,0),MATCH(FY$105,MatchRatesYear,0)),0)*GM118 -> 0 | GS118: =IF($AR118=GS$107,INDEX(IndexBenefits,MATCH($AR118,MatchBenefits,0),MATCH(FY$105,MatchRatesYear,0)),0)*GM118 -> 0 | GT118: =IF($AR118=GT$107,INDEX(IndexBenefits,MATCH($AR118,MatchBenefits,0),MATCH(FY$105,MatchRatesYear,0)),0)*GM118 -> 0 | GU118: =IF(LEFT($AR118,16)=GU$107,INDEX(IndexBenefits,MATCH($AR118,MatchBenefits,0),MATCH(FY$105,MatchRatesYear,0)),0)*GM118 -> 0 | GV118: =IF(IFERROR(INDEX(Index_SocialSecurity,MATCH($AR118,MatchBenefits,0)),Yes)=No,0,(MIN(INDEX(IndexBenefits,MATCH(SSIMax,MatchBenefits,0),MATCH(FY$105,MatchRatesYear,0))*$AB118,GM118*INDEX(IndexBenefits,MATCH(GV$107,MatchBenefits,0),MATCH(FY$105,MatchRatesYear,0))))) -> 0 | GW118: =GM118*INDEX(IndexBenefits,MATCH(GW$107,MatchBenefits,0),MATCH(FY$105,MatchRatesYear,0)) -> 0 | GX118: =IF(GM118=0,0,IF($AS118="",0,INDEX(IndexBenefits,MATCH($AS118,MatchBenefits,0),MATCH(FY$105,MatchRatesYear,0))*$AB118*(MIN(DATEDIF(MAX(DATE(YEAR($AM118),MONTH(EOMONTH($AM118,(DAY($AM118)>5)+0)),1),EDATE(StartDateYr1,12*(GX$93-1))),MIN(DATE(YEAR($AN118),MONTH($AN118)+1,1),EDATE(Year1EndDate+1,12*(GX$93-1))),"M")/12,1)))) -> 0 | GY118: =IF(_501c3Status=Yes,0,(MIN(INDEX(Index_FUTAMax,1,MATCH(FY$105,MatchRatesYear,0))*$AB118,GM118*INDEX(Index_FUTA_Rate,1,MATCH(FY$105,MatchRatesYear,0))))) -> 0 | GZ118: =IF(SchoolFundStatus=Yes,GM118*INDEX(Index_SchoolFundRate,1,MATCH(FY$105,MatchRatesYear,0)),(1+INDEX(Index_NewEmployees,1,MATCH(FY$105,MatchRatesYear,0)))*MIN(INDEX(Index_SUTAMax,1,MATCH(FY$105,MatchRatesYear,0))*$AB118,GM118*INDEX(Index_SUTA_Rate,1,MATCH(FY$105,MatchRatesYear,0)))) -> 0 | HA118: =MIN(INDEX(IndexBenefits,MATCH(ETTMax,MatchBenefits,0),MATCH(FY$105,MatchRatesYear,0))*$AB118,GM118*INDEX(IndexBenefits,MATCH(HA$107,MatchBenefits,0),MATCH(FY$105,MatchRatesYear,0))) -> 0 | HB118: =GM118*INDEX(IndexBenefits,MATCH(HB$107,MatchBenefits,0),MATCH(FY$105,MatchRatesYear,0)) -> 0 | HC118: 0 | HE118: =IF($AT118=Yes,INDEX(IndexInLieuMedical,1,MATCH(Payroll!HF$105,MatchRatesYear,0)),0) -> 0 | HF118: 78464.37 | HG118: 0 | HH118: 0 | HI118: 0 | HJ118: 0 | HK118: 0 | HL118: 0 | HM118: 0 | HN118: 0 | HO118: 0 | HP118: 0 | HQ118: 0 | HR118: 0 | HS118: 0 | HT118: 0 | HU118: =IFERROR((-NetPayPercentage*HT118/HV118)*(HV118-MID(LEFT($AL118,FIND(",",$AL118)-1),FIND(" ",$AL118)+1,LEN($AL118))),0) -> 0 | HV118: 0 | HW118: =IFERROR(IF(BF118=0,HT118/((CH118*FTEHours*CJ118+HE118)*$AB118)*$AB118,HT118/((BF118/BD118+HE118)*$AB118)*$AB118),0) -> 0 | HX118: -78464.37 | HY118: =IF($AR118=HY$107,INDEX(IndexBenefits,MATCH($AR118,MatchBenefits,0),MATCH(HF$105,MatchRatesYear,0)),0)*HT118 -> 0 | HZ118: =IF($AR118=HZ$107,INDEX(IndexBenefits,MATCH($AR118,MatchBenefits,0),MATCH(HF$105,MatchRatesYear,0)),0)*HT118 -> 0 | IA118: =IF($AR118=IA$107,INDEX(IndexBenefits,MATCH($AR118,MatchBenefits,0),MATCH(HF$105,MatchRatesYear,0)),0)*HT118 -> 0 | IB118: =IF(LEFT($AR118,16)=IB$107,INDEX(IndexBenefits,MATCH($AR118,MatchBenefits,0),MATCH(HF$105,MatchRatesYear,0)),0)*HT118 -> 0 | IC118: =IF(IFERROR(INDEX(Index_SocialSecurity,MATCH($AR118,MatchBenefits,0)),Yes)=No,0,(MIN(INDEX(IndexBenefits,MATCH(SSIMax,MatchBenefits,0),MATCH(HF$105,MatchRatesYear,0))*$AB118,HT118*INDEX(IndexBenefits,MATCH(IC$107,MatchBenefits,0),MATCH(HF$105,MatchRatesYear,0))))) -> 0 | ID118: =HT118*INDEX(IndexBenefits,MATCH(ID$107,MatchBenefits,0),MATCH(HF$105,MatchRatesYear,0)) -> 0 | IE118: =IF(HT118=0,0,IF($AS118="",0,INDEX(IndexBenefits,MATCH($AS118,MatchBenefits,0),MATCH(HF$105,MatchRatesYear,0))*$AB118*(MIN(DATEDIF(MAX(DATE(YEAR($AM118),MONTH(EOMONTH($AM118,(DAY($AM118)>5)+0)),1),EDATE(StartDateYr1,12*(IE$93-1))),MIN(DATE(YEAR($AN118),MONTH($AN118)+1,1),EDATE(Year1EndDate+1,12*(IE$93-1))),"M")/12,1)))) -> 0 | IF118: =IF(_501c3Status=Yes,0,(MIN(INDEX(Index_FUTAMax,1,MATCH(HF$105,MatchRatesYear,0))*$AB118,HT118*INDEX(Index_FUTA_Rate,1,MATCH(HF$105,MatchRatesYear,0))))) -> 0 | IG118: =IF(SchoolFundStatus=Yes,HT118*INDEX(Index_SchoolFundRate,1,MATCH(HF$105,MatchRatesYear,0)),(1+INDEX(Index_NewEmployees,1,MATCH(HF$105,MatchRatesYear,0)))*MIN(INDEX(Index_SUTAMax,1,MATCH(HF$105,MatchRatesYear,0))*$AB118,HT118*INDEX(Index_SUTA_Rate,1,MATCH(HF$105,MatchRatesYear,0)))) -> 0 | IH118: =MIN(INDEX(IndexBenefits,MATCH(ETTMax,MatchBenefits,0),MATCH(HF$105,MatchRatesYear,0))*$AB118,HT118*INDEX(IndexBenefits,MATCH(IH$107,MatchBenefits,0),MATCH(HF$105,MatchRatesYear,0))) -> 0 | II118: =HT118*INDEX(IndexBenefits,MATCH(II$107,MatchBenefits,0),MATCH(HF$105,MatchRatesYear,0)) -> 0 | IJ118: 0 | IL118: =IF($AT118=Yes,INDEX(IndexInLieuMedical,1,MATCH(Payroll!IM$105,MatchRatesYear,0)),0) -> 0 | IM118: 80818.3011 | IN118: 0 | IO118: 0 | IP118: 0 | IQ118: 0 | IR118: 0 | IS118: 0 | IT118: 0 | IU118: 0 | IV118: 0 | IW118: 0 | IX118: 0 | IY118: 0 | IZ118: 0 | JA118: 0 | JB118: =IFERROR((-NetPayPercentage*JA118/JC118)*(JC118-MID(LEFT($AL118,FIND(",",$AL118)-1),FIND(" ",$AL118)+1,LEN($AL118))),0) -> 0 | JC118: 0 | JD118: =IFERROR(IF(BJ118=0,JA118/((CO118*FTEHours*CQ118+IL118)*$AB118)*$AB118,JA118/((BJ118/BH118+IL118)*$AB118)*$AB118),0) -> 0 | JE118: -80818.3011 | JF118: =IF($AR118=JF$107,INDEX(IndexBenefits,MATCH($AR118,MatchBenefits,0),MATCH(IM$105,MatchRatesYear,0)),0)*JA118 -> 0 | JG118: =IF($AR118=JG$107,INDEX(IndexBenefits,MATCH($AR118,MatchBenefits,0),MATCH(IM$105,MatchRatesYear,0)),0)*JA118 -> 0 | JH118: =IF($AR118=JH$107,INDEX(IndexBenefits,MATCH($AR118,MatchBenefits,0),MATCH(IM$105,MatchRatesYear,0)),0)*JA118 -> 0 | JI118: =IF(LEFT($AR118,16)=JI$107,INDEX(IndexBenefits,MATCH($AR118,MatchBenefits,0),MATCH(IM$105,MatchRatesYear,0)),0)*JA118 -> 0 | JJ118: =IF(IFERROR(INDEX(Index_SocialSecurity,MATCH($AR118,MatchBenefits,0)),Yes)=No,0,(MIN(INDEX(IndexBenefits,MATCH(SSIMax,MatchBenefits,0),MATCH(IM$105,MatchRatesYear,0))*$AB118,JA118*INDEX(IndexBenefits,MATCH(JJ$107,MatchBenefits,0),MATCH(IM$105,MatchRatesYear,0))))) -> 0 | JK118: =JA118*INDEX(IndexBenefits,MATCH(JK$107,MatchBenefits,0),MATCH(IM$105,MatchRatesYear,0)) -> 0 | JL118: =IF(JA118=0,0,IF($AS118="",0,INDEX(IndexBenefits,MATCH($AS118,MatchBenefits,0),MATCH(IM$105,MatchRatesYear,0))*$AB118*(MIN(DATEDIF(MAX(DATE(YEAR($AM118),MONTH(EOMONTH($AM118,(DAY($AM118)>5)+0)),1),EDATE(StartDateYr1,12*(JL$93-1))),MIN(DATE(YEAR($AN118),MONTH($AN118)+1,1),EDATE(Year1EndDate+1,12*(JL$93-1))),"M")/12,1)))) -> 0 | JM118: =IF(_501c3Status=Yes,0,(MIN(INDEX(Index_FUTAMax,1,MATCH(IM$105,MatchRatesYear,0))*$AB118,JA118*INDEX(Index_FUTA_Rate,1,MATCH(IM$105,MatchRatesYear,0))))) -> 0 | JN118: =IF(SchoolFundStatus=Yes,JA118*INDEX(Index_SchoolFundRate,1,MATCH(IM$105,MatchRatesYear,0)),(1+INDEX(Index_NewEmployees,1,MATCH(IM$105,MatchRatesYear,0)))*MIN(INDEX(Index_SUTAMax,1,MATCH(IM$105,MatchRatesYear,0))*$AB118,JA118*INDEX(Index_SUTA_Rate,1,MATCH(IM$105,MatchRatesYear,0)))) -> 0 | JO118: =MIN(INDEX(IndexBenefits,MATCH(ETTMax,MatchBenefits,0),MATCH(IM$105,MatchRatesYear,0))*$AB118,JA118*INDEX(IndexBenefits,MATCH(JO$107,MatchBenefits,0),MATCH(IM$105,MatchRatesYear,0))) -> 0 | JP118: =JA118*INDEX(IndexBenefits,MATCH(JP$107,MatchBenefits,0),MATCH(IM$105,MatchRatesYear,0)) -> 0 | JQ118: 0 | JS118: =IF($AT118=Yes,INDEX(IndexInLieuMedical,1,MATCH(Payroll!JT$105,MatchRatesYear,0)),0) -> 0 | JT118: 83242.85013 | JU118: 0 | JV118: 0 | JW118: 0 | JX118: 0 | JY118: 0 | JZ118: 0 | KA118: 0 | KB118: 0 | KC118: 0 | KD118: 0 | KE118: 0 | KF118: 0 | KG118: 0 | KH118: 0 | KI118: =IFERROR((-NetPayPercentage*KH118/KJ118)*(KJ118-MID(LEFT($AL118,FIND(",",$AL118)-1),FIND(" ",$AL118)+1,LEN($AL118))),0) -> 0 | KJ118: 0 | KK118: =IFERROR(IF(BN118=0,KH118/((CV118*FTEHours*CX118+JS118)*$AB118)*$AB118,KH118/((BN118/BL118+JS118)*$AB118)*$AB118),0) -> 0 | KL118: -83242.85013 | KM118: =IF($AR118=KM$107,INDEX(IndexBenefits,MATCH($AR118,MatchBenefits,0),MATCH(JT$105,MatchRatesYear,0)),0)*KH118 -> 0 | KN118: =IF($AR118=KN$107,INDEX(IndexBenefits,MATCH($AR118,MatchBenefits,0),MATCH(JT$105,MatchRatesYear,0)),0)*KH118 -> 0 | KO118: =IF($AR118=KO$107,INDEX(IndexBenefits,MATCH($AR118,MatchBenefits,0),MATCH(JT$105,MatchRatesYear,0)),0)*KH118 -> 0 | KP118: =IF(LEFT($AR118,16)=KP$107,INDEX(IndexBenefits,MATCH($AR118,MatchBenefits,0),MATCH(JT$105,MatchRatesYear,0)),0)*KH118 -> 0 | KQ118: =IF(IFERROR(INDEX(Index_SocialSecurity,MATCH($AR118,MatchBenefits,0)),Yes)=No,0,(MIN(INDEX(IndexBenefits,MATCH(SSIMax,MatchBenefits,0),MATCH(JT$105,MatchRatesYear,0))*$AB118,KH118*INDEX(IndexBenefits,MATCH(KQ$107,MatchBenefits,0),MATCH(JT$105,MatchRatesYear,0))))) -> 0 | KR118: =KH118*INDEX(IndexBenefits,MATCH(KR$107,MatchBenefits,0),MATCH(JT$105,MatchRatesYear,0)) -> 0 | KS118: =IF(KH118=0,0,IF($AS118="",0,INDEX(IndexBenefits,MATCH($AS118,MatchBenefits,0),MATCH(JT$105,MatchRatesYear,0))*$AB118*(MIN(DATEDIF(MAX(DATE(YEAR($AM118),MONTH(EOMONTH($AM118,(DAY($AM118)>5)+0)),1),EDATE(StartDateYr1,12*(KS$93-1))),MIN(DATE(YEAR($AN118),MONTH($AN118)+1,1),EDATE(Year1EndDate+1,12*(KS$93-1))),"M")/12,1)))) -> 0 | KT118: =IF(_501c3Status=Yes,0,(MIN(INDEX(Index_FUTAMax,1,MATCH(JT$105,MatchRatesYear,0))*$AB118,KH118*INDEX(Index_FUTA_Rate,1,MATCH(JT$105,MatchRatesYear,0))))) -> 0 | KU118: =IF(SchoolFundStatus=Yes,KH118*INDEX(Index_SchoolFundRate,1,MATCH(JT$105,MatchRatesYear,0)),(1+INDEX(Index_NewEmployees,1,MATCH(JT$105,MatchRatesYear,0)))*MIN(INDEX(Index_SUTAMax,1,MATCH(JT$105,MatchRatesYear,0))*$AB118,KH118*INDEX(Index_SUTA_Rate,1,MATCH(JT$105,MatchRatesYear,0)))) -> 0 | KV118: =MIN(INDEX(IndexBenefits,MATCH(ETTMax,MatchBenefits,0),MATCH(JT$105,MatchRatesYear,0))*$AB118,KH118*INDEX(IndexBenefits,MATCH(KV$107,MatchBenefits,0),MATCH(JT$105,MatchRatesYear,0))) -> 0 | KW118: =KH118*INDEX(IndexBenefits,MATCH(KW$107,MatchBenefits,0),MATCH(JT$105,MatchRatesYear,0)) -> 0 | KX118: 0 | KZ118: =IF($AT118=Yes,INDEX(IndexInLieuMedical,1,MATCH(Payroll!LA$105,MatchRatesYear,0)),0) -> 0 | LA118: 85740.13564 | LB118: 0 | LC118: 0 | LD118: 0 | LE118: 0 | LF118: 0 | LG118: 0 | LH118: 0 | LI118: 0 | LJ118: 0 | LK118: 0 | LL118: 0 | LM118: 0 | LN118: 0 | LO118: 0 | LP118: =IFERROR((-NetPayPercentage*LO118/LQ118)*(LQ118-MID(LEFT($AL118,FIND(",",$AL118)-1),FIND(" ",$AL118)+1,LEN($AL118))),0) -> 0 | LQ118: 0 | LR118: =IFERROR(IF(BR118=0,LO118/((DC118*FTEHours*DE118+KZ118)*$AB118)*$AB118,LO118/((BR118/$BP118+KZ118)*$AB118)*$AB118),0) -> 0 | LS118: -85740.13564 | LT118: =IF($AR118=LT$107,INDEX(IndexBenefits,MATCH($AR118,MatchBenefits,0),MATCH(LA$105,MatchRatesYear,0)),0)*LO118 -> 0 | LU118: =IF($AR118=LU$107,INDEX(IndexBenefits,MATCH($AR118,MatchBenefits,0),MATCH(LA$105,MatchRatesYear,0)),0)*LO118 -> 0 | LV118: =IF($AR118=LV$107,INDEX(IndexBenefits,MATCH($AR118,MatchBenefits,0),MATCH(LA$105,MatchRatesYear,0)),0)*LO118 -> 0 | LW118: =IF(LEFT($AR118,16)=LW$107,INDEX(IndexBenefits,MATCH($AR118,MatchBenefits,0),MATCH(LA$105,MatchRatesYear,0)),0)*LO118 -> 0 | LX118: =IF(IFERROR(INDEX(Index_SocialSecurity,MATCH($AR118,MatchBenefits,0)),Yes)=No,0,(MIN(INDEX(IndexBenefits,MATCH(SSIMax,MatchBenefits,0),MATCH(LA$105,MatchRatesYear,0))*$AB118,LO118*INDEX(IndexBenefits,MATCH(LX$107,MatchBenefits,0),MATCH(LA$105,MatchRatesYear,0))))) -> 0 | LY118: =LO118*INDEX(IndexBenefits,MATCH(LY$107,MatchBenefits,0),MATCH(LA$105,MatchRatesYear,0)) -> 0 | LZ118: =IF(LO118=0,0,IF($AS118="",0,INDEX(IndexBenefits,MATCH($AS118,MatchBenefits,0),MATCH(LA$105,MatchRatesYear,0))*$AB118*(MIN(DATEDIF(MAX(DATE(YEAR($AM118),MONTH(EOMONTH($AM118,(DAY($AM118)>5)+0)),1),EDATE(StartDateYr1,12*(LZ$93-1))),MIN(DATE(YEAR($AN118),MONTH($AN118)+1,1),EDATE(Year1EndDate+1,12*(LZ$93-1))),"M")/12,1)))) -> 0 | MA118: =IF(_501c3Status=Yes,0,(MIN(INDEX(Index_FUTAMax,1,MATCH(LA$105,MatchRatesYear,0))*$AB118,LO118*INDEX(Index_FUTA_Rate,1,MATCH(LA$105,MatchRatesYear,0))))) -> 0 | MB118: =IF(SchoolFundStatus=Yes,LO118*INDEX(Index_SchoolFundRate,1,MATCH(LA$105,MatchRatesYear,0)),(1+INDEX(Index_NewEmployees,1,MATCH(LA$105,MatchRatesYear,0)))*MIN(INDEX(Index_SUTAMax,1,MATCH(LA$105,MatchRatesYear,0))*$AB118,LO118*INDEX(Index_SUTA_Rate,1,MATCH(LA$105,MatchRatesYear,0)))) -> 0 | MC118: =MIN(INDEX(IndexBenefits,MATCH(ETTMax,MatchBenefits,0),MATCH(LA$105,MatchRatesYear,0))*$AB118,LO118*INDEX(IndexBenefits,MATCH(MC$107,MatchBenefits,0),MATCH(LA$105,MatchRatesYear,0))) -> 0 | MD118: =LO118*INDEX(IndexBenefits,MATCH(MD$107,MatchBenefits,0),MATCH(LA$105,MatchRatesYear,0)) -> 0 | ME118: 0
